{"text_format":"1","workbook":"xlsx","n_sheets":3,"sheets":["Example Lager","Example Ale","Example Parti-gyle"],"not_rendered":{"charts":0,"images":24,"macros":1,"external_links":1,"defined_names":909,"comments":3,"pivot_tables":0},"unopened":[],"bounds":{"document_bytes":16777216,"sheet_cells":100000,"rows_first":2000,"rows_last":500,"rows_between":2000,"halvings":0,"cell_chars":16384,"cell_head_chars":4096},"cells_cut":0,"cells_raw":0,"read":"whole","date_system":"1900"}

{"sheet":"Example Lager","index":0,"n_rows":178,"n_cols":47,"rows_kept":178,"cut":false,"hidden":false,"merged":[[176,32,176,33],[176,34,176,35],[176,36,176,37],[177,32,177,33],[177,34,177,35],[177,36,177,37],[174,34,174,35],[174,36,174,37],[175,1,175,2],[175,19,175,21],[175,22,175,27],[175,28,175,29],[175,32,175,33],[175,34,175,35],[175,36,175,37],[173,34,173,35],[173,36,173,37],[174,1,174,2],[174,3,174,4],[174,7,174,8],[174,11,174,19],[174,20,174,21],[174,22,174,27],[174,28,174,29],[174,32,174,33],[172,34,172,35],[172,36,172,37],[173,1,173,2],[173,3,173,4],[173,7,173,8],[173,11,173,19],[173,20,173,21],[173,22,173,27],[173,28,173,29],[173,32,173,33],[171,34,171,35],[171,36,171,37],[172,1,172,2],[172,3,172,4],[172,7,172,8],[172,11,172,19],[172,20,172,21],[172,22,172,27],[172,28,172,29],[172,32,172,33],[170,34,170,35],[170,36,170,37],[171,1,171,2],[171,3,171,4],[171,7,171,8],[171,11,171,19],[171,20,171,21],[171,22,171,27],[171,28,171,29],[171,32,171,33],[169,34,169,35],[169,36,169,37],[170,1,170,2],[170,3,170,4],[170,7,170,8],[170,11,170,19],[170,20,170,21],[170,22,170,27],[170,28,170,29],[170,32,170,33],[168,34,168,35],[168,36,168,37],[169,1,169,2],[169,3,169,4],[169,7,169,8],[169,11,169,19],[169,20,169,21],[169,22,169,27],[169,28,169,29],[169,32,169,33],[167,32,167,35],[167,36,167,38],[168,1,168,2],[168,3,168,4],[168,7,168,8],[168,11,168,19],[168,20,168,21],[168,22,168,27],[168,28,168,29],[168,32,168,33],[166,28,166,29],[167,1,167,2],[167,3,167,4],[167,7,167,8],[167,11,167,19],[167,20,167,21],[167,22,167,27],[167,28,167,29],[166,1,166,2],[166,3,166,4],[166,7,166,8],[166,11,166,19],[166,20,166,21],[166,22,166,27],[164,35,164,38],[165,1,165,2],[165,3,165,4],[165,7,165,8],[165,11,165,19],[165,20,165,21],[165,22,165,27],[165,28,165,29],[165,35,165,36],[165,37,165,38],[163,35,163,36],[163,37,163,38],[164,1,164,2],[164,3,164,4],[164,7,164,8],[164,12,164,19],[164,20,164,21],[164,22,164,27],[164,28,164,29],[164,32,164,34],[161,32,161,34],[161,35,161,36],[161,37,161,38],[162,21,162,22],[162,32,162,34],[162,35,162,38],[159,21,159,23],[159,24,159,28],[159,29,159,30],[159,31,159,32],[159,34,159,37],[161,4,161,8],[161,10,161,13],[161,14,161,16],[161,17,161,20],[161,21,161,23],[159,1,159,2],[159,3,159,5],[159,6,159,9],[159,10,159,13],[159,14,159,18],[159,19,159,20],[158,19,158,20],[158,21,158,23],[158,24,158,28],[158,29,158,30],[158,31,158,32],[158,34,158,37],[157,21,157,23],[157,24,157,28],[157,29,157,30],[157,31,157,32],[157,34,157,37],[158,1,158,2],[158,3,158,5],[158,6,158,9],[158,10,158,13],[158,14,158,18],[155,19,155,20],[155,21,155,28],[155,29,155,32],[155,33,155,35],[155,36,155,38],[157,3,157,5],[157,6,157,9],[157,10,157,13],[157,14,157,18],[157,19,157,20],[155,2,155,4],[155,5,155,7],[155,8,155,10],[155,11,155,12],[155,13,155,14],[155,15,155,18],[152,29,152,30],[152,35,152,36],[152,37,152,38],[153,4,153,5],[153,6,153,9],[153,10,153,12],[153,13,153,17],[153,18,153,19],[153,20,153,28],[153,29,153,30],[152,4,152,5],[152,6,152,9],[152,10,152,12],[152,13,152,17],[152,18,152,19],[152,20,152,28],[150,14,150,19],[150,20,150,28],[150,29,150,30],[150,35,150,36],[150,37,150,38],[151,32,151,34],[151,35,151,38],[149,20,149,28],[149,29,149,30],[149,32,149,34],[149,35,149,38],[150,1,150,2],[150,3,150,4],[150,5,150,6],[150,7,150,9],[150,10,150,11],[150,12,150,13],[148,32,148,34],[148,35,148,36],[148,37,148,38],[149,1,149,2],[149,3,149,4],[149,5,149,6],[149,7,149,9],[149,10,149,11],[149,12,149,13],[149,14,149,19],[147,29,147,30],[148,1,148,2],[148,3,148,4],[148,5,148,6],[148,7,148,9],[148,10,148,11],[148,12,148,13],[148,14,148,19],[148,20,148,28],[148,29,148,30],[146,32,146,33],[146,35,146,37],[147,1,147,2],[147,3,147,4],[147,5,147,6],[147,7,147,9],[147,10,147,11],[147,12,147,13],[147,14,147,19],[147,20,147,28],[145,1,145,2],[145,19,145,21],[145,22,145,27],[145,28,145,29],[145,32,145,33],[145,35,145,37],[143,35,143,36],[144,1,144,2],[144,3,144,4],[144,7,144,8],[144,11,144,19],[144,20,144,21],[144,22,144,27],[144,28,144,29],[144,32,144,38],[142,32,142,34],[142,35,142,36],[143,1,143,2],[143,3,143,4],[143,7,143,8],[143,11,143,19],[143,20,143,21],[143,22,143,27],[143,28,143,29],[143,32,143,34],[141,28,141,29],[141,32,141,34],[141,35,141,36],[142,1,142,2],[142,3,142,4],[142,7,142,8],[142,11,142,19],[142,20,142,21],[142,22,142,27],[142,28,142,29],[141,1,141,2],[141,3,141,4],[141,7,141,8],[141,11,141,19],[141,20,141,21],[141,22,141,27],[139,35,139,36],[140,1,140,2],[140,3,140,4],[140,7,140,8],[140,11,140,19],[140,20,140,21],[140,22,140,27],[140,28,140,29],[140,32,140,34],[140,35,140,36],[138,32,138,34],[138,35,138,36],[139,1,139,2],[139,3,139,4],[139,7,139,8],[139,11,139,19],[139,20,139,21],[139,22,139,27],[139,28,139,29],[139,32,139,34],[137,28,137,29],[137,32,137,34],[137,35,137,36],[138,1,138,2],[138,3,138,4],[138,7,138,8],[138,11,138,19],[138,20,138,21],[138,22,138,27],[138,28,138,29],[137,1,137,2],[137,3,137,4],[137,7,137,8],[137,11,137,19],[137,20,137,21],[137,22,137,27],[135,32,135,33],[135,35,135,36],[136,1,136,2],[136,3,136,4],[136,7,136,8],[136,11,136,19],[136,20,136,21],[136,22,136,27],[136,28,136,29],[136,32,136,38],[134,28,134,29],[134,32,134,33],[134,35,134,36],[135,1,135,2],[135,3,135,4],[135,7,135,8],[135,11,135,19],[135,20,135,21],[135,22,135,27],[135,28,135,29],[134,1,134,2],[134,3,134,4],[134,7,134,8],[134,12,134,19],[134,20,134,21],[134,22,134,27],[131,32,131,33],[131,35,131,36],[131,37,131,38],[132,21,132,22],[132,32,132,38],[133,32,133,33],[133,35,133,36],[129,21,129,23],[129,24,129,28],[129,29,129,30],[129,31,129,32],[129,34,129,37],[131,4,131,8],[131,10,131,13],[131,14,131,16],[131,17,131,20],[131,21,131,23],[128,24,128,28],[128,29,128,30],[128,31,128,32],[128,34,128,37],[129,1,129,2],[129,3,129,5],[129,6,129,9],[129,10,129,13],[129,14,129,18],[129,19,129,20],[127,29,127,30],[127,31,127,32],[127,34,127,37],[128,1,128,2],[128,3,128,5],[128,6,128,9],[128,10,128,13],[128,14,128,18],[128,19,128,20],[128,21,128,23],[125,29,125,32],[125,33,125,35],[125,36,125,38],[127,3,127,5],[127,6,127,9],[127,10,127,13],[127,14,127,18],[127,19,127,20],[127,21,127,23],[127,24,127,28],[99,1,105,38],[124,1,124,38],[125,2,125,4],[125,5,125,7],[125,8,125,10],[125,11,125,12],[125,13,125,14],[125,15,125,18],[125,19,125,20],[125,21,125,28],[95,31,95,33],[95,34,95,37],[96,3,96,38],[97,29,97,32],[97,34,97,37],[98,1,98,38],[95,3,95,5],[95,6,95,10],[95,11,95,18],[95,19,95,23],[95,24,95,27],[95,28,95,30],[93,1,93,2],[93,6,93,7],[93,8,93,10],[93,11,93,36],[93,37,93,38],[94,1,94,2],[94,6,94,7],[94,8,94,10],[94,11,94,36],[94,37,94,38],[91,34,91,35],[91,36,91,37],[92,1,92,2],[92,3,92,4],[92,5,92,7],[92,8,92,10],[92,11,92,36],[92,37,92,38],[90,34,90,35],[90,36,90,37],[91,3,91,5],[91,6,91,8],[91,10,91,11],[91,12,91,13],[91,14,91,17],[91,20,91,21],[91,24,91,29],[91,30,91,31],[89,24,89,31],[89,34,89,35],[89,36,89,37],[90,1,90,2],[90,3,90,5],[90,6,90,8],[90,10,90,11],[90,14,90,17],[90,20,90,21],[90,24,90,31],[89,1,89,2],[89,3,89,5],[89,6,89,8],[89,10,89,11],[89,14,89,17],[89,20,89,21],[87,36,87,37],[88,1,88,2],[88,3,88,5],[88,6,88,8],[88,10,88,11],[88,14,88,17],[88,20,88,21],[88,24,88,31],[88,34,88,35],[88,36,88,37],[86,34,86,35],[86,36,86,37],[87,1,87,2],[87,3,87,5],[87,6,87,8],[87,10,87,11],[87,14,87,17],[87,20,87,21],[87,24,87,31],[87,34,87,35],[85,24,85,31],[85,34,85,35],[85,36,85,37],[86,1,86,2],[86,3,86,5],[86,6,86,8],[86,10,86,11],[86,14,86,17],[86,20,86,21],[86,24,86,31],[85,1,85,2],[85,3,85,5],[85,6,85,8],[85,10,85,11],[85,14,85,17],[85,20,85,21],[83,36,83,37],[84,1,84,2],[84,3,84,5],[84,6,84,8],[84,10,84,11],[84,14,84,17],[84,20,84,21],[84,24,84,31],[84,34,84,35],[84,36,84,37],[82,34,82,35],[82,36,82,37],[83,1,83,2],[83,3,83,5],[83,6,83,8],[83,10,83,11],[83,14,83,17],[83,20,83,21],[83,24,83,31],[83,34,83,35],[81,24,81,31],[81,34,81,35],[81,36,81,37],[82,1,82,2],[82,3,82,5],[82,6,82,8],[82,10,82,11],[82,14,82,17],[82,20,82,21],[82,24,82,31],[80,20,80,21],[80,24,80,31],[80,34,80,35],[80,36,80,37],[81,1,81,2],[81,3,81,5],[81,6,81,8],[81,10,81,11],[81,14,81,17],[81,20,81,21],[79,18,79,19],[79,20,79,21],[79,24,79,31],[79,34,79,35],[79,36,79,37],[80,1,80,2],[80,3,80,5],[80,6,80,8],[80,10,80,11],[80,14,80,17],[78,25,78,27],[78,28,78,30],[78,31,78,32],[78,35,78,38],[79,1,79,2],[79,3,79,5],[79,6,79,8],[79,10,79,11],[79,12,79,13],[79,14,79,17],[77,22,77,24],[77,25,77,27],[77,28,77,30],[77,31,77,32],[77,35,77,38],[78,1,78,2],[78,7,78,8],[78,14,78,15],[78,16,78,17],[78,22,78,24],[76,31,76,32],[76,35,76,38],[77,1,77,2],[77,3,77,4],[77,5,77,6],[77,7,77,9],[77,10,77,11],[77,12,77,13],[77,14,77,19],[77,20,77,21],[76,14,76,17],[76,18,76,19],[76,20,76,21],[76,22,76,24],[76,25,76,27],[76,28,76,30],[76,1,76,2],[76,3,76,4],[76,5,76,6],[76,7,76,9],[76,10,76,11],[76,12,76,13],[74,40,74,41],[75,1,75,2],[75,7,75,8],[75,14,75,15],[75,16,75,17],[75,22,75,24],[75,25,75,27],[75,28,75,30],[75,31,75,32],[75,35,75,38],[74,18,74,19],[74,20,74,21],[74,22,74,27],[74,28,74,30],[74,31,74,32],[74,35,74,38],[73,20,73,27],[73,28,73,32],[73,35,73,38],[74,1,74,2],[74,3,74,4],[74,5,74,6],[74,7,74,9],[74,10,74,11],[74,12,74,13],[74,14,74,17],[73,1,73,2],[73,3,73,4],[73,5,73,8],[73,9,73,10],[73,11,73,16],[73,17,73,18],[71,1,71,38],[72,1,72,2],[72,3,72,4],[72,5,72,8],[72,9,72,10],[72,11,72,16],[72,17,72,18],[72,20,72,27],[72,28,72,31],[72,34,72,38],[59,22,59,29],[59,31,59,33],[60,1,60,38],[62,1,62,38],[63,1,69,38],[65,41,66,41],[69,41,70,41],[59,2,59,5],[59,6,59,8],[59,9,59,10],[59,11,59,12],[59,13,59,17],[59,20,59,21],[58,6,58,8],[58,9,58,10],[58,11,58,12],[58,13,58,17],[58,20,58,21],[58,22,58,33],[56,22,56,33],[57,2,57,5],[57,6,57,8],[57,9,57,10],[57,11,57,12],[57,13,57,17],[57,18,59,19],[57,20,57,21],[57,22,57,33],[58,2,58,5],[55,20,55,21],[55,22,55,33],[55,35,59,38],[56,2,56,5],[56,6,56,8],[56,9,56,10],[56,11,56,12],[56,13,56,17],[56,18,56,19],[56,20,56,21],[55,2,55,5],[55,6,55,8],[55,9,55,10],[55,11,55,12],[55,13,55,17],[55,18,55,19],[53,18,53,19],[53,20,53,21],[53,22,53,30],[53,31,54,38],[54,2,54,5],[54,6,54,9],[54,11,54,19],[54,20,54,21],[54,22,54,30],[52,18,52,19],[52,20,52,21],[52,22,52,30],[52,31,52,32],[52,33,52,38],[53,2,53,5],[53,6,53,8],[53,9,53,10],[53,11,53,12],[53,13,53,17],[51,20,51,21],[51,22,51,30],[51,31,51,32],[51,33,51,38],[51,40,51,41],[52,2,52,5],[52,6,52,8],[52,9,52,10],[52,11,52,12],[52,13,52,17],[50,22,50,30],[50,31,50,32],[50,34,50,35],[50,36,50,37],[51,2,51,5],[51,6,51,8],[51,9,51,10],[51,11,51,12],[51,13,51,17],[51,18,51,19],[49,31,49,32],[49,34,49,35],[49,36,49,37],[50,2,50,5],[50,6,50,8],[50,9,50,10],[50,11,50,12],[50,13,50,17],[50,18,50,19],[50,20,50,21],[48,34,48,35],[48,36,48,37],[49,2,49,5],[49,6,49,8],[49,9,49,10],[49,11,49,12],[49,13,49,17],[49,18,49,19],[49,20,49,21],[49,22,49,30],[47,33,47,38],[48,2,48,5],[48,6,48,8],[48,9,48,10],[48,11,48,12],[48,13,48,17],[48,18,48,19],[48,20,48,21],[48,22,48,30],[48,31,48,32],[46,1,46,38],[47,2,47,5],[47,6,47,8],[47,9,47,10],[47,11,47,12],[47,13,47,17],[47,18,47,19],[47,20,47,21],[47,22,47,30],[47,31,47,32],[34,31,34,33],[34,34,34,37],[34,40,34,41],[35,3,35,38],[37,1,37,38],[38,1,44,38],[34,3,34,5],[34,6,34,10],[34,11,34,18],[34,19,34,23],[34,24,34,27],[34,28,34,30],[32,1,32,2],[32,6,32,7],[32,8,32,10],[32,11,32,36],[32,37,32,38],[33,1,33,2],[33,6,33,7],[33,8,33,10],[33,11,33,36],[33,37,33,38],[31,1,31,2],[31,3,31,4],[31,5,31,7],[31,8,31,10],[31,11,31,36],[31,37,31,38],[28,36,28,37],[29,3,29,8],[29,10,29,11],[29,12,29,13],[29,14,29,17],[29,20,29,21],[29,24,29,29],[29,30,29,31],[29,34,29,35],[29,36,29,37],[27,34,27,35],[27,36,27,37],[28,1,28,2],[28,3,28,5],[28,6,28,8],[28,10,28,11],[28,14,28,17],[28,20,28,21],[28,24,28,31],[28,34,28,35],[26,24,26,31],[26,34,26,35],[26,36,26,37],[27,1,27,2],[27,3,27,5],[27,6,27,8],[27,10,27,11],[27,14,27,17],[27,20,27,21],[27,24,27,31],[26,1,26,2],[26,3,26,5],[26,6,26,8],[26,10,26,11],[26,14,26,17],[26,20,26,21],[24,40,24,41],[25,1,25,2],[25,3,25,5],[25,6,25,8],[25,10,25,11],[25,14,25,17],[25,20,25,21],[25,24,25,31],[25,34,25,35],[25,36,25,37],[23,36,23,37],[24,1,24,2],[24,3,24,5],[24,6,24,8],[24,10,24,11],[24,14,24,17],[24,20,24,21],[24,24,24,31],[24,34,24,35],[24,36,24,37],[22,24,22,31],[22,34,22,35],[22,36,22,37],[23,3,23,5],[23,6,23,8],[23,10,23,11],[23,14,23,17],[23,20,23,21],[23,24,23,31],[23,34,23,35],[22,1,22,2],[22,3,22,5],[22,6,22,8],[22,10,22,11],[22,14,22,17],[22,20,22,21],[20,36,20,37],[21,1,21,2],[21,3,21,5],[21,6,21,8],[21,10,21,11],[21,14,21,17],[21,20,21,21],[21,24,21,31],[21,34,21,35],[21,36,21,37],[19,34,19,35],[19,36,19,37],[20,1,20,2],[20,3,20,5],[20,6,20,8],[20,10,20,11],[20,14,20,17],[20,20,20,21],[20,24,20,31],[20,34,20,35],[18,24,18,31],[18,34,18,35],[18,36,18,37],[19,1,19,2],[19,3,19,5],[19,6,19,8],[19,10,19,11],[19,14,19,17],[19,20,19,21],[19,24,19,31],[18,1,18,2],[18,3,18,5],[18,6,18,8],[18,10,18,11],[18,14,18,17],[18,20,18,21],[17,14,17,17],[17,18,17,19],[17,20,17,21],[17,24,17,31],[17,34,17,35],[17,36,17,37],[15,24,15,27],[15,28,15,29],[15,32,15,33],[15,35,15,36],[15,37,15,38],[17,1,17,2],[17,3,17,5],[17,6,17,8],[17,10,17,11],[17,12,17,13],[15,1,15,2],[15,3,15,4],[15,5,15,6],[15,8,15,11],[15,13,15,14],[15,17,15,23],[14,17,14,23],[14,24,14,27],[14,28,14,29],[14,32,14,33],[14,35,14,36],[14,37,14,38],[13,24,13,27],[13,28,13,29],[13,32,13,33],[13,35,13,36],[13,37,13,38],[14,1,14,2],[14,3,14,4],[14,5,14,6],[14,8,14,12],[14,13,14,14],[13,1,13,2],[13,3,13,4],[13,5,13,6],[13,8,13,12],[13,13,13,14],[13,17,13,23],[12,17,12,23],[12,24,12,27],[12,28,12,29],[12,32,12,33],[12,35,12,36],[12,37,12,38],[11,24,11,27],[11,28,11,29],[11,32,11,33],[11,35,11,36],[11,37,11,38],[12,1,12,2],[12,3,12,4],[12,5,12,6],[12,8,12,12],[12,13,12,14],[11,1,11,2],[11,3,11,4],[11,5,11,6],[11,8,11,12],[11,13,11,14],[11,17,11,23],[10,1,10,2],[10,3,10,4],[10,5,10,6],[10,8,10,14],[10,17,10,30],[10,32,10,38],[7,34,7,38],[8,1,8,2],[8,7,8,8],[8,14,8,15],[8,16,8,17],[8,22,8,24],[8,25,8,27],[8,29,8,31],[8,34,8,38],[7,12,7,13],[7,14,7,19],[7,20,7,21],[7,22,7,24],[7,25,7,27],[7,29,7,31],[6,20,6,21],[6,22,6,24],[6,25,6,27],[6,29,6,31],[6,34,6,38],[7,1,7,2],[7,3,7,4],[7,5,7,6],[7,7,7,9],[7,10,7,11],[5,29,5,31],[5,34,5,38],[6,1,6,2],[6,3,6,4],[6,5,6,6],[6,7,6,9],[6,10,6,11],[6,12,6,13],[6,14,6,17],[6,18,6,19],[4,20,4,21],[4,22,4,27],[4,29,4,31],[4,34,4,38],[5,1,5,2],[5,7,5,8],[5,14,5,15],[5,16,5,17],[5,22,5,24],[5,25,5,27],[3,29,3,31]],"merged_total":1024,"flags":["merged_cut"]}
[]
[null,"Recipe",null,"Brew Date",null,"Assistant",null,null,null,"Time","Cost",null,"Fermenter Clear",null,null,null,null,null,"Drink Date",null,null,null,null,null,null,null,null,null,null,"Batch Size, Volumes, Losses & Infusions/Decotions"]
[" ","Example Lager",null,"2009-01-15",null,"doc",null,null,null,{"$f":"(SUM(TIME)+TimeMashStep1+TimeMashStep2+TimeMashStep3+TimeBoil)/60","v":9.25},{"$f":"CostGrains+CostHops+CostYeast+CostGrainsPG+CostHopsPG+CostYeastPG","v":0},null,{"$f":"IF(BrewDate=\"\",\"\",IF(SUM(FERMENTER_DAYS)=0,\"\",BrewDate+SUM(FERMENTER_DAYS)))","v":"2009-02-05"},null,null,null,null,null,{"$f":"IF(BrewDate=\"\",\"\",IF(SUM(FERMENTATION_DAYS)=0,\"\",BrewDate+SUM(FERMENTATION_DAYS)+1))","v":"2009-03-25"},null,null,null,null,null,null,null,null,null,null,"Packaged Beer Volume ",null,null,10,0.25," Fermenter Transfer & Trub Losses"]
[null,null,null,null,null,null,null,null,null,null,null,null,null,null,null,null,null,null,null,null,null,null,null,null,null,null,null,null,null,"Fermentation Volume ",null,null,{"$f":"IF(VolumeFinal=\"\",\"\",IF(TrubLoss=\"\",\"\",VolumeFinal+TrubLoss))","v":10.25},0.125," Transfer Losses from Kettle"]
[" ","Style & Beer Properties",null,"OG",null,"FG",null,"OG ºP",null,null,"FG ºP",null,"ABV%",null,"IBU",null,null,null,"ºSRM",null,"CO2",null,"BUGU/BV",null,null,null,null,null,null,"Post Boil Volume ",null,null,{"$f":"IF(VolumeFermentation=\"\",\"\",IF(KettleTransferLosses=\"\",\"\",VolumeFermentation+KettleTransferLosses+HopsAbsorption+KettleDeadSpace))","v":10.625},{"$f":"IF(VolumePostBoil=\"\",\"\",IF(BoilOffRate=\"\",\"\",IF(TimeBoil=\"\",\"\",IF(ContractionLoss=\"\",\"\",VolumePostBoil+(TimeBoil*BoilOffRate)+ContractionLoss))))","v":12.4}," Pre Boil Volume"]
[null,"Vienna Lager",null,{"$f":"VLOOKUP(StylePrimary,STYLE_ATTRIBUTES,3,0)","v":1.046},{"$f":"VLOOKUP(StylePrimary,STYLE_ATTRIBUTES,4,0)","v":1.052},{"$f":"VLOOKUP(StylePrimary,STYLE_ATTRIBUTES,5,0)","v":1.01},{"$f":"VLOOKUP(StylePrimary,STYLE_ATTRIBUTES,6,0)","v":1.014},{"$f":"VLOOKUP(StylePrimary,STYLE_ATTRIBUTES,7,0)","v":11.4},null,{"$f":"VLOOKUP(StylePrimary,STYLE_ATTRIBUTES,8,0)","v":12.9},{"$f":"VLOOKUP(StylePrimary,STYLE_ATTRIBUTES,9,0)","v":2.6},{"$f":"VLOOKUP(StylePrimary,STYLE_ATTRIBUTES,10,0)","v":3.6},{"$f":"VLOOKUP(StylePrimary,STYLE_ATTRIBUTES,11,0)","v":4.5},{"$f":"VLOOKUP(StylePrimary,STYLE_ATTRIBUTES,12,0)","v":5.5},{"$f":"VLOOKUP(StylePrimary,STYLE_ATTRIBUTES,13,0)","v":18},null,{"$f":"VLOOKUP(StylePrimary,STYLE_ATTRIBUTES,14,0)","v":"30"},null,{"$f":"VLOOKUP(StylePrimary,STYLE_ATTRIBUTES,15,0)","v":"10"},{"$f":"VLOOKUP(StylePrimary,STYLE_ATTRIBUTES,16,0)","v":"16"},{"$f":"VLOOKUP(StylePrimary,STYLE_ATTRIBUTES,17,0)","v":"2.4"},{"$f":"VLOOKUP(StylePrimary,STYLE_ATTRIBUTES,18,0)","v":2.6},{"$f":"VLOOKUP(StylePrimary,STYLE_ATTRIBUTES,19,0)","v":0.48979591836734765},null,null,{"$f":"VLOOKUP(StylePrimary,STYLE_ATTRIBUTES,23,0)","v":1.028938906752412},null,null,null,{"$f":"IF(MashType=\"Infusion Mash\",\"Unused Space \",IF(MashType=\"Decoction Mash\",\"Decoction Volume 3 \",\"No Infusion/Decoction\"))","v":"Unused Space "},null,null,{"$f":"IF(MashType=\"Decoction Mash\",TotalMashVolumePlusGrains*(MashOutTemp-IF(MashSteps<2,TempMashStep1,IF(MashSteps<3,TempMashStep2,TempMashStep3)))/(TempStrikeWater2-IF(MashSteps<2,TempMashStep1,IF(MashSteps<3,TempMashStep2,TempMashStep3))),\"-\")","v":"-"},{"$f":"IF(f3Runnings=\"No\",\"-\",IF(VolumePreBoil=\"\",\"\",IF((IF(fPartigyle=\"No\",VolumePreBoil,VolumePreBoil+VolumePreBoilPG)-VolumeMashTotal-IF(MashType=\"Infusion Mash\",VolumeMashOut,0)+GrainAbsorption)/2>0,(IF(fPartigyle=\"No\",VolumePreBoil,VolumePreBoil+VolumePreBoilPG)-VolumeMashTotal-IF(MashType=\"Infusion Mash\",VolumeMashOut,0)+GrainAbsorption)/2,0)))","v":"-"}," Sparge Water 2 Volume"]
[null,"Estimated",null,{"$f":"IF(GravityUnitsAdjusted=\"\",\"\",IF(VolumePostBoil=\"\",\"\",IF(GravityUnitsAdjusted=0,\"\",((GravityUnitsAdjusted/VolumePostBoil)+1000)/1000)))","v":1.0525318847058822},null,{"$f":"IF(GravityEstimatedOriginal=\"\",\"\",IF(YeastStrain2=\"\",IF(YeastStrain1=\"\",\"\",((GravityEstimatedOriginal*1000-1000)*(((100-(YeastAttenuation1L+YeastAttenuation1H)*50)/100))+1000)/1000),IF(YeastStrain1=\"\",((GravityEstimatedOriginal*1000-1000)*(((100-(YeastAttenuation2L+YeastAttenuation2H)*50)/100))+1000)/1000,IF(YeastAttenuation2L+YeastAttenuation2H>YeastAttenuation1L+YeastAttenuation1H,((GravityEstimatedOriginal*1000-1000)*(((100-(YeastAttenuation2L+YeastAttenuation2H)*50)/100))+1000)/1000,((GravityEstimatedOriginal*1000-1000)*(((100-(YeastAttenuation1L+YeastAttenuation1H)*50)/100))+1000)/1000))))","v":1.0141836088705882},null,{"$f":"IF(GravityEstimatedOriginal=\"\",\"\",(668.72*GravityEstimatedOriginal)-463.37-(205.347*GravityEstimatedOriginal^2))","v":12.990916725593735},null,null,{"$f":"IF(GravityEstimatedFinal=\"\",\"\",(668.72*GravityEstimatedFinal)-463.37-(205.347*GravityEstimatedFinal^2))","v":3.6214292288787533},null,{"$f":"IF(GravityEstimatedFinal=\"\",\"\",IF(GravityEstimatedOriginal=\"\",\"\",(GravityEstimatedOriginal-GravityEstimatedFinal)/0.806))","v":4.7578505999124054E-2},null,{"$f":"IF(HopsMeasurement=\"Ounces\",SumIBUorOunces,SumOuncesorIBU)","v":20.449057429237989},null,null,null,{"$f":"IF(FinalMCU=\"\",\"\",IF(FinalMCU=0,\"\",1.4922*(FinalMCU^0.6859)))","v":9.7953674944349558},null,{"$f":"IF(CO2Volumes=\"\",\"\",CO2Volumes)","v":2.6},null,{"$f":"IF(TotalIBU=\"\",\"\",IF(GravityEstimatedOriginal=\"\",\"\",TotalIBU/((GravityEstimatedOriginal-1)*1000)))","v":0.38926944166821836},null,null,{"$f":"IF(TotalIBU=\"\",\"\",IF(GravityEstimatedFinal=\"\",\"\",IF(GravityEstimatedOriginal=\"\",\"\",0.8*TotalIBU/((820*(GravityEstimatedFinal-1))+(180*(GravityEstimatedOriginal-1))))))","v":0.77582350108264664},null,null,null,{"$f":"IF(MashType=\"Infusion Mash\",\"Strike Water 3 Volume \",IF(MashType=\"Decoction Mash\",\"Decoction Volume 2 \",\"No Infusion/Decoction\"))","v":"Strike Water 3 Volume "},null,null,{"$f":"IF(MashType=\"Infusion Mash\",IF(MashSteps<3,\"-\",IF(TempMashStep3=\"\",\"\",IF(TempMashStep2=\"\",\"\",IF(MashThickness=\"\",\"\",IF(TotalGrainWeight=\"\",\"\",IF(TempStrikeWater2=\"\",\"\",0.25*(TempMashStep3-TempMashStep2)*(0.2*TotalGrainWeight+(MashThickness*TotalGrainWeight))/(TempStrikeWater2-TempMashStep3))))))),IF(MashType=\"Decoction Mash\",IF(MashSteps>2,TotalMashVolumePlusGrains*(TempMashStep3-TempMashStep2)/(TempStrikeWater2-TempMashStep2),0),\"-\"))","v":"-"},{"$f":"IF(VolumePreBoil=\"\",\"\",IF(IF(f3Runnings=\"No\",IF(fPartigyle=\"No\",VolumePreBoil,VolumePreBoil+VolumePreBoilPG)-VolumeMashTotal-IF(MashType=\"Infusion Mash\",VolumeMashOut,0)+GrainAbsorption,(IF(fPartigyle=\"No\",VolumePreBoil,VolumePreBoil+VolumePreBoilPG)-VolumeMashTotal-IF(MashType=\"Infusion Mash\",VolumeMashOut,0)+GrainAbsorption)/2)>0,IF(f3Runnings=\"No\",IF(fPartigyle=\"No\",VolumePreBoil,VolumePreBoil+VolumePreBoilPG)-VolumeMashTotal-IF(MashType=\"Infusion Mash\",VolumeMashOut,0)+GrainAbsorption,(IF(fPartigyle=\"No\",VolumePreBoil,VolumePreBoil+VolumePreBoilPG)-VolumeMashTotal-IF(MashType=\"Infusion Mash\",VolumeMashOut,0)+GrainAbsorption)/2),0))","v":6.0750000000000002}," Sparge Water 1 Volume"]
[null,"Measured",null,1.052,null,1.012,null,{"$f":"IF(GravityMeasuredOriginal=\"\",\"\",(668.72*GravityMeasuredOriginal)-463.37-(205.347*GravityMeasuredOriginal^2))","v":12.865093712000032},null,null,{"$f":"IF(GravityMeasuredFinal=\"\",\"\",(668.72*GravityMeasuredFinal)-463.37-(205.347*GravityMeasuredFinal^2))","v":3.0697420319999935},null,{"$f":"IF(GravityMeasuredOriginal=\"\",\"\",IF(GravityMeasuredFinal=\"\",\"\",(GravityMeasuredOriginal-GravityMeasuredFinal)/0.806))","v":4.9627791563275472E-2},null," Calories per 12oz:",null,null,null,null,null,{"$f":"IF(ABV=\"\",\"\",IF(GravityMeasuredFinal=\"\",\"\",IF(PlatoMeasuredOriginal=\"\",\"\",IF(PlatoMeasuredFinal=\"\",\"\",((100*6.9*((0.79*ABV)/GravityMeasuredFinal))+4*(((0.1808*PlatoMeasuredOriginal)+(0.8192*PlatoMeasuredFinal))-0.1))*GravityMeasuredFinal*3.55))))","v":164.16134090793977},null,{"$f":"IF(TotalIBU=\"\",\"\",IF(GravityMeasuredOriginal=\"\",\"\",TotalIBU/((GravityMeasuredOriginal-1)*1000)))","v":0.39325110440842254},null,null,{"$f":"IF(TotalIBU=\"\",\"\",IF(GravityMeasuredFinal=\"\",\"\",IF(GravityMeasuredOriginal=\"\",\"\",0.8*TotalIBU/((820*(GravityMeasuredFinal-1))+(180*(GravityMeasuredOriginal-1))))))","v":0.85204405955158213},null,null,null,{"$f":"IF(MashType=\"Infusion Mash\",\"Strike Water 2 Volume \",IF(MashType=\"Decoction Mash\",\"Decoction Volume 1 \",\"No Infusion/Decoction\"))","v":"Strike Water 2 Volume "},null,null,{"$f":"IF(MashType=\"Infusion Mash\",IF(MashSteps<2,\"-\",IF(TempMashStep2=\"\",\"\",IF(TempMashStep1=\"\",\"\",IF(MashThickness=\"\",\"\",IF(TotalGrainWeight=\"\",\"\",IF(TempStrikeWater2=\"\",\"\",0.25*(TempMashStep2-TempMashStep1)*(0.2*TotalGrainWeight+(MashThickness*TotalGrainWeight))/(TempStrikeWater2-TempMashStep2))))))),IF(MashType=\"Decoction Mash\",IF(MashSteps>1,TotalMashVolumePlusGrains*(TempMashStep2-TempMashStep1)/(TempStrikeWater2-TempMashStep1),0),\"-\"))","v":"-"},{"$f":"IF(VolumeMashTotal=\"\",\"\",IF(VolumePreBoil=\"\",\"\",IF(GrainAbsorption=\"\",\"\",IF(VolumeStrikeWater1=\"\",\"\",IF(LauterTunDeadSpace=\"\",\"\",IF(IF(f3Runnings=\"No\",IF(fPartigyle=\"No\",VolumePreBoil,VolumePreBoil+VolumePreBoilPG)/2-VolumeMashTotal+GrainAbsorption+LauterTunDeadSpace,IF(fPartigyle=\"No\",VolumePreBoil,VolumePreBoil+VolumePreBoilPG)/3-VolumeMashTotal+GrainAbsorption+LauterTunDeadSpace)>0,IF(f3Runnings=\"No\",IF(fPartigyle=\"No\",VolumePreBoil,VolumePreBoil+VolumePreBoilPG)/2-VolumeMashTotal+GrainAbsorption+LauterTunDeadSpace,IF(fPartigyle=\"No\",VolumePreBoil,VolumePreBoil+VolumePreBoilPG)/3-VolumeMashTotal+GrainAbsorption+LauterTunDeadSpace),0))))))","v":4.8250000000000002}," Mash Out Volume"]
[null,"Secondary Style Dropdown",null,{"$f":"VLOOKUP(StyleSecondary,STYLE_ATTRIBUTES,3,0)","v":"∞"},{"$f":"VLOOKUP(StyleSecondary,STYLE_ATTRIBUTES,4,0)","v":"∞"},{"$f":"VLOOKUP(StyleSecondary,STYLE_ATTRIBUTES,5,0)","v":"∞"},{"$f":"VLOOKUP(StyleSecondary,STYLE_ATTRIBUTES,6,0)","v":"∞"},{"$f":"VLOOKUP(StyleSecondary,STYLE_ATTRIBUTES,7,0)","v":"∞"},null,{"$f":"VLOOKUP(StyleSecondary,STYLE_ATTRIBUTES,8,0)","v":"∞"},{"$f":"VLOOKUP(StyleSecondary,STYLE_ATTRIBUTES,9,0)","v":"∞"},{"$f":"VLOOKUP(StyleSecondary,STYLE_ATTRIBUTES,10,0)","v":"∞"},{"$f":"VLOOKUP(StyleSecondary,STYLE_ATTRIBUTES,11,0)","v":"∞"},{"$f":"VLOOKUP(StyleSecondary,STYLE_ATTRIBUTES,12,0)","v":"∞"},{"$f":"VLOOKUP(StyleSecondary,STYLE_ATTRIBUTES,13,0)","v":"∞"},null,{"$f":"VLOOKUP(StyleSecondary,STYLE_ATTRIBUTES,14,0)","v":"∞"},null,{"$f":"VLOOKUP(StyleSecondary,STYLE_ATTRIBUTES,15,0)","v":"∞"},{"$f":"VLOOKUP(StyleSecondary,STYLE_ATTRIBUTES,16,0)","v":"∞"},{"$f":"VLOOKUP(StyleSecondary,STYLE_ATTRIBUTES,17,0)","v":"∞"},{"$f":"VLOOKUP(StyleSecondary,STYLE_ATTRIBUTES,18,0)","v":"∞"},{"$f":"VLOOKUP(StyleSecondary,STYLE_ATTRIBUTES,19,0)","v":"∞"},null,null,{"$f":"VLOOKUP(StyleSecondary,STYLE_ATTRIBUTES,23,0)","v":"∞"},null,null,null,"Strike Water 1 Volume ",null,null,{"$f":"IF(TotalGrainWeight=\"\",\"\",IF(MashThickness=\"\",\"\",TotalGrainWeight*MashThickness/4))","v":5.5},{"$f":"IF(TempInfusionFactor=\"\",\"\",IF(MashThickness=\"\",\"\",IF(TempMashStep1=\"\",\"\",IF(TempGrain=\"\",\"\",(TempInfusionFactor/MashThickness)*(TempMashStep1-TempGrain)+TempMashStep1+MashTunTempLoss))))","v":171.90909090909091}," Strike Water Temperature ºF"]
[]
[null,"Fermentation Schedule",null,"Temp ºF",null,"Days",null,null,"Carbonation",null,null,null,null,null,null,null,null,"Measurements: Efficiency, Temp & Volume",null,null,null,null,null,null,null,null,null,null,null,null,null,null,"Mash Effeciency, pH, Temperatures & Timing"]
[null,"Primary Fermentation",null,50,null,16,null,null,"CO2 Volumes ",null,null,null,null,2.6,null,null,null,"Total Runoff Volume ",null,null,null,null,null,null,12.4,null,null,null,152,null,"Mash Temp 1 ºF",null,"Mash Step Time 1 ",null,90,152,null,"Step Temperature ºF"]
[null,"Diacetyl Rest",null,65,null,3,null,null,"Serving Temp ºF ",null,null,null,null,39,null,null,null,"Total Runoff Gravity ",null,null,null,null,null,null,1.0449999999999999,null,null,null,null,null,"Mash Temp 2 ºF",null,"Mash Step Time 2 ",null,null,null,null,"Step Temperature ºF"]
[null,"Cold Crash",null,45,null,2,null,null,"Beer Temperature ºF ",null,null,null,null,{"$f":"MAX(D12:E16)","v":65},null,null,null,"Mash Efficiency ",null,null,null,null,null,null,{"$f":"IF(GravityUnits=0,\"\",IF(VolumeRunoffMeasured=\"\",\"\",IF(GravityRunoffMeasured=\"\",\"\",(GravityRunoffMeasured-1)*1000*VolumeRunoffMeasured/GravityUnits)))","v":0.74979672849443824},null,null,null,null,null,"Mash Temp 3 ºF",null,"Mash Step Time 3 ",null,null,null,null,"Step Temperature ºF"]
[null,"Secondary Conditioning",null,null,null,null,null,null,"Priming Sugar ",null,null,null,null,{"$f":"IF(PrimingSugar=\"Priming Sugar \",\"grams\",IF(VolumeFinal=\"\",\"\",IF(CO2Volumes=\"\",\"\",IF(VLOOKUP(PrimingSugar,[1]Grains!A175:J187,10,0)=\"glucose\",VolumeFinal*3.785*(CO2Volumes-VLOOKUP((BeerTemperature-32)*5/9,RESIDUAL_CO2,2,TRUE))/0.27027,VolumeFinal*3.785*(CO2Volumes-VLOOKUP((BeerTemperature-32)*5/9,RESIDUAL_CO2,2,TRUE))/0.286))))","v":"grams"},null,null,null,"Fermenter Volume ",null,null,null,null,null,null,10.25,null,null,null,10.5,null,"Kettle Volume",null,"Mash Efficiency ",null,0.75,{"$f":"IF(TotalGrainWeight=\"\",\"\",IF(MashThickness=\"\",\"\",IF(MashType=\"Infusion Mash\",IF(MashSteps<2,TotalGrainWeight*(0.08+MashThickness/4),IF(MashSteps<3,IF(MashThickness2=\"\",\"\",TotalGrainWeight*(0.08+MashThickness2/4)),IF(MashThickness3=\"\",\"\",TotalGrainWeight*(0.08+MashThickness3/4)))),TotalGrainWeight*(0.08+MashThickness/4))))","v":7.1000000000000005},null,"Tun Space Required"]
[null,"Aging (includes carbonating)",null,39,null,47,null,null,"%CO2 of Beer Gas ",null,null,null,1,{"$f":"IF(TempServing=\"\",\"PSI\",IF(CO2Volumes=\"\",\"PSI\",IF(BeerGasPercentage=\"\",-16.6999-0.0101059*TempServing+0.00116512*TempServing^2+0.173354*TempServing*CO2Volumes+4.24267*CO2Volumes-0.0684226*CO2Volumes^2,(-16.6999-0.0101059*TempServing+0.00116512*TempServing^2+0.173354*TempServing*CO2Volumes+4.24267*CO2Volumes-0.0684226*CO2Volumes^2)/BeerGasPercentage)))","v":12.824618244000002},null,null,null,"Brewhouse Efficiency ",null,null,null,null,null,null,{"$f":"IF(VolumeBeerFinalMeasured=\"\",\"\",IF(GravityUnits=0,\"\",IF(GravityMeasuredOriginal=\"\",\"\",(GravityMeasuredOriginal-1)*1000*VolumeBeerFinalMeasured/GravityUnits)))","v":0.69873530253962157},null,null,null,10,null,"Final Beer Volume",null,"Boil Time ",null,90,null,null,"Measured Mash pH"]
[]
[null,"Malt, Extract & Adjuncts",null,"Maltster",null,null,"Origin",null,null,"Pounds","%Weight",null,"ºL / MCU",null,"Potential",null,null,null,"GU (Adj.)",null,"Late?",null,null,null,"Hops",null,null,null,null,null,null,null,"% AA","Ounces"," Time",null,{"$f":"IF(HopsMeasurement=\"Ounces\",\"IBU\",\"Ounces\")","v":"IBU"},null,"Utilization",null,null,null,null,"AGUPG","MCUMash","MCUPG1","AWGUPG"]
[null,"Pilsen",null,{"$f":"IF(B19=\"\",\" \",VLOOKUP(B19,GRAINS_ATTRIBUTES,2,0))","v":"Weissheimer"},null,null,{"$f":"IF(B19=\"\",\" \",VLOOKUP(B19,GRAINS_ATTRIBUTES,3,0))","v":"Germany"},null,null,7,{"$f":"IF(B19=\"\",\"\",IF(J19=\"\",\"\",IF(TotalGrainWeight=0,\"\",IF(U19=\"Mash\",J19/TotalGrainWeight,\"--\"))))","v":0.35},null,{"$f":"IF(B19=\"\",\"\",VLOOKUP(B19,GRAINS_ATTRIBUTES,4,0))","v":1.3},{"$f":"IF(J19=\"\",\"\",IF(B19=\"\",\"\",IF(VolumePostBoil=\"\",\"\",J19*M19/VolumePostBoil)))","v":0.85647058823529409},{"$f":"IF(B19=\"\",\" \",VLOOKUP(B19,GRAINS_ATTRIBUTES,6,0))","v":1.0375110999999999},null,null,null,{"$f":"IF(B19=\"\",\"\",IF(J19=\"\",\"\",J19*((O19*1000)-1000)))","v":262.5776999999996},{"$f":"IF(MashEfficiencyPredicted=\"\",\"\",IF(B19=\"\",\"\",IF(J19=\"\",\"\",IF(VLOOKUP(B19,GRAINS_ATTRIBUTES,9,0)=\"SUGARS\",S19,IF(U19=\"Steep\",0,S19*MashEfficiencyPredicted)))))","v":196.9332749999997},"Mash",null,{"$f":"IF(T19=\"\",\"\",IF(U19=\"Mash\",T19,0))","v":196.9332749999997},{"$f":"IF(T19=\"\",\"\",IF(U19=\"Skip\",0,IF(U19=\"Yes\",T19*ExtractGUFactor,T19)))","v":196.9332749999997},"Hallertauer Mittelfrüh",null,null,null,null,null,null,null,{"$f":"IF(Y19=\"\",\"\",IF(fHopsAging=\"Yes\",IF(HopsTemperature=\"\",\"\",IF(VLOOKUP(Y19,HOPS_ATTRIBUTES,11,0)=\"\",\"\",IF(VLOOKUP(Y19,HOPS_ATTRIBUTES,10,0)=\"\",\"\",VLOOKUP(Y19,HOPS_ATTRIBUTES,2,0)*1/(EXP(VLOOKUP(VLOOKUP(Y19,HOPS_ATTRIBUTES,10,0)*100,[1]Tables!$P$16:$Q$66,2,0)*VLOOKUP(ROUND((HopsTemperature-32)*5/9,0),[1]Tables!$L$16:$N$65,3,0)*VLOOKUP(HopsStorage,[1]Tables!$C$32:$J$34,8,0)*(BrewDate-VLOOKUP(Y19,HOPS_ATTRIBUTES,11,0))))))),VLOOKUP(Y19,HOPS_ATTRIBUTES,2,0)))","v":3.1E-2},4,60,null,{"$f":"IF(AM19=\"\",\"\",IF(AH19=\"\",\"\",IF(AG19=\"\",\"\",IF(VolumePostBoil=\"\",\"\",IF(HopsMeasurement=\"Ounces\",IF(fIBU=\"Tinseth\",AH19*AG19*AM19*7490/((VolumePreBoil+VolumePostBoil)/2),AH19*AM19*AG19*7462/((VolumePreBoil+VolumePostBoil)/2)),IF(fIBU=\"Tinseth\",\n((VolumePreBoil+VolumePostBoil)/2)*AH19/(AG19*AM19*7490),\n((VolumePreBoil+VolumePostBoil)/2)*AH19/(AM19*AG19*7462)))))))","v":17.31084586519782},null,{"$f":"IF(Y19=\"\",\"\",IF(AI19=\"\",\"\",IF(GravityPreBoil=\"\",\"\",IF(GravityEstimatedOriginal=\"\",\"\",IF(TimeBoil=\"\",\"\",IF(FWHFactor=\"\",\"\",IF(PelletHopFactor=\"\",\"\",IF(LeafHopFactor=\"\",\"\",IF(AI19=\"dry hop\",0,IF(fIBU=\"Tinseth\",((1-EXP(-0.04*IF(AI19=\"FWH\",TimeBoil,AI19)))/4.15)*1.65*0.000125^(((GravityPreBoil+GravityEstimatedOriginal)/2)-1),18.11+13.86*TANH((AI19-31.32)/18.27)/100)*IF(AI19=\"FWH\",FWHFactor,1)*IF(VLOOKUP(Y19,HOPS_ATTRIBUTES,8,0)=\"Pellet\",PelletHopFactor,LeafHopFactor))))))))))","v":0.21457762287683566},null,null,null,null,{"$f":"IF(T19=\"\",\"\",IF(U19=\"Yes\",T19,IF(U19=\"No\",T19,0)))","v":0},{"$f":"IF(J19=\"\",\"\",IF(B19=\"\",\"\",IF(VolumePostBoil=\"\",\"\",IF(U19=\"Mash\",J19*M19/VolumePostBoil,0))))","v":0.85647058823529409},{"$f":"IF(J19=\"\",\"\",IF(B19=\"\",\"\",IF(VolumePostBoil=\"\",\"\",IF(U19=\"Yes\",J19*M19/VolumePostBoil,IF(U19=\"No\",J19*M19/VolumePostBoil,0)))))","v":0},{"$f":"IF(T19=\"\",\"\",IF(U19=\"Skip\",0,IF(U19=\"Mash\",0,IF(U19=\"Yes\",T19*ExtractGUFactor,T19))))","v":0}]
[null,"Munich Malt II",null,"Best",null,null,"Germany",null,null,13,0.65,null,12,14.68235294117647,1.037048,null,null,null,{"$f":"IF(B20=\"\",\"\",IF(J20=\"\",\"\",J20*((O20*1000)-1000)))","v":481.62400000000002},361.21800000000002,"Mash",null,{"$f":"IF(T20=\"\",\"\",IF(U20=\"Mash\",T20,0))","v":361.21800000000002},361.21800000000002,"Hallertauer Mittelfrüh",null,null,null,null,null,null,null,{"$f":"IF(Y20=\"\",\"\",IF(fHopsAging=\"Yes\",IF(HopsTemperature=\"\",\"\",IF(VLOOKUP(Y20,HOPS_ATTRIBUTES,11,0)=\"\",\"\",IF(VLOOKUP(Y20,HOPS_ATTRIBUTES,10,0)=\"\",\"\",VLOOKUP(Y20,HOPS_ATTRIBUTES,2,0)*1/(EXP(VLOOKUP(VLOOKUP(Y20,HOPS_ATTRIBUTES,10,0)*100,[1]Tables!$P$16:$Q$66,2,0)*VLOOKUP(ROUND((HopsTemperature-32)*5/9,0),[1]Tables!$L$16:$N$65,3,0)*VLOOKUP(HopsStorage,[1]Tables!$C$32:$J$34,8,0)*(BrewDate-VLOOKUP(Y20,HOPS_ATTRIBUTES,11,0))))))),VLOOKUP(Y20,HOPS_ATTRIBUTES,2,0)))","v":3.1E-2},2,10,null,3.1382115640401711,null,7.7799777404307824E-2,null,null,null,null,{"$f":"IF(T20=\"\",\"\",IF(U20=\"Yes\",T20,IF(U20=\"No\",T20,0)))","v":0},14.68235294117647,0,0]
[null,"Campden Tablet",null,"--",null,null,"--",null,null,1,"--",null,0,0,1,null,null,null,0,0,"Skip",null,0,0,null,null,null,null,null,null,null,null,{"$f":"IF(Y21=\"\",\"\",IF(fHopsAging=\"Yes\",IF(HopsTemperature=\"\",\"\",IF(VLOOKUP(Y21,HOPS_ATTRIBUTES,11,0)=\"\",\"\",IF(VLOOKUP(Y21,HOPS_ATTRIBUTES,10,0)=\"\",\"\",VLOOKUP(Y21,HOPS_ATTRIBUTES,2,0)*1/(EXP(VLOOKUP(VLOOKUP(Y21,HOPS_ATTRIBUTES,10,0)*100,[1]Tables!$P$16:$Q$66,2,0)*VLOOKUP(ROUND((HopsTemperature-32)*5/9,0),[1]Tables!$L$16:$N$65,3,0)*VLOOKUP(HopsStorage,[1]Tables!$C$32:$J$34,8,0)*(BrewDate-VLOOKUP(Y21,HOPS_ATTRIBUTES,11,0))))))),VLOOKUP(Y21,HOPS_ATTRIBUTES,2,0)))","v":""},null,null,null,"",null,"",null,null,null,null,0,0,0,0]
[null,"Whirlfloc Tablet",null,"--",null,null,"--",null,null,1,"--",null,0,0,1,null,null,null,0,0,"Yes",null,0,0,null,null,null,null,null,null,null,null,{"$f":"IF(Y22=\"\",\"\",IF(fHopsAging=\"Yes\",IF(HopsTemperature=\"\",\"\",IF(VLOOKUP(Y22,HOPS_ATTRIBUTES,11,0)=\"\",\"\",IF(VLOOKUP(Y22,HOPS_ATTRIBUTES,10,0)=\"\",\"\",VLOOKUP(Y22,HOPS_ATTRIBUTES,2,0)*1/(EXP(VLOOKUP(VLOOKUP(Y22,HOPS_ATTRIBUTES,10,0)*100,[1]Tables!$P$16:$Q$66,2,0)*VLOOKUP(ROUND((HopsTemperature-32)*5/9,0),[1]Tables!$L$16:$N$65,3,0)*VLOOKUP(HopsStorage,[1]Tables!$C$32:$J$34,8,0)*(BrewDate-VLOOKUP(Y22,HOPS_ATTRIBUTES,11,0))))))),VLOOKUP(Y22,HOPS_ATTRIBUTES,2,0)))","v":""},null,null,null,"",null,"",null,null,null,null,0,0,0,0]
[null,null,null," ",null,null," ",null,null,null,"",null,"",""," ",null,null,null,"","","Mash",null,"","",null,null,null,null,null,null,null,null,{"$f":"IF(Y23=\"\",\"\",IF(fHopsAging=\"Yes\",IF(HopsTemperature=\"\",\"\",IF(VLOOKUP(Y23,HOPS_ATTRIBUTES,11,0)=\"\",\"\",IF(VLOOKUP(Y23,HOPS_ATTRIBUTES,10,0)=\"\",\"\",VLOOKUP(Y23,HOPS_ATTRIBUTES,2,0)*1/(EXP(VLOOKUP(VLOOKUP(Y23,HOPS_ATTRIBUTES,10,0)*100,[1]Tables!$P$16:$Q$66,2,0)*VLOOKUP(ROUND((HopsTemperature-32)*5/9,0),[1]Tables!$L$16:$N$65,3,0)*VLOOKUP(HopsStorage,[1]Tables!$C$32:$J$34,8,0)*(BrewDate-VLOOKUP(Y23,HOPS_ATTRIBUTES,11,0))))))),VLOOKUP(Y23,HOPS_ATTRIBUTES,2,0)))","v":""},null,null,null,"",null,"",null,null,null,null,"","","",""]
[null,null,null," ",null,null," ",null,null,null,"",null,"",""," ",null,null,null,"","","Mash",null,"","",null,null,null,null,null,null,null,null,{"$f":"IF(Y24=\"\",\"\",IF(fHopsAging=\"Yes\",IF(HopsTemperature=\"\",\"\",IF(VLOOKUP(Y24,HOPS_ATTRIBUTES,11,0)=\"\",\"\",IF(VLOOKUP(Y24,HOPS_ATTRIBUTES,10,0)=\"\",\"\",VLOOKUP(Y24,HOPS_ATTRIBUTES,2,0)*1/(EXP(VLOOKUP(VLOOKUP(Y24,HOPS_ATTRIBUTES,10,0)*100,[1]Tables!$P$16:$Q$66,2,0)*VLOOKUP(ROUND((HopsTemperature-32)*5/9,0),[1]Tables!$L$16:$N$65,3,0)*VLOOKUP(HopsStorage,[1]Tables!$C$32:$J$34,8,0)*(BrewDate-VLOOKUP(Y24,HOPS_ATTRIBUTES,11,0))))))),VLOOKUP(Y24,HOPS_ATTRIBUTES,2,0)))","v":""},null,null,null,"",null,"",null,null,null,null,"","","",""]
[null,null,null," ",null,null," ",null,null,null,"",null,"",""," ",null,null,null,"","","Mash",null,"","",null,null,null,null,null,null,null,null,{"$f":"IF(Y25=\"\",\"\",IF(fHopsAging=\"Yes\",IF(HopsTemperature=\"\",\"\",IF(VLOOKUP(Y25,HOPS_ATTRIBUTES,11,0)=\"\",\"\",IF(VLOOKUP(Y25,HOPS_ATTRIBUTES,10,0)=\"\",\"\",VLOOKUP(Y25,HOPS_ATTRIBUTES,2,0)*1/(EXP(VLOOKUP(VLOOKUP(Y25,HOPS_ATTRIBUTES,10,0)*100,[1]Tables!$P$16:$Q$66,2,0)*VLOOKUP(ROUND((HopsTemperature-32)*5/9,0),[1]Tables!$L$16:$N$65,3,0)*VLOOKUP(HopsStorage,[1]Tables!$C$32:$J$34,8,0)*(BrewDate-VLOOKUP(Y25,HOPS_ATTRIBUTES,11,0))))))),VLOOKUP(Y25,HOPS_ATTRIBUTES,2,0)))","v":""},null,null,null,"",null,"",null,"Equation Factors",null,null,"","","",""]
[null,null,null," ",null,null," ",null,null,null,"",null,"",""," ",null,null,null,"","","Mash",null,"","",null,null,null,null,null,null,null,null,{"$f":"IF(Y26=\"\",\"\",IF(fHopsAging=\"Yes\",IF(HopsTemperature=\"\",\"\",IF(VLOOKUP(Y26,HOPS_ATTRIBUTES,11,0)=\"\",\"\",IF(VLOOKUP(Y26,HOPS_ATTRIBUTES,10,0)=\"\",\"\",VLOOKUP(Y26,HOPS_ATTRIBUTES,2,0)*1/(EXP(VLOOKUP(VLOOKUP(Y26,HOPS_ATTRIBUTES,10,0)*100,[1]Tables!$P$16:$Q$66,2,0)*VLOOKUP(ROUND((HopsTemperature-32)*5/9,0),[1]Tables!$L$16:$N$65,3,0)*VLOOKUP(HopsStorage,[1]Tables!$C$32:$J$34,8,0)*(BrewDate-VLOOKUP(Y26,HOPS_ATTRIBUTES,11,0))))))),VLOOKUP(Y26,HOPS_ATTRIBUTES,2,0)))","v":""},null,null,null,"",null,"",null,0.04,"Wort Contraction",null,"","","",""]
[null,null,null," ",null,null," ",null,null,null,"",null,"",""," ",null,null,null,"","","Mash",null,"","",null,null,null,null,null,null,null,null,{"$f":"IF(Y27=\"\",\"\",IF(fHopsAging=\"Yes\",IF(HopsTemperature=\"\",\"\",IF(VLOOKUP(Y27,HOPS_ATTRIBUTES,11,0)=\"\",\"\",IF(VLOOKUP(Y27,HOPS_ATTRIBUTES,10,0)=\"\",\"\",VLOOKUP(Y27,HOPS_ATTRIBUTES,2,0)*1/(EXP(VLOOKUP(VLOOKUP(Y27,HOPS_ATTRIBUTES,10,0)*100,[1]Tables!$P$16:$Q$66,2,0)*VLOOKUP(ROUND((HopsTemperature-32)*5/9,0),[1]Tables!$L$16:$N$65,3,0)*VLOOKUP(HopsStorage,[1]Tables!$C$32:$J$34,8,0)*(BrewDate-VLOOKUP(Y27,HOPS_ATTRIBUTES,11,0))))))),VLOOKUP(Y27,HOPS_ATTRIBUTES,2,0)))","v":""},null,null,null,"",null,"",null,{"$f":"IF(WortContraction=\"\",\"\",IF(VolumePostBoil=\"\",\"\",VolumePostBoil*WortContraction))","v":0.42499999999999999},"Contraction Losses",null,"","","",""]
[null,null,null," ",null,null," ",null,null,null,"",null,"",""," ",null,null,null,"","","Mash",null,"","",null,null,null,null,null,null,null,null,{"$f":"IF(Y28=\"\",\"\",IF(fHopsAging=\"Yes\",IF(HopsTemperature=\"\",\"\",IF(VLOOKUP(Y28,HOPS_ATTRIBUTES,11,0)=\"\",\"\",IF(VLOOKUP(Y28,HOPS_ATTRIBUTES,10,0)=\"\",\"\",VLOOKUP(Y28,HOPS_ATTRIBUTES,2,0)*1/(EXP(VLOOKUP(VLOOKUP(Y28,HOPS_ATTRIBUTES,10,0)*100,[1]Tables!$P$16:$Q$66,2,0)*VLOOKUP(ROUND((HopsTemperature-32)*5/9,0),[1]Tables!$L$16:$N$65,3,0)*VLOOKUP(HopsStorage,[1]Tables!$C$32:$J$34,8,0)*(BrewDate-VLOOKUP(Y28,HOPS_ATTRIBUTES,11,0))))))),VLOOKUP(Y28,HOPS_ATTRIBUTES,2,0)))","v":""},null,null,null,"",null,"",null,1.4999999999999999E-2,"Boil Off Rate",null,"","","",""]
[null,null,null," ",null,null," ",null,null,null,"",null,"",""," ",null,null,null,"","","Mash",null,"","",null,null,null,null,null,null,null,null,{"$f":"IF(Y29=\"\",\"\",IF(fHopsAging=\"Yes\",IF(HopsTemperature=\"\",\"\",IF(VLOOKUP(Y29,HOPS_ATTRIBUTES,11,0)=\"\",\"\",IF(VLOOKUP(Y29,HOPS_ATTRIBUTES,10,0)=\"\",\"\",VLOOKUP(Y29,HOPS_ATTRIBUTES,2,0)*1/(EXP(VLOOKUP(VLOOKUP(Y29,HOPS_ATTRIBUTES,10,0)*100,[1]Tables!$P$16:$Q$66,2,0)*VLOOKUP(ROUND((HopsTemperature-32)*5/9,0),[1]Tables!$L$16:$N$65,3,0)*VLOOKUP(HopsStorage,[1]Tables!$C$32:$J$34,8,0)*(BrewDate-VLOOKUP(Y29,HOPS_ATTRIBUTES,11,0))))))),VLOOKUP(Y29,HOPS_ATTRIBUTES,2,0)))","v":""},null,null,null,"",null,"",null,0.2,"Grain Factor",null,"","","",""]
[null,"Cost:  ",{"$f":"IF(B19=\"\",0,J19*VLOOKUP(B19,[1]Grains!$A$2:$L$188,8,0))+IF(B20=\"\",0,J20*VLOOKUP(B20,[1]Grains!$A$2:$L$188,8,0))+IF(B21=\"\",0,J21*VLOOKUP(B21,[1]Grains!$A$2:$L$188,8,0))+IF(B22=\"\",0,J22*VLOOKUP(B22,[1]Grains!$A$2:$L$188,8,0))+IF(B23=\"\",0,J23*VLOOKUP(B23,[1]Grains!$A$2:$L$188,8,0))+IF(B24=\"\",0,J24*VLOOKUP(B24,[1]Grains!$A$2:$L$188,8,0))+IF(B25=\"\",0,J25*VLOOKUP(B25,[1]Grains!$A$2:$L$188,8,0))+IF(B26=\"\",0,J26*VLOOKUP(B26,[1]Grains!$A$2:$L$188,8,0))+IF(B27=\"\",0,J27*VLOOKUP(B27,[1]Grains!$A$2:$L$188,8,0))+IF(B28=\"\",0,J28*VLOOKUP(B28,[1]Grains!$A$2:$L$188,8,0))+IF(B29=\"\",0,J29*VLOOKUP(B29,[1]Grains!$A$2:$L$188,8,0))","v":0},{"$f":"IF(fPartigyle=\"Yes\",\"Parti-gyle Session Enabled\",\"\")","v":""},null,null,null,null,null,{"$f":"IF(B19=\"\",0,IF(U19=\"Mash\",J19,0))+IF(B20=\"\",0,IF(U20=\"Mash\",J20,0))+IF(B21=\"\",0,IF(U21=\"Mash\",J21,0))+IF(B22=\"\",0,IF(U22=\"Mash\",J22,0))+IF(B23=\"\",0,IF(U23=\"Mash\",J23,0))+IF(B24=\"\",0,IF(U24=\"Mash\",J24,0))+IF(B25=\"\",0,IF(U25=\"Mash\",J25,0))+IF(B26=\"\",0,IF(U26=\"Mash\",J26,0))+IF(B27=\"\",0,IF(U27=\"Mash\",J27,0))+IF(B28=\"\",0,IF(U28=\"Mash\",J28,0))+IF(B29=\"\",0,IF(U29=\"Mash\",J29,0))","v":20},null,null,{"$f":"IF(fPartigyle=\"No\",SUM(MCU),SUM(MCUPG1)+FirstBeerMCU)","v":15.538823529411765},null,null,null,null,null,{"$f":"IF(SUM(GU)=0,\"\",SUM(GU))","v":744.20169999999962},{"$f":"IF(fPartigyle=\"No\",IF(SUM(AGU)=0,\"\",SUM(AGU)),FirstBeerMashGU+SUM(AGUPG))","v":558.15127499999971},{"$f":"IF(fPartigyle=\"No\",SUM(AWGU),GravityUnitsAdjusted+SUM(AWGUPG))","v":558.15127499999971},null,null,null,"Cost:  ",null,null,null,null,null,{"$f":"IF(HopsMeasurement=\"Ounces\",IF(Y19=\"\",0,AH19*VLOOKUP(Y19,[1]Hops!$A$2:$J$124,9,0))+IF(Y20=\"\",0,AH20*VLOOKUP(Y20,[1]Hops!$A$2:$J$124,9,0))+IF(Y21=\"\",0,AH21*VLOOKUP(Y21,[1]Hops!$A$2:$J$124,9,0))+IF(Y22=\"\",0,AH22*VLOOKUP(Y22,[1]Hops!$A$2:$J$124,9,0))+IF(Y23=\"\",0,AH23*VLOOKUP(Y23,[1]Hops!$A$2:$J$124,9,0))+IF(Y24=\"\",0,AH24*VLOOKUP(Y24,[1]Hops!$A$2:$J$124,9,0))+IF(Y25=\"\",0,AH25*VLOOKUP(Y25,[1]Hops!$A$2:$J$124,9,0))+IF(Y26=\"\",0,AH26*VLOOKUP(Y26,[1]Hops!$A$2:$J$124,9,0))+IF(Y27=\"\",0,AH27*VLOOKUP(Y27,[1]Hops!$A$2:$J$124,9,0))+IF(Y28=\"\",0,AH28*VLOOKUP(Y28,[1]Hops!$A$2:$J$124,9,0))+IF(Y29=\"\",0,AH29*VLOOKUP(Y29,[1]Hops!$A$2:$J$124,9,0)),IF(Y19=\"\",0,AK19*VLOOKUP(Y19,[1]Hops!$A$2:$J$124,9,0))+IF(Y20=\"\",0,AK20*VLOOKUP(Y20,[1]Hops!$A$2:$J$124,9,0))+IF(Y21=\"\",0,AK21*VLOOKUP(Y21,[1]Hops!$A$2:$J$124,9,0))+IF(Y22=\"\",0,AK22*VLOOKUP(Y22,[1]Hops!$A$2:$J$124,9,0))+IF(Y23=\"\",0,AK23*VLOOKUP(Y23,[1]Hops!$A$2:$J$124,9,0))+IF(Y24=\"\",0,AK24*VLOOKUP(Y24,[1]Hops!$A$2:$J$124,9,0))+IF(Y25=\"\",0,AK25*VLOOKUP(Y25,[1]Hops!$A$2:$J$124,9,0))+IF(Y26=\"\",0,AK26*VLOOKUP(Y26,[1]Hops!$A$2:$J$124,9,0))+IF(Y27=\"\",0,AK27*VLOOKUP(Y27,[1]Hops!$A$2:$J$124,9,0))+IF(Y28=\"\",0,AK28*VLOOKUP(Y28,[1]Hops!$A$2:$J$124,9,0))+IF(Y29=\"\",0,AK29*VLOOKUP(Y29,[1]Hops!$A$2:$J$124,9,0)))","v":0},null,null,{"$f":"IF(SUM(OuncesorIBU)=0,\"\",SUM(OuncesorIBU))","v":6},{"$f":"IF(HopsMeasurement=\"Ounces\",IF(Y19=\"\",0,IF(VLOOKUP(Y19,[1]Hops!$A$2:$J$124,8,0)=\"Pellet\",0,AH19))+IF(Y20=\"\",0,IF(VLOOKUP(Y20,[1]Hops!$A$2:$J$124,8,0)=\"Pellet\",0,AH20))+IF(Y21=\"\",0,IF(VLOOKUP(Y21,[1]Hops!$A$2:$J$124,8,0)=\"Pellet\",0,AH21))+IF(Y22=\"\",0,IF(VLOOKUP(Y22,[1]Hops!$A$2:$J$124,8,0)=\"Pellet\",0,AH22))+IF(Y23=\"\",0,IF(VLOOKUP(Y23,[1]Hops!$A$2:$J$124,8,0)=\"Pellet\",0,AH23))+IF(Y24=\"\",0,IF(VLOOKUP(Y24,[1]Hops!$A$2:$J$124,8,0)=\"Pellet\",0,AH24))+IF(Y25=\"\",0,IF(VLOOKUP(Y25,[1]Hops!$A$2:$J$124,8,0)=\"Pellet\",0,AH25))+IF(Y26=\"\",0,IF(VLOOKUP(Y26,[1]Hops!$A$2:$J$124,8,0)=\"Pellet\",0,AH26))+IF(Y27=\"\",0,IF(VLOOKUP(Y27,[1]Hops!$A$2:$J$124,8,0)=\"Pellet\",0,AH27))+IF(Y28=\"\",0,IF(VLOOKUP(Y28,[1]Hops!$A$2:$J$124,8,0)=\"Pellet\",0,AH28))+IF(Y29=\"\",0,IF(VLOOKUP(Y29,[1]Hops!$A$2:$J$124,8,0)=\"Pellet\",0,AH29)),IF(Y19=\"\",0,IF(VLOOKUP(Y19,[1]Hops!$A$2:$J$124,8,0)=\"Pellet\",0,AK19))+IF(Y20=\"\",0,IF(VLOOKUP(Y20,[1]Hops!$A$2:$J$124,8,0)=\"Pellet\",0,AK20))+IF(Y21=\"\",0,IF(VLOOKUP(Y21,[1]Hops!$A$2:$J$124,8,0)=\"Pellet\",0,AK21))+IF(Y22=\"\",0,IF(VLOOKUP(Y22,[1]Hops!$A$2:$J$124,8,0)=\"Pellet\",0,AK22))+IF(Y23=\"\",0,IF(VLOOKUP(Y23,[1]Hops!$A$2:$J$124,8,0)=\"Pellet\",0,AK23))+IF(Y24=\"\",0,IF(VLOOKUP(Y24,[1]Hops!$A$2:$J$124,8,0)=\"Pellet\",0,AK24))+IF(Y25=\"\",0,IF(VLOOKUP(Y25,[1]Hops!$A$2:$J$124,8,0)=\"Pellet\",0,AK25))+IF(Y26=\"\",0,IF(VLOOKUP(Y26,[1]Hops!$A$2:$J$124,8,0)=\"Pellet\",0,AK26))+IF(Y27=\"\",0,IF(VLOOKUP(Y27,[1]Hops!$A$2:$J$124,8,0)=\"Pellet\",0,AK27))+IF(Y28=\"\",0,IF(VLOOKUP(Y28,[1]Hops!$A$2:$J$124,8,0)=\"Pellet\",0,AK28))+IF(Y29=\"\",0,IF(VLOOKUP(Y29,[1]Hops!$A$2:$J$124,8,0)=\"Pellet\",0,AK29)))","v":0},null,{"$f":"IF(SUM(IBUorOunces)=0,\"\",SUM(IBUorOunces))","v":20.449057429237989},null,"Tinseth",null,{"$f":"IF(GrainFactor=\"\",\"\",IF(TotalGrainWeight=\"\",\"\",TotalGrainWeight*GrainFactor))","v":4},"Grain Absorption"]
[null,null,null,null,null,null,null,null,null,null,null,null,null,null,null,null,null,null,null,null,null,null,null,null,null,null,null,null,null,null,null,null,null,null,null,null,null,null,null,null,11.25,"HopAbsorptionFact."]
[null,"Yeast",null,"Temperature",null,"Attenuation",null,null,"Flocculation",null,null,"Styles & Notes",null,null,null,null,null,null,null,null,null,null,null,null,null,null,null,null,null,null,null,null,null,null,null,null,null,"Name",null,null,{"$f":"IF(AO31=\"\",0,IF(LeafHopsOunces=\"\",0,LeafHopsOunces*AO31/128))","v":0},"Hops Absorbtion"]
[null,"White Labs WLP833",null,{"$f":"IF(YeastStrain1=\"\",\"\",VLOOKUP(YeastStrain1,YEAST_ATTRIBUTES,3,0))","v":48},{"$f":"IF(YeastStrain1=\"\",\"\",VLOOKUP(YeastStrain1,YEAST_ATTRIBUTES,4,0))","v":55},{"$f":"IF(YeastStrain1=\"\",\"\",VLOOKUP(YeastStrain1,YEAST_ATTRIBUTES,5,0))","v":0.7},{"$f":"IF(YeastStrain1=\"\",\"\",VLOOKUP(YeastStrain1,YEAST_ATTRIBUTES,6,0))","v":0.76},null,{"$f":"IF(YeastStrain1=\"\",\"\",VLOOKUP(YeastStrain1,YEAST_ATTRIBUTES,7,0))","v":"Medium"},null,null,{"$f":"IF(YeastStrain1=\"\",\"\",VLOOKUP(YeastStrain1,YEAST_ATTRIBUTES,9,0))","v":"From the Alps of southern Bavaria, this yeast produces a beer that is well balanced between malt and hop character. The excellent malt profile makes it well suited for Bocks, Dopplebocks, and Oktoberfest style beers. Very versatile lager yeast, it is so well balanced that it has gained tremendous popularity for use in Classic American style Pilsners. Also good for Helles style lager beer."},null,null,null,null,null,null,null,null,null,null,null,null,null,null,null,null,null,null,null,null,null,null,null,null,null,{"$f":"IF(YeastStrain1=\"\",\"\",VLOOKUP(YeastStrain1,YEAST_ATTRIBUTES,2,0))","v":"German Bock Lager"},null,null,0.125,"LT Dead Space"]
[null,null,null,{"$f":"IF(YeastStrain2=\"\",\"\",VLOOKUP(YeastStrain2,YEAST_ATTRIBUTES,3,0))","v":""},{"$f":"IF(YeastStrain2=\"\",\"\",VLOOKUP(YeastStrain2,YEAST_ATTRIBUTES,4,0))","v":""},{"$f":"IF(YeastStrain2=\"\",\"\",VLOOKUP(YeastStrain2,YEAST_ATTRIBUTES,5,0))","v":""},{"$f":"IF(YeastStrain2=\"\",\"\",VLOOKUP(YeastStrain2,YEAST_ATTRIBUTES,5,0))","v":""},null,{"$f":"IF(YeastStrain2=\"\",\"\",VLOOKUP(YeastStrain2,YEAST_ATTRIBUTES,7,0))","v":""},null,null,{"$f":"IF(YeastStrain2=\"\",\"\",VLOOKUP(YeastStrain2,YEAST_ATTRIBUTES,9,0))","v":""},null,null,null,null,null,null,null,null,null,null,null,null,null,null,null,null,null,null,null,null,null,null,null,null,null,{"$f":"IF(YeastStrain2=\"\",\"\",VLOOKUP(YeastStrain2,YEAST_ATTRIBUTES,2,0))","v":""},null,null,0.25,"Kettle Dead Space"]
[null,"Lager ","Required Cell Count: ",{"$f":"IF(PlatoEstimatedOriginal=\"\",\"\",IF(AleOrLager=\"Ale \",IF(PitchingRateAle=\"\",\"\",1000000*PitchingRateAle*VolumeFermentation*3785*PlatoEstimatedOriginal),IF(PitchingRateLager=\"\",\"\",1000000*PitchingRateLager*VolumeFermentation*3785*PlatoEstimatedOriginal)))","v":755998279522.97388},null,null,"Yeast Preparation: ",null,null,null,null,"Stirplate Starter",null,null,null,null,null,null,null,"# of Packages: ",null,null,null,null,1,null,null,null,"Starter Volume (mL/vials): ",null,null,{"$f":"IF(RequiredCellCount=\"\",\"\",RequiredCellCount/(VLOOKUP(YeastPreparation,[1]Tables!$C$15:$F$20,4,0)*1000000))","v":3023.9931180918957},null,null,"Dry Yeast (grams):",null,null,null,{"$f":"IF(RequiredCellCount=\"\",\"\",RequiredCellCount/(CellsPerDryGram*1000000000))","v":37.799913976148694},null,"Infusion Mash"]
[null,"Cost:  ",{"$f":"IF(YeastStrain1=\"\",0,YeastPackages/2*VLOOKUP(YeastStrain1,[1]Yeast!$A$2:$L$168,12,0))+IF(YeastStrain2=\"\",IF(YeastStrain1=\"\",0,YeastPackages/2*VLOOKUP(YeastStrain1,[1]Yeast!$A$2:$L$168,12,0)),YeastPackages/2*VLOOKUP(YeastStrain2,[1]Yeast!$A$2:$L$168,12,0))","v":0},null,null,null,null,null,null,null,null,null,null,null,null,null,null,null,null,null,null,null,null,null,null,null,null,null,null,null,null,null,null,null,null,null,null,null,null,null,1,"# of Mash Steps"]
[null,null,null,null,null,null,null,null,null,null,null,null,null,null,null,null,null,null,null,null,null,null,null,null,null,null,null,null,null,null,null,null,null,null,null,null,null,null,null,null,"No","3 Runnings?"]
[null,"Notes",null,null,null,null,null,null,null,null,null,null,null,null,null,null,null,null,null,null,null,null,null,null,null,null,null,null,null,null,null,null,null,null,null,null,null,null,null,null,70,"Grain Temp"]
[null,"Just an example lager.  Note that these aren't real recipes, just trying to make examples of usage.  \n\nNote that all costs here are listed as $0.00 because I have blanked out the prices in the Grains, Hops & Yeast tabs.",null,null,null,null,null,null,null,null,null,null,null,null,null,null,null,null,null,null,null,null,null,null,null,null,null,null,null,null,null,null,null,null,null,null,null,null,null,null,5,"Temp Loss to Tun"]
[null,null,null,null,null,null,null,null,null,null,null,null,null,null,null,null,null,null,null,null,null,null,null,null,null,null,null,null,null,null,null,null,null,null,null,null,null,null,null,null,0.2,"InfusionTempFactor"]
[null,null,null,null,null,null,null,null,null,null,null,null,null,null,null,null,null,null,null,null,null,null,null,null,null,null,null,null,null,null,null,null,null,null,null,null,null,null,null,null,200,{"$f":"IF(MashType=\"Infusion Mash\",\"Infusion Temperature\",IF(MashType=\"Decoction Mash\",\"Decoction Temp\",\"Factor Not Used\"))","v":"Infusion Temperature"}]
[null,null,null,null,null,null,null,null,null,null,null,null,null,null,null,null,null,null,null,null,null,null,null,null,null,null,null,null,null,null,null,null,null,null,null,null,null,null,null,null,170,"Mash Out Temp"]
[null,null,null,null,null,null,null,null,null,null,null,null,null,null,null,null,null,null,null,null,null,null,null,null,null,null,null,null,null,null,null,null,null,null,null,null,null,null,null,null,1.1000000000000001,"Mash Thickness"]
[null,null,null,null,null,null,null,null,null,null,null,null,null,null,null,null,null,null,null,null,null,null,null,null,null,null,null,null,null,null,null,null,null,null,null,null,null,null,null,null,{"$f":"IF(MashType=\"Infusion Mash\",IF(MashSteps<2,\"-\",IF(TotalGrainWeight=\"\",\"\",IF(MashThickness=\"\",\"\",IF(VolumeStrikeWater2=\"\",\"\",((MashThickness*TotalGrainWeight)+4*VolumeStrikeWater2)/TotalGrainWeight)))),MashThickness)","v":"-"},"Mash 2 Thickness"]
[null,null,null,null,null,null,null,null,null,null,null,null,null,null,null,null,null,null,null,null,null,null,null,null,null,null,null,null,null,null,null,null,null,null,null,null,null,null,null,null,{"$f":"IF(MashType=\"Infusion Mash\",IF(MashSteps<3,\"-\",IF(TotalGrainWeight=\"\",\"\",IF(MashThickness2=\"\",\"\",IF(VolumeStrikeWater3=\"\",\"\",((MashThickness2*TotalGrainWeight)+4*VolumeStrikeWater3)/TotalGrainWeight)))),MashThickness)","v":"-"},"Mash 3 Thickness"]
[null,null,null,null,null,null,null,null,null,null,null,null,null,null,null,null,null,null,null,null,null,null,null,null,null,null,null,null,null,null,null,null,null,null,null,null,null,null,null,null,{"$f":"IF(VolumeStrikeWater1=\"\",\"\",IF(MashType=\"Infusion Mash\",IF(MashSteps<2,VolumeStrikeWater1,IF(VolumeStrikeWater2=\"\",\"\",IF(MashSteps<3,VolumeStrikeWater1+VolumeStrikeWater2,IF(VolumeStrikeWater3=\"\",\"\",VolumeStrikeWater1+VolumeStrikeWater2+VolumeStrikeWater3)))),VolumeStrikeWater1))","v":5.5},"Total Mash Volume"]
[null,"Mash Water Chemistry Adjustments - Replicating Salt Profiles and Controlling Mash pH through Residual Alkalinity",null,null,null,null,null,null,null,null,null,null,null,null,null,null,null,null,null,null,null,null,null,null,null,null,null,null,null,null,null,null,null,null,null,null,null,null,null,null,{"$f":"IF(GravityRunoffMeasured=\"\",IF(GravityUnitsWeightedAdjusted=\"\",\"\",IF(VolumePreBoil=\"\",\"\",((GravityUnitsWeightedAdjusted/VolumePreBoil)+1000)/1000)),GravityRunoffMeasured)","v":1.0449999999999999},"Pre-Boil Gravity"]
[null,"Source","Water Attributes",null,null,null,"Target",null,null,"Diluted",null,"Final",null,null,null,null,null,null,"Added",null,2,null," Chalk CaCO3 ",null,null,null,null,null,null,null,null,{"$f":"IF(RAFinal=\"\",\"\",IF(RATarget=\"\",\"\",IF(RAFinal>RATargetHigh,0,\"\")))","v":""},null,"Salt & Acid Additions",null,null,null,null,null,null,1.1000000000000001,"FWH Adjustment"]
[null,{"$f":"[1]Water!D4","v":6.7},"Calcium (ppm)  (50-150)",null,null,null,null,null,null,{"$f":"IF(CalciumSource=\"\",\"\",IF(DilutionPercentage=\"\",CalciumSource,(1-DilutionPercentage)*CalciumSource))","v":6.7},null,{"$f":"IF(CalciumDiluted=\"\",\"\",CalciumDiluted+CalciumAdded)","v":58.296363636363637},null,{"$f":"IF(N48=\"\",\"\",HLOOKUP($N$48,[1]Water!$E$1:$V$14,4,0))","v":""},null,null,null,null,{"$f":"IF(VolumeMashTotal=\"\",0,IF(VolumeMashTotal=0,0,(ChalkAddition*105.89+GypsumAddition*60+CalciumChlorideAddition*72)/VolumeMashTotal))","v":51.596363636363634},null,null,null," Gypsum  CaSO4*2H2O ",null,null,null,null,null,null,null,null,{"$f":"IF(VolumeMashTotal=\"\",\"\",IF(RAFinal=\"\",\"\",IF(RATargetHigh=\"\",\"\",IF(VolumeMashTotal*(RAFinal-RATargetHigh)*1.4/60>0,VolumeMashTotal*(RAFinal-RATargetHigh)*1.4/60,\"\"))))","v":""},null,"Conc. %","Used",null,"Estimated",null,"Acid Type",null,1,"Leaf Hop Factor"]
[null,{"$f":"[1]Water!D7","v":2},"Magnesium (ppm) (10-30)",null,null,null,null,null,null,{"$f":"IF(MagnesiumSource=\"\",\"\",IF(DilutionPercentage=\"\",MagnesiumSource,(1-DilutionPercentage)*MagnesiumSource))","v":2},null,{"$f":"IF(MagnesiumDiluted=\"\",\"\",MagnesiumDiluted+MagnesiumAdded)","v":10.945454545454545},null,{"$f":"IF(N48=\"\",\"\",HLOOKUP($N$48,[1]Water!$E$1:$V$14,7,0))","v":""},null,null,null,null,{"$f":"IF(VolumeMashTotal=\"\",0,IF(VolumeMashTotal=0,0,EpsomSaltAddition*24.6/VolumeMashTotal))","v":8.9454545454545453},null,1,null," Calcium Chloride CaCl2*2H2O",null,null,null,null,null,null,null,null,{"$f":"IF(VolumeMashTotal=\"\",\"\",IF(RAFinal=\"\",\"\",IF(RATargetHigh=\"\",\"\",IF(VolumeMashTotal*(RAFinal-RATargetHigh)*1.4/60>0,VolumeMashTotal*(RAFinal-RATargetHigh)*1.4/72,\"\"))))","v":""},null,0.37,null,null,{"$f":"IF(HydrochloricConcentration=\"\",\"\",IF(RAFinal>RATargetHigh,3.785*VolumeMashTotal*MissingAdditionalEffectiveHardnessHigh/50/((13.927*(HydrochloricConcentration)^2)+(27.319*HydrochloricConcentration)),0))","v":0},null,"Hydrochloric",null,0.92,"Pellet Hop Factor"]
[null,{"$f":"IF(C51=\"Bicarbonate (ppm)\",[1]Water!D14,[1]Water!D2)","v":13.15},"Alkalinity as CaCO3",null,null,null,null,null,null,{"$f":"IF(AlkalinitySource=\"\",\"\",IF(DilutionPercentage=\"\",AlkalinitySource,(1-DilutionPercentage)*AlkalinitySource))","v":13.15},null,{"$f":"IF(AlkalinityDiluted=\"\",\"\",IF(AlkalinityType=\"Bicarbonate (ppm)\", 50/61*AlkalinityDiluted+AlkalinityAdded,AlkalinityDiluted+AlkalinityAdded))","v":60.243889716840535},null,{"$f":"IF(N48=\"\",\"\",IF(C51=\"Bicarbonate (ppm)\",HLOOKUP($N$48,[1]Water!$E$1:$V$14,14,0),HLOOKUP($N$48,[1]Water!$E$1:$V$14,2,0)))","v":""},null,null,null,null,{"$f":"BicarbontesAdded*50/61","v":47.093889716840536},null,2,null," Epsom Salt MgSO4*7H2O ",null,null,null,null,null,null,null,null,{"$f":"IF(MagnesiumFinal>50,0,IF(VolumeMashTotal=\"\",\"\",IF(MagnesiumFinal=\"\",\"\",IF(VolumeMashTotal*(10-MagnesiumFinal)/24.6>0,VolumeMashTotal*(10-MagnesiumFinal)/24.6,\"\"))))","v":""},null,0.88,null,null,{"$f":"IF(LacticConcentration=\"\",\"\",IF(RAFinal>RATargetHigh,0.88/(LacticConcentration)*3.785*(LacticConcentration)*VolumeMashTotal/50/11.8,0))","v":0},null,"Lactic",null,"No","Use Hops Aging"]
[null,{"$f":"[1]Water!D14","v":16},"Sodium (ppm) (0-150)",null,null,null,null,null,null,{"$f":"IF(SodiumSource=\"\",\"\",IF(DilutionPercentage=\"\",SodiumSource,(1-DilutionPercentage)*SodiumSource))","v":16},null,{"$f":"IF(SodiumDiluted=\"\",\"\",SodiumDiluted+SodiumAdded)","v":16},null,{"$f":"IF(N48=\"\",\"\",HLOOKUP($N$48,[1]Water!$E$1:$V$14,8,0))","v":""},null,null,null,null,{"$f":"IF(VolumeMashTotal=\"\",0,IF(VolumeMashTotal=0,0,(BakingSodaAddition*72.3/VolumeMashTotal)+(TableSaltAddition*104/VolumeMashTotal)))","v":0},null,null,null," Baking Soda  NaHCO3 ",null,null,null,null,null,null,null,null,{"$f":"IF(RAFinal=\"\",\"\",IF(RATarget=\"\",\"\",IF(RAFinal>RATargetHigh,0,\"\")))","v":""},null,"acid additions are in mL",null,null,null,null,null,null,"Sealed in barrier, no O2"]
[null,{"$f":"[1]Water!D5","v":14},"Chloride (ppm) (0-250)",null,null,null,null,null,null,{"$f":"IF(ChlorideSource=\"\",\"\",IF(DilutionPercentage=\"\",ChlorideSource,(1-DilutionPercentage)*ChlorideSource))","v":14},null,{"$f":"IF(ChlorideDiluted=\"\",\"\",IF(VolumeMashTotal=\"\",\"\",IF(HydrochloricUsed=\"\",ChlorideDiluted+ChlorideAdded,ChlorideDiluted+ChlorideAdded+(HydrochloricUsed*12*HydrochloricConcentration/0.37*35.4/(VolumeMashTotal*3.785)))))","v":37.176363636363632},null,{"$f":"IF(N48=\"\",\"\",HLOOKUP($N$48,[1]Water!$E$1:$V$14,5,0))","v":""},null,null,null,null,{"$f":"IF(VolumeMashTotal=\"\",0,IF(VolumeMashTotal=0,0,(160*TableSaltAddition/VolumeMashTotal)+(CalciumChlorideAddition*127.47/VolumeMashTotal)))","v":23.176363636363636},null,null,null," Table Salt  NaCl ",null,null,null,null,null,null,null,null,{"$f":"IF(SodiumFinal>150,0,IF(ChlorideFinal>250,0,\"\"))","v":""},null,"salt additions are in grams",null,null,null,null,null,null,20,"Hops Temperature"]
[" ",{"$f":"[1]Water!D12","v":5},"Sulfate (ppm) (bitter 50-150, 150-350 very bitter)",null,null,null,null,null,null,{"$f":"IF(SulfateSource=\"\",\"\",IF(DilutionPercentage=\"\",SulfateSource,(1-DilutionPercentage)*SulfateSource))","v":5},null,{"$f":"IF(SulfateDiluted=\"\",\"\",SulfateDiluted+SulfateAdded)","v":42.454545454545453},null,{"$f":"IF(N48=\"\",\"\",HLOOKUP($N$48,[1]Water!$E$1:$V$14,12,0))","v":""},null,null,null,null,{"$f":"IF(VolumeMashTotal=\"\",0,IF(VolumeMashTotal=0,0,(GypsumAddition*147.4+EpsomSaltAddition*103)/VolumeMashTotal))","v":37.454545454545453},null,{"$f":"IF(VolumeMashTotal=\"\",0,IF(VolumeMashTotal=0,0,(ChalkAddition*158+BakingSodaAddition*191.88)/VolumeMashTotal))","v":57.454545454545453},null," Added Bicarbonates HCO3",null,null,null,null,null,null,null,null,{"$f":"CONCATENATE(IF(MagnesiumFinal<10,\"Add some epsom salt for magnesium.\",IF(MagnesiumFinal>50,\"High magnesium might cause sour-bitter taste, dilute.\",\"\")),\" \",IF(CalciumFinal<50,\"Add gypsum or calcium chloride to assist mash enzymes but watch Cl/SO4 balance, or use chalk if pH is low.\",IF(CalciumFinal>150,\"Excessive calcium, dilute.\",\"\")),\" \",IF(SulfateFinal>750,\"Sulfate far too high, reduce gypsum, epsom or dilute.\",IF(SulfateFinal>400,\"High sulfate may cause astringincy, reduce gypsum, epsom or dilute.\",\"\")),\" \",IF(SodiumFinal>200,\"Sodium too high, reduce baking soda, table salt or dilute.\",\"\"),\" \",IF(ChlorideFinal>300,\"Chloride too high, reduce table salt, calcium chloride or dilute.\",\"\"))","v":"    "},null,null,null,null,null,null,null,null,0.2,"Extract GU Factor"]
[null,{"$f":"[1]Water!D13","v":7.85},"Water pH",null,null,null,"Distilled Dilution: ",null,null,null,0,{"$f":"IF(AlkalinityFinal=\"\",\"\",IF(IF(AlkalinityType=\"Bicarbonate (ppm)\",AlkalinityFinal,61*AlkalinityFinal/50)>250,CONCATENATE(\"High bicarbonates should be diluted.\",\" \",ROUND((1-(250/AlkalinityFinal))*100,2),\"%\"),\"\"))","v":""},null,null,null,null,null,null,null,null,{"$f":"(CalciumAdded/1.4)+(MagnesiumAdded/1.7)","v":42.116577540106945},null," Contributed Hardness",null,null,null,null,null,null,null,null,null,null,null,null,null,null,null,null,null,60,"Preparation Time"]
[null,{"$f":"IF(CalciumSource=\"\",\"\",IF(MagnesiumSource=\"\",\"\",(CalciumSource/1.4)+(MagnesiumSource/1.7)))","v":5.9621848739495809},"Effective Hardness",null,null,null,{"$f":"IF(CalciumTarget=\"\",\"\",IF(MagnesiumTarget=\"\",\"\",(CalciumTarget/1.4)+(MagnesiumTarget/1.7)))","v":""},null,null,{"$f":"IF(CalciumDiluted=\"\",\"\",IF(MagnesiumDiluted=\"\",\"\",(CalciumDiluted/1.4)+(MagnesiumDiluted/1.7)))","v":5.9621848739495809},null,{"$f":"IF(CalciumFinal=\"\",\"\",IF(MagnesiumFinal=\"\",\"\",(CalciumFinal/1.4)+(MagnesiumFinal/1.7)))","v":48.078762414056534},null,{"$f":"IF(CalciumCity=\"\",\"\",IF(MagnesiumCity=\"\",\"\",(CalciumCity/1.4)+(MagnesiumCity/1.7)))","v":""},null,null,null,null,{"$f":"IF(CalciumAdded=\"\",\"\",IF(MagnesiumAdded=\"\",\"\",(CalciumAdded/1.4)+(MagnesiumAdded/1.7)))","v":42.116577540106945},null,{"$f":"IF(TotalAdditionalRANeededLow=0,0,IF(TotalAdditionalRANeededLow=\"\",\"\",TotalAdditionalRANeededLow-RAAdded))","v":0},null,"(low) Missing Additional Residual Alkalinity (high)",null,null,null,null,null,null,null,null,null,null,null,{"$f":"IF(TotalAdditionalRANeedeHigh=0,0,IF(TotalAdditionalRANeedeHigh=\"\",\"\",TotalAdditionalRANeedeHigh-RAAdded))","v":43.898356129322451},{"$f":"IF(RATargetHigh=\"\",\"\",IF(RAFinal=\"\",\"\",IF(RAFinal>RATargetHigh,CONCATENATE(\"Mash pH too high.  Lower with calcium chloride or gypsum.  Do not use chalk even if calcium levels are low.  Gypsum is better for bitter beers, calcium chloride for malty beers.\"),IF(RAFinal<RATargetLow,\"Mash pH too low.  Use baking soda and chalk additions to adjust, or reduce gypsum or calcium chloride.  Watch the calcium and effective hardness when adding chalk, and the sodium levels from baking soda.\",\"Mash pH within range for target SRM.\"))))","v":"Mash pH within range for target SRM."},null,null,null,null,25,"Milling Time"]
[null,{"$f":"IF(AlkalinitySource=\"\",\"\",IF(EffectiveHardnessSource=\"\",\"\",IF(AlkalinityType=\"Bicarbonate (ppm)\",(AlkalinitySource*50/61)-EffectiveHardnessSource,AlkalinitySource-EffectiveHardnessSource)))","v":7.1878151260504195},"Residual Alkalinity as CaCO3",null,null,null,{"$f":"IF(AlkalinityTarget=\"\",\"\",IF(EffectiveHardnessTarget=\"\",\"\",IF(AlkalinityType=\"Bicarbonate (ppm)\",(AlkalinityTarget*50/61)-EffectiveHardnessTarget,AlkalinityTarget-EffectiveHardnessTarget)))","v":""},null,null,{"$f":"IF(AlkalinityDiluted=\"\",\"\",IF(EffectiveHardnessDiluted=\"\",\"\",IF(AlkalinityType=\"Bicarbonate (ppm)\",(AlkalinityDiluted*50/61)-EffectiveHardnessDiluted,AlkalinityDiluted-EffectiveHardnessDiluted)))","v":7.1878151260504195},null,{"$f":"IF(AlkalinityFinal=\"\",\"\",IF(EffectiveHardnessFinal=\"\",\"\",IF(AlkalinityType=\"Bicarbonate (ppm)\",(AlkalinityFinal*50/61)-EffectiveHardnessFinal,AlkalinityFinal-EffectiveHardnessFinal)))","v":12.165127302784001},null,{"$f":"IF(AlkalinityCity=\"\",\"\",IF(EffectiveHardnessCity=\"\",\"\",IF(AlkalinityType=\"Bicarbonate (ppm)\",(AlkalinityCity*50/61)-EffectiveHardnessCity,AlkalinityCity-EffectiveHardnessCity)))","v":""},null,null,null,null,{"$f":"IF(AlkalinityAdded=\"\",\"\",IF(EffectiveHardnessAdded=\"\",\"\",IF(AlkalinityType=\"Bicarbonate (ppm)\",(AlkalinityAdded*50/61)-EffectiveHardnessAdded,AlkalinityAdded-EffectiveHardnessAdded)))","v":4.9773121767335908},null,{"$f":"IF(RADiluted=\"\",\"\",IF(RATargetLow=\"\",\"\",IF(RADiluted<RATargetLow,RATargetLow-RADiluted,0)))","v":0},null,"(low) Total Additional Residual Alkalinity Needed (high)",null,null,null,null,null,null,null,null,null,null,null,{"$f":"IF(RADiluted=\"\",\"\",IF(RATargetHigh=\"\",\"\",IF(RADiluted<RATargetHigh,RATargetHigh-RADiluted,0)))","v":48.875668306056042},null,null,null,null,null,60,"Strike Heating Time"]
[null,{"$f":"IF(RASource=\"\",\"\",IF(RASource<-69,0,RASource*0.082+5.2))","v":5.7894008403361346},"Estimated Low SRM",null,null,null,{"$f":"IF(RATarget=\"\",\"\",IF(RATarget<-69,0,RATarget*0.082+5.2))","v":""},null,null,{"$f":"IF(RADiluted=\"\",\"\",IF(RADiluted<-69,0,RADiluted*0.082+5.2))","v":5.7894008403361346},null,{"$f":"IF(RAFinal=\"\",\"\",IF(RAFinal<-69,0,RAFinal*0.082+5.2))","v":6.1975404388282884},null,{"$f":"IF(RACity=\"\",\"\",IF(RACity<-69,0,RACity*0.082+5.2))","v":""},null,null,null,null,{"$f":"IF(CSBalanceFinal=\"Very Malty\",\"Add gypsum or epsom salt for a more bitter balance.\",IF(CSBalanceFinal=\"Malty\",\"Add gypsum or epsom salt for a more bitter balance.\",IF(CSBalanceFinal=\"Bitter\",\"Add calcium chloride for a more malty balance.\",IF(CSBalanceFinal=\"Very Bitter\",\"Add calcium chloride or table salt for a more malty balance.\",\"CaCl2 or NaCL for malty, for bitter MgSO4 or CaSO4\"))))","v":"CaCl2 or NaCL for malty, for bitter MgSO4 or CaSO4"},null,{"$f":"IF(TotalEffectiveHardnessNeededLow=0,0,IF(TotalEffectiveHardnessNeededLow=\"\",\"\",TotalEffectiveHardnessNeededLow-EffectiveHardnessAdded))","v":-32.032245846162972},null,"(low) Missing Additional Effective Hardness (high)",null,null,null,null,null,null,null,null,null,null,null,{"$f":"IF(TotalEffectiveHardnessNeededHigh=0,0,IF(TotalEffectiveHardnessNeededHigh=\"\",\"\",TotalEffectiveHardnessNeededHigh-EffectiveHardnessAdded))","v":-90.992245846162987},null,null,null,null,null,15,"Dough In Time"]
[null,{"$f":"IF(RASource=\"\",\"\",IF(RASource<-128,0,(RASource+122.4)/12.2))","v":10.621952059512331},"Estimated High SRM",null,null,null,{"$f":"IF(RATarget=\"\",\"\",IF(RATarget<-128,0,(RATarget+122.4)/12.2))","v":""},null,null,{"$f":"IF(RADiluted=\"\",\"\",IF(RADiluted<-128,0,(RADiluted+122.4)/12.2))","v":10.621952059512331},null,{"$f":"IF(RAFinal=\"\",\"\",IF(RAFinal<-128,0,(RAFinal+122.4)/12.2))","v":11.029928467441312},null,{"$f":"IF(RACity=\"\",\"\",IF(RACity<-128,0,(RACity+122.4)/12.2))","v":""},null,null,null,null,null,null,{"$f":"IF(RADiluted=\"\",\"\",IF(EffectiveHardnessDiluted=\"\",\"\",IF(AlkalinityType=\"\",\"\",IF(AlkalinitySource=\"\",\"\",IF(RATargetLow=\"\",\"\",IF(RADiluted>EffectiveHardnessDiluted,IF(AlkalinityType=\"Bicarbonate (ppm)\",50*AlkalinitySource/61,AlkalinityDiluted)-RATargetLow-EffectiveHardnessDiluted,0))))))","v":10.084331693943973},null,"(low) Total Additional Effective Hardness Needed (high)",null,null,null,null,null,null,null,null,null,null,null,{"$f":"IF(RADiluted=\"\",\"\",IF(EffectiveHardnessDiluted=\"\",\"\",IF(AlkalinityType=\"\",\"\",IF(AlkalinitySource=\"\",\"\",IF(RATargetHigh=\"\",\"\",IF(RADiluted>EffectiveHardnessDiluted,IF(AlkalinityType=\"Bicarbonate (ppm)\",50*AlkalinitySource/61,AlkalinityDiluted)-RATargetHigh-EffectiveHardnessDiluted,0))))))","v":-48.875668306056042},null,null,null,null,null,60,"Sparge Time"]
[null,{"$f":"IF(ChlorideSource=\"\",\"\",IF(SulfateSource=\"\",\"\",VLOOKUP(ChlorideSource/SulfateSource,[1]Tables!$C$25:$G$29,3,TRUE)))","v":"Very Malty"},"Chloride to Sulfate Balance",null,null,null,{"$f":"IF(ChlorideTarget=\"\",\"\",IF(SulfateTarget=\"\",\"\",VLOOKUP(ChlorideTarget/SulfateTarget,[1]Tables!$C$25:$G$29,3,TRUE)))","v":""},null,null,{"$f":"IF(ChlorideDiluted=\"\",\"\",IF(SulfateDiluted=\"\",\"\",VLOOKUP(ChlorideDiluted/SulfateDiluted,[1]Tables!$C$25:$G$29,3,TRUE)))","v":"Very Malty"},null,{"$f":"IF(ChlorideFinal=\"\",\"\",IF(SulfateFinal=\"\",\"\",VLOOKUP(ChlorideFinal/SulfateFinal,[1]Tables!$C$25:$G$29,3,TRUE)))","v":"Balanced"},null,{"$f":"IF(ChlorideCity=\"\",\"\",IF(SulateCity=\"\",\"\",VLOOKUP(ChlorideCity/SulateCity,[1]Tables!$C$25:$G$29,3,TRUE)))","v":""},null,null,null,null,null,null,{"$f":"IF(fPartigyle=\"No\",IF(TargetSRM=\"\",\"\",12.2*(1.4922*(SUM(MCUMash)^0.6859))-122.4),12.2*(1.4922*(TotalMashMCU^0.6859))-122.4)","v":-2.8965165678935563},null," Target Low RA",null,null,null,null,null,null,null,null," Target High RA ",null,null,{"$f":"IF(fPartigyle=\"No\",IF(TargetSRM=\"\",\"\",((1.4922*(SUM(MCUMash)^0.6859))-5.2)*12.2),((1.4922*(TotalMashMCU^0.6859))-5.2)*12.2)","v":56.063483432106459},null,null,null,null,null,null,"Sparge 2 Time"]
[null,null,null,null,null,null,null,null,null,null,null,null,null,null,null,null,null,null,null,null,null,null,null,null,null,null,null,null,null,null,null,null,null,null,null,null,null,null,null,null,null,"Sparge 3 Time"]
[null,null,null,null,null,null,null,null,null,null,null,null,null,null,null,null,null,null,null,null,null,null,null,null,null,null,null,null,null,null,null,null,null,null,null,null,null,null,null,null,20,"Chill Time"]
[null,"Notes",null,null,null,null,null,null,null,null,null,null,null,null,null,null,null,null,null,null,null,null,null,null,null,null,null,null,null,null,null,null,null,null,null,null,null,null,null,null,15,"Transfer Time"]
[null,null,null,null,null,null,null,null,null,null,null,null,null,null,null,null,null,null,null,null,null,null,null,null,null,null,null,null,null,null,null,null,null,null,null,null,null,null,null,null,30,"Aeration Time"]
[null,null,null,null,null,null,null,null,null,null,null,null,null,null,null,null,null,null,null,null,null,null,null,null,null,null,null,null,null,null,null,null,null,null,null,null,null,null,null,null,90,"Cleaning Time"]
[" ",null,null,null,null,null,null,null,null,null,null,null,null,null,null,null,null,null,null,null,null,null,null,null,null,null,null,null,null,null,null,null,null,null,null,null,null,null,null,null,100,"Yeast Cells per Vial\n(billions of cells)"]
[]
[null,null,null,null,null,null,null,null,null,null,null,null,null,null,null,null,null,null,null,null,null,null,null,null,null,null,null,null,null,null,null,null,null,null,null,null,null,null,null,null,0.75,"Ale Pitch Rate"]
[null,null,null,null,null,null,null,null,null,null,null,null,null,null,null,null,null,null,null,null,null,null,null,null,null,null,null,null,null,null,null,null,null,null,null,null,null,null,null,null,1.5,"Lager Pitch Rate"]
[null,null,null,null,null,null,null,null,null,null,null,null,null,null,null,null,null,null,null,null,null,null,null,null,null,null,null,null,null,null,null,null,null,null,null,null,null,null,null,null,20,"Dry Yeast Cell Count (billions/gram)"]
[]
[null,"Parti-gyle Second Runnings Beer",null,null,null,null,null,null,null,null,null,null,null,null,null,null,null,null,null,null,null,null,null,null,null,null,null,null,null,null,null,null,null,null,null,null,null,null,null,null,"Oz","Hops Ounces/IBU"]
[null,"Recipe",null,"Cost",null,"Fermenter Clear",null,null,null,"Drink Date",null,"Packaged Volume ",null,null,null,null,null,{"$f":"IF(VolumeFermentationPG=\"\",\"\",VolumeFermentationPG-FermenterLossesPG)","v":""},null,{"$f":"IF(fPartigyle=\"No\",\"\",IF(PartigyleRatio=\"1:1\",VolumePreBoil,VolumePreBoil*2))","v":""}," Pre Boil Volume",null,null,null,null,null,null,null,"Parti-gyle Volume Ratio ",null,null,null,"1:1","No"," Enable Parti-gyle Brewing?",null,null,null,null,null,"SG","Gravity Mode"]
[null,null,null,{"$f":"CostGrains+CostHops+CostYeast+CostGrainsPG+CostHopsPG+CostYeastPG","v":0},null,{"$f":"IF(BrewDate=\"\",\"\",IF(SUM(FERMENTATION_DAYS_PG)=0,\"\",BrewDate+SUM(FERMENTATION_DAYS_PG)))","v":""},null,null,null,{"$f":"IF(BrewDate=\"\",\"\",IF(SUM(FERMENTATION_DAYS_PG)=0,\"\",BrewDate+SUM(FERMENTATION_DAYS_PG)+1))","v":""},null,"Fermentation Volume ",null,null,null,null,null,{"$f":"IF(VolumePostBoilPG=\"\",\"\",VolumePostBoilPG-KettleDeadSpacePG-KettleTransferLossesPG-HopsAbsorptionPG)","v":""},null,{"$f":"IF(VolumePreBoilPG=\"\",\"\",IF(BoilOffRatePG=\"\",\"\",IF(TimeBoilPG=\"\",\"\",IF(ContractionLossPG=\"\",\"\",VolumePreBoilPG-(TimeBoilPG*BoilOffRatePG)-ContractionLossPG))))","v":""}," Post Boil Volume",null,null,null,null,null,null,null,"Carbonation",null,null,null,null,"Temp ºF","Days"," Fermentation"]
[null,"Style & Beer Properties",null,"OG",null,"FG",null,"OG ºP",null,null,"FG ºP",null,"ABV%",null,"IBU",null,null,null,"ºSRM",null,"CO2",null,"BUGU/BV",null,null,null,null,null,"CO2 Volumes ",null,null,null,null,null,null," Primary Fermentation",null,null,null,null,"Parti-gyle Factors"]
[null,"Primary Style Dropdown",null,{"$f":"VLOOKUP(StylePrimaryPG,[1]Styles!$A$2:$S$268,3,0)","v":"∞"},{"$f":"VLOOKUP(StylePrimaryPG,[1]Styles!$A$2:$S$268,4,0)","v":"∞"},{"$f":"VLOOKUP(StylePrimaryPG,[1]Styles!$A$2:$S$268,5,0)","v":"∞"},{"$f":"VLOOKUP(StylePrimaryPG,[1]Styles!$A$2:$S$268,6,0)","v":"∞"},{"$f":"IF(D76=\"\",\"\",IF(D76=\"∞\",\"∞\",(668.72*D76)-463.37-(205.347*D76^2)))","v":"∞"},null,{"$f":"IF(E76=\"\",\"\",IF(E76=\"∞\",\"∞\",(668.72*E76)-463.37-(205.347*E76^2)))","v":"∞"},{"$f":"IF(F76=\"\",\"\",IF(F76=\"∞\",\"∞\",(668.72*F76)-463.37-(205.347*F76^2)))","v":"∞"},{"$f":"IF(G76=\"\",\"\",IF(G76=\"∞\",\"∞\",(668.72*G76)-463.37-(205.347*G76^2)))","v":"∞"},{"$f":"VLOOKUP(StylePrimaryPG,[1]Styles!$A$2:$S$268,11,0)","v":"∞"},{"$f":"VLOOKUP(StylePrimaryPG,[1]Styles!$A$2:$S$268,12,0)","v":"∞"},{"$f":"VLOOKUP(StylePrimaryPG,[1]Styles!$A$2:$S$268,13,0)","v":"∞"},null,{"$f":"VLOOKUP(StylePrimaryPG,[1]Styles!$A$2:$S$268,14,0)","v":"∞"},null,{"$f":"VLOOKUP(StylePrimaryPG,[1]Styles!$A$2:$S$268,15,0)","v":"∞"},{"$f":"VLOOKUP(StylePrimaryPG,[1]Styles!$A$2:$S$268,16,0)","v":"∞"},{"$f":"VLOOKUP(StylePrimaryPG,[1]Styles!$A$2:$S$268,17,0)","v":"∞"},{"$f":"VLOOKUP(StylePrimaryPG,[1]Styles!$A$2:$S$268,18,0)","v":"∞"},{"$f":"VLOOKUP(StylePrimaryPG,[1]Styles!$A$2:$S$268,19,0)","v":"∞"},null,null,{"$f":"VLOOKUP(StylePrimaryPG,[1]Styles!$A$2:$W$268,23,0)","v":"∞"},null,null,"Serving Temp ºF ",null,null,null,null,null,null," Diacetyl Rest",null,null,null,null,{"$f":"IF(VolumeStrikeWater1=\"\",0,VolumeStrikeWater1)+IF(VolumeStrikeWater2=\"\",0,IF(VolumeStrikeWater2=\"-\",0,IF(MashType=\"Infusion Mash\",VolumeStrikeWater2,0)))+IF(VolumeMashOut=\"\",0,IF(MashType=\"Infusion Mash\",VolumeMashOut,0))+IF(VolumeSpargeWater1=\"\",0,VolumeSpargeWater1)+IF(VolumeSpargeWater2=\"\",0,IF(VolumeSpargeWater2=\"-\",0,VolumeSpargeWater2))-IF(GrainAbsorption=\"\",0,GrainAbsorption)-IF(LauterTunDeadSpace=\"\",0,)","v":12.399999999999999},"Total Runoff Volume"]
[null,"Estimated",null,{"$f":"IF(GravityUnitsAdjustedPG=\"\",\"\",IF(VolumePostBoilPG=\"\",\"\",IF(GravityUnitsAdjustedPG=0,\"\",((GravityUnitsAdjustedPG/VolumePostBoilPG)+1000)/1000)))","v":""},null,{"$f":"IF(GravityEstimatedOriginalPG=\"\",\"\",IF(YeastStrain2PG=\"\",IF(YeastStrain1PG=\"\",\"\",((GravityEstimatedOriginalPG*1000-1000)*(((100-(YeastAttenuation1LPG+YeastAttenuation1HPG)*50)/100))+1000)/1000),IF(YeastStrain1PG=\"\",((GravityEstimatedOriginalPG*1000-1000)*(((100-(YeastAttenuation2LPG+YeastAttenuation2HPG)*50)/100))+1000)/1000,IF(YeastAttenuation2LPG+YeastAttenuation2HPG>YeastAttenuation1LPG+YeastAttenuation1HPG,\n((GravityEstimatedOriginalPG*1000-1000)*(((100-(YeastAttenuation2LPG+YeastAttenuation2HPG)*50)/100))+1000)/1000,\n((GravityEstimatedOriginalPG*1000-1000)*(((100-(YeastAttenuation1LPG+YeastAttenuation1HPG)*50)/100))+1000)/1000)\n)))","v":""},null,{"$f":"IF(GravityEstimatedOriginalPG=\"\",\"\",(668.72*GravityEstimatedOriginalPG)-463.37-(205.347*GravityEstimatedOriginalPG^2))","v":""},null,null,{"$f":"IF(GravityEstimatedFinalPG=\"\",\"\",(668.72*GravityEstimatedFinalPG)-463.37-(205.347*GravityEstimatedFinalPG^2))","v":""},null,{"$f":"IF(GravityEstimatedFinalPG=\"\",\"\",IF(GravityEstimatedOriginalPG=\"\",\"\",(GravityEstimatedOriginalPG-GravityEstimatedFinalPG)/0.806))","v":""},null,{"$f":"IF(HopsMeasurementPG=\"Ounces\",AK92,AH92)","v":""},null,null,null,{"$f":"IF(FinalMCUPG=\"\",\"\",IF(FinalMCUPG=0,\"\",1.4922*(FinalMCUPG^0.6859)))","v":6.3184704247668577},null,{"$f":"IF(CO2VolumesPG=\"\",\"\",CO2VolumesPG)","v":""},null,{"$f":"IF(TotalIBUPG=\"\",\"\",IF(GravityEstimatedOriginalPG=\"\",\"\",TotalIBUPG/((GravityEstimatedOriginalPG-1)*1000)))","v":""},null,null,{"$f":"IF(TotalIBUPG=\"\",\"\",IF(GravityEstimatedFinalPG=\"\",\"\",IF(GravityEstimatedOriginalPG=\"\",\"\",0.8*TotalIBUPG/((820*(GravityEstimatedFinalPG-1))+(180*(GravityEstimatedOriginalPG-1))))))","v":""},null,null,"Beer Temperature ºF ",null,null,{"$f":"MAX(AH75:AH79)","v":0},null,null,null," Cold Crash",null,null,null,null,{"$f":"SUM(MCUMash)","v":15.538823529411765},"Total Mash Color"]
[null,"Measured",null,null,null,null,null,{"$f":"IF(GravityMeasuredOriginalPG=\"\",\"\",(668.72*GravityMeasuredOriginalPG)-463.37-(205.347*GravityMeasuredOriginalPG^2))","v":""},null,null,{"$f":"IF(GravityMeasuredFinalPG=\"\",\"\",(668.72*GravityMeasuredFinalPG)-463.37-(205.347*GravityMeasuredFinalPG^2))","v":""},null,{"$f":"IF(GravityMeasuredOriginalPG=\"\",\"\",IF(GravityMeasuredFinalPG=\"\",\"\",(GravityMeasuredOriginalPG-GravityMeasuredFinalPG)/0.806))","v":""},null," Calories per 12oz:",null,null,null,null,null,{"$f":"IF(ABVPG=\"\",\"\",IF(GravityMeasuredFinalPG=\"\",\"\",IF(PlatoMeasuredOriginalPG=\"\",\"\",IF(PlatoMeasuredFinalPG=\"\",\"\",((100*6.9*((0.79*ABVPG)/GravityMeasuredFinalPG))+4*(((0.1808*PlatoMeasuredOriginalPG)+(0.8192*PlatoMeasuredFinalPG))-0.1))*GravityMeasuredFinalPG*3.55))))","v":""},null,{"$f":"IF(TotalIBU=\"\",\"\",IF(GravityMeasuredOriginal=\"\",\"\",TotalIBU/((GravityMeasuredOriginal-1)*1000)))","v":0.39325110440842254},null,null,{"$f":"IF(TotalIBU=\"\",\"\",IF(GravityMeasuredFinal=\"\",\"\",IF(GravityMeasuredOriginal=\"\",\"\",0.8*TotalIBU/((820*(GravityMeasuredFinal-1))+(180*(GravityMeasuredOriginal-1))))))","v":0.85204405955158213},null,null,"Priming Sugar ",null,null,{"$f":"IF(PrimingSugarPG=\"Priming Sugar \",\"grams\",IF(VolumeFinalPG=\"\",\"\",IF(CO2VolumesPG=\"\",\"\",IF(VLOOKUP(PrimingSugarPG,[1]Grains!U210:AD221,10,0)=\"glucose\",VolumeFinalPG*3.785*(CO2VolumesPG-VLOOKUP((BeerTemperaturePG-32)*5/9,RESIDUAL_CO2,2,TRUE))/0.27027,VolumeFinalPG*3.785*(CO2VolumesPG-VLOOKUP((BeerTemperaturePG-32)*5/9,RESIDUAL_CO2,2,TRUE))/0.286))))","v":"grams"},null,null,null," Secondary Conditioning",null,null,null,null,{"$f":"IF(TotalMashMCU<3,0,VLOOKUP(TotalMashMCU,[1]Tables!O75:S110,IF(PartigyleRatio=\"1:1\",4,2),TRUE))","v":19.7},"First Beer MCU"]
[null,"Secondary Style Dropdown",null,{"$f":"VLOOKUP(StyleSecondaryPG,[1]Styles!$A$2:$S$268,3,0)","v":"∞"},{"$f":"VLOOKUP(StyleSecondaryPG,[1]Styles!$A$2:$S$268,4,0)","v":"∞"},{"$f":"VLOOKUP(StyleSecondaryPG,[1]Styles!$A$2:$S$268,5,0)","v":"∞"},{"$f":"VLOOKUP(StyleSecondaryPG,[1]Styles!$A$2:$S$268,6,0)","v":"∞"},{"$f":"IF(D79=\"\",\"\",IF(D79=\"∞\",\"∞\",(668.72*D79)-463.37-(205.347*D79^2)))","v":"∞"},null,{"$f":"IF(E79=\"\",\"\",IF(E79=\"∞\",\"∞\",(668.72*E79)-463.37-(205.347*E79^2)))","v":"∞"},{"$f":"IF(F79=\"\",\"\",IF(F79=\"∞\",\"∞\",(668.72*F79)-463.37-(205.347*F79^2)))","v":"∞"},{"$f":"IF(G79=\"\",\"\",IF(G79=\"∞\",\"∞\",(668.72*G79)-463.37-(205.347*G79^2)))","v":"∞"},{"$f":"VLOOKUP(StyleSecondaryPG,[1]Styles!$A$2:$S$268,11,0)","v":"∞"},{"$f":"VLOOKUP(StyleSecondaryPG,[1]Styles!$A$2:$S$268,12,0)","v":"∞"},{"$f":"VLOOKUP(StyleSecondaryPG,[1]Styles!$A$2:$S$268,13,0)","v":"∞"},null,{"$f":"VLOOKUP(StyleSecondaryPG,[1]Styles!$A$2:$S$268,14,0)","v":"∞"},null,{"$f":"VLOOKUP(StyleSecondaryPG,[1]Styles!$A$2:$S$268,15,0)","v":"∞"},{"$f":"VLOOKUP(StyleSecondaryPG,[1]Styles!$A$2:$S$268,16,0)","v":"∞"},{"$f":"VLOOKUP(StyleSecondaryPG,[1]Styles!$A$2:$S$268,17,0)","v":"∞"},{"$f":"VLOOKUP(StyleSecondaryPG,[1]Styles!$A$2:$S$268,18,0)","v":"∞"},{"$f":"VLOOKUP(StyleSecondaryPG,[1]Styles!$A$2:$S$268,19,0)","v":"∞"},null,null,{"$f":"VLOOKUP(StyleSecondaryPG,[1]Styles!$A$2:$W$268,23,0)","v":"∞"},null,null,"Force Carb Pressure (PSI)  ",null,null,{"$f":"IF(TempServingPG=\"\",\"\",IF(CO2VolumesPG=\"\",\"\",-16.6999-0.0101059*TempServingPG+0.00116512*TempServingPG^2+0.173354*TempServingPG*CO2VolumesPG+4.24267*CO2VolumesPG-0.0684226*CO2VolumesPG^2))","v":""},null,null,null," Aging (including carbonation)",null,null,null,null,{"$f":"IF(TotalMashMCU<3,0,VLOOKUP(TotalMashMCU,[1]Tables!O75:S110,IF(PartigyleRatio=\"1:1\",5,3),TRUE))","v":8.1999999999999993},"Second Beer MCU"]
[null,"Malt, Extract & Adjuncts",null,"Maltster",null,null,"Origin",null,null,"Pounds","%Weight",null,"ºL / MCU",null,"Potential",null,null,null,"GU (Adj.)",null,"Late?",null,null,null,"Hops",null,null,null,null,null,null,null,"% AA","Ounces"," Time",null,{"$f":"IF(HopsMeasurementPG=\"Ounces\",\"IBU\",\"Ounces\")","v":"IBU"},null,"Utilization",null,{"$f":"IF(fPartigyle=\"Yes\",SUM(AGUMash)/VolumeRunoffTotal/1000+1,\"\")","v":""},"Total Mash Gravity"]
[null,null,null,{"$f":"IF(B81=\"\",\" \",VLOOKUP(B81,GRAINS_ATTRIBUTES,2,0))","v":" "},null,null,{"$f":"IF(B81=\"\",\" \",VLOOKUP(B81,GRAINS_ATTRIBUTES,3,0))","v":" "},null,null,null,{"$f":"IF(B81=\"\",\"\",IF(J81=\"\",\"\",IF(TotalGrainWeightPG=0,\"\",IF(U81=\"Skip\",\"--\",J81/TotalGrainWeightPG))))","v":""},null,{"$f":"IF(B81=\"\",\"\",VLOOKUP(B81,GRAINS_ATTRIBUTES,4,0))","v":""},{"$f":"IF(J81=\"\",\"\",IF(B81=\"\",\"\",IF(VolumePostBoilPG=\"\",\"\",J81*M81/VolumePostBoilPG)))","v":""},{"$f":"IF(B81=\"\",\" \",VLOOKUP(B81,GRAINS_ATTRIBUTES,6,0))","v":" "},null,null,null,{"$f":"IF(B81=\"\",\"\",IF(J81=\"\",\"\",J81*((O81*1000)-1000)))","v":""},{"$f":"IF(EncoreEfficiency=\"\",\"\",IF(B81=\"\",\"\",IF(J81=\"\",\"\",IF(VLOOKUP(B81,GRAINS_ATTRIBUTES,9,0)=\"SUGARS\",S81,S81*EncoreEfficiency))))","v":""},"Mash",null,null,{"$f":"IF(T81=\"\",\"\",IF(U81=\"Yes\",T81*ExtractGUFactor,IF(U81=\"Skip\",0,T81)))","v":""},null,null,null,null,null,null,null,null,{"$f":"IF(Y81=\"\",\"\",IF(fHopsAging=\"Yes\",IF(HopsTemperature=\"\",\"\",IF(VLOOKUP(Y81,HOPS_ATTRIBUTES,11,0)=\"\",\"\",IF(VLOOKUP(Y81,HOPS_ATTRIBUTES,10,0)=\"\",\"\",VLOOKUP(Y81,HOPS_ATTRIBUTES,2,0)*1/(EXP(VLOOKUP(VLOOKUP(Y81,HOPS_ATTRIBUTES,10,0)*100,[1]Tables!$P$16:$Q$66,2,0)*VLOOKUP(ROUND((HopsTemperature-32)*5/9,0),[1]Tables!$L$16:$N$65,3,0)*VLOOKUP(HopsStorage,[1]Tables!$C$32:$J$34,8,0)*(BrewDate-VLOOKUP(Y81,HOPS_ATTRIBUTES,11,0))))))),VLOOKUP(Y81,HOPS_ATTRIBUTES,2,0)))","v":""},null,null,null,{"$f":"IF(AM81=\"\",\"\",IF(AH81=\"\",\"\",IF(AG81=\"\",\"\",IF(VolumePreBoilPG=\"\",\"\",IF(VolumePostBoilPG=\"\",\"\",IF(HopsMeasurementPG=\"Ounces\",IF(fIBUPG=\"Tinseth\",AH81*AG81*AM81*7490/((VolumePreBoilPG+VolumePostBoilPG)/2),AH81*AM81*AG81*7462/((VolumePreBoilPG+VolumePostBoilPG)/2)),IF(fIBUPG=\"Tinseth\",\n((VolumePreBoilPG+VolumePostBoilPG)/2)*AH81/(AG81*AM81*7490),\n((VolumePreBoilPG+VolumePostBoilPG)/2)*AH81/(AM81*AG81*7462))))))))","v":""},null,{"$f":"IF(Y81=\"\",\"\",IF(AI81=\"\",\"\",IF(GravityPreBoilPG=\"\",\"\",IF(GravityEstimatedOriginalPG=\"\",\"\",IF(TimeBoilPG=\"\",\"\",IF(FWHFactor=\"\",\"\",IF(PelletHopFactor=\"\",\"\",IF(LeafHopFactor=\"\",\"\",IF(AI81=\"dry hop\",0,IF(fIBUPG=\"Tinseth\",((1-EXP(-0.04*IF(AI81=\"FWH\",TimeBoilPG,AI81)))/4.15)*1.65*0.000125^(((GravityPreBoilPG+GravityEstimatedOriginalPG)/2)-1),18.11+13.86*TANH((AI81-31.32)/18.27)/100)*IF(AI81=\"FWH\",FWHFactor,1)*IF(VLOOKUP(Y81,HOPS_ATTRIBUTES,8,0)=\"Pellet\",PelletHopFactor,LeafHopFactor))))))))))","v":""},null,{"$f":"IF(GravityPreBoilPG=\"\",0,IF(GravityPreBoilPG<1.05,0,VolumePreBoil*(VLOOKUP(GravityPreBoilPG,[1]Tables!$C$75:$G$122,IF(PartigyleRatio=\"1:1\",4,2),TRUE)*1000-1000)))","v":0},"First Beer Mash GU"]
[null,null,null," ",null,null," ",null,null,null,"",null,"",""," ",null,null,null,{"$f":"IF(B82=\"\",\"\",IF(J82=\"\",\"\",J82*((O82*1000)-1000)))","v":""},"","Mash",null,null,"",null,null,null,null,null,null,null,null,{"$f":"IF(Y82=\"\",\"\",IF(fHopsAging=\"Yes\",IF(HopsTemperature=\"\",\"\",IF(VLOOKUP(Y82,HOPS_ATTRIBUTES,11,0)=\"\",\"\",IF(VLOOKUP(Y82,HOPS_ATTRIBUTES,10,0)=\"\",\"\",VLOOKUP(Y82,HOPS_ATTRIBUTES,2,0)*1/(EXP(VLOOKUP(VLOOKUP(Y82,HOPS_ATTRIBUTES,10,0)*100,[1]Tables!$P$16:$Q$66,2,0)*VLOOKUP(ROUND((HopsTemperature-32)*5/9,0),[1]Tables!$L$16:$N$65,3,0)*VLOOKUP(HopsStorage,[1]Tables!$C$32:$J$34,8,0)*(BrewDate-VLOOKUP(Y82,HOPS_ATTRIBUTES,11,0))))))),VLOOKUP(Y82,HOPS_ATTRIBUTES,2,0)))","v":""},null,null,null,{"$f":"IF(AM82=\"\",\"\",IF(AH82=\"\",\"\",IF(AG82=\"\",\"\",IF(VolumePreBoilPG=\"\",\"\",IF(VolumePostBoilPG=\"\",\"\",IF(HopsMeasurementPG=\"Ounces\",IF(fIBUPG=\"Tinseth\",AH82*AG82*AM82*7490/((VolumePreBoilPG+VolumePostBoilPG)/2),AH82*AM82*AG82*7462/((VolumePreBoilPG+VolumePostBoilPG)/2)),IF(fIBUPG=\"Tinseth\",\n((VolumePreBoilPG+VolumePostBoilPG)/2)*AH82/(AG82*AM82*7490),\n((VolumePreBoilPG+VolumePostBoilPG)/2)*AH82/(AM82*AG82*7462))))))))","v":""},null,"",null,{"$f":"IF(GravityPreBoilPG=\"\",0,IF(GravityPreBoilPG<1.05,0,(VLOOKUP(GravityPreBoilPG,[1]Tables!$C$75:$G$122,IF(PartigyleRatio=\"1:1\",5,3),TRUE)*1000-1000)*VolumePreBoilPG))","v":0},"Second Beer Mash GU"]
[null,null,null," ",null,null," ",null,null,null,"",null,"",""," ",null,null,null,"","","Mash",null,null,"",null,null,null,null,null,null,null,null,{"$f":"IF(Y83=\"\",\"\",IF(fHopsAging=\"Yes\",IF(HopsTemperature=\"\",\"\",IF(VLOOKUP(Y83,HOPS_ATTRIBUTES,11,0)=\"\",\"\",IF(VLOOKUP(Y83,HOPS_ATTRIBUTES,10,0)=\"\",\"\",VLOOKUP(Y83,HOPS_ATTRIBUTES,2,0)*1/(EXP(VLOOKUP(VLOOKUP(Y83,HOPS_ATTRIBUTES,10,0)*100,[1]Tables!$P$16:$Q$66,2,0)*VLOOKUP(ROUND((HopsTemperature-32)*5/9,0),[1]Tables!$L$16:$N$65,3,0)*VLOOKUP(HopsStorage,[1]Tables!$C$32:$J$34,8,0)*(BrewDate-VLOOKUP(Y83,HOPS_ATTRIBUTES,11,0))))))),VLOOKUP(Y83,HOPS_ATTRIBUTES,2,0)))","v":""},null,null,null,"",null,"",null,null,"Pre Boil Gravity PG"]
[null,null,null," ",null,null," ",null,null,null,"",null,"",""," ",null,null,null,"","","Mash",null,null,"",null,null,null,null,null,null,null,null,{"$f":"IF(Y84=\"\",\"\",IF(fHopsAging=\"Yes\",IF(HopsTemperature=\"\",\"\",IF(VLOOKUP(Y84,HOPS_ATTRIBUTES,11,0)=\"\",\"\",IF(VLOOKUP(Y84,HOPS_ATTRIBUTES,10,0)=\"\",\"\",VLOOKUP(Y84,HOPS_ATTRIBUTES,2,0)*1/(EXP(VLOOKUP(VLOOKUP(Y84,HOPS_ATTRIBUTES,10,0)*100,[1]Tables!$P$16:$Q$66,2,0)*VLOOKUP(ROUND((HopsTemperature-32)*5/9,0),[1]Tables!$L$16:$N$65,3,0)*VLOOKUP(HopsStorage,[1]Tables!$C$32:$J$34,8,0)*(BrewDate-VLOOKUP(Y84,HOPS_ATTRIBUTES,11,0))))))),VLOOKUP(Y84,HOPS_ATTRIBUTES,2,0)))","v":""},null,null,null,"",null,"",null,0.15,"Encore Efficiency"]
[null,null,null," ",null,null," ",null,null,null,"",null,"",""," ",null,null,null,"","","Mash",null,null,"",null,null,null,null,null,null,null,null,{"$f":"IF(Y85=\"\",\"\",IF(fHopsAging=\"Yes\",IF(HopsTemperature=\"\",\"\",IF(VLOOKUP(Y85,HOPS_ATTRIBUTES,11,0)=\"\",\"\",IF(VLOOKUP(Y85,HOPS_ATTRIBUTES,10,0)=\"\",\"\",VLOOKUP(Y85,HOPS_ATTRIBUTES,2,0)*1/(EXP(VLOOKUP(VLOOKUP(Y85,HOPS_ATTRIBUTES,10,0)*100,[1]Tables!$P$16:$Q$66,2,0)*VLOOKUP(ROUND((HopsTemperature-32)*5/9,0),[1]Tables!$L$16:$N$65,3,0)*VLOOKUP(HopsStorage,[1]Tables!$C$32:$J$34,8,0)*(BrewDate-VLOOKUP(Y85,HOPS_ATTRIBUTES,11,0))))))),VLOOKUP(Y85,HOPS_ATTRIBUTES,2,0)))","v":""},null,null,null,"",null,"",null,{"$f":"IF(WortContraction=\"\",\"\",IF(VolumePreBoilPG=\"\",\"\",VolumePreBoilPG*WortContraction))","v":""},"ContractionLossesPG"]
[null,null,null," ",null,null," ",null,null,null,"",null,"",""," ",null,null,null,"","","Mash",null,null,"",null,null,null,null,null,null,null,null,{"$f":"IF(Y86=\"\",\"\",IF(fHopsAging=\"Yes\",IF(HopsTemperature=\"\",\"\",IF(VLOOKUP(Y86,HOPS_ATTRIBUTES,11,0)=\"\",\"\",IF(VLOOKUP(Y86,HOPS_ATTRIBUTES,10,0)=\"\",\"\",VLOOKUP(Y86,HOPS_ATTRIBUTES,2,0)*1/(EXP(VLOOKUP(VLOOKUP(Y86,HOPS_ATTRIBUTES,10,0)*100,[1]Tables!$P$16:$Q$66,2,0)*VLOOKUP(ROUND((HopsTemperature-32)*5/9,0),[1]Tables!$L$16:$N$65,3,0)*VLOOKUP(HopsStorage,[1]Tables!$C$32:$J$34,8,0)*(BrewDate-VLOOKUP(Y86,HOPS_ATTRIBUTES,11,0))))))),VLOOKUP(Y86,HOPS_ATTRIBUTES,2,0)))","v":""},null,null,null,"",null,"",null,{"$f":"IF(AO31=\"\",0,IF(LeafHopsOuncesPG=\"\",0,LeafHopsOuncesPG*AO31/128))","v":0},"HopsAbsorptionPG"]
[null,null,null," ",null,null," ",null,null,null,"",null,"",""," ",null,null,null,"","","Mash",null,null,"",null,null,null,null,null,null,null,null,{"$f":"IF(Y87=\"\",\"\",IF(fHopsAging=\"Yes\",IF(HopsTemperature=\"\",\"\",IF(VLOOKUP(Y87,HOPS_ATTRIBUTES,11,0)=\"\",\"\",IF(VLOOKUP(Y87,HOPS_ATTRIBUTES,10,0)=\"\",\"\",VLOOKUP(Y87,HOPS_ATTRIBUTES,2,0)*1/(EXP(VLOOKUP(VLOOKUP(Y87,HOPS_ATTRIBUTES,10,0)*100,[1]Tables!$P$16:$Q$66,2,0)*VLOOKUP(ROUND((HopsTemperature-32)*5/9,0),[1]Tables!$L$16:$N$65,3,0)*VLOOKUP(HopsStorage,[1]Tables!$C$32:$J$34,8,0)*(BrewDate-VLOOKUP(Y87,HOPS_ATTRIBUTES,11,0))))))),VLOOKUP(Y87,HOPS_ATTRIBUTES,2,0)))","v":""},null,null,null,"",null,"",null,1.4999999999999999E-2,"Boil Off Rate PG"]
[null,null,null," ",null,null," ",null,null,null,"",null,"",""," ",null,null,null,"","","Mash",null,null,"",null,null,null,null,null,null,null,null,{"$f":"IF(Y88=\"\",\"\",IF(fHopsAging=\"Yes\",IF(HopsTemperature=\"\",\"\",IF(VLOOKUP(Y88,HOPS_ATTRIBUTES,11,0)=\"\",\"\",IF(VLOOKUP(Y88,HOPS_ATTRIBUTES,10,0)=\"\",\"\",VLOOKUP(Y88,HOPS_ATTRIBUTES,2,0)*1/(EXP(VLOOKUP(VLOOKUP(Y88,HOPS_ATTRIBUTES,10,0)*100,[1]Tables!$P$16:$Q$66,2,0)*VLOOKUP(ROUND((HopsTemperature-32)*5/9,0),[1]Tables!$L$16:$N$65,3,0)*VLOOKUP(HopsStorage,[1]Tables!$C$32:$J$34,8,0)*(BrewDate-VLOOKUP(Y88,HOPS_ATTRIBUTES,11,0))))))),VLOOKUP(Y88,HOPS_ATTRIBUTES,2,0)))","v":""},null,null,null,"",null,"",null,0.25,"Kettle Dead Space PG"]
[null,null,null," ",null,null," ",null,null,null,"",null,"",""," ",null,null,null,"","","Mash",null,null,"",null,null,null,null,null,null,null,null,{"$f":"IF(Y89=\"\",\"\",IF(fHopsAging=\"Yes\",IF(HopsTemperature=\"\",\"\",IF(VLOOKUP(Y89,HOPS_ATTRIBUTES,11,0)=\"\",\"\",IF(VLOOKUP(Y89,HOPS_ATTRIBUTES,10,0)=\"\",\"\",VLOOKUP(Y89,HOPS_ATTRIBUTES,2,0)*1/(EXP(VLOOKUP(VLOOKUP(Y89,HOPS_ATTRIBUTES,10,0)*100,[1]Tables!$P$16:$Q$66,2,0)*VLOOKUP(ROUND((HopsTemperature-32)*5/9,0),[1]Tables!$L$16:$N$65,3,0)*VLOOKUP(HopsStorage,[1]Tables!$C$32:$J$34,8,0)*(BrewDate-VLOOKUP(Y89,HOPS_ATTRIBUTES,11,0))))))),VLOOKUP(Y89,HOPS_ATTRIBUTES,2,0)))","v":""},null,null,null,"",null,"",null,0.25,"Kettle Transfer Losses"]
[null,null,null," ",null,null," ",null,null,null,"",null,"",""," ",null,null,null,"","","Mash",null,null,"",null,null,null,null,null,null,null,null,{"$f":"IF(Y90=\"\",\"\",IF(fHopsAging=\"Yes\",IF(HopsTemperature=\"\",\"\",IF(VLOOKUP(Y90,HOPS_ATTRIBUTES,11,0)=\"\",\"\",IF(VLOOKUP(Y90,HOPS_ATTRIBUTES,10,0)=\"\",\"\",VLOOKUP(Y90,HOPS_ATTRIBUTES,2,0)*1/(EXP(VLOOKUP(VLOOKUP(Y90,HOPS_ATTRIBUTES,10,0)*100,[1]Tables!$P$16:$Q$66,2,0)*VLOOKUP(ROUND((HopsTemperature-32)*5/9,0),[1]Tables!$L$16:$N$65,3,0)*VLOOKUP(HopsStorage,[1]Tables!$C$32:$J$34,8,0)*(BrewDate-VLOOKUP(Y90,HOPS_ATTRIBUTES,11,0))))))),VLOOKUP(Y90,HOPS_ATTRIBUTES,2,0)))","v":""},null,null,null,"",null,"",null,0.25,"Fermenter Losses"]
[null,null,null," ",null,null," ",null,null,null,"",null,"",""," ",null,null,null,"","","Mash",null,null,"",null,null,null,null,null,null,null,null,{"$f":"IF(Y91=\"\",\"\",IF(fHopsAging=\"Yes\",IF(HopsTemperature=\"\",\"\",IF(VLOOKUP(Y91,HOPS_ATTRIBUTES,11,0)=\"\",\"\",IF(VLOOKUP(Y91,HOPS_ATTRIBUTES,10,0)=\"\",\"\",VLOOKUP(Y91,HOPS_ATTRIBUTES,2,0)*1/(EXP(VLOOKUP(VLOOKUP(Y91,HOPS_ATTRIBUTES,10,0)*100,[1]Tables!$P$16:$Q$66,2,0)*VLOOKUP(ROUND((HopsTemperature-32)*5/9,0),[1]Tables!$L$16:$N$65,3,0)*VLOOKUP(HopsStorage,[1]Tables!$C$32:$J$34,8,0)*(BrewDate-VLOOKUP(Y91,HOPS_ATTRIBUTES,11,0))))))),VLOOKUP(Y91,HOPS_ATTRIBUTES,2,0)))","v":""},null,null,null,"",null,"",null,90,"Total Boil Time PG"]
[null,"Cost:  ",{"$f":"IF(B81=\"\",0,J81*VLOOKUP(B81,[1]Grains!$A$53:$L$188,8,0))+IF(B82=\"\",0,J82*VLOOKUP(B82,[1]Grains!$A$53:$L$188,8,0))+IF(B83=\"\",0,J83*VLOOKUP(B83,[1]Grains!$A$53:$L$188,8,0))+IF(B84=\"\",0,J84*VLOOKUP(B84,[1]Grains!$A$53:$L$188,8,0))+IF(B85=\"\",0,J85*VLOOKUP(B85,[1]Grains!$A$53:$L$188,8,0))+IF(B86=\"\",0,J86*VLOOKUP(B86,[1]Grains!$A$53:$L$188,8,0))+IF(B87=\"\",0,J87*VLOOKUP(B87,[1]Grains!$A$53:$L$188,8,0))+IF(B88=\"\",0,J88*VLOOKUP(B88,[1]Grains!$A$53:$L$188,8,0))+IF(B89=\"\",0,J89*VLOOKUP(B89,[1]Grains!$A$53:$L$188,8,0))+IF(B90=\"\",0,J90*VLOOKUP(B90,[1]Grains!$A$53:$L$188,8,0))+IF(B91=\"\",0,J91*VLOOKUP(B91,[1]Grains!$A$53:$L$188,8,0))","v":0},null,null,null,null,null,null,{"$f":"IF(B81=\"\",0,IF(U81=\"Skip\",0,J81))+IF(B82=\"\",0,IF(U82=\"Skip\",0,J82))+IF(B83=\"\",0,IF(U83=\"Skip\",0,J83))+IF(B84=\"\",0,IF(U84=\"Skip\",0,J84))+IF(B85=\"\",0,IF(U85=\"Skip\",0,J85))+IF(B86=\"\",0,IF(U86=\"Skip\",0,J86))+IF(B87=\"\",0,IF(U87=\"Skip\",0,J87))+IF(B88=\"\",0,IF(U88=\"Skip\",0,J88))+IF(B89=\"\",0,IF(U89=\"Skip\",0,J89))+IF(B90=\"\",0,IF(U90=\"Skip\",0,J90))+IF(B91=\"\",0,IF(U91=\"Skip\",0,J91))","v":0},null,null,{"$f":"SUM(MCUPG)+SecondBeerMCU","v":8.1999999999999993},null,null,null,null,null,{"$f":"IF(SUM(GUPG)=0,\"\",SUM(GUPG))","v":""},{"$f":"SUM(AGUPG2)+SecondBeerMashGU","v":0},{"$f":"SUM(AWGUPG2)+SecondBeerMashGU","v":0},null,null,null,"Cost:  ",null,null,null,null,null,{"$f":"IF(HopsMeasurementPG=\"Ounces\",IF(Y81=\"\",0,AH81*VLOOKUP(Y81,[1]Hops!$A$2:$J$124,9,0))+IF(Y82=\"\",0,AH82*VLOOKUP(Y82,[1]Hops!$A$2:$J$124,9,0))+IF(Y83=\"\",0,AH83*VLOOKUP(Y83,[1]Hops!$A$2:$J$124,9,0))+IF(Y84=\"\",0,AH84*VLOOKUP(Y84,[1]Hops!$A$2:$J$124,9,0))+IF(Y85=\"\",0,AH85*VLOOKUP(Y85,[1]Hops!$A$2:$J$124,9,0))+IF(Y86=\"\",0,AH86*VLOOKUP(Y86,[1]Hops!$A$2:$J$124,9,0))+IF(Y87=\"\",0,AH87*VLOOKUP(Y87,[1]Hops!$A$2:$J$124,9,0))+IF(Y88=\"\",0,AH88*VLOOKUP(Y88,[1]Hops!$A$2:$J$124,9,0))+IF(Y89=\"\",0,AH89*VLOOKUP(Y89,[1]Hops!$A$2:$J$124,9,0))+IF(Y90=\"\",0,AH90*VLOOKUP(Y90,[1]Hops!$A$2:$J$124,9,0))+IF(Y91=\"\",0,AH91*VLOOKUP(Y91,[1]Hops!$A$2:$J$124,9,0)),IF(Y81=\"\",0,AK81*VLOOKUP(Y81,[1]Hops!$A$2:$J$124,9,0))+IF(Y82=\"\",0,AK82*VLOOKUP(Y82,[1]Hops!$A$2:$J$124,9,0))+IF(Y83=\"\",0,AK83*VLOOKUP(Y83,[1]Hops!$A$2:$J$124,9,0))+IF(Y84=\"\",0,AK84*VLOOKUP(Y84,[1]Hops!$A$2:$J$124,9,0))+IF(Y85=\"\",0,AK85*VLOOKUP(Y85,[1]Hops!$A$2:$J$124,9,0))+IF(Y86=\"\",0,AK86*VLOOKUP(Y86,[1]Hops!$A$2:$J$124,9,0))+IF(Y87=\"\",0,AK87*VLOOKUP(Y87,[1]Hops!$A$2:$J$124,9,0))+IF(Y88=\"\",0,AK88*VLOOKUP(Y88,[1]Hops!$A$2:$J$124,9,0))+IF(Y89=\"\",0,AK89*VLOOKUP(Y89,[1]Hops!$A$2:$J$124,9,0))+IF(Y90=\"\",0,AK90*VLOOKUP(Y90,[1]Hops!$A$2:$J$124,9,0))+IF(Y91=\"\",0,AK91*VLOOKUP(Y91,[1]Hops!$A$2:$J$124,9,0)))","v":0},null,null,{"$f":"IF(SUM(OuncesorIBUPG)=0,\"\",SUM(OuncesorIBUPG))","v":""},{"$f":"IF(HopsMeasurement=\"Ounces\",IF(Y81=\"\",0,IF(VLOOKUP(Y81,[1]Hops!$A$2:$J$124,8,0)=\"Pellet\",0,AH81))+IF(Y82=\"\",0,IF(VLOOKUP(Y82,[1]Hops!$A$2:$J$124,8,0)=\"Pellet\",0,AH82))+IF(Y83=\"\",0,IF(VLOOKUP(Y83,[1]Hops!$A$2:$J$124,8,0)=\"Pellet\",0,AH83))+IF(Y84=\"\",0,IF(VLOOKUP(Y84,[1]Hops!$A$2:$J$124,8,0)=\"Pellet\",0,AH84))+IF(Y85=\"\",0,IF(VLOOKUP(Y85,[1]Hops!$A$2:$J$124,8,0)=\"Pellet\",0,AH85))+IF(Y86=\"\",0,IF(VLOOKUP(Y86,[1]Hops!$A$2:$J$124,8,0)=\"Pellet\",0,AH86))+IF(Y87=\"\",0,IF(VLOOKUP(Y87,[1]Hops!$A$2:$J$124,8,0)=\"Pellet\",0,AH87))+IF(Y88=\"\",0,IF(VLOOKUP(Y88,[1]Hops!$A$2:$J$124,8,0)=\"Pellet\",0,AH88))+IF(Y89=\"\",0,IF(VLOOKUP(Y89,[1]Hops!$A$2:$J$124,8,0)=\"Pellet\",0,AH89))+IF(Y90=\"\",0,IF(VLOOKUP(Y90,[1]Hops!$A$2:$J$124,8,0)=\"Pellet\",0,AH90))+IF(Y91=\"\",0,IF(VLOOKUP(Y91,[1]Hops!$A$2:$J$124,8,0)=\"Pellet\",0,AH91)),IF(Y81=\"\",0,IF(VLOOKUP(Y81,[1]Hops!$A$2:$J$124,8,0)=\"Pellet\",0,AK81))+IF(Y82=\"\",0,IF(VLOOKUP(Y82,[1]Hops!$A$2:$J$124,8,0)=\"Pellet\",0,AK82))+IF(Y83=\"\",0,IF(VLOOKUP(Y83,[1]Hops!$A$2:$J$124,8,0)=\"Pellet\",0,AK83))+IF(Y84=\"\",0,IF(VLOOKUP(Y84,[1]Hops!$A$2:$J$124,8,0)=\"Pellet\",0,AK84))+IF(Y85=\"\",0,IF(VLOOKUP(Y85,[1]Hops!$A$2:$J$124,8,0)=\"Pellet\",0,AK85))+IF(Y86=\"\",0,IF(VLOOKUP(Y86,[1]Hops!$A$2:$J$124,8,0)=\"Pellet\",0,AK86))+IF(Y87=\"\",0,IF(VLOOKUP(Y87,[1]Hops!$A$2:$J$124,8,0)=\"Pellet\",0,AK87))+IF(Y88=\"\",0,IF(VLOOKUP(Y88,[1]Hops!$A$2:$J$124,8,0)=\"Pellet\",0,AK88))+IF(Y89=\"\",0,IF(VLOOKUP(Y89,[1]Hops!$A$2:$J$124,8,0)=\"Pellet\",0,AK89))+IF(Y90=\"\",0,IF(VLOOKUP(Y90,[1]Hops!$A$2:$J$124,8,0)=\"Pellet\",0,AK90))+IF(Y91=\"\",0,IF(VLOOKUP(Y91,[1]Hops!$A$2:$J$124,8,0)=\"Pellet\",0,AK91)))","v":0},null,{"$f":"IF(SUM(IBUorOuncesPG)=0,\"\",SUM(IBUorOuncesPG))","v":""},null,"Tinseth",null,null,"Chill Time PG"]
[null,"Yeast",null,"Temperature",null,"Attenuation",null,null,"Flocculation",null,null,"Styles & Notes",null,null,null,null,null,null,null,null,null,null,null,null,null,null,null,null,null,null,null,null,null,null,null,null,null,"Name",null,null,null,"Transfer Time PG"]
[null,null,null,{"$f":"IF(YeastStrain1PG=\"\",\"\",VLOOKUP(YeastStrain1PG,YEAST_ATTRIBUTES,3,0))","v":""},{"$f":"IF(YeastStrain1PG=\"\",\"\",VLOOKUP(YeastStrain1PG,YEAST_ATTRIBUTES,4,0))","v":""},{"$f":"IF(YeastStrain1PG=\"\",\"\",VLOOKUP(YeastStrain1PG,YEAST_ATTRIBUTES,5,0))","v":""},{"$f":"IF(YeastStrain1PG=\"\",\"\",VLOOKUP(YeastStrain1PG,YEAST_ATTRIBUTES,6,0))","v":""},null,{"$f":"IF(YeastStrain1PG=\"\",\"\",VLOOKUP(YeastStrain1PG,YEAST_ATTRIBUTES,7,0))","v":""},null,null,{"$f":"IF(YeastStrain1PG=\"\",\"\",VLOOKUP(YeastStrain1PG,YEAST_ATTRIBUTES,9,0))","v":""},null,null,null,null,null,null,null,null,null,null,null,null,null,null,null,null,null,null,null,null,null,null,null,null,null,{"$f":"IF(YeastStrain1PG=\"\",\"\",VLOOKUP(YeastStrain1PG,YEAST_ATTRIBUTES,2,0))","v":""},null,null,null,"Aeration Time PG"]
[null,null,null,{"$f":"IF(YeastStrain2PG=\"\",\"\",VLOOKUP(YeastStrain2PG,YEAST_ATTRIBUTES,3,0))","v":""},{"$f":"IF(YeastStrain2PG=\"\",\"\",VLOOKUP(YeastStrain2PG,YEAST_ATTRIBUTES,4,0))","v":""},{"$f":"IF(YeastStrain2PG=\"\",\"\",VLOOKUP(YeastStrain2PG,YEAST_ATTRIBUTES,5,0))","v":""},{"$f":"IF(YeastStrain2PG=\"\",\"\",VLOOKUP(YeastStrain2PG,YEAST_ATTRIBUTES,6,0))","v":""},null,{"$f":"IF(YeastStrain2PG=\"\",\"\",VLOOKUP(YeastStrain2PG,YEAST_ATTRIBUTES,7,0))","v":""},null,null,{"$f":"IF(YeastStrain2PG=\"\",\"\",VLOOKUP(YeastStrain2PG,YEAST_ATTRIBUTES,9,0))","v":""},null,null,null,null,null,null,null,null,null,null,null,null,null,null,null,null,null,null,null,null,null,null,null,null,null,{"$f":"IF(YeastStrain2PG=\"\",\"\",VLOOKUP(YeastStrain2PG,YEAST_ATTRIBUTES,2,0))","v":""}]
[null,"Ale ","Required Cell Count: ",{"$f":"IF(PlatoEstimatedOriginalPG=\"\",\"\",IF(VolumeFermentationPG=\"\",\"\",IF(AleOrLagerPG=\"Ale \",IF(PitchingRateAle=\"\",\"\",1000000*PitchingRateAle*VolumeFermentationPG*3785*PlatoEstimatedOriginalPG),IF(PitchingRateLager=\"\",\"\",1000000*PitchingRateLager*VolumeFermentationPG*3785*PlatoEstimatedOriginalPG))))","v":""},null,null,"Yeast Preparation: ",null,null,null,null,"Stirplate Starter",null,null,null,null,null,null,null,"# of Packages: ",null,null,null,null,null,null,null,null,"Starter Volume (mL/vials): ",null,null,{"$f":"IF(RequiredCellCountPG=\"\",\"\",RequiredCellCountPG/(VLOOKUP(YeastPreparationPG,[1]Tables!$C$15:$F$20,4,0)*1000000))","v":""},null,null,"Dry Yeast (grams): ",null,null,null,{"$f":"IF(RequiredCellCountPG=\"\",\"\",RequiredCellCountPG/(CellsPerDryGram*1000000000))","v":""}]
[null,"Cost:  ",{"$f":"IF(YeastStrain1PG=\"\",0,YeastPackagesPG/2*VLOOKUP(YeastStrain1PG,[1]Yeast!$A$2:$L$168,12,0))+IF(YeastStrain2PG=\"\",IF(YeastStrain1PG=\"\",0,YeastPackagesPG/2*VLOOKUP(YeastStrain1PG,[1]Yeast!$A$2:$L$168,12,0)),YeastPackagesPG/2*VLOOKUP(YeastStrain2PG,[1]Yeast!$A$2:$L$168,12,0))","v":0}]
[]
[null,"Notes"]
[]
[]
[]
[]
[]
[]
[]
[]
[]
[]
[]
[]
[]
[]
[]
[]
[]
[]
[]
[]
[]
[]
[]
[]
[]
[null,"Printable Report"]
[null,"Recipe:",{"$f":"IF(RecipeName=\"\",\"\",RecipeName)","v":"Example Lager"},null,null,"Brew Date:",null,null,{"$f":"BrewDate","v":"2009-01-15"},null,null,"Time:",null,{"$f":"WorkTime","v":9.25},null,"Cost:",null,null,null,{"$f":"TotalCost","v":0},null,"Primary Style:",null,null,null,null,null,null,null,{"$f":"StylePrimary","v":"Vienna Lager"},null,null,null,"Secondary Style:",null,null,{"$f":"StyleSecondary","v":"Secondary Style Dropdown"}]
[]
[null,null,null,"Original Gravity",null,null,"Final Gravity",null,null,null,"Original Extract",null,null,null,"Final Extract",null,null,null,null,"IBU",null,"SRM",null,null,"% ABV",null,null,null,null,"Calories per 12 oz",null,"BU:GU",null,"BV","CO2 Volumes"]
[null,"Estimated Beer Properties:",null,{"$f":"GravityEstimatedOriginal","v":1.0525318847058822},null,null,{"$f":"GravityEstimatedFinal","v":1.0141836088705882},null,null,null,{"$f":"PlatoEstimatedOriginal","v":12.990916725593735},null,null,null,{"$f":"PlatoEstimatedFinal","v":3.6214292288787533},null,null,null,null,{"$f":"TotalIBU","v":20.449057429237989},null,{"$f":"TargetSRM","v":9.7953674944349558},null,null,{"$f":"ABVEstimated","v":4.7578505999124054E-2},null,null,null,null,{"$f":"IF(ABVEstimated=\"\",\"\",IF(GravityEstimatedFinal=\"\",\"\",IF(PlatoEstimatedOriginal=\"\",\"\",IF(PlatoEstimatedFinal=\"\",\"\",((100*6.9*((0.79*ABVEstimated)/GravityEstimatedFinal))+4*(((0.1808*PlatoEstimatedOriginal)+(0.8192*PlatoEstimatedFinal))-0.1))*GravityEstimatedFinal*3.55))))","v":167.17897323116},null,{"$f":"BUGUEstimated","v":0.38926944166821836},null,{"$f":"BVEstimated","v":0.77582350108264664},{"$f":"IF(CO2Volumes=\"\",\"\",CO2Volumes)","v":2.6}]
[null,"Measured Beer Properties:"]
[]
[null,null,"Packaged Volume:",{"$f":"VolumeFinal","v":10},"Fermentation Volume:",null,null,null,null,{"$f":"VolumeFermentation","v":10.25},"Post Boil Volume:",null,null,null,{"$f":"VolumePostBoil","v":10.625},null,null,"Pre Boil Volume:",null,null,null,{"$f":"VolumePreBoil","v":12.4},null,null,null,null,null,null,null,null,null,null,"Pre Boil Gravity:",null,{"$f":"IF(GravityPreBoil=\"\",\"\",GravityPreBoil)","v":1.0449999999999999}]
[null,null,"Measured:"]
[null,null,null,null,null,null,null,null,null,null,null,null,null,null,null,null,null,null,null,null,null,null,null,null,null,null,null,null,null,null,null,null,"Mash Step 1:",null,{"$f":"TempMashStep1","v":152},{"$f":"MashThickness","v":1.1000000000000001},null,{"$f":"TimeMashStep1","v":90},"minutes"]
[null,"Grains, Extract & Adjuncts",null,"Weight",null,"%","ºL","MCU",null,"Late?",null,null,"Hops",null,null,null,null,null,null,null,"AA%",null,"Ounces",null,null,null,null,null,"IBU",null,"Utilization",null,"Mash Step 2:",null,{"$f":"IF(AJ135=\"-\",\"-\",TempMashStep2)","v":"-"},{"$f":"MashThickness2","v":"-"},null,{"$f":"IF(TimeMashStep2=\"\",\"\",TimeMashStep2)","v":""},{"$f":"IF(AL135=\"\",\"\",\"minutes\")","v":""}]
[null,{"$f":"IF(B19=\"\",\"\",B19)","v":"Pilsen"},null,{"$f":"IF(J19=\"\",\"\",J19)","v":7},null,{"$f":"IF(K19=\"\",\"\",K19)","v":0.35},{"$f":"IF(M19=\"\",\"\",M19)","v":1.3},{"$f":"IF(N19=\"\",\"\",N19)","v":0.85647058823529409},null,{"$f":"IF(B19=\"\",\"\",U19)","v":"Mash"},null,{"$f":"IF(Y19=\"\",\"\",Y19)","v":"Hallertauer Mittelfrüh"},null,null,null,null,null,null,null,null,{"$f":"IF(AG19=\"\",\"\",AG19)","v":3.1E-2},null,{"$f":"IF(Y19=\"\",\"\",IF(HopsMeasurement=\"Ounces\",IF(AH19=\"\",\"\",AH19),IF(AH19=\"\",\"\",AK19)))","v":4},null,null,null,null,null,{"$f":"IF(Y19=\"\",\"\",IF(HopsMeasurement=\"Ounces\",IF(AH19=\"\",\"\",AK19),IF(AH19=\"\",\"\",AH19)))","v":17.31084586519782},null,{"$f":"IF(Y19=\"\",\"\",AM19)","v":0.21457762287683566},null,"Mash Step 3:",null,{"$f":"IF(AJ136=\"-\",\"-\",TempMashStep3)","v":"-"},{"$f":"MashThickness3","v":"-"},null,{"$f":"IF(TimeMashStep3=\"\",\"\",TimeMashStep3)","v":""},{"$f":"IF(AL136=\"\",\"\",\"minutes\")","v":""}]
[null,{"$f":"IF(B20=\"\",\"\",B20)","v":"Munich Malt II"},null,{"$f":"IF(J20=\"\",\"\",J20)","v":13},null,{"$f":"IF(K20=\"\",\"\",K20)","v":0.65},{"$f":"IF(M20=\"\",\"\",M20)","v":12},14.68235294117647,null,{"$f":"IF(B20=\"\",\"\",U20)","v":"Mash"},null,{"$f":"IF(Y20=\"\",\"\",Y20)","v":"Hallertauer Mittelfrüh"},null,null,null,null,null,null,null,null,{"$f":"IF(AG20=\"\",\"\",AG20)","v":3.1E-2},null,2,null,null,null,null,null,3.1382115640401711,null,{"$f":"IF(Y20=\"\",\"\",AM20)","v":7.7799777404307824E-2}]
[null,"Campden Tablet",null,1,null,"--",0,0,null,"Skip",null,"",null,null,null,null,null,null,null,null,"",null,"",null,null,null,null,null,"",null,"",null,"Strike Water Volume:",null,null,{"$f":"VolumeStrikeWater1","v":5.5},null,{"$f":"TempStrikeWater1","v":171.90909090909091},"Temp ºF"]
[null,"Whirlfloc Tablet",null,1,null,"--",0,0,null,"Yes",null,"",null,null,null,null,null,null,null,null,"",null,"",null,null,null,null,null,"",null,"",null,{"$f":"IF(MashType=\"Infusion Mash\",\"Strike Water Volume 2:\",IF(MashType=\"Decoction Mash\",\"Decoction Volume 1:\",\"\"))","v":"Strike Water Volume 2:"},null,null,{"$f":"IF(VolumeStrikeWater2=\"\",\"\",VolumeStrikeWater2)","v":"-"},null,{"$f":"IF(AJ139=\"\",\"\",IF(AJ139=\"-\",\"-\",TempStrikeWater2))","v":"-"},"Temp ºF"]
[null,"",null,"",null,"","","",null,"",null,"",null,null,null,null,null,null,null,null,"",null,"",null,null,null,null,null,"",null,"",null,{"$f":"IF(MashType=\"Infusion Mash\",\"Strike Water Volume 3:\",IF(MashType=\"Decoction Mash\",\"Decoction Volume 2:\",\"\"))","v":"Strike Water Volume 3:"},null,null,{"$f":"IF(VolumeStrikeWater3=\"\",\"\",VolumeStrikeWater3)","v":"-"},null,{"$f":"IF(AJ140=\"\",\"\",IF(AJ140=\"-\",\"-\",TempStrikeWater2))","v":"-"},"Temp ºF"]
[null,"",null,"",null,"","","",null,"",null,"",null,null,null,null,null,null,null,null,"",null,"",null,null,null,null,null,"",null,"",null,{"$f":"IF(MashType=\"Infusion Mash\",\"\",IF(MashType=\"Decoction Mash\",\"Decoction Volume 3:\",\"\"))","v":""},null,null,{"$f":"IF(VolumeDecoction3=\"-\",\"\",IF(VolumeDecoction3=\"\",\"\",VolumeDecoction3))","v":""},null,{"$f":"IF(AJ141=\"\",\"\",TempStrikeWater2)","v":""},"Temp ºF"]
[null,"",null,"",null,"","","",null,"",null,"",null,null,null,null,null,null,null,null,"",null,"",null,null,null,null,null,"",null,"",null,"Mash Out Volume:",null,null,{"$f":"VolumeMashOut","v":4.8250000000000002},null,{"$f":"MashOutTemp","v":170},"Temp ºF"]
[null,"",null,"",null,"","","",null,"",null,"",null,null,null,null,null,null,null,null,"",null,"",null,null,null,null,null,"",null,"",null,"Sparge Volume 1:",null,null,{"$f":"VolumeSpargeWater1","v":6.0750000000000002},null,{"$f":"MashOutTemp","v":170},"Temp ºF"]
[null,"",null,"",null,"","","",null,"",null,"",null,null,null,null,null,null,null,null,"",null,"",null,null,null,null,null,"",null,"",null,"Sparge Volume 2:",null,null,{"$f":"VolumeSpargeWater2","v":"-"},null,{"$f":"IF(AJ144=\"\",\"\",IF(AJ144=\"-\",\"-\",TempStrikeWater2))","v":"-"},"Temp ºF"]
[null,"",null,"",null,"","","",null,"",null,"",null,null,null,null,null,null,null,null,"",null,"",null,null,null,null,null,"",null,""]
[null,"Total Grain Weight: ",null,{"$f":"IF(J30=\"\",\"\",J30)","v":20},null,null,null,null,null,null,null,null,null,null,null,null,null,null,null,"Totals:",null,null,{"$f":"SUM(W136:AB145)","v":6},null,null,null,null,null,{"$f":"TotalIBU","v":20.449057429237989},null,null,null,"Mash Efficiency:",null,{"$f":"MashEfficiencyPredicted","v":0.75},"Measured:"]
[null,null,null,null,null,null,null,null,null,null,null,null,null,null,null,null,null,null,null,null,null,null,null,null,null,null,null,null,null,null,null,null,"Mash pH:",null,null,"Measured:"]
[null,null,null,"Calcium",null,"Magnesium",null,"Sodium",null,null,"Chloride",null,"Sulfates",null,"Effective Hardness",null,null,null,null,null,"Residual Alkalinity",null,null,null,null,null,null,null,null,"Cl/SO4 Balance"]
[null,"Source Water",null,{"$f":"IF(CalciumSource=\"\",\"\",CalciumSource)","v":6.7},null,{"$f":"IF(MagnesiumSource=\"\",\"\",MagnesiumSource)","v":2},null,{"$f":"IF(SodiumSource=\"\",\"\",SodiumSource)","v":16},null,null,{"$f":"IF(ChlorideSource=\"\",\"\",ChlorideSource)","v":14},null,{"$f":"IF(SulfateSource=\"\",\"\",SulfateSource)","v":5},null,{"$f":"IF(EffectiveHardnessSource=\"\",\"\",EffectiveHardnessSource)","v":5.9621848739495809},null,null,null,null,null,{"$f":"IF(RASource=\"\",\"\",RASource)","v":7.1878151260504195},null,null,null,null,null,null,null,null,{"$f":"IF(CSBalanceSource=\"\",\"\",CSBalanceSource)","v":"Very Malty"},null,null,{"$f":"YeastPreparation","v":"Stirplate Starter"},null,null,{"$f":"IF(AF35=\"\",\"\",AF35)","v":3023.9931180918957},null,"mL Starter Needed"]
[null,"Added to Water",null,{"$f":"IF(CalciumAdded=\"\",\"\",CalciumAdded)","v":51.596363636363634},null,{"$f":"IF(MagnesiumAdded=\"\",\"\",MagnesiumAdded)","v":8.9454545454545453},null,{"$f":"IF(SodiumAdded=\"\",\"\",SodiumAdded)","v":0},null,null,{"$f":"IF(ChlorideAdded=\"\",\"\",ChlorideAdded)","v":23.176363636363636},null,{"$f":"IF(SulfateAdded=\"\",\"\",SulfateAdded)","v":37.454545454545453},null,{"$f":"IF(EffectiveHardnessAdded=\"\",\"\",EffectiveHardnessAdded)","v":42.116577540106945},null,null,null,null,null,{"$f":"IF(RAAdded=\"\",\"\",RAAdded)","v":4.9773121767335908},null,null,null,null,null,null,null,null,null,null,null,{"$f":"IF(YeastStrain1=\"\",\"\",YeastStrain1)","v":"White Labs WLP833"},null,null,{"$f":"IF(AL33=\"\",\"\",AL33)","v":"German Bock Lager"}]
[null,"Resulting Water",null,{"$f":"IF(CalciumFinal=\"\",\"\",CalciumFinal)","v":58.296363636363637},null,{"$f":"IF(MagnesiumFinal=\"\",\"\",MagnesiumFinal)","v":10.945454545454545},null,{"$f":"IF(SodiumFinal=\"\",\"\",SodiumFinal)","v":16},null,null,{"$f":"IF(ChlorideFinal=\"\",\"\",ChlorideFinal)","v":37.176363636363632},null,{"$f":"IF(SulfateFinal=\"\",\"\",SulfateFinal)","v":42.454545454545453},null,{"$f":"IF(EffectiveHardnessFinal=\"\",\"\",EffectiveHardnessFinal)","v":48.078762414056534},null,null,null,null,null,{"$f":"IF(RAFinal=\"\",\"\",RAFinal)","v":12.165127302784001},null,null,null,null,null,null,null,null,{"$f":"IF(CSBalanceFinal=\"\",\"\",CSBalanceFinal)","v":"Balanced"},null,null,{"$f":"IF(YeastStrain1=\"\",\"\",D33)","v":48},{"$f":"IF(YeastStrain1=\"\",\"\",E33)","v":55},{"$f":"IF(YeastStrain1=\"\",\"\",F33)","v":0.7},{"$f":"IF(YeastStrain1=\"\",\"\",G33)","v":0.76},null,{"$f":"IF(YeastStrain1=\"\",\"\",I33)","v":"Medium"}]
[null,null,null,null,null,null,null,null,null,null,null,null,null,null,null,null,null,null,null,null,null,null,null,null,null,null,null,null,null,null,null,null,{"$f":"IF(YeastStrain2=\"\",\"\",YeastStrain2)","v":""},null,null,{"$f":"IF(AL34=\"\",\"\",AL34)","v":""}]
[null,null,null,"Chalk","Gypsum",null,"Calcium Chloride",null,null,null,"Epsom Salt",null,null,"Baking Soda",null,null,null,null,"Table Salt",null,"Hydrochloric Acid",null,null,null,null,null,null,null,null,"Lactic Acid",null,null,{"$f":"IF(YeastStrain2=\"\",\"\",D34)","v":""},{"$f":"IF(YeastStrain2=\"\",\"\",E34)","v":""},{"$f":"IF(YeastStrain2=\"\",\"\",F34)","v":""},{"$f":"IF(YeastStrain2=\"\",\"\",G34)","v":""},null,{"$f":"IF(YeastStrain2=\"\",\"\",I34)","v":""}]
[null,null,"Mash Additions:",{"$f":"IF(ChalkAddition=\"\",\"\",ChalkAddition)","v":2},{"$f":"IF(GypsumAddition=\"\",\"\",GypsumAddition)","v":""},null,{"$f":"IF(CalciumChlorideAddition=\"\",\"\",CalciumChlorideAddition)","v":1},null,null,null,{"$f":"IF(EpsomSaltAddition=\"\",\"\",EpsomSaltAddition)","v":2},null,null,{"$f":"IF(BakingSodaAddition=\"\",\"\",BakingSodaAddition)","v":""},null,null,null,null,{"$f":"IF(TableSaltAddition=\"\",\"\",TableSaltAddition)","v":""},null,{"$f":"IF(HydrochloricUsed=\"\",\"\",HydrochloricUsed)","v":""},null,null,null,null,null,null,null,null,{"$f":"IF(LacticUsed=\"\",\"\",LacticUsed)","v":""}]
[]
[null,"Recipe:",{"$f":"RecipeNamePG","v":0},null,null,"Brew Date:",null,null,{"$f":"BrewDate","v":"2009-01-15"},null,null,"Time:",null,{"$f":"WorkTime","v":9.25},null,"Cost:",null,null,null,{"$f":"TotalCost","v":0},null,"Primary Style:",null,null,null,null,null,null,null,{"$f":"StylePrimaryPG","v":"Primary Style Dropdown"},null,null,null,"Secondary Style:",null,null,{"$f":"StyleSecondaryPG","v":"Secondary Style Dropdown"}]
[]
[null,null,null,"Original Gravity",null,null,"Final Gravity",null,null,null,"Original Extract",null,null,null,"Final Extract",null,null,null,null,"IBU",null,"SRM",null,null,"% ABV",null,null,null,null,"Calories per 12 oz",null,"BU:GU",null,"BV","CO2 Volumes"]
[null,"Estimated Beer Properties:",null,{"$f":"GravityEstimatedOriginalPG","v":""},null,null,{"$f":"GravityEstimatedFinalPG","v":""},null,null,null,{"$f":"PlatoEstimatedOriginalPG","v":""},null,null,null,{"$f":"PlatoEstimatedFinalPG","v":""},null,null,null,null,{"$f":"TotalIBUPG","v":""},null,{"$f":"TargetSRMPG","v":6.3184704247668577},null,null,{"$f":"ABVEstimatedPG","v":""},null,null,null,null,{"$f":"IF(ABVEstimatedPG=\"\",\"\",IF(GravityEstimatedFinalPG=\"\",\"\",IF(PlatoEstimatedOriginalPG=\"\",\"\",IF(PlatoEstimatedFinalPG=\"\",\"\",((100*6.9*((0.79*ABVEstimatedPG)/GravityEstimatedFinalPG))+4*(((0.1808*PlatoEstimatedOriginalPG)+(0.8192*PlatoEstimatedFinalPG))-0.1))*GravityEstimatedFinalPG*3.55))))","v":""},null,{"$f":"BUGUEstimatedPG","v":""},null,{"$f":"BVEstimatedPG","v":""},{"$f":"CO2VolumesPG","v":0}]
[null,"Measured Beer Properties:"]
[]
[null,null,"Packaged Volume:",{"$f":"VolumeFinalPG","v":""},"Fermentation Volume:",null,null,null,null,{"$f":"VolumeFermentationPG","v":""},"Post Boil Volume:",null,null,null,{"$f":"VolumePostBoilPG","v":""},null,null,"Pre Boil Volume:",null,null,null,{"$f":"VolumePreBoilPG","v":""},null,null,null,null,null,null,null,null,null,null,{"$f":"YeastPreparation","v":"Stirplate Starter"},null,null,{"$f":"IF(AF47=\"\",\"\",AF47)","v":""},null,"mL Starter Needed"]
[null,null,"Measured:",null,null,null,null,null,null,null,null,null,null,null,null,null,null,null,null,null,null,null,null,null,null,null,null,null,null,null,null,null,{"$f":"IF(YeastStrain1PG=\"\",\"\",YeastStrain1PG)","v":""},null,null,{"$f":"IF(AL94=\"\",\"\",AL94)","v":""}]
[null,null,null,null,null,null,null,null,null,null,null,null,null,null,null,null,null,null,null,null,null,null,null,null,null,null,null,null,null,null,null,null,{"$f":"IF(YeastStrain1PG=\"\",\"\",D94)","v":""},{"$f":"IF(YeastStrain1PG=\"\",\"\",E94)","v":""},{"$f":"IF(YeastStrain1PG=\"\",\"\",YeastAttenuation1LPG)","v":""},{"$f":"IF(YeastStrain1PG=\"\",\"\",YeastAttenuation1HPG)","v":""},null,{"$f":"IF(YeastStrain1PG=\"\",\"\",I94)","v":""}]
[null,"Grains, Extract & Adjuncts",null,"Weight",null,"%","ºL","MCU",null,"Late?",null,null,"Hops",null,null,null,null,null,null,null,"AA%",null,"Ounces",null,null,null,null,null,"IBU",null,"Utilization",null,{"$f":"IF(YeastStrain2PG=\"\",\"\",YeastStrain2PG)","v":""},null,null,{"$f":"IF(AL95=\"\",\"\",AL95)","v":""}]
[null,{"$f":"IF(B81=\"\",\"\",B81)","v":""},null,{"$f":"IF(J81=\"\",\"\",J81)","v":""},null,{"$f":"IF(K81=\"\",\"\",K81)","v":""},{"$f":"IF(M81=\"\",\"\",M81)","v":""},{"$f":"IF(N81=\"\",\"\",N81)","v":""},null,{"$f":"IF(B81=\"\",\"\",U81)","v":""},null,{"$f":"IF(Y81=\"\",\"\",Y81)","v":""},null,null,null,null,null,null,null,null,{"$f":"IF(AG81=\"\",\"\",AG81)","v":""},null,{"$f":"IF(Y81=\"\",\"\",IF(HopsMeasurement=\"Ounces\",IF(AH81=\"\",\"\",AH81),IF(AH81=\"\",\"\",AK81)))","v":""},null,null,null,null,null,{"$f":"IF(Y81=\"\",\"\",IF(HopsMeasurement=\"Ounces\",IF(AH81=\"\",\"\",AK81),IF(AH81=\"\",\"\",AH81)))","v":""},null,{"$f":"IF(Y81=\"\",\"\",AM81)","v":""},null,{"$f":"IF(YeastStrain2PG=\"\",\"\",D95)","v":""},{"$f":"IF(YeastStrain2PG=\"\",\"\",E95)","v":""},{"$f":"IF(YeastStrain2PG=\"\",\"\",YeastAttenuation2LPG)","v":""},{"$f":"IF(YeastStrain2PG=\"\",\"\",YeastAttenuation2HPG)","v":""},null,{"$f":"IF(YeastStrain2PG=\"\",\"\",E95)","v":""}]
[null,{"$f":"IF(B82=\"\",\"\",B82)","v":""},null,{"$f":"IF(J82=\"\",\"\",J82)","v":""},null,{"$f":"IF(K82=\"\",\"\",K82)","v":""},{"$f":"IF(M82=\"\",\"\",M82)","v":""},"",null,{"$f":"IF(B82=\"\",\"\",U82)","v":""},null,{"$f":"IF(Y82=\"\",\"\",Y82)","v":""},null,null,null,null,null,null,null,null,{"$f":"IF(AG82=\"\",\"\",AG82)","v":""},null,"",null,null,null,null,null,"",null,{"$f":"IF(Y82=\"\",\"\",AM82)","v":""}]
[null,"",null,"",null,"","","",null,"",null,"",null,null,null,null,null,null,null,null,"",null,"",null,null,null,null,null,"",null,"",null,"Parti-gyle Fermenation",null,null,null,"Fermentation Schedule"]
[null,"",null,"",null,"","","",null,"",null,"",null,null,null,null,null,null,null,null,"",null,"",null,null,null,null,null,"",null,"",null,"Primary ",null,{"$f":"IF(DaysFermentationPG=\"\",\"\",DaysFermentationPG)","v":""},null,{"$f":"IF(DaysFermentation=\"\",\"\",DaysFermentation)","v":16},null,"Primary"]
[null,"",null,"",null,"","","",null,"",null,"",null,null,null,null,null,null,null,null,"",null,"",null,null,null,null,null,"",null,"",null,"Diacetyl Rest ",null,{"$f":"IF(DaysDiacetylRestPG=\"\",\"\",DaysDiacetylRestPG)","v":""},null,{"$f":"IF(DaysDiacetylRest=\"\",\"\",DaysDiacetylRest)","v":3},null,"Diacetyl Rest"]
[null,"",null,"",null,"","","",null,"",null,"",null,null,null,null,null,null,null,null,"",null,"",null,null,null,null,null,"",null,"",null,"Cold Crash ",null,{"$f":"IF(DaysColdCrashPG=\"\",\"\",DaysColdCrashPG)","v":""},null,{"$f":"IF(DaysColdCrash=\"\",\"\",DaysColdCrash)","v":2},null,"Cold Crash"]
[null,"",null,"",null,"","","",null,"",null,"",null,null,null,null,null,null,null,null,"",null,"",null,null,null,null,null,"",null,"",null,"Conditioning ",null,{"$f":"IF(DaysConditioningPG=\"\",\"\",DaysConditioningPG)","v":""},null,{"$f":"IF(DaysConditioning=\"\",\"\",DaysConditioning)","v":""},null,"Conditioning"]
[null,"",null,"",null,"","","",null,"",null,"",null,null,null,null,null,null,null,null,"",null,"",null,null,null,null,null,"",null,"",null,"Aging ",null,{"$f":"IF(DaysAgingPG=\"\",\"\",DaysAgingPG)","v":""},null,{"$f":"IF(DaysAging=\"\",\"\",DaysAging)","v":47},null,"Aging"]
[null,"",null,"",null,"","","",null,"",null,"",null,null,null,null,null,null,null,null,"",null,"",null,null,null,null,null,"",null,"",null,"Rest Date ",null,null,null,null,null,"Rest Date"]
[null,"",null,"",null,"","","",null,"",null,"",null,null,null,null,null,null,null,null,"",null,"",null,null,null,null,null,"",null,"",null,"Crash Date ",null,null,null,null,null,"Crash Date"]
[null,"Total Grain Weight: ",null,{"$f":"IF(TotalGrainWeightPG=\"\",\"\",TotalGrainWeightPG)","v":0},null,null,null,null,null,null,null,null,null,null,null,null,null,null,null,"Totals:",null,null,{"$f":"SUM(W166:AB175)","v":0},null,null,null,null,null,{"$f":"TotalIBUPG","v":""},null,null,null,"Transfer Date ",null,null,null,null,null,"Transfer Date"]
[null,null,null,null,null,null,null,null,null,null,null,null,null,null,null,null,null,null,null,null,null,null,null,null,null,null,null,null,null,null,null,null,"Transfer Date ",null,null,null,null,null,"Transfer Date"]
[null,null,null,null,null,null,null,null,null,null,null,null,null,null,null,null,null,null,null,null,null,null,null,null,null,null,null,null,null,null,null,null,"Packaging Date ",null,null,null,null,null,"Packaging"]

{"sheet":"Example Ale","index":1,"n_rows":178,"n_cols":47,"rows_kept":178,"cut":false,"hidden":false,"merged":[[3,29,3,31],[3,34,3,38],[4,1,4,2],[4,3,4,4],[4,5,4,6],[4,7,4,9],[4,10,4,11],[4,12,4,13],[4,14,4,17],[4,18,4,19],[1,29,1,38],[2,1,2,2],[2,3,2,4],[2,5,2,8],[2,10,2,11],[2,12,2,17],[2,18,2,23],[2,29,2,31],[2,34,2,38],[1,1,1,2],[1,3,1,4],[1,5,1,8],[1,10,1,11],[1,12,1,17],[1,18,1,23],[5,29,5,31],[5,34,5,38],[6,1,6,2],[6,3,6,4],[6,5,6,6],[6,7,6,9],[6,10,6,11],[6,12,6,13],[6,14,6,17],[6,18,6,19],[4,20,4,21],[4,22,4,27],[4,29,4,31],[4,34,4,38],[5,1,5,2],[5,7,5,8],[5,14,5,15],[5,16,5,17],[5,22,5,24],[5,25,5,27],[7,34,7,38],[8,1,8,2],[8,7,8,8],[8,14,8,15],[8,16,8,17],[8,22,8,24],[8,25,8,27],[8,29,8,31],[8,34,8,38],[7,12,7,13],[7,14,7,19],[7,20,7,21],[7,22,7,24],[7,25,7,27],[7,29,7,31],[6,20,6,21],[6,22,6,24],[6,25,6,27],[6,29,6,31],[6,34,6,38],[7,1,7,2],[7,3,7,4],[7,5,7,6],[7,7,7,9],[7,10,7,11],[11,24,11,27],[11,28,11,29],[11,32,11,33],[11,35,11,36],[11,37,11,38],[12,1,12,2],[12,3,12,4],[12,5,12,6],[12,8,12,12],[12,13,12,14],[11,1,11,2],[11,3,11,4],[11,5,11,6],[11,8,11,12],[11,13,11,14],[11,17,11,23],[10,1,10,2],[10,3,10,4],[10,5,10,6],[10,8,10,14],[10,17,10,30],[10,32,10,38],[13,24,13,27],[13,28,13,29],[13,32,13,33],[13,35,13,36],[13,37,13,38],[14,1,14,2],[14,3,14,4],[14,5,14,6],[14,8,14,12],[14,13,14,14],[13,1,13,2],[13,3,13,4],[13,5,13,6],[13,8,13,12],[13,13,13,14],[13,17,13,23],[12,17,12,23],[12,24,12,27],[12,28,12,29],[12,32,12,33],[12,35,12,36],[12,37,12,38],[15,24,15,27],[15,28,15,29],[15,32,15,33],[15,35,15,36],[15,37,15,38],[17,1,17,2],[17,3,17,5],[17,6,17,8],[17,10,17,11],[17,12,17,13],[15,1,15,2],[15,3,15,4],[15,5,15,6],[15,8,15,11],[15,13,15,14],[15,17,15,23],[14,17,14,23],[14,24,14,27],[14,28,14,29],[14,32,14,33],[14,35,14,36],[14,37,14,38],[18,24,18,31],[18,34,18,35],[18,36,18,37],[19,1,19,2],[19,3,19,5],[19,6,19,8],[19,10,19,11],[19,14,19,17],[19,20,19,21],[19,24,19,31],[18,1,18,2],[18,3,18,5],[18,6,18,8],[18,10,18,11],[18,14,18,17],[18,20,18,21],[17,14,17,17],[17,18,17,19],[17,20,17,21],[17,24,17,31],[17,34,17,35],[17,36,17,37],[20,36,20,37],[21,1,21,2],[21,3,21,5],[21,6,21,8],[21,10,21,11],[21,14,21,17],[21,20,21,21],[21,24,21,31],[21,34,21,35],[21,36,21,37],[19,34,19,35],[19,36,19,37],[20,1,20,2],[20,3,20,5],[20,6,20,8],[20,10,20,11],[20,14,20,17],[20,20,20,21],[20,24,20,31],[20,34,20,35],[23,36,23,37],[24,1,24,2],[24,3,24,5],[24,6,24,8],[24,10,24,11],[24,14,24,17],[24,20,24,21],[24,24,24,31],[24,34,24,35],[24,36,24,37],[22,24,22,31],[22,34,22,35],[22,36,22,37],[23,3,23,5],[23,6,23,8],[23,10,23,11],[23,14,23,17],[23,20,23,21],[23,24,23,31],[23,34,23,35],[22,1,22,2],[22,3,22,5],[22,6,22,8],[22,10,22,11],[22,14,22,17],[22,20,22,21],[26,24,26,31],[26,34,26,35],[26,36,26,37],[27,1,27,2],[27,3,27,5],[27,6,27,8],[27,10,27,11],[27,14,27,17],[27,20,27,21],[27,24,27,31],[26,1,26,2],[26,3,26,5],[26,6,26,8],[26,10,26,11],[26,14,26,17],[26,20,26,21],[24,40,24,41],[25,1,25,2],[25,3,25,5],[25,6,25,8],[25,10,25,11],[25,14,25,17],[25,20,25,21],[25,24,25,31],[25,34,25,35],[25,36,25,37],[31,1,31,2],[31,3,31,4],[31,5,31,7],[31,8,31,10],[31,11,31,36],[31,37,31,38],[28,36,28,37],[29,3,29,8],[29,10,29,11],[29,12,29,13],[29,14,29,17],[29,20,29,21],[29,24,29,29],[29,30,29,31],[29,34,29,35],[29,36,29,37],[27,34,27,35],[27,36,27,37],[28,1,28,2],[28,3,28,5],[28,6,28,8],[28,10,28,11],[28,14,28,17],[28,20,28,21],[28,24,28,31],[28,34,28,35],[34,31,34,33],[34,34,34,37],[34,40,34,41],[35,3,35,38],[37,1,37,38],[38,1,44,38],[34,3,34,5],[34,6,34,10],[34,11,34,18],[34,19,34,23],[34,24,34,27],[34,28,34,30],[32,1,32,2],[32,6,32,7],[32,8,32,10],[32,11,32,36],[32,37,32,38],[33,1,33,2],[33,6,33,7],[33,8,33,10],[33,11,33,36],[33,37,33,38],[47,33,47,38],[48,2,48,5],[48,6,48,8],[48,9,48,10],[48,11,48,12],[48,13,48,17],[48,18,48,19],[48,20,48,21],[48,22,48,30],[48,31,48,32],[46,1,46,38],[47,2,47,5],[47,6,47,8],[47,9,47,10],[47,11,47,12],[47,13,47,17],[47,18,47,19],[47,20,47,21],[47,22,47,30],[47,31,47,32],[49,31,49,32],[49,34,49,35],[49,36,49,37],[50,2,50,5],[50,6,50,8],[50,9,50,10],[50,11,50,12],[50,13,50,17],[50,18,50,19],[50,20,50,21],[48,34,48,35],[48,36,48,37],[49,2,49,5],[49,6,49,8],[49,9,49,10],[49,11,49,12],[49,13,49,17],[49,18,49,19],[49,20,49,21],[49,22,49,30],[51,20,51,21],[51,22,51,30],[51,31,51,32],[51,33,51,38],[51,40,51,41],[52,2,52,5],[52,6,52,8],[52,9,52,10],[52,11,52,12],[52,13,52,17],[50,22,50,30],[50,31,50,32],[50,34,50,35],[50,36,50,37],[51,2,51,5],[51,6,51,8],[51,9,51,10],[51,11,51,12],[51,13,51,17],[51,18,51,19],[53,18,53,19],[53,20,53,21],[53,22,53,30],[53,31,54,38],[54,2,54,5],[54,6,54,9],[54,11,54,19],[54,20,54,21],[54,22,54,30],[52,18,52,19],[52,20,52,21],[52,22,52,30],[52,31,52,32],[52,33,52,38],[53,2,53,5],[53,6,53,8],[53,9,53,10],[53,11,53,12],[53,13,53,17],[58,6,58,8],[58,9,58,10],[58,11,58,12],[58,13,58,17],[58,20,58,21],[58,22,58,33],[56,22,56,33],[57,2,57,5],[57,6,57,8],[57,9,57,10],[57,11,57,12],[57,13,57,17],[57,18,59,19],[57,20,57,21],[57,22,57,33],[58,2,58,5],[55,20,55,21],[55,22,55,33],[56,2,56,5],[56,6,56,8],[56,9,56,10],[56,11,56,12],[56,13,56,17],[56,18,56,19],[56,20,56,21],[55,2,55,5],[55,6,55,8],[55,9,55,10],[55,11,55,12],[55,13,55,17],[55,18,55,19],[71,1,71,38],[72,1,72,2],[72,3,72,4],[72,5,72,8],[72,9,72,10],[72,11,72,16],[72,17,72,18],[72,20,72,27],[72,28,72,31],[72,34,72,38],[59,22,59,29],[59,31,59,33],[60,1,60,38],[62,1,62,38],[63,1,69,38],[65,41,66,41],[69,41,70,41],[59,2,59,5],[59,6,59,8],[59,9,59,10],[59,11,59,12],[59,13,59,17],[59,20,59,21],[55,35,59,38],[74,40,74,41],[75,1,75,2],[75,7,75,8],[75,14,75,15],[75,16,75,17],[75,22,75,24],[75,25,75,27],[75,28,75,30],[75,31,75,32],[75,35,75,38],[74,18,74,19],[74,20,74,21],[74,22,74,27],[74,28,74,30],[74,31,74,32],[74,35,74,38],[73,20,73,27],[73,28,73,32],[73,35,73,38],[74,1,74,2],[74,3,74,4],[74,5,74,6],[74,7,74,9],[74,10,74,11],[74,12,74,13],[74,14,74,17],[73,1,73,2],[73,3,73,4],[73,5,73,8],[73,9,73,10],[73,11,73,16],[73,17,73,18],[77,22,77,24],[77,25,77,27],[77,28,77,30],[77,31,77,32],[77,35,77,38],[78,1,78,2],[78,7,78,8],[78,14,78,15],[78,16,78,17],[78,22,78,24],[76,31,76,32],[76,35,76,38],[77,1,77,2],[77,3,77,4],[77,5,77,6],[77,7,77,9],[77,10,77,11],[77,12,77,13],[77,14,77,19],[77,20,77,21],[76,14,76,17],[76,18,76,19],[76,20,76,21],[76,22,76,24],[76,25,76,27],[76,28,76,30],[76,1,76,2],[76,3,76,4],[76,5,76,6],[76,7,76,9],[76,10,76,11],[76,12,76,13],[79,18,79,19],[79,20,79,21],[79,24,79,31],[79,34,79,35],[79,36,79,37],[80,1,80,2],[80,3,80,5],[80,6,80,8],[80,10,80,11],[80,14,80,17],[78,25,78,27],[78,28,78,30],[78,31,78,32],[78,35,78,38],[79,1,79,2],[79,3,79,5],[79,6,79,8],[79,10,79,11],[79,12,79,13],[79,14,79,17],[81,24,81,31],[81,34,81,35],[81,36,81,37],[82,1,82,2],[82,3,82,5],[82,6,82,8],[82,10,82,11],[82,14,82,17],[82,20,82,21],[82,24,82,31],[80,20,80,21],[80,24,80,31],[80,34,80,35],[80,36,80,37],[81,1,81,2],[81,3,81,5],[81,6,81,8],[81,10,81,11],[81,14,81,17],[81,20,81,21],[83,36,83,37],[84,1,84,2],[84,3,84,5],[84,6,84,8],[84,10,84,11],[84,14,84,17],[84,20,84,21],[84,24,84,31],[84,34,84,35],[84,36,84,37],[82,34,82,35],[82,36,82,37],[83,1,83,2],[83,3,83,5],[83,6,83,8],[83,10,83,11],[83,14,83,17],[83,20,83,21],[83,24,83,31],[83,34,83,35],[86,34,86,35],[86,36,86,37],[87,1,87,2],[87,3,87,5],[87,6,87,8],[87,10,87,11],[87,14,87,17],[87,20,87,21],[87,24,87,31],[87,34,87,35],[85,24,85,31],[85,34,85,35],[85,36,85,37],[86,1,86,2],[86,3,86,5],[86,6,86,8],[86,10,86,11],[86,14,86,17],[86,20,86,21],[86,24,86,31],[85,1,85,2],[85,3,85,5],[85,6,85,8],[85,10,85,11],[85,14,85,17],[85,20,85,21],[89,24,89,31],[89,34,89,35],[89,36,89,37],[90,1,90,2],[90,3,90,5],[90,6,90,8],[90,10,90,11],[90,14,90,17],[90,20,90,21],[90,24,90,31],[89,1,89,2],[89,3,89,5],[89,6,89,8],[89,10,89,11],[89,14,89,17],[89,20,89,21],[87,36,87,37],[88,1,88,2],[88,3,88,5],[88,6,88,8],[88,10,88,11],[88,14,88,17],[88,20,88,21],[88,24,88,31],[88,34,88,35],[88,36,88,37],[91,34,91,35],[91,36,91,37],[92,1,92,2],[92,3,92,4],[92,5,92,7],[92,8,92,10],[92,11,92,36],[92,37,92,38],[90,34,90,35],[90,36,90,37],[91,3,91,5],[91,6,91,8],[91,10,91,11],[91,12,91,13],[91,14,91,17],[91,20,91,21],[91,24,91,29],[91,30,91,31],[95,31,95,33],[95,34,95,37],[96,3,96,38],[97,29,97,32],[97,34,97,37],[98,1,98,38],[95,3,95,5],[95,6,95,10],[95,11,95,18],[95,19,95,23],[95,24,95,27],[95,28,95,30],[93,1,93,2],[93,6,93,7],[93,8,93,10],[93,11,93,36],[93,37,93,38],[94,1,94,2],[94,6,94,7],[94,8,94,10],[94,11,94,36],[94,37,94,38],[125,29,125,32],[125,33,125,35],[125,36,125,38],[127,3,127,5],[127,6,127,9],[127,10,127,13],[127,14,127,18],[127,19,127,20],[127,21,127,23],[127,24,127,28],[99,1,105,38],[124,1,124,38],[125,2,125,4],[125,5,125,7],[125,8,125,10],[125,11,125,12],[125,13,125,14],[125,15,125,18],[125,19,125,20],[125,21,125,28],[128,24,128,28],[128,29,128,30],[128,31,128,32],[128,34,128,37],[129,1,129,2],[129,3,129,5],[129,6,129,9],[129,10,129,13],[129,14,129,18],[129,19,129,20],[127,29,127,30],[127,31,127,32],[127,34,127,37],[128,1,128,2],[128,3,128,5],[128,6,128,9],[128,10,128,13],[128,14,128,18],[128,19,128,20],[128,21,128,23],[131,32,131,33],[131,35,131,36],[131,37,131,38],[132,21,132,22],[132,32,132,38],[133,32,133,33],[133,35,133,36],[129,21,129,23],[129,24,129,28],[129,29,129,30],[129,31,129,32],[129,34,129,37],[131,4,131,8],[131,10,131,13],[131,14,131,16],[131,17,131,20],[131,21,131,23],[135,32,135,33],[135,35,135,36],[136,1,136,2],[136,3,136,4],[136,7,136,8],[136,11,136,19],[136,20,136,21],[136,22,136,27],[136,28,136,29],[136,32,136,38],[134,28,134,29],[134,32,134,33],[134,35,134,36],[135,1,135,2],[135,3,135,4],[135,7,135,8],[135,11,135,19],[135,20,135,21],[135,22,135,27],[135,28,135,29],[134,1,134,2],[134,3,134,4],[134,7,134,8],[134,12,134,19],[134,20,134,21],[134,22,134,27],[138,32,138,34],[138,35,138,36],[139,1,139,2],[139,3,139,4],[139,7,139,8],[139,11,139,19],[139,20,139,21],[139,22,139,27],[139,28,139,29],[139,32,139,34],[137,28,137,29],[137,32,137,34],[137,35,137,36],[138,1,138,2],[138,3,138,4],[138,7,138,8],[138,11,138,19],[138,20,138,21],[138,22,138,27],[138,28,138,29],[137,1,137,2],[137,3,137,4],[137,7,137,8],[137,11,137,19],[137,20,137,21],[137,22,137,27],[141,28,141,29],[141,32,141,34],[141,35,141,36],[142,1,142,2],[142,3,142,4],[142,7,142,8],[142,11,142,19],[142,20,142,21],[142,22,142,27],[142,28,142,29],[141,1,141,2],[141,3,141,4],[141,7,141,8],[141,11,141,19],[141,20,141,21],[141,22,141,27],[139,35,139,36],[140,1,140,2],[140,3,140,4],[140,7,140,8],[140,11,140,19],[140,20,140,21],[140,22,140,27],[140,28,140,29],[140,32,140,34],[140,35,140,36],[145,1,145,2],[145,19,145,21],[145,22,145,27],[145,28,145,29],[145,32,145,33],[145,35,145,37],[143,35,143,36],[144,1,144,2],[144,3,144,4],[144,7,144,8],[144,11,144,19],[144,20,144,21],[144,22,144,27],[144,28,144,29],[144,32,144,38],[142,32,142,34],[142,35,142,36],[143,1,143,2],[143,3,143,4],[143,7,143,8],[143,11,143,19],[143,20,143,21],[143,22,143,27],[143,28,143,29],[143,32,143,34],[147,29,147,30],[148,1,148,2],[148,3,148,4],[148,5,148,6],[148,7,148,9],[148,10,148,11],[148,12,148,13],[148,14,148,19],[148,20,148,28],[148,29,148,30],[146,32,146,33],[146,35,146,37],[147,1,147,2],[147,3,147,4],[147,5,147,6],[147,7,147,9],[147,10,147,11],[147,12,147,13],[147,14,147,19],[147,20,147,28],[149,20,149,28],[149,29,149,30],[149,32,149,34],[149,35,149,38],[150,1,150,2],[150,3,150,4],[150,5,150,6],[150,7,150,9],[150,10,150,11],[150,12,150,13],[148,32,148,34],[148,35,148,36],[148,37,148,38],[149,1,149,2],[149,3,149,4],[149,5,149,6],[149,7,149,9],[149,10,149,11],[149,12,149,13],[149,14,149,19],[152,29,152,30],[152,35,152,36],[152,37,152,38],[153,4,153,5],[153,6,153,9],[153,10,153,12],[153,13,153,17],[153,18,153,19],[153,20,153,28],[153,29,153,30],[152,4,152,5],[152,6,152,9],[152,10,152,12],[152,13,152,17],[152,18,152,19],[152,20,152,28],[150,14,150,19],[150,20,150,28],[150,29,150,30],[150,35,150,36],[150,37,150,38],[151,32,151,34],[151,35,151,38],[158,19,158,20],[158,21,158,23],[158,24,158,28],[158,29,158,30],[158,31,158,32],[158,34,158,37],[157,21,157,23],[157,24,157,28],[157,29,157,30],[157,31,157,32],[157,34,157,37],[158,1,158,2],[158,3,158,5],[158,6,158,9],[158,10,158,13],[158,14,158,18],[155,19,155,20],[155,21,155,28],[155,29,155,32],[155,33,155,35],[155,36,155,38],[157,3,157,5],[157,6,157,9],[157,10,157,13],[157,14,157,18],[157,19,157,20],[155,2,155,4],[155,5,155,7],[155,8,155,10],[155,11,155,12],[155,13,155,14],[155,15,155,18],[163,35,163,36],[163,37,163,38],[164,1,164,2],[164,3,164,4],[164,7,164,8],[164,12,164,19],[164,20,164,21],[164,22,164,27],[164,28,164,29],[164,32,164,34],[161,32,161,34],[161,35,161,36],[161,37,161,38],[162,21,162,22],[162,32,162,34],[162,35,162,38],[159,21,159,23],[159,24,159,28],[159,29,159,30],[159,31,159,32],[159,34,159,37],[161,4,161,8],[161,10,161,13],[161,14,161,16],[161,17,161,20],[161,21,161,23],[159,1,159,2],[159,3,159,5],[159,6,159,9],[159,10,159,13],[159,14,159,18],[159,19,159,20],[166,28,166,29],[167,1,167,2],[167,3,167,4],[167,7,167,8],[167,11,167,19],[167,20,167,21],[167,22,167,27],[167,28,167,29],[166,1,166,2],[166,3,166,4],[166,7,166,8],[166,11,166,19],[166,20,166,21],[166,22,166,27],[164,35,164,38],[165,1,165,2],[165,3,165,4],[165,7,165,8],[165,11,165,19],[165,20,165,21],[165,22,165,27],[165,28,165,29],[165,35,165,36],[165,37,165,38],[168,34,168,35],[168,36,168,37],[169,1,169,2],[169,3,169,4],[169,7,169,8],[169,11,169,19],[169,20,169,21],[169,22,169,27],[169,28,169,29],[169,32,169,33],[167,32,167,35],[167,36,167,38],[168,1,168,2],[168,3,168,4],[168,7,168,8],[168,11,168,19],[168,20,168,21],[168,22,168,27],[168,28,168,29],[168,32,168,33],[170,34,170,35],[170,36,170,37],[171,1,171,2],[171,3,171,4],[171,7,171,8],[171,11,171,19],[171,20,171,21],[171,22,171,27],[171,28,171,29],[171,32,171,33],[169,34,169,35],[169,36,169,37],[170,1,170,2],[170,3,170,4],[170,7,170,8],[170,11,170,19],[170,20,170,21],[170,22,170,27],[170,28,170,29],[170,32,170,33],[172,34,172,35],[172,36,172,37],[173,1,173,2],[173,3,173,4],[173,7,173,8],[173,11,173,19],[173,20,173,21],[173,22,173,27],[173,28,173,29],[173,32,173,33],[171,34,171,35],[171,36,171,37],[172,1,172,2],[172,3,172,4],[172,7,172,8],[172,11,172,19],[172,20,172,21],[172,22,172,27],[172,28,172,29],[172,32,172,33],[176,32,176,33]],"merged_total":1024,"flags":["merged_cut"]}
[]
[null,"Recipe",null,"Brew Date",null,"Assistant",null,null,null,"Time","Cost",null,"Fermenter Clear",null,null,null,null,null,"Drink Date",null,null,null,null,null,null,null,null,null,null,"Batch Size, Volumes, Losses & Infusions/Decotions"]
[" ","Example Ale",null,"2009-03-25",null,"goose",null,null,null,{"$f":"(SUM(TIME)+TimeMashStep1+TimeMashStep2+TimeMashStep3+TimeBoil)/60","v":8.25},{"$f":"CostGrains+CostHops+CostYeast+CostGrainsPG+CostHopsPG+CostYeastPG","v":0},null,{"$f":"IF(BrewDate=\"\",\"\",IF(SUM(FERMENTER_DAYS)=0,\"\",BrewDate+SUM(FERMENTER_DAYS)))","v":"2009-04-06"},null,null,null,null,null,{"$f":"IF(BrewDate=\"\",\"\",IF(SUM(FERMENTATION_DAYS)=0,\"\",BrewDate+SUM(FERMENTATION_DAYS)+1))","v":"2009-04-20"},null,null,null,null,null,null,null,null,null,null,"Packaged Beer Volume ",null,null,5,0.25," Fermenter Transfer & Trub Losses"]
[null,null,null,null,null,null,null,null,null,null,null,null,null,null,null,null,null,null,null,null,null,null,null,null,null,null,null,null,null,"Fermentation Volume ",null,null,{"$f":"IF(VolumeFinal=\"\",\"\",IF(TrubLoss=\"\",\"\",VolumeFinal+TrubLoss))","v":5.25},0.125," Transfer Losses from Kettle"]
[" ","Style & Beer Properties",null,"OG",null,"FG",null,"OG ºP",null,null,"FG ºP",null,"ABV%",null,"IBU",null,null,null,"ºSRM",null,"CO2",null,"BUGU/BV",null,null,null,null,null,null,"Post Boil Volume ",null,null,{"$f":"IF(VolumeFermentation=\"\",\"\",IF(KettleTransferLosses=\"\",\"\",VolumeFermentation+KettleTransferLosses+HopsAbsorption+KettleDeadSpace))","v":5.9765625},{"$f":"IF(VolumePostBoil=\"\",\"\",IF(BoilOffRate=\"\",\"\",IF(TimeBoil=\"\",\"\",IF(ContractionLoss=\"\",\"\",VolumePostBoil+(TimeBoil*BoilOffRate)+ContractionLoss))))","v":7.1156250000000005}," Pre Boil Volume"]
[null,"Extra Special/Strong Bitter",null,{"$f":"VLOOKUP(StylePrimary,STYLE_ATTRIBUTES,3,0)","v":1.048},{"$f":"VLOOKUP(StylePrimary,STYLE_ATTRIBUTES,4,0)","v":1.06},{"$f":"VLOOKUP(StylePrimary,STYLE_ATTRIBUTES,5,0)","v":1.01},{"$f":"VLOOKUP(StylePrimary,STYLE_ATTRIBUTES,6,0)","v":1.016},{"$f":"VLOOKUP(StylePrimary,STYLE_ATTRIBUTES,7,0)","v":11.9},null,{"$f":"VLOOKUP(StylePrimary,STYLE_ATTRIBUTES,8,0)","v":14.7},{"$f":"VLOOKUP(StylePrimary,STYLE_ATTRIBUTES,9,0)","v":2.6},{"$f":"VLOOKUP(StylePrimary,STYLE_ATTRIBUTES,10,0)","v":4.0999999999999996},{"$f":"VLOOKUP(StylePrimary,STYLE_ATTRIBUTES,11,0)","v":4.5999999999999996},{"$f":"VLOOKUP(StylePrimary,STYLE_ATTRIBUTES,12,0)","v":6.2},{"$f":"VLOOKUP(StylePrimary,STYLE_ATTRIBUTES,13,0)","v":30},null,{"$f":"VLOOKUP(StylePrimary,STYLE_ATTRIBUTES,14,0)","v":"50"},null,{"$f":"VLOOKUP(StylePrimary,STYLE_ATTRIBUTES,15,0)","v":"6"},{"$f":"VLOOKUP(StylePrimary,STYLE_ATTRIBUTES,16,0)","v":"18"},{"$f":"VLOOKUP(StylePrimary,STYLE_ATTRIBUTES,17,0)","v":"1.5"},{"$f":"VLOOKUP(StylePrimary,STYLE_ATTRIBUTES,18,0)","v":2.4},{"$f":"VLOOKUP(StylePrimary,STYLE_ATTRIBUTES,19,0)","v":0.74074074074074003},null,null,{"$f":"VLOOKUP(StylePrimary,STYLE_ATTRIBUTES,23,0)","v":1.5701668302257172},null,null,null,{"$f":"IF(MashType=\"Infusion Mash\",\"Unused Space \",IF(MashType=\"Decoction Mash\",\"Decoction Volume 3 \",\"No Infusion/Decoction\"))","v":"Unused Space "},null,null,{"$f":"IF(MashType=\"Decoction Mash\",TotalMashVolumePlusGrains*(MashOutTemp-IF(MashSteps<2,TempMashStep1,IF(MashSteps<3,TempMashStep2,TempMashStep3)))/(TempStrikeWater2-IF(MashSteps<2,TempMashStep1,IF(MashSteps<3,TempMashStep2,TempMashStep3))),\"-\")","v":"-"},{"$f":"IF(f3Runnings=\"No\",\"-\",IF(VolumePreBoil=\"\",\"\",IF((IF(fPartigyle=\"No\",VolumePreBoil,VolumePreBoil+VolumePreBoilPG)-VolumeMashTotal-IF(MashType=\"Infusion Mash\",VolumeMashOut,0)+GrainAbsorption)/2>0,(IF(fPartigyle=\"No\",VolumePreBoil,VolumePreBoil+VolumePreBoilPG)-VolumeMashTotal-IF(MashType=\"Infusion Mash\",VolumeMashOut,0)+GrainAbsorption)/2,0)))","v":"-"}," Sparge Water 2 Volume"]
[null,"Estimated",null,{"$f":"IF(GravityUnitsAdjusted=\"\",\"\",IF(VolumePostBoil=\"\",\"\",IF(GravityUnitsAdjusted=0,\"\",((GravityUnitsAdjusted/VolumePostBoil)+1000)/1000)))","v":1.0457070619607844},null,{"$f":"IF(GravityEstimatedOriginal=\"\",\"\",IF(YeastStrain2=\"\",IF(YeastStrain1=\"\",\"\",((GravityEstimatedOriginal*1000-1000)*(((100-(YeastAttenuation1L+YeastAttenuation1H)*50)/100))+1000)/1000),IF(YeastStrain1=\"\",((GravityEstimatedOriginal*1000-1000)*(((100-(YeastAttenuation2L+YeastAttenuation2H)*50)/100))+1000)/1000,IF(YeastAttenuation2L+YeastAttenuation2H>YeastAttenuation1L+YeastAttenuation1H,((GravityEstimatedOriginal*1000-1000)*(((100-(YeastAttenuation2L+YeastAttenuation2H)*50)/100))+1000)/1000,((GravityEstimatedOriginal*1000-1000)*(((100-(YeastAttenuation1L+YeastAttenuation1H)*50)/100))+1000)/1000))))","v":1.0153118657568627},null,{"$f":"IF(GravityEstimatedOriginal=\"\",\"\",(668.72*GravityEstimatedOriginal)-463.37-(205.347*GravityEstimatedOriginal^2))","v":11.367612659287516},null,null,{"$f":"IF(GravityEstimatedFinal=\"\",\"\",(668.72*GravityEstimatedFinal)-463.37-(205.347*GravityEstimatedFinal^2))","v":3.9057152057524434},null,{"$f":"IF(GravityEstimatedFinal=\"\",\"\",IF(GravityEstimatedOriginal=\"\",\"\",(GravityEstimatedOriginal-GravityEstimatedFinal)/0.806))","v":3.7711161543327203E-2},null,{"$f":"IF(HopsMeasurement=\"Ounces\",SumIBUorOunces,SumOuncesorIBU)","v":41.063945514836959},null,null,null,{"$f":"IF(FinalMCU=\"\",\"\",IF(FinalMCU=0,\"\",1.4922*(FinalMCU^0.6859)))","v":11.052851706310605},null,{"$f":"IF(CO2Volumes=\"\",\"\",CO2Volumes)","v":1.7},null,{"$f":"IF(TotalIBU=\"\",\"\",IF(GravityEstimatedOriginal=\"\",\"\",TotalIBU/((GravityEstimatedOriginal-1)*1000)))","v":0.89841577544557194},null,null,{"$f":"IF(TotalIBU=\"\",\"\",IF(GravityEstimatedFinal=\"\",\"\",IF(GravityEstimatedOriginal=\"\",\"\",0.8*TotalIBU/((820*(GravityEstimatedFinal-1))+(180*(GravityEstimatedOriginal-1))))))","v":1.5806743355101376},null,null,null,{"$f":"IF(MashType=\"Infusion Mash\",\"Strike Water 3 Volume \",IF(MashType=\"Decoction Mash\",\"Decoction Volume 2 \",\"No Infusion/Decoction\"))","v":"Strike Water 3 Volume "},null,null,{"$f":"IF(MashType=\"Infusion Mash\",IF(MashSteps<3,\"-\",IF(TempMashStep3=\"\",\"\",IF(TempMashStep2=\"\",\"\",IF(MashThickness=\"\",\"\",IF(TotalGrainWeight=\"\",\"\",IF(TempStrikeWater2=\"\",\"\",0.25*(TempMashStep3-TempMashStep2)*(0.2*TotalGrainWeight+(MashThickness*TotalGrainWeight))/(TempStrikeWater2-TempMashStep3))))))),IF(MashType=\"Decoction Mash\",IF(MashSteps>2,TotalMashVolumePlusGrains*(TempMashStep3-TempMashStep2)/(TempStrikeWater2-TempMashStep2),0),\"-\"))","v":"-"},{"$f":"IF(VolumePreBoil=\"\",\"\",IF(IF(f3Runnings=\"No\",IF(fPartigyle=\"No\",VolumePreBoil,VolumePreBoil+VolumePreBoilPG)-VolumeMashTotal-IF(MashType=\"Infusion Mash\",VolumeMashOut,0)+GrainAbsorption,(IF(fPartigyle=\"No\",VolumePreBoil,VolumePreBoil+VolumePreBoilPG)-VolumeMashTotal-IF(MashType=\"Infusion Mash\",VolumeMashOut,0)+GrainAbsorption)/2)>0,IF(f3Runnings=\"No\",IF(fPartigyle=\"No\",VolumePreBoil,VolumePreBoil+VolumePreBoilPG)-VolumeMashTotal-IF(MashType=\"Infusion Mash\",VolumeMashOut,0)+GrainAbsorption,(IF(fPartigyle=\"No\",VolumePreBoil,VolumePreBoil+VolumePreBoilPG)-VolumeMashTotal-IF(MashType=\"Infusion Mash\",VolumeMashOut,0)+GrainAbsorption)/2),0))","v":3.4328125000000003}," Sparge Water 1 Volume"]
[null,"Measured",null,null,null,null,null,{"$f":"IF(GravityMeasuredOriginal=\"\",\"\",(668.72*GravityMeasuredOriginal)-463.37-(205.347*GravityMeasuredOriginal^2))","v":""},null,null,{"$f":"IF(GravityMeasuredFinal=\"\",\"\",(668.72*GravityMeasuredFinal)-463.37-(205.347*GravityMeasuredFinal^2))","v":""},null,{"$f":"IF(GravityMeasuredOriginal=\"\",\"\",IF(GravityMeasuredFinal=\"\",\"\",(GravityMeasuredOriginal-GravityMeasuredFinal)/0.806))","v":""},null," Calories per 12oz:",null,null,null,null,null,{"$f":"IF(ABV=\"\",\"\",IF(GravityMeasuredFinal=\"\",\"\",IF(PlatoMeasuredOriginal=\"\",\"\",IF(PlatoMeasuredFinal=\"\",\"\",((100*6.9*((0.79*ABV)/GravityMeasuredFinal))+4*(((0.1808*PlatoMeasuredOriginal)+(0.8192*PlatoMeasuredFinal))-0.1))*GravityMeasuredFinal*3.55))))","v":""},null,{"$f":"IF(TotalIBU=\"\",\"\",IF(GravityMeasuredOriginal=\"\",\"\",TotalIBU/((GravityMeasuredOriginal-1)*1000)))","v":""},null,null,{"$f":"IF(TotalIBU=\"\",\"\",IF(GravityMeasuredFinal=\"\",\"\",IF(GravityMeasuredOriginal=\"\",\"\",0.8*TotalIBU/((820*(GravityMeasuredFinal-1))+(180*(GravityMeasuredOriginal-1))))))","v":""},null,null,null,{"$f":"IF(MashType=\"Infusion Mash\",\"Strike Water 2 Volume \",IF(MashType=\"Decoction Mash\",\"Decoction Volume 1 \",\"No Infusion/Decoction\"))","v":"Strike Water 2 Volume "},null,null,{"$f":"IF(MashType=\"Infusion Mash\",IF(MashSteps<2,\"-\",IF(TempMashStep2=\"\",\"\",IF(TempMashStep1=\"\",\"\",IF(MashThickness=\"\",\"\",IF(TotalGrainWeight=\"\",\"\",IF(TempStrikeWater2=\"\",\"\",0.25*(TempMashStep2-TempMashStep1)*(0.2*TotalGrainWeight+(MashThickness*TotalGrainWeight))/(TempStrikeWater2-TempMashStep2))))))),IF(MashType=\"Decoction Mash\",IF(MashSteps>1,TotalMashVolumePlusGrains*(TempMashStep2-TempMashStep1)/(TempStrikeWater2-TempMashStep1),0),\"-\"))","v":"-"},{"$f":"IF(VolumeMashTotal=\"\",\"\",IF(VolumePreBoil=\"\",\"\",IF(GrainAbsorption=\"\",\"\",IF(VolumeStrikeWater1=\"\",\"\",IF(LauterTunDeadSpace=\"\",\"\",IF(IF(f3Runnings=\"No\",IF(fPartigyle=\"No\",VolumePreBoil,VolumePreBoil+VolumePreBoilPG)/2-VolumeMashTotal+GrainAbsorption+LauterTunDeadSpace,IF(fPartigyle=\"No\",VolumePreBoil,VolumePreBoil+VolumePreBoilPG)/3-VolumeMashTotal+GrainAbsorption+LauterTunDeadSpace)>0,IF(f3Runnings=\"No\",IF(fPartigyle=\"No\",VolumePreBoil,VolumePreBoil+VolumePreBoilPG)/2-VolumeMashTotal+GrainAbsorption+LauterTunDeadSpace,IF(fPartigyle=\"No\",VolumePreBoil,VolumePreBoil+VolumePreBoilPG)/3-VolumeMashTotal+GrainAbsorption+LauterTunDeadSpace),0))))))","v":2.9515625000000001}," Mash Out Volume"]
[null,"Extra Special Bitter",null,{"$f":"VLOOKUP(StyleSecondary,STYLE_ATTRIBUTES,3,0)","v":1.046},{"$f":"VLOOKUP(StyleSecondary,STYLE_ATTRIBUTES,4,0)","v":1.06},{"$f":"VLOOKUP(StyleSecondary,STYLE_ATTRIBUTES,5,0)","v":1.01},{"$f":"VLOOKUP(StyleSecondary,STYLE_ATTRIBUTES,6,0)","v":1.016},{"$f":"VLOOKUP(StyleSecondary,STYLE_ATTRIBUTES,7,0)","v":11.5},null,{"$f":"VLOOKUP(StyleSecondary,STYLE_ATTRIBUTES,8,0)","v":15},{"$f":"VLOOKUP(StyleSecondary,STYLE_ATTRIBUTES,9,0)","v":2.5},{"$f":"VLOOKUP(StyleSecondary,STYLE_ATTRIBUTES,10,0)","v":4},{"$f":"VLOOKUP(StyleSecondary,STYLE_ATTRIBUTES,11,0)","v":4.8},{"$f":"VLOOKUP(StyleSecondary,STYLE_ATTRIBUTES,12,0)","v":5.8},{"$f":"VLOOKUP(StyleSecondary,STYLE_ATTRIBUTES,13,0)","v":30},null,{"$f":"VLOOKUP(StyleSecondary,STYLE_ATTRIBUTES,14,0)","v":45},null,{"$f":"VLOOKUP(StyleSecondary,STYLE_ATTRIBUTES,15,0)","v":8},{"$f":"VLOOKUP(StyleSecondary,STYLE_ATTRIBUTES,16,0)","v":14},{"$f":"VLOOKUP(StyleSecondary,STYLE_ATTRIBUTES,17,0)","v":0},{"$f":"VLOOKUP(StyleSecondary,STYLE_ATTRIBUTES,18,0)","v":0},{"$f":"VLOOKUP(StyleSecondary,STYLE_ATTRIBUTES,19,0)","v":0.7075471698113216},null,null,{"$f":"VLOOKUP(StyleSecondary,STYLE_ATTRIBUTES,23,0)","v":1.485148514851492},null,null,null,"Strike Water 1 Volume ",null,null,{"$f":"IF(TotalGrainWeight=\"\",\"\",IF(MashThickness=\"\",\"\",TotalGrainWeight*MashThickness/4))","v":2.6812500000000004},{"$f":"IF(TempInfusionFactor=\"\",\"\",IF(MashThickness=\"\",\"\",IF(TempMashStep1=\"\",\"\",IF(TempGrain=\"\",\"\",(TempInfusionFactor/MashThickness)*(TempMashStep1-TempGrain)+TempMashStep1+MashTunTempLoss))))","v":171.90909090909091}," Strike Water Temperature ºF"]
[]
[null,"Fermentation Schedule",null,"Temp ºF",null,"Days",null,null,"Carbonation",null,null,null,null,null,null,null,null,"Measurements: Efficiency, Temp & Volume",null,null,null,null,null,null,null,null,null,null,null,null,null,null,"Mash Effeciency, pH, Temperatures & Timing"]
[null,"Primary Fermentation",null,65,null,10,null,null,"CO2 Volumes ",null,null,null,null,1.7,null,null,null,"Total Runoff Volume ",null,null,null,null,null,null,null,null,null,null,null,null,"Mash Temp 1 ºF",null,"Mash Step Time 1 ",null,60,152,null,"Step Temperature ºF"]
[null,"Diacetyl Rest",null,null,null,null,null,null,"Serving Temp ºF ",null,null,null,null,39,null,null,null,"Total Runoff Gravity ",null,null,null,null,null,null,null,null,null,null,null,null,"Mash Temp 2 ºF",null,"Mash Step Time 2 ",null,null,null,null,"Step Temperature ºF"]
[null,"Cold Crash",null,45,null,2,null,null,"Beer Temperature ºF ",null,null,null,null,{"$f":"MAX(D12:E16)","v":65},null,null,null,"Mash Efficiency ",null,null,null,null,null,null,{"$f":"IF(GravityUnits=0,\"\",IF(VolumeRunoffMeasured=\"\",\"\",IF(GravityRunoffMeasured=\"\",\"\",(GravityRunoffMeasured-1)*1000*VolumeRunoffMeasured/GravityUnits)))","v":""},null,null,null,null,null,"Mash Temp 3 ºF",null,"Mash Step Time 3 ",null,null,null,null,"Step Temperature ºF"]
[null,"Secondary Conditioning",null,null,null,null,null,null,"Priming Sugar ",null,null,null,null,{"$f":"IF(PrimingSugar=\"Priming Sugar \",\"grams\",IF(VolumeFinal=\"\",\"\",IF(CO2Volumes=\"\",\"\",IF(VLOOKUP(PrimingSugar,[1]Grains!A175:J187,10,0)=\"glucose\",VolumeFinal*3.785*(CO2Volumes-VLOOKUP((BeerTemperature-32)*5/9,RESIDUAL_CO2,2,TRUE))/0.27027,VolumeFinal*3.785*(CO2Volumes-VLOOKUP((BeerTemperature-32)*5/9,RESIDUAL_CO2,2,TRUE))/0.286))))","v":"grams"},null,null,null,"Fermenter Volume ",null,null,null,null,null,null,null,null,null,null,null,null,"Kettle Volume",null,"Mash Efficiency ",null,0.75,{"$f":"IF(TotalGrainWeight=\"\",\"\",IF(MashThickness=\"\",\"\",IF(MashType=\"Infusion Mash\",IF(MashSteps<2,TotalGrainWeight*(0.08+MashThickness/4),IF(MashSteps<3,IF(MashThickness2=\"\",\"\",TotalGrainWeight*(0.08+MashThickness2/4)),IF(MashThickness3=\"\",\"\",TotalGrainWeight*(0.08+MashThickness3/4)))),TotalGrainWeight*(0.08+MashThickness/4))))","v":3.4612500000000002},null,"Tun Space Required"]
[null,"Aging (includes carbonating)",null,39,null,13,null,null,"%CO2 of Beer Gas ",null,null,null,1,{"$f":"IF(TempServing=\"\",\"PSI\",IF(CO2Volumes=\"\",\"PSI\",IF(BeerGasPercentage=\"\",-16.6999-0.0101059*TempServing+0.00116512*TempServing^2+0.173354*TempServing*CO2Volumes+4.24267*CO2Volumes-0.0684226*CO2Volumes^2,(-16.6999-0.0101059*TempServing+0.00116512*TempServing^2+0.173354*TempServing*CO2Volumes+4.24267*CO2Volumes-0.0684226*CO2Volumes^2)/BeerGasPercentage)))","v":3.1862853060000011},null,null,null,"Brewhouse Efficiency ",null,null,null,null,null,null,{"$f":"IF(VolumeBeerFinalMeasured=\"\",\"\",IF(GravityUnits=0,\"\",IF(GravityMeasuredOriginal=\"\",\"\",(GravityMeasuredOriginal-1)*1000*VolumeBeerFinalMeasured/GravityUnits)))","v":""},null,null,null,null,null,"Final Beer Volume",null,"Boil Time ",null,60,null,null,"Measured Mash pH"]
[]
[null,"Malt, Extract & Adjuncts",null,"Maltster",null,null,"Origin",null,null,"Pounds","%Weight",null,"ºL / MCU",null,"Potential",null,null,null,"GU (Adj.)",null,"Late?",null,null,null,"Hops",null,null,null,null,null,null,null,"% AA","Ounces"," Time",null,{"$f":"IF(HopsMeasurement=\"Ounces\",\"IBU\",\"Ounces\")","v":"IBU"},null,"Utilization",null,null,null,null,"AGUPG","MCUMash","MCUPG1","AWGUPG"]
[null,"Marris Otter (Crisp)",null,{"$f":"IF(B19=\"\",\" \",VLOOKUP(B19,GRAINS_ATTRIBUTES,2,0))","v":"Crisp"},null,null,{"$f":"IF(B19=\"\",\" \",VLOOKUP(B19,GRAINS_ATTRIBUTES,3,0))","v":"UK"},null,null,8,{"$f":"IF(B19=\"\",\"\",IF(J19=\"\",\"\",IF(TotalGrainWeight=0,\"\",IF(U19=\"Mash\",J19/TotalGrainWeight,\"--\"))))","v":0.82051282051282048},null,{"$f":"IF(B19=\"\",\"\",VLOOKUP(B19,GRAINS_ATTRIBUTES,4,0))","v":3.5},{"$f":"IF(J19=\"\",\"\",IF(B19=\"\",\"\",IF(VolumePostBoil=\"\",\"\",J19*M19/VolumePostBoil)))","v":4.6849673202614381},{"$f":"IF(B19=\"\",\" \",VLOOKUP(B19,GRAINS_ATTRIBUTES,6,0))","v":1.0382057500000001},null,null,null,{"$f":"IF(B19=\"\",\"\",IF(J19=\"\",\"\",J19*((O19*1000)-1000)))","v":305.64600000000064},{"$f":"IF(MashEfficiencyPredicted=\"\",\"\",IF(B19=\"\",\"\",IF(J19=\"\",\"\",IF(VLOOKUP(B19,GRAINS_ATTRIBUTES,9,0)=\"SUGARS\",S19,IF(U19=\"Steep\",0,S19*MashEfficiencyPredicted)))))","v":229.23450000000048},"Mash",null,{"$f":"IF(T19=\"\",\"\",IF(U19=\"Mash\",T19,0))","v":229.23450000000048},{"$f":"IF(T19=\"\",\"\",IF(U19=\"Skip\",0,IF(U19=\"Yes\",T19*ExtractGUFactor,T19)))","v":229.23450000000048},"Kent Goldings (UK)",null,null,null,null,null,null,null,{"$f":"IF(Y19=\"\",\"\",IF(fHopsAging=\"Yes\",IF(HopsTemperature=\"\",\"\",IF(VLOOKUP(Y19,HOPS_ATTRIBUTES,11,0)=\"\",\"\",IF(VLOOKUP(Y19,HOPS_ATTRIBUTES,10,0)=\"\",\"\",VLOOKUP(Y19,HOPS_ATTRIBUTES,2,0)*1/(EXP(VLOOKUP(VLOOKUP(Y19,HOPS_ATTRIBUTES,10,0)*100,[1]Tables!$P$16:$Q$66,2,0)*VLOOKUP(ROUND((HopsTemperature-32)*5/9,0),[1]Tables!$L$16:$N$65,3,0)*VLOOKUP(HopsStorage,[1]Tables!$C$32:$J$34,8,0)*(BrewDate-VLOOKUP(Y19,HOPS_ATTRIBUTES,11,0))))))),VLOOKUP(Y19,HOPS_ATTRIBUTES,2,0)))","v":6.3E-2},1,"FWH",null,{"$f":"IF(AM19=\"\",\"\",IF(AH19=\"\",\"\",IF(AG19=\"\",\"\",IF(VolumePostBoil=\"\",\"\",IF(HopsMeasurement=\"Ounces\",IF(fIBU=\"Tinseth\",AH19*AG19*AM19*7490/((VolumePreBoil+VolumePostBoil)/2),AH19*AM19*AG19*7462/((VolumePreBoil+VolumePostBoil)/2)),IF(fIBU=\"Tinseth\",\n((VolumePreBoil+VolumePostBoil)/2)*AH19/(AG19*AM19*7490),\n((VolumePreBoil+VolumePostBoil)/2)*AH19/(AM19*AG19*7462)))))))","v":19.644793718375631},null,{"$f":"IF(Y19=\"\",\"\",IF(AI19=\"\",\"\",IF(GravityPreBoil=\"\",\"\",IF(GravityEstimatedOriginal=\"\",\"\",IF(TimeBoil=\"\",\"\",IF(FWHFactor=\"\",\"\",IF(PelletHopFactor=\"\",\"\",IF(LeafHopFactor=\"\",\"\",IF(AI19=\"dry hop\",0,IF(fIBU=\"Tinseth\",((1-EXP(-0.04*IF(AI19=\"FWH\",TimeBoil,AI19)))/4.15)*1.65*0.000125^(((GravityPreBoil+GravityEstimatedOriginal)/2)-1),18.11+13.86*TANH((AI19-31.32)/18.27)/100)*IF(AI19=\"FWH\",FWHFactor,1)*IF(VLOOKUP(Y19,HOPS_ATTRIBUTES,8,0)=\"Pellet\",PelletHopFactor,LeafHopFactor))))))))))","v":0.27252561379171802},null,null,null,null,{"$f":"IF(T19=\"\",\"\",IF(U19=\"Yes\",T19,IF(U19=\"No\",T19,0)))","v":0},{"$f":"IF(J19=\"\",\"\",IF(B19=\"\",\"\",IF(VolumePostBoil=\"\",\"\",IF(U19=\"Mash\",J19*M19/VolumePostBoil,0))))","v":4.6849673202614381},{"$f":"IF(J19=\"\",\"\",IF(B19=\"\",\"\",IF(VolumePostBoil=\"\",\"\",IF(U19=\"Yes\",J19*M19/VolumePostBoil,IF(U19=\"No\",J19*M19/VolumePostBoil,0)))))","v":0},{"$f":"IF(T19=\"\",\"\",IF(U19=\"Skip\",0,IF(U19=\"Mash\",0,IF(U19=\"Yes\",T19*ExtractGUFactor,T19))))","v":0}]
[null,"Biscuit",null,"Castle",null,null,"Belgium",null,null,1,0.10256410256410256,null,22.5,3.7647058823529411,1.0324169999999999,null,null,null,{"$f":"IF(B20=\"\",\"\",IF(J20=\"\",\"\",J20*((O20*1000)-1000)))","v":32.416999999999916},24.312749999999937,"Mash",null,{"$f":"IF(T20=\"\",\"\",IF(U20=\"Mash\",T20,0))","v":24.312749999999937},24.312749999999937,"Kent Goldings (UK)",null,null,null,null,null,null,null,{"$f":"IF(Y20=\"\",\"\",IF(fHopsAging=\"Yes\",IF(HopsTemperature=\"\",\"\",IF(VLOOKUP(Y20,HOPS_ATTRIBUTES,11,0)=\"\",\"\",IF(VLOOKUP(Y20,HOPS_ATTRIBUTES,10,0)=\"\",\"\",VLOOKUP(Y20,HOPS_ATTRIBUTES,2,0)*1/(EXP(VLOOKUP(VLOOKUP(Y20,HOPS_ATTRIBUTES,10,0)*100,[1]Tables!$P$16:$Q$66,2,0)*VLOOKUP(ROUND((HopsTemperature-32)*5/9,0),[1]Tables!$L$16:$N$65,3,0)*VLOOKUP(HopsStorage,[1]Tables!$C$32:$J$34,8,0)*(BrewDate-VLOOKUP(Y20,HOPS_ATTRIBUTES,11,0))))))),VLOOKUP(Y20,HOPS_ATTRIBUTES,2,0)))","v":6.3E-2},1,60,null,17.858903380341481,null,0.24775055799247092,null,null,null,null,{"$f":"IF(T20=\"\",\"\",IF(U20=\"Yes\",T20,IF(U20=\"No\",T20,0)))","v":0},3.7647058823529411,0,0]
[null,"Flaked Wheat",null,"OIO",null,null,"Canada",null,null,0.25,2.564102564102564E-2,null,1,4.1830065359477121E-2,1.037048,null,null,null,9.2620000000000005,6.9465000000000003,"Mash",null,6.9465000000000003,6.9465000000000003,"Kent Goldings (UK)",null,null,null,null,null,null,null,{"$f":"IF(Y21=\"\",\"\",IF(fHopsAging=\"Yes\",IF(HopsTemperature=\"\",\"\",IF(VLOOKUP(Y21,HOPS_ATTRIBUTES,11,0)=\"\",\"\",IF(VLOOKUP(Y21,HOPS_ATTRIBUTES,10,0)=\"\",\"\",VLOOKUP(Y21,HOPS_ATTRIBUTES,2,0)*1/(EXP(VLOOKUP(VLOOKUP(Y21,HOPS_ATTRIBUTES,10,0)*100,[1]Tables!$P$16:$Q$66,2,0)*VLOOKUP(ROUND((HopsTemperature-32)*5/9,0),[1]Tables!$L$16:$N$65,3,0)*VLOOKUP(HopsStorage,[1]Tables!$C$32:$J$34,8,0)*(BrewDate-VLOOKUP(Y21,HOPS_ATTRIBUTES,11,0))))))),VLOOKUP(Y21,HOPS_ATTRIBUTES,2,0)))","v":6.3E-2},1,5,null,3.5602484161198502,null,4.9390128436242083E-2,null,null,null,null,0,4.1830065359477121E-2,0,0]
[null,"Caramel 120 (Briess)",null,"Briess",null,null,"USA",null,null,0.5,5.128205128205128E-2,null,120,10.03921568627451,1.0338063,null,null,null,16.903149999999982,12.677362499999987,"Mash",null,12.677362499999987,12.677362499999987,"Kent Goldings (UK)",null,null,null,null,null,null,null,{"$f":"IF(Y22=\"\",\"\",IF(fHopsAging=\"Yes\",IF(HopsTemperature=\"\",\"\",IF(VLOOKUP(Y22,HOPS_ATTRIBUTES,11,0)=\"\",\"\",IF(VLOOKUP(Y22,HOPS_ATTRIBUTES,10,0)=\"\",\"\",VLOOKUP(Y22,HOPS_ATTRIBUTES,2,0)*1/(EXP(VLOOKUP(VLOOKUP(Y22,HOPS_ATTRIBUTES,10,0)*100,[1]Tables!$P$16:$Q$66,2,0)*VLOOKUP(ROUND((HopsTemperature-32)*5/9,0),[1]Tables!$L$16:$N$65,3,0)*VLOOKUP(HopsStorage,[1]Tables!$C$32:$J$34,8,0)*(BrewDate-VLOOKUP(Y22,HOPS_ATTRIBUTES,11,0))))))),VLOOKUP(Y22,HOPS_ATTRIBUTES,2,0)))","v":6.3E-2},1,"dry hop",null,0,null,0,null,null,null,null,0,10.03921568627451,0,0]
[null,"Campden Tablet",null,"--",null,null,"--",null,null,1,"--",null,0,0,1,null,null,null,0,0,"Skip",null,0,0,null,null,null,null,null,null,null,null,{"$f":"IF(Y23=\"\",\"\",IF(fHopsAging=\"Yes\",IF(HopsTemperature=\"\",\"\",IF(VLOOKUP(Y23,HOPS_ATTRIBUTES,11,0)=\"\",\"\",IF(VLOOKUP(Y23,HOPS_ATTRIBUTES,10,0)=\"\",\"\",VLOOKUP(Y23,HOPS_ATTRIBUTES,2,0)*1/(EXP(VLOOKUP(VLOOKUP(Y23,HOPS_ATTRIBUTES,10,0)*100,[1]Tables!$P$16:$Q$66,2,0)*VLOOKUP(ROUND((HopsTemperature-32)*5/9,0),[1]Tables!$L$16:$N$65,3,0)*VLOOKUP(HopsStorage,[1]Tables!$C$32:$J$34,8,0)*(BrewDate-VLOOKUP(Y23,HOPS_ATTRIBUTES,11,0))))))),VLOOKUP(Y23,HOPS_ATTRIBUTES,2,0)))","v":""},null,null,null,"",null,"",null,null,null,null,0,0,0,0]
[null,"Whirlfloc Tablet",null,"--",null,null,"--",null,null,1,"--",null,0,0,1,null,null,null,0,0,"Yes",null,0,0,null,null,null,null,null,null,null,null,{"$f":"IF(Y24=\"\",\"\",IF(fHopsAging=\"Yes\",IF(HopsTemperature=\"\",\"\",IF(VLOOKUP(Y24,HOPS_ATTRIBUTES,11,0)=\"\",\"\",IF(VLOOKUP(Y24,HOPS_ATTRIBUTES,10,0)=\"\",\"\",VLOOKUP(Y24,HOPS_ATTRIBUTES,2,0)*1/(EXP(VLOOKUP(VLOOKUP(Y24,HOPS_ATTRIBUTES,10,0)*100,[1]Tables!$P$16:$Q$66,2,0)*VLOOKUP(ROUND((HopsTemperature-32)*5/9,0),[1]Tables!$L$16:$N$65,3,0)*VLOOKUP(HopsStorage,[1]Tables!$C$32:$J$34,8,0)*(BrewDate-VLOOKUP(Y24,HOPS_ATTRIBUTES,11,0))))))),VLOOKUP(Y24,HOPS_ATTRIBUTES,2,0)))","v":""},null,null,null,"",null,"",null,null,null,null,0,0,0,0]
[null,null,null," ",null,null," ",null,null,null,"",null,"",""," ",null,null,null,"","","Mash",null,"","",null,null,null,null,null,null,null,null,{"$f":"IF(Y25=\"\",\"\",IF(fHopsAging=\"Yes\",IF(HopsTemperature=\"\",\"\",IF(VLOOKUP(Y25,HOPS_ATTRIBUTES,11,0)=\"\",\"\",IF(VLOOKUP(Y25,HOPS_ATTRIBUTES,10,0)=\"\",\"\",VLOOKUP(Y25,HOPS_ATTRIBUTES,2,0)*1/(EXP(VLOOKUP(VLOOKUP(Y25,HOPS_ATTRIBUTES,10,0)*100,[1]Tables!$P$16:$Q$66,2,0)*VLOOKUP(ROUND((HopsTemperature-32)*5/9,0),[1]Tables!$L$16:$N$65,3,0)*VLOOKUP(HopsStorage,[1]Tables!$C$32:$J$34,8,0)*(BrewDate-VLOOKUP(Y25,HOPS_ATTRIBUTES,11,0))))))),VLOOKUP(Y25,HOPS_ATTRIBUTES,2,0)))","v":""},null,null,null,"",null,"",null,"Equation Factors",null,null,"","","",""]
[null,null,null," ",null,null," ",null,null,null,"",null,"",""," ",null,null,null,"","","Mash",null,"","",null,null,null,null,null,null,null,null,{"$f":"IF(Y26=\"\",\"\",IF(fHopsAging=\"Yes\",IF(HopsTemperature=\"\",\"\",IF(VLOOKUP(Y26,HOPS_ATTRIBUTES,11,0)=\"\",\"\",IF(VLOOKUP(Y26,HOPS_ATTRIBUTES,10,0)=\"\",\"\",VLOOKUP(Y26,HOPS_ATTRIBUTES,2,0)*1/(EXP(VLOOKUP(VLOOKUP(Y26,HOPS_ATTRIBUTES,10,0)*100,[1]Tables!$P$16:$Q$66,2,0)*VLOOKUP(ROUND((HopsTemperature-32)*5/9,0),[1]Tables!$L$16:$N$65,3,0)*VLOOKUP(HopsStorage,[1]Tables!$C$32:$J$34,8,0)*(BrewDate-VLOOKUP(Y26,HOPS_ATTRIBUTES,11,0))))))),VLOOKUP(Y26,HOPS_ATTRIBUTES,2,0)))","v":""},null,null,null,"",null,"",null,0.04,"Wort Contraction",null,"","","",""]
[null,null,null," ",null,null," ",null,null,null,"",null,"",""," ",null,null,null,"","","Mash",null,"","",null,null,null,null,null,null,null,null,{"$f":"IF(Y27=\"\",\"\",IF(fHopsAging=\"Yes\",IF(HopsTemperature=\"\",\"\",IF(VLOOKUP(Y27,HOPS_ATTRIBUTES,11,0)=\"\",\"\",IF(VLOOKUP(Y27,HOPS_ATTRIBUTES,10,0)=\"\",\"\",VLOOKUP(Y27,HOPS_ATTRIBUTES,2,0)*1/(EXP(VLOOKUP(VLOOKUP(Y27,HOPS_ATTRIBUTES,10,0)*100,[1]Tables!$P$16:$Q$66,2,0)*VLOOKUP(ROUND((HopsTemperature-32)*5/9,0),[1]Tables!$L$16:$N$65,3,0)*VLOOKUP(HopsStorage,[1]Tables!$C$32:$J$34,8,0)*(BrewDate-VLOOKUP(Y27,HOPS_ATTRIBUTES,11,0))))))),VLOOKUP(Y27,HOPS_ATTRIBUTES,2,0)))","v":""},null,null,null,"",null,"",null,{"$f":"IF(WortContraction=\"\",\"\",IF(VolumePostBoil=\"\",\"\",VolumePostBoil*WortContraction))","v":0.23906250000000001},"Contraction Losses",null,"","","",""]
[null,null,null," ",null,null," ",null,null,null,"",null,"",""," ",null,null,null,"","","Mash",null,"","",null,null,null,null,null,null,null,null,{"$f":"IF(Y28=\"\",\"\",IF(fHopsAging=\"Yes\",IF(HopsTemperature=\"\",\"\",IF(VLOOKUP(Y28,HOPS_ATTRIBUTES,11,0)=\"\",\"\",IF(VLOOKUP(Y28,HOPS_ATTRIBUTES,10,0)=\"\",\"\",VLOOKUP(Y28,HOPS_ATTRIBUTES,2,0)*1/(EXP(VLOOKUP(VLOOKUP(Y28,HOPS_ATTRIBUTES,10,0)*100,[1]Tables!$P$16:$Q$66,2,0)*VLOOKUP(ROUND((HopsTemperature-32)*5/9,0),[1]Tables!$L$16:$N$65,3,0)*VLOOKUP(HopsStorage,[1]Tables!$C$32:$J$34,8,0)*(BrewDate-VLOOKUP(Y28,HOPS_ATTRIBUTES,11,0))))))),VLOOKUP(Y28,HOPS_ATTRIBUTES,2,0)))","v":""},null,null,null,"",null,"",null,1.4999999999999999E-2,"Boil Off Rate",null,"","","",""]
[null,null,null," ",null,null," ",null,null,null,"",null,"",""," ",null,null,null,"","","Mash",null,"","",null,null,null,null,null,null,null,null,{"$f":"IF(Y29=\"\",\"\",IF(fHopsAging=\"Yes\",IF(HopsTemperature=\"\",\"\",IF(VLOOKUP(Y29,HOPS_ATTRIBUTES,11,0)=\"\",\"\",IF(VLOOKUP(Y29,HOPS_ATTRIBUTES,10,0)=\"\",\"\",VLOOKUP(Y29,HOPS_ATTRIBUTES,2,0)*1/(EXP(VLOOKUP(VLOOKUP(Y29,HOPS_ATTRIBUTES,10,0)*100,[1]Tables!$P$16:$Q$66,2,0)*VLOOKUP(ROUND((HopsTemperature-32)*5/9,0),[1]Tables!$L$16:$N$65,3,0)*VLOOKUP(HopsStorage,[1]Tables!$C$32:$J$34,8,0)*(BrewDate-VLOOKUP(Y29,HOPS_ATTRIBUTES,11,0))))))),VLOOKUP(Y29,HOPS_ATTRIBUTES,2,0)))","v":""},null,null,null,"",null,"",null,0.2,"Grain Factor",null,"","","",""]
[null,"Cost:  ",{"$f":"IF(B19=\"\",0,J19*VLOOKUP(B19,[1]Grains!$A$2:$L$188,8,0))+IF(B20=\"\",0,J20*VLOOKUP(B20,[1]Grains!$A$2:$L$188,8,0))+IF(B21=\"\",0,J21*VLOOKUP(B21,[1]Grains!$A$2:$L$188,8,0))+IF(B22=\"\",0,J22*VLOOKUP(B22,[1]Grains!$A$2:$L$188,8,0))+IF(B23=\"\",0,J23*VLOOKUP(B23,[1]Grains!$A$2:$L$188,8,0))+IF(B24=\"\",0,J24*VLOOKUP(B24,[1]Grains!$A$2:$L$188,8,0))+IF(B25=\"\",0,J25*VLOOKUP(B25,[1]Grains!$A$2:$L$188,8,0))+IF(B26=\"\",0,J26*VLOOKUP(B26,[1]Grains!$A$2:$L$188,8,0))+IF(B27=\"\",0,J27*VLOOKUP(B27,[1]Grains!$A$2:$L$188,8,0))+IF(B28=\"\",0,J28*VLOOKUP(B28,[1]Grains!$A$2:$L$188,8,0))+IF(B29=\"\",0,J29*VLOOKUP(B29,[1]Grains!$A$2:$L$188,8,0))","v":0},{"$f":"IF(fPartigyle=\"Yes\",\"Parti-gyle Session Enabled\",\"\")","v":""},null,null,null,null,null,{"$f":"IF(B19=\"\",0,IF(U19=\"Mash\",J19,0))+IF(B20=\"\",0,IF(U20=\"Mash\",J20,0))+IF(B21=\"\",0,IF(U21=\"Mash\",J21,0))+IF(B22=\"\",0,IF(U22=\"Mash\",J22,0))+IF(B23=\"\",0,IF(U23=\"Mash\",J23,0))+IF(B24=\"\",0,IF(U24=\"Mash\",J24,0))+IF(B25=\"\",0,IF(U25=\"Mash\",J25,0))+IF(B26=\"\",0,IF(U26=\"Mash\",J26,0))+IF(B27=\"\",0,IF(U27=\"Mash\",J27,0))+IF(B28=\"\",0,IF(U28=\"Mash\",J28,0))+IF(B29=\"\",0,IF(U29=\"Mash\",J29,0))","v":9.75},null,null,{"$f":"IF(fPartigyle=\"No\",SUM(MCU),SUM(MCUPG1)+FirstBeerMCU)","v":18.530718954248364},null,null,null,null,null,{"$f":"IF(SUM(GU)=0,\"\",SUM(GU))","v":364.22815000000054},{"$f":"IF(fPartigyle=\"No\",IF(SUM(AGU)=0,\"\",SUM(AGU)),FirstBeerMashGU+SUM(AGUPG))","v":273.17111250000039},{"$f":"IF(fPartigyle=\"No\",SUM(AWGU),GravityUnitsAdjusted+SUM(AWGUPG))","v":273.17111250000039},null,null,null,"Cost:  ",null,null,null,null,null,{"$f":"IF(HopsMeasurement=\"Ounces\",IF(Y19=\"\",0,AH19*VLOOKUP(Y19,[1]Hops!$A$2:$J$124,9,0))+IF(Y20=\"\",0,AH20*VLOOKUP(Y20,[1]Hops!$A$2:$J$124,9,0))+IF(Y21=\"\",0,AH21*VLOOKUP(Y21,[1]Hops!$A$2:$J$124,9,0))+IF(Y22=\"\",0,AH22*VLOOKUP(Y22,[1]Hops!$A$2:$J$124,9,0))+IF(Y23=\"\",0,AH23*VLOOKUP(Y23,[1]Hops!$A$2:$J$124,9,0))+IF(Y24=\"\",0,AH24*VLOOKUP(Y24,[1]Hops!$A$2:$J$124,9,0))+IF(Y25=\"\",0,AH25*VLOOKUP(Y25,[1]Hops!$A$2:$J$124,9,0))+IF(Y26=\"\",0,AH26*VLOOKUP(Y26,[1]Hops!$A$2:$J$124,9,0))+IF(Y27=\"\",0,AH27*VLOOKUP(Y27,[1]Hops!$A$2:$J$124,9,0))+IF(Y28=\"\",0,AH28*VLOOKUP(Y28,[1]Hops!$A$2:$J$124,9,0))+IF(Y29=\"\",0,AH29*VLOOKUP(Y29,[1]Hops!$A$2:$J$124,9,0)),IF(Y19=\"\",0,AK19*VLOOKUP(Y19,[1]Hops!$A$2:$J$124,9,0))+IF(Y20=\"\",0,AK20*VLOOKUP(Y20,[1]Hops!$A$2:$J$124,9,0))+IF(Y21=\"\",0,AK21*VLOOKUP(Y21,[1]Hops!$A$2:$J$124,9,0))+IF(Y22=\"\",0,AK22*VLOOKUP(Y22,[1]Hops!$A$2:$J$124,9,0))+IF(Y23=\"\",0,AK23*VLOOKUP(Y23,[1]Hops!$A$2:$J$124,9,0))+IF(Y24=\"\",0,AK24*VLOOKUP(Y24,[1]Hops!$A$2:$J$124,9,0))+IF(Y25=\"\",0,AK25*VLOOKUP(Y25,[1]Hops!$A$2:$J$124,9,0))+IF(Y26=\"\",0,AK26*VLOOKUP(Y26,[1]Hops!$A$2:$J$124,9,0))+IF(Y27=\"\",0,AK27*VLOOKUP(Y27,[1]Hops!$A$2:$J$124,9,0))+IF(Y28=\"\",0,AK28*VLOOKUP(Y28,[1]Hops!$A$2:$J$124,9,0))+IF(Y29=\"\",0,AK29*VLOOKUP(Y29,[1]Hops!$A$2:$J$124,9,0)))","v":0},null,null,{"$f":"IF(SUM(OuncesorIBU)=0,\"\",SUM(OuncesorIBU))","v":4},{"$f":"IF(HopsMeasurement=\"Ounces\",IF(Y19=\"\",0,IF(VLOOKUP(Y19,[1]Hops!$A$2:$J$124,8,0)=\"Pellet\",0,AH19))+IF(Y20=\"\",0,IF(VLOOKUP(Y20,[1]Hops!$A$2:$J$124,8,0)=\"Pellet\",0,AH20))+IF(Y21=\"\",0,IF(VLOOKUP(Y21,[1]Hops!$A$2:$J$124,8,0)=\"Pellet\",0,AH21))+IF(Y22=\"\",0,IF(VLOOKUP(Y22,[1]Hops!$A$2:$J$124,8,0)=\"Pellet\",0,AH22))+IF(Y23=\"\",0,IF(VLOOKUP(Y23,[1]Hops!$A$2:$J$124,8,0)=\"Pellet\",0,AH23))+IF(Y24=\"\",0,IF(VLOOKUP(Y24,[1]Hops!$A$2:$J$124,8,0)=\"Pellet\",0,AH24))+IF(Y25=\"\",0,IF(VLOOKUP(Y25,[1]Hops!$A$2:$J$124,8,0)=\"Pellet\",0,AH25))+IF(Y26=\"\",0,IF(VLOOKUP(Y26,[1]Hops!$A$2:$J$124,8,0)=\"Pellet\",0,AH26))+IF(Y27=\"\",0,IF(VLOOKUP(Y27,[1]Hops!$A$2:$J$124,8,0)=\"Pellet\",0,AH27))+IF(Y28=\"\",0,IF(VLOOKUP(Y28,[1]Hops!$A$2:$J$124,8,0)=\"Pellet\",0,AH28))+IF(Y29=\"\",0,IF(VLOOKUP(Y29,[1]Hops!$A$2:$J$124,8,0)=\"Pellet\",0,AH29)),IF(Y19=\"\",0,IF(VLOOKUP(Y19,[1]Hops!$A$2:$J$124,8,0)=\"Pellet\",0,AK19))+IF(Y20=\"\",0,IF(VLOOKUP(Y20,[1]Hops!$A$2:$J$124,8,0)=\"Pellet\",0,AK20))+IF(Y21=\"\",0,IF(VLOOKUP(Y21,[1]Hops!$A$2:$J$124,8,0)=\"Pellet\",0,AK21))+IF(Y22=\"\",0,IF(VLOOKUP(Y22,[1]Hops!$A$2:$J$124,8,0)=\"Pellet\",0,AK22))+IF(Y23=\"\",0,IF(VLOOKUP(Y23,[1]Hops!$A$2:$J$124,8,0)=\"Pellet\",0,AK23))+IF(Y24=\"\",0,IF(VLOOKUP(Y24,[1]Hops!$A$2:$J$124,8,0)=\"Pellet\",0,AK24))+IF(Y25=\"\",0,IF(VLOOKUP(Y25,[1]Hops!$A$2:$J$124,8,0)=\"Pellet\",0,AK25))+IF(Y26=\"\",0,IF(VLOOKUP(Y26,[1]Hops!$A$2:$J$124,8,0)=\"Pellet\",0,AK26))+IF(Y27=\"\",0,IF(VLOOKUP(Y27,[1]Hops!$A$2:$J$124,8,0)=\"Pellet\",0,AK27))+IF(Y28=\"\",0,IF(VLOOKUP(Y28,[1]Hops!$A$2:$J$124,8,0)=\"Pellet\",0,AK28))+IF(Y29=\"\",0,IF(VLOOKUP(Y29,[1]Hops!$A$2:$J$124,8,0)=\"Pellet\",0,AK29)))","v":4},null,{"$f":"IF(SUM(IBUorOunces)=0,\"\",SUM(IBUorOunces))","v":41.063945514836959},null,"Tinseth",null,{"$f":"IF(GrainFactor=\"\",\"\",IF(TotalGrainWeight=\"\",\"\",TotalGrainWeight*GrainFactor))","v":1.9500000000000002},"Grain Absorption"]
[null,null,null,null,null,null,null,null,null,null,null,null,null,null,null,null,null,null,null,null,null,null,null,null,null,null,null,null,null,null,null,null,null,null,null,null,null,null,null,null,11.25,"HopAbsorptionFact."]
[null,"Yeast",null,"Temperature",null,"Attenuation",null,null,"Flocculation",null,null,"Styles & Notes",null,null,null,null,null,null,null,null,null,null,null,null,null,null,null,null,null,null,null,null,null,null,null,null,null,"Name",null,null,{"$f":"IF(AO31=\"\",0,IF(LeafHopsOunces=\"\",0,LeafHopsOunces*AO31/128))","v":0.3515625},"Hops Absorbtion"]
[null,"White Labs WLP002",null,{"$f":"IF(YeastStrain1=\"\",\"\",VLOOKUP(YeastStrain1,YEAST_ATTRIBUTES,3,0))","v":65},{"$f":"IF(YeastStrain1=\"\",\"\",VLOOKUP(YeastStrain1,YEAST_ATTRIBUTES,4,0))","v":68},{"$f":"IF(YeastStrain1=\"\",\"\",VLOOKUP(YeastStrain1,YEAST_ATTRIBUTES,5,0))","v":0.63},{"$f":"IF(YeastStrain1=\"\",\"\",VLOOKUP(YeastStrain1,YEAST_ATTRIBUTES,6,0))","v":0.7},null,{"$f":"IF(YeastStrain1=\"\",\"\",VLOOKUP(YeastStrain1,YEAST_ATTRIBUTES,7,0))","v":"Very High"},null,null,{"$f":"IF(YeastStrain1=\"\",\"\",VLOOKUP(YeastStrain1,YEAST_ATTRIBUTES,9,0))","v":"A classic ESB strain from one of England's largest independent breweries. This yeast is best suited for English style ales including milds, bitters, porters, and English style stouts. This yeast will leave a beer very clear, and will leave some residual sweetness."},null,null,null,null,null,null,null,null,null,null,null,null,null,null,null,null,null,null,null,null,null,null,null,null,null,{"$f":"IF(YeastStrain1=\"\",\"\",VLOOKUP(YeastStrain1,YEAST_ATTRIBUTES,2,0))","v":"English Ale"},null,null,0.125,"LT Dead Space"]
[null,null,null,{"$f":"IF(YeastStrain2=\"\",\"\",VLOOKUP(YeastStrain2,YEAST_ATTRIBUTES,3,0))","v":""},{"$f":"IF(YeastStrain2=\"\",\"\",VLOOKUP(YeastStrain2,YEAST_ATTRIBUTES,4,0))","v":""},{"$f":"IF(YeastStrain2=\"\",\"\",VLOOKUP(YeastStrain2,YEAST_ATTRIBUTES,5,0))","v":""},{"$f":"IF(YeastStrain2=\"\",\"\",VLOOKUP(YeastStrain2,YEAST_ATTRIBUTES,5,0))","v":""},null,{"$f":"IF(YeastStrain2=\"\",\"\",VLOOKUP(YeastStrain2,YEAST_ATTRIBUTES,7,0))","v":""},null,null,{"$f":"IF(YeastStrain2=\"\",\"\",VLOOKUP(YeastStrain2,YEAST_ATTRIBUTES,9,0))","v":""},null,null,null,null,null,null,null,null,null,null,null,null,null,null,null,null,null,null,null,null,null,null,null,null,null,{"$f":"IF(YeastStrain2=\"\",\"\",VLOOKUP(YeastStrain2,YEAST_ATTRIBUTES,2,0))","v":""},null,null,0.25,"Kettle Dead Space"]
[null,"Ale ","Required Cell Count: ",{"$f":"IF(PlatoEstimatedOriginal=\"\",\"\",IF(AleOrLager=\"Ale \",IF(PitchingRateAle=\"\",\"\",1000000*PitchingRateAle*VolumeFermentation*3785*PlatoEstimatedOriginal),IF(PitchingRateLager=\"\",\"\",1000000*PitchingRateLager*VolumeFermentation*3785*PlatoEstimatedOriginal)))","v":169416504791.9003},null,null,"Yeast Preparation: ",null,null,null,null,"Shaken Starter",null,null,null,null,null,null,null,"# of Packages: ",null,null,null,null,1,null,null,null,"Starter Volume (mL/vials): ",null,null,{"$f":"IF(RequiredCellCount=\"\",\"\",RequiredCellCount/(VLOOKUP(YeastPreparation,[1]Tables!$C$15:$F$20,4,0)*1000000))","v":2823.6084131983384},null,null,"Dry Yeast (grams):",null,null,null,{"$f":"IF(RequiredCellCount=\"\",\"\",RequiredCellCount/(CellsPerDryGram*1000000000))","v":8.4708252395950154},null,"Infusion Mash"]
[null,"Cost:  ",{"$f":"IF(YeastStrain1=\"\",0,YeastPackages/2*VLOOKUP(YeastStrain1,[1]Yeast!$A$2:$L$168,12,0))+IF(YeastStrain2=\"\",IF(YeastStrain1=\"\",0,YeastPackages/2*VLOOKUP(YeastStrain1,[1]Yeast!$A$2:$L$168,12,0)),YeastPackages/2*VLOOKUP(YeastStrain2,[1]Yeast!$A$2:$L$168,12,0))","v":0},null,null,null,null,null,null,null,null,null,null,null,null,null,null,null,null,null,null,null,null,null,null,null,null,null,null,null,null,null,null,null,null,null,null,null,null,null,1,"# of Mash Steps"]
[null,null,null,null,null,null,null,null,null,null,null,null,null,null,null,null,null,null,null,null,null,null,null,null,null,null,null,null,null,null,null,null,null,null,null,null,null,null,null,null,"No","3 Runnings?"]
[null,"Notes",null,null,null,null,null,null,null,null,null,null,null,null,null,null,null,null,null,null,null,null,null,null,null,null,null,null,null,null,null,null,null,null,null,null,null,null,null,null,70,"Grain Temp"]
[null,"Just an example EPA to demo FWH, dry hop and how to add a couple non-mash ingredients.  The water adjustments are made to add enough magnesium and calcium as well as get the mash pH within the desired range.  I added both Calcium Chloride and Chalk because I wanted to get my Calcium up but adding just chalk would throw my pH out of range.  \n\nNote that a lot of the measurements are left blank.  This is to show you what the sheet would look like on brewday before you got started, this is a recipe in the planning stages.",null,null,null,null,null,null,null,null,null,null,null,null,null,null,null,null,null,null,null,null,null,null,null,null,null,null,null,null,null,null,null,null,null,null,null,null,null,null,5,"Temp Loss to Tun"]
[null,null,null,null,null,null,null,null,null,null,null,null,null,null,null,null,null,null,null,null,null,null,null,null,null,null,null,null,null,null,null,null,null,null,null,null,null,null,null,null,0.2,"InfusionTempFactor"]
[null,null,null,null,null,null,null,null,null,null,null,null,null,null,null,null,null,null,null,null,null,null,null,null,null,null,null,null,null,null,null,null,null,null,null,null,null,null,null,null,200,{"$f":"IF(MashType=\"Infusion Mash\",\"Infusion Temperature\",IF(MashType=\"Decoction Mash\",\"Decoction Temp\",\"Factor Not Used\"))","v":"Infusion Temperature"}]
[null,null,null,null,null,null,null,null,null,null,null,null,null,null,null,null,null,null,null,null,null,null,null,null,null,null,null,null,null,null,null,null,null,null,null,null,null,null,null,null,170,"Mash Out Temp"]
[null,null,null,null,null,null,null,null,null,null,null,null,null,null,null,null,null,null,null,null,null,null,null,null,null,null,null,null,null,null,null,null,null,null,null,null,null,null,null,null,1.1000000000000001,"Mash Thickness"]
[null,null,null,null,null,null,null,null,null,null,null,null,null,null,null,null,null,null,null,null,null,null,null,null,null,null,null,null,null,null,null,null,null,null,null,null,null,null,null,null,{"$f":"IF(MashType=\"Infusion Mash\",IF(MashSteps<2,\"-\",IF(TotalGrainWeight=\"\",\"\",IF(MashThickness=\"\",\"\",IF(VolumeStrikeWater2=\"\",\"\",((MashThickness*TotalGrainWeight)+4*VolumeStrikeWater2)/TotalGrainWeight)))),MashThickness)","v":"-"},"Mash 2 Thickness"]
[null,null,null,null,null,null,null,null,null,null,null,null,null,null,null,null,null,null,null,null,null,null,null,null,null,null,null,null,null,null,null,null,null,null,null,null,null,null,null,null,{"$f":"IF(MashType=\"Infusion Mash\",IF(MashSteps<3,\"-\",IF(TotalGrainWeight=\"\",\"\",IF(MashThickness2=\"\",\"\",IF(VolumeStrikeWater3=\"\",\"\",((MashThickness2*TotalGrainWeight)+4*VolumeStrikeWater3)/TotalGrainWeight)))),MashThickness)","v":"-"},"Mash 3 Thickness"]
[null,null,null,null,null,null,null,null,null,null,null,null,null,null,null,null,null,null,null,null,null,null,null,null,null,null,null,null,null,null,null,null,null,null,null,null,null,null,null,null,{"$f":"IF(VolumeStrikeWater1=\"\",\"\",IF(MashType=\"Infusion Mash\",IF(MashSteps<2,VolumeStrikeWater1,IF(VolumeStrikeWater2=\"\",\"\",IF(MashSteps<3,VolumeStrikeWater1+VolumeStrikeWater2,IF(VolumeStrikeWater3=\"\",\"\",VolumeStrikeWater1+VolumeStrikeWater2+VolumeStrikeWater3)))),VolumeStrikeWater1))","v":2.6812500000000004},"Total Mash Volume"]
[null,"Mash Water Chemistry Adjustments - Replicating Salt Profiles and Controlling Mash pH through Residual Alkalinity",null,null,null,null,null,null,null,null,null,null,null,null,null,null,null,null,null,null,null,null,null,null,null,null,null,null,null,null,null,null,null,null,null,null,null,null,null,null,{"$f":"IF(GravityRunoffMeasured=\"\",IF(GravityUnitsWeightedAdjusted=\"\",\"\",IF(VolumePreBoil=\"\",\"\",((GravityUnitsWeightedAdjusted/VolumePreBoil)+1000)/1000)),GravityRunoffMeasured)","v":1.0383903188405799},"Pre-Boil Gravity"]
[null,"Source","Water Attributes",null,null,null,"Target",null,null,"Diluted",null,"Final",null,null,null,null,null,null,"Added",null,1.5,null," Chalk CaCO3 ",null,null,null,null,null,null,null,null,{"$f":"IF(RAFinal=\"\",\"\",IF(RATarget=\"\",\"\",IF(RAFinal>RATargetHigh,0,\"\")))","v":""},null,"Salt & Acid Additions",null,null,null,null,null,null,1.1000000000000001,"FWH Adjustment"]
[null,{"$f":"[1]Water!D4","v":6.7},"Calcium (ppm)  (50-150)",null,null,null,null,null,null,{"$f":"IF(CalciumSource=\"\",\"\",IF(DilutionPercentage=\"\",CalciumSource,(1-DilutionPercentage)*CalciumSource))","v":6.7},null,{"$f":"IF(CalciumDiluted=\"\",\"\",CalciumDiluted+CalciumAdded)","v":79.365734265734261},null,{"$f":"IF(N48=\"\",\"\",HLOOKUP($N$48,[1]Water!$E$1:$V$14,4,0))","v":""},null,null,null,null,{"$f":"IF(VolumeMashTotal=\"\",0,IF(VolumeMashTotal=0,0,(ChalkAddition*105.89+GypsumAddition*60+CalciumChlorideAddition*72)/VolumeMashTotal))","v":72.665734265734258},null,null,null," Gypsum  CaSO4*2H2O ",null,null,null,null,null,null,null,null,{"$f":"IF(VolumeMashTotal=\"\",\"\",IF(RAFinal=\"\",\"\",IF(RATargetHigh=\"\",\"\",IF(VolumeMashTotal*(RAFinal-RATargetHigh)*1.4/60>0,VolumeMashTotal*(RAFinal-RATargetHigh)*1.4/60,\"\"))))","v":""},null,"Conc. %","Used",null,"Estimated",null,"Acid Type",null,1,"Leaf Hop Factor"]
[null,{"$f":"[1]Water!D7","v":2},"Magnesium (ppm) (10-30)",null,null,null,null,null,null,{"$f":"IF(MagnesiumSource=\"\",\"\",IF(DilutionPercentage=\"\",MagnesiumSource,(1-DilutionPercentage)*MagnesiumSource))","v":2},null,{"$f":"IF(MagnesiumDiluted=\"\",\"\",MagnesiumDiluted+MagnesiumAdded)","v":11.174825174825175},null,{"$f":"IF(N48=\"\",\"\",HLOOKUP($N$48,[1]Water!$E$1:$V$14,7,0))","v":""},null,null,null,null,{"$f":"IF(VolumeMashTotal=\"\",0,IF(VolumeMashTotal=0,0,EpsomSaltAddition*24.6/VolumeMashTotal))","v":9.174825174825175},null,0.5,null," Calcium Chloride CaCl2*2H2O",null,null,null,null,null,null,null,null,{"$f":"IF(VolumeMashTotal=\"\",\"\",IF(RAFinal=\"\",\"\",IF(RATargetHigh=\"\",\"\",IF(VolumeMashTotal*(RAFinal-RATargetHigh)*1.4/60>0,VolumeMashTotal*(RAFinal-RATargetHigh)*1.4/72,\"\"))))","v":""},null,0.37,null,null,{"$f":"IF(HydrochloricConcentration=\"\",\"\",IF(RAFinal>RATargetHigh,3.785*VolumeMashTotal*MissingAdditionalEffectiveHardnessHigh/50/((13.927*(HydrochloricConcentration)^2)+(27.319*HydrochloricConcentration)),0))","v":0},null,"Hydrochloric",null,0.92,"Pellet Hop Factor"]
[null,{"$f":"IF(C51=\"Bicarbonate (ppm)\",[1]Water!D14,[1]Water!D2)","v":13.15},"Alkalinity as CaCO3",null,null,null,null,null,null,{"$f":"IF(AlkalinitySource=\"\",\"\",IF(DilutionPercentage=\"\",AlkalinitySource,(1-DilutionPercentage)*AlkalinitySource))","v":13.15},null,{"$f":"IF(AlkalinityDiluted=\"\",\"\",IF(AlkalinityType=\"Bicarbonate (ppm)\", 50/61*AlkalinityDiluted+AlkalinityAdded,AlkalinityDiluted+AlkalinityAdded))","v":85.602138025908516},null,{"$f":"IF(N48=\"\",\"\",IF(C51=\"Bicarbonate (ppm)\",HLOOKUP($N$48,[1]Water!$E$1:$V$14,14,0),HLOOKUP($N$48,[1]Water!$E$1:$V$14,2,0)))","v":""},null,null,null,null,{"$f":"BicarbontesAdded*50/61","v":72.452138025908511},null,1,null," Epsom Salt MgSO4*7H2O ",null,null,null,null,null,null,null,null,{"$f":"IF(MagnesiumFinal>50,0,IF(VolumeMashTotal=\"\",\"\",IF(MagnesiumFinal=\"\",\"\",IF(VolumeMashTotal*(10-MagnesiumFinal)/24.6>0,VolumeMashTotal*(10-MagnesiumFinal)/24.6,\"\"))))","v":""},null,0.88,null,null,{"$f":"IF(LacticConcentration=\"\",\"\",IF(RAFinal>RATargetHigh,0.88/(LacticConcentration)*3.785*(LacticConcentration)*VolumeMashTotal/50/11.8,0))","v":0},null,"Lactic",null,"No","Use Hops Aging"]
[null,{"$f":"[1]Water!D14","v":16},"Sodium (ppm) (0-150)",null,null,null,null,null,null,{"$f":"IF(SodiumSource=\"\",\"\",IF(DilutionPercentage=\"\",SodiumSource,(1-DilutionPercentage)*SodiumSource))","v":16},null,{"$f":"IF(SodiumDiluted=\"\",\"\",SodiumDiluted+SodiumAdded)","v":16},null,{"$f":"IF(N48=\"\",\"\",HLOOKUP($N$48,[1]Water!$E$1:$V$14,8,0))","v":""},null,null,null,null,{"$f":"IF(VolumeMashTotal=\"\",0,IF(VolumeMashTotal=0,0,(BakingSodaAddition*72.3/VolumeMashTotal)+(TableSaltAddition*104/VolumeMashTotal)))","v":0},null,null,null," Baking Soda  NaHCO3 ",null,null,null,null,null,null,null,null,{"$f":"IF(RAFinal=\"\",\"\",IF(RATarget=\"\",\"\",IF(RAFinal>RATargetHigh,0,\"\")))","v":""},null,"acid additions are in mL",null,null,null,null,null,null,"Sealed in barrier, no O2"]
[null,{"$f":"[1]Water!D5","v":14},"Chloride (ppm) (0-250)",null,null,null,null,null,null,{"$f":"IF(ChlorideSource=\"\",\"\",IF(DilutionPercentage=\"\",ChlorideSource,(1-DilutionPercentage)*ChlorideSource))","v":14},null,{"$f":"IF(ChlorideDiluted=\"\",\"\",IF(VolumeMashTotal=\"\",\"\",IF(HydrochloricUsed=\"\",ChlorideDiluted+ChlorideAdded,ChlorideDiluted+ChlorideAdded+(HydrochloricUsed*12*HydrochloricConcentration/0.37*35.4/(VolumeMashTotal*3.785)))))","v":37.770629370629365},null,{"$f":"IF(N48=\"\",\"\",HLOOKUP($N$48,[1]Water!$E$1:$V$14,5,0))","v":""},null,null,null,null,{"$f":"IF(VolumeMashTotal=\"\",0,IF(VolumeMashTotal=0,0,(160*TableSaltAddition/VolumeMashTotal)+(CalciumChlorideAddition*127.47/VolumeMashTotal)))","v":23.770629370629369},null,null,null," Table Salt  NaCl ",null,null,null,null,null,null,null,null,{"$f":"IF(SodiumFinal>150,0,IF(ChlorideFinal>250,0,\"\"))","v":""},null,"salt additions are in grams",null,null,null,null,null,null,20,"Hops Temperature"]
[" ",{"$f":"[1]Water!D12","v":5},"Sulfate (ppm) (bitter 50-150, 150-350 very bitter)",null,null,null,null,null,null,{"$f":"IF(SulfateSource=\"\",\"\",IF(DilutionPercentage=\"\",SulfateSource,(1-DilutionPercentage)*SulfateSource))","v":5},null,{"$f":"IF(SulfateDiluted=\"\",\"\",SulfateDiluted+SulfateAdded)","v":43.414918414918411},null,{"$f":"IF(N48=\"\",\"\",HLOOKUP($N$48,[1]Water!$E$1:$V$14,12,0))","v":""},null,null,null,null,{"$f":"IF(VolumeMashTotal=\"\",0,IF(VolumeMashTotal=0,0,(GypsumAddition*147.4+EpsomSaltAddition*103)/VolumeMashTotal))","v":38.414918414918411},null,{"$f":"IF(VolumeMashTotal=\"\",0,IF(VolumeMashTotal=0,0,(ChalkAddition*158+BakingSodaAddition*191.88)/VolumeMashTotal))","v":88.391608391608386},null," Added Bicarbonates HCO3",null,null,null,null,null,null,null,null,{"$f":"CONCATENATE(IF(MagnesiumFinal<10,\"Add some epsom salt for magnesium.\",IF(MagnesiumFinal>50,\"High magnesium might cause sour-bitter taste, dilute.\",\"\")),\" \",IF(CalciumFinal<50,\"Add gypsum or calcium chloride to assist mash enzymes but watch Cl/SO4 balance, or use chalk if pH is low.\",IF(CalciumFinal>150,\"Excessive calcium, dilute.\",\"\")),\" \",IF(SulfateFinal>750,\"Sulfate far too high, reduce gypsum, epsom or dilute.\",IF(SulfateFinal>400,\"High sulfate may cause astringincy, reduce gypsum, epsom or dilute.\",\"\")),\" \",IF(SodiumFinal>200,\"Sodium too high, reduce baking soda, table salt or dilute.\",\"\"),\" \",IF(ChlorideFinal>300,\"Chloride too high, reduce table salt, calcium chloride or dilute.\",\"\"))","v":"    "},null,null,null,null,null,null,null,null,0.2,"Extract GU Factor"]
[null,{"$f":"[1]Water!D13","v":7.85},"Water pH",null,null,null,"Distilled Dilution: ",null,null,null,0,{"$f":"IF(AlkalinityFinal=\"\",\"\",IF(IF(AlkalinityType=\"Bicarbonate (ppm)\",AlkalinityFinal,61*AlkalinityFinal/50)>250,CONCATENATE(\"High bicarbonates should be diluted.\",\" \",ROUND((1-(250/AlkalinityFinal))*100,2),\"%\"),\"\"))","v":""},null,null,null,null,null,null,null,null,{"$f":"(CalciumAdded/1.4)+(MagnesiumAdded/1.7)","v":57.30105188928718},null," Contributed Hardness",null,null,null,null,null,null,null,null,null,null,null,null,null,null,null,null,null,60,"Preparation Time"]
[null,{"$f":"IF(CalciumSource=\"\",\"\",IF(MagnesiumSource=\"\",\"\",(CalciumSource/1.4)+(MagnesiumSource/1.7)))","v":5.9621848739495809},"Effective Hardness",null,null,null,{"$f":"IF(CalciumTarget=\"\",\"\",IF(MagnesiumTarget=\"\",\"\",(CalciumTarget/1.4)+(MagnesiumTarget/1.7)))","v":""},null,null,{"$f":"IF(CalciumDiluted=\"\",\"\",IF(MagnesiumDiluted=\"\",\"\",(CalciumDiluted/1.4)+(MagnesiumDiluted/1.7)))","v":5.9621848739495809},null,{"$f":"IF(CalciumFinal=\"\",\"\",IF(MagnesiumFinal=\"\",\"\",(CalciumFinal/1.4)+(MagnesiumFinal/1.7)))","v":63.263236763236762},null,{"$f":"IF(CalciumCity=\"\",\"\",IF(MagnesiumCity=\"\",\"\",(CalciumCity/1.4)+(MagnesiumCity/1.7)))","v":""},null,null,null,null,{"$f":"IF(CalciumAdded=\"\",\"\",IF(MagnesiumAdded=\"\",\"\",(CalciumAdded/1.4)+(MagnesiumAdded/1.7)))","v":57.30105188928718},null,{"$f":"IF(TotalAdditionalRANeededLow=0,0,IF(TotalAdditionalRANeededLow=\"\",\"\",TotalAdditionalRANeededLow-RAAdded))","v":-9.8941104456823687},null,"(low) Missing Additional Residual Alkalinity (high)",null,null,null,null,null,null,null,null,null,null,null,{"$f":"IF(TotalAdditionalRANeedeHigh=0,0,IF(TotalAdditionalRANeedeHigh=\"\",\"\",TotalAdditionalRANeedeHigh-RAAdded))","v":49.065889554317621},{"$f":"IF(RATargetHigh=\"\",\"\",IF(RAFinal=\"\",\"\",IF(RAFinal>RATargetHigh,CONCATENATE(\"Mash pH too high.  Lower with calcium chloride or gypsum.  Do not use chalk even if calcium levels are low.  Gypsum is better for bitter beers, calcium chloride for malty beers.\"),IF(RAFinal<RATargetLow,\"Mash pH too low.  Use baking soda and chalk additions to adjust, or reduce gypsum or calcium chloride.  Watch the calcium and effective hardness when adding chalk, and the sodium levels from baking soda.\",\"Mash pH within range for target SRM.\"))))","v":"Mash pH within range for target SRM."},null,null,null,null,25,"Milling Time"]
[null,{"$f":"IF(AlkalinitySource=\"\",\"\",IF(EffectiveHardnessSource=\"\",\"\",IF(AlkalinityType=\"Bicarbonate (ppm)\",(AlkalinitySource*50/61)-EffectiveHardnessSource,AlkalinitySource-EffectiveHardnessSource)))","v":7.1878151260504195},"Residual Alkalinity as CaCO3",null,null,null,{"$f":"IF(AlkalinityTarget=\"\",\"\",IF(EffectiveHardnessTarget=\"\",\"\",IF(AlkalinityType=\"Bicarbonate (ppm)\",(AlkalinityTarget*50/61)-EffectiveHardnessTarget,AlkalinityTarget-EffectiveHardnessTarget)))","v":""},null,null,{"$f":"IF(AlkalinityDiluted=\"\",\"\",IF(EffectiveHardnessDiluted=\"\",\"\",IF(AlkalinityType=\"Bicarbonate (ppm)\",(AlkalinityDiluted*50/61)-EffectiveHardnessDiluted,AlkalinityDiluted-EffectiveHardnessDiluted)))","v":7.1878151260504195},null,{"$f":"IF(AlkalinityFinal=\"\",\"\",IF(EffectiveHardnessFinal=\"\",\"\",IF(AlkalinityType=\"Bicarbonate (ppm)\",(AlkalinityFinal*50/61)-EffectiveHardnessFinal,AlkalinityFinal-EffectiveHardnessFinal)))","v":22.338901262671754},null,{"$f":"IF(AlkalinityCity=\"\",\"\",IF(EffectiveHardnessCity=\"\",\"\",IF(AlkalinityType=\"Bicarbonate (ppm)\",(AlkalinityCity*50/61)-EffectiveHardnessCity,AlkalinityCity-EffectiveHardnessCity)))","v":""},null,null,null,null,{"$f":"IF(AlkalinityAdded=\"\",\"\",IF(EffectiveHardnessAdded=\"\",\"\",IF(AlkalinityType=\"Bicarbonate (ppm)\",(AlkalinityAdded*50/61)-EffectiveHardnessAdded,AlkalinityAdded-EffectiveHardnessAdded)))","v":15.151086136621331},null,{"$f":"IF(RADiluted=\"\",\"\",IF(RATargetLow=\"\",\"\",IF(RADiluted<RATargetLow,RATargetLow-RADiluted,0)))","v":5.2569756909389627},null,"(low) Total Additional Residual Alkalinity Needed (high)",null,null,null,null,null,null,null,null,null,null,null,{"$f":"IF(RADiluted=\"\",\"\",IF(RATargetHigh=\"\",\"\",IF(RADiluted<RATargetHigh,RATargetHigh-RADiluted,0)))","v":64.216975690938952},null,null,null,null,null,60,"Strike Heating Time"]
[null,{"$f":"IF(RASource=\"\",\"\",IF(RASource<-69,0,RASource*0.082+5.2))","v":5.7894008403361346},"Estimated Low SRM",null,null,null,{"$f":"IF(RATarget=\"\",\"\",IF(RATarget<-69,0,RATarget*0.082+5.2))","v":""},null,null,{"$f":"IF(RADiluted=\"\",\"\",IF(RADiluted<-69,0,RADiluted*0.082+5.2))","v":5.7894008403361346},null,{"$f":"IF(RAFinal=\"\",\"\",IF(RAFinal<-69,0,RAFinal*0.082+5.2))","v":7.0317899035390843},null,{"$f":"IF(RACity=\"\",\"\",IF(RACity<-69,0,RACity*0.082+5.2))","v":""},null,null,null,null,{"$f":"IF(CSBalanceFinal=\"Very Malty\",\"Add gypsum or epsom salt for a more bitter balance.\",IF(CSBalanceFinal=\"Malty\",\"Add gypsum or epsom salt for a more bitter balance.\",IF(CSBalanceFinal=\"Bitter\",\"Add calcium chloride for a more malty balance.\",IF(CSBalanceFinal=\"Very Bitter\",\"Add calcium chloride or table salt for a more malty balance.\",\"CaCl2 or NaCL for malty, for bitter MgSO4 or CaSO4\"))))","v":"CaCl2 or NaCL for malty, for bitter MgSO4 or CaSO4"},null,{"$f":"IF(TotalEffectiveHardnessNeededLow=0,0,IF(TotalEffectiveHardnessNeededLow=\"\",\"\",TotalEffectiveHardnessNeededLow-EffectiveHardnessAdded))","v":-62.558027580226145},null,"(low) Missing Additional Effective Hardness (high)",null,null,null,null,null,null,null,null,null,null,null,{"$f":"IF(TotalEffectiveHardnessNeededHigh=0,0,IF(TotalEffectiveHardnessNeededHigh=\"\",\"\",TotalEffectiveHardnessNeededHigh-EffectiveHardnessAdded))","v":-121.51802758022613},null,null,null,null,null,15,"Dough In Time"]
[null,{"$f":"IF(RASource=\"\",\"\",IF(RASource<-128,0,(RASource+122.4)/12.2))","v":10.621952059512331},"Estimated High SRM",null,null,null,{"$f":"IF(RATarget=\"\",\"\",IF(RATarget<-128,0,(RATarget+122.4)/12.2))","v":""},null,null,{"$f":"IF(RADiluted=\"\",\"\",IF(RADiluted<-128,0,(RADiluted+122.4)/12.2))","v":10.621952059512331},null,{"$f":"IF(RAFinal=\"\",\"\",IF(RAFinal<-128,0,(RAFinal+122.4)/12.2))","v":11.863844365792769},null,{"$f":"IF(RACity=\"\",\"\",IF(RACity<-128,0,(RACity+122.4)/12.2))","v":""},null,null,null,null,null,null,{"$f":"IF(RADiluted=\"\",\"\",IF(EffectiveHardnessDiluted=\"\",\"\",IF(AlkalinityType=\"\",\"\",IF(AlkalinitySource=\"\",\"\",IF(RATargetLow=\"\",\"\",IF(RADiluted>EffectiveHardnessDiluted,IF(AlkalinityType=\"Bicarbonate (ppm)\",50*AlkalinitySource/61,AlkalinityDiluted)-RATargetLow-EffectiveHardnessDiluted,0))))))","v":-5.2569756909389627},null,"(low) Total Additional Effective Hardness Needed (high)",null,null,null,null,null,null,null,null,null,null,null,{"$f":"IF(RADiluted=\"\",\"\",IF(EffectiveHardnessDiluted=\"\",\"\",IF(AlkalinityType=\"\",\"\",IF(AlkalinitySource=\"\",\"\",IF(RATargetHigh=\"\",\"\",IF(RADiluted>EffectiveHardnessDiluted,IF(AlkalinityType=\"Bicarbonate (ppm)\",50*AlkalinitySource/61,AlkalinityDiluted)-RATargetHigh-EffectiveHardnessDiluted,0))))))","v":-64.216975690938952},null,null,null,null,null,60,"Sparge Time"]
[null,{"$f":"IF(ChlorideSource=\"\",\"\",IF(SulfateSource=\"\",\"\",VLOOKUP(ChlorideSource/SulfateSource,[1]Tables!$C$25:$G$29,3,TRUE)))","v":"Very Malty"},"Chloride to Sulfate Balance",null,null,null,{"$f":"IF(ChlorideTarget=\"\",\"\",IF(SulfateTarget=\"\",\"\",VLOOKUP(ChlorideTarget/SulfateTarget,[1]Tables!$C$25:$G$29,3,TRUE)))","v":""},null,null,{"$f":"IF(ChlorideDiluted=\"\",\"\",IF(SulfateDiluted=\"\",\"\",VLOOKUP(ChlorideDiluted/SulfateDiluted,[1]Tables!$C$25:$G$29,3,TRUE)))","v":"Very Malty"},null,{"$f":"IF(ChlorideFinal=\"\",\"\",IF(SulfateFinal=\"\",\"\",VLOOKUP(ChlorideFinal/SulfateFinal,[1]Tables!$C$25:$G$29,3,TRUE)))","v":"Balanced"},null,{"$f":"IF(ChlorideCity=\"\",\"\",IF(SulateCity=\"\",\"\",VLOOKUP(ChlorideCity/SulateCity,[1]Tables!$C$25:$G$29,3,TRUE)))","v":""},null,null,null,null,null,null,{"$f":"IF(fPartigyle=\"No\",IF(TargetSRM=\"\",\"\",12.2*(1.4922*(SUM(MCUMash)^0.6859))-122.4),12.2*(1.4922*(TotalMashMCU^0.6859))-122.4)","v":12.444790816989382},null," Target Low RA",null,null,null,null,null,null,null,null," Target High RA ",null,null,{"$f":"IF(fPartigyle=\"No\",IF(TargetSRM=\"\",\"\",((1.4922*(SUM(MCUMash)^0.6859))-5.2)*12.2),((1.4922*(TotalMashMCU^0.6859))-5.2)*12.2)","v":71.404790816989376},null,null,null,null,null,null,"Sparge 2 Time"]
[null,null,null,null,null,null,null,null,null,null,null,null,null,null,null,null,null,null,null,null,null,null,null,null,null,null,null,null,null,null,null,null,null,null,null,null,null,null,null,null,null,"Sparge 3 Time"]
[null,null,null,null,null,null,null,null,null,null,null,null,null,null,null,null,null,null,null,null,null,null,null,null,null,null,null,null,null,null,null,null,null,null,null,null,null,null,null,null,20,"Chill Time"]
[null,"Notes",null,null,null,null,null,null,null,null,null,null,null,null,null,null,null,null,null,null,null,null,null,null,null,null,null,null,null,null,null,null,null,null,null,null,null,null,null,null,15,"Transfer Time"]
[null,null,null,null,null,null,null,null,null,null,null,null,null,null,null,null,null,null,null,null,null,null,null,null,null,null,null,null,null,null,null,null,null,null,null,null,null,null,null,null,30,"Aeration Time"]
[null,null,null,null,null,null,null,null,null,null,null,null,null,null,null,null,null,null,null,null,null,null,null,null,null,null,null,null,null,null,null,null,null,null,null,null,null,null,null,null,90,"Cleaning Time"]
[" ",null,null,null,null,null,null,null,null,null,null,null,null,null,null,null,null,null,null,null,null,null,null,null,null,null,null,null,null,null,null,null,null,null,null,null,null,null,null,null,100,"Yeast Cells per Vial\n(billions of cells)"]
[]
[null,null,null,null,null,null,null,null,null,null,null,null,null,null,null,null,null,null,null,null,null,null,null,null,null,null,null,null,null,null,null,null,null,null,null,null,null,null,null,null,0.75,"Ale Pitch Rate"]
[null,null,null,null,null,null,null,null,null,null,null,null,null,null,null,null,null,null,null,null,null,null,null,null,null,null,null,null,null,null,null,null,null,null,null,null,null,null,null,null,1.5,"Lager Pitch Rate"]
[null,null,null,null,null,null,null,null,null,null,null,null,null,null,null,null,null,null,null,null,null,null,null,null,null,null,null,null,null,null,null,null,null,null,null,null,null,null,null,null,20,"Dry Yeast Cell Count (billions/gram)"]
[]
[null,"Parti-gyle Second Runnings Beer",null,null,null,null,null,null,null,null,null,null,null,null,null,null,null,null,null,null,null,null,null,null,null,null,null,null,null,null,null,null,null,null,null,null,null,null,null,null,"Oz","Hops Ounces/IBU"]
[null,"Recipe",null,"Cost",null,"Fermenter Clear",null,null,null,"Drink Date",null,"Packaged Volume ",null,null,null,null,null,{"$f":"IF(VolumeFermentationPG=\"\",\"\",VolumeFermentationPG-FermenterLossesPG)","v":""},null,{"$f":"IF(fPartigyle=\"No\",\"\",IF(PartigyleRatio=\"1:1\",VolumePreBoil,VolumePreBoil*2))","v":""}," Pre Boil Volume",null,null,null,null,null,null,null,"Parti-gyle Volume Ratio ",null,null,null,"1:1","No"," Enable Parti-gyle Brewing?",null,null,null,null,null,"SG","Gravity Mode"]
[null,null,null,{"$f":"CostGrains+CostHops+CostYeast+CostGrainsPG+CostHopsPG+CostYeastPG","v":0},null,{"$f":"IF(BrewDate=\"\",\"\",IF(SUM(FERMENTATION_DAYS_PG)=0,\"\",BrewDate+SUM(FERMENTATION_DAYS_PG)))","v":""},null,null,null,{"$f":"IF(BrewDate=\"\",\"\",IF(SUM(FERMENTATION_DAYS_PG)=0,\"\",BrewDate+SUM(FERMENTATION_DAYS_PG)+1))","v":""},null,"Fermentation Volume ",null,null,null,null,null,{"$f":"IF(VolumePostBoilPG=\"\",\"\",VolumePostBoilPG-KettleDeadSpacePG-KettleTransferLossesPG-HopsAbsorptionPG)","v":""},null,{"$f":"IF(VolumePreBoilPG=\"\",\"\",IF(BoilOffRatePG=\"\",\"\",IF(TimeBoilPG=\"\",\"\",IF(ContractionLossPG=\"\",\"\",VolumePreBoilPG-(TimeBoilPG*BoilOffRatePG)-ContractionLossPG))))","v":""}," Post Boil Volume",null,null,null,null,null,null,null,"Carbonation",null,null,null,null,"Temp ºF","Days"," Fermentation"]
[null,"Style & Beer Properties",null,"OG",null,"FG",null,"OG ºP",null,null,"FG ºP",null,"ABV%",null,"IBU",null,null,null,"ºSRM",null,"CO2",null,"BUGU/BV",null,null,null,null,null,"CO2 Volumes ",null,null,null,null,null,null," Primary Fermentation",null,null,null,null,"Parti-gyle Factors"]
[null,"Primary Style Dropdown",null,{"$f":"VLOOKUP(StylePrimaryPG,[1]Styles!$A$2:$S$268,3,0)","v":"∞"},{"$f":"VLOOKUP(StylePrimaryPG,[1]Styles!$A$2:$S$268,4,0)","v":"∞"},{"$f":"VLOOKUP(StylePrimaryPG,[1]Styles!$A$2:$S$268,5,0)","v":"∞"},{"$f":"VLOOKUP(StylePrimaryPG,[1]Styles!$A$2:$S$268,6,0)","v":"∞"},{"$f":"IF(D76=\"\",\"\",IF(D76=\"∞\",\"∞\",(668.72*D76)-463.37-(205.347*D76^2)))","v":"∞"},null,{"$f":"IF(E76=\"\",\"\",IF(E76=\"∞\",\"∞\",(668.72*E76)-463.37-(205.347*E76^2)))","v":"∞"},{"$f":"IF(F76=\"\",\"\",IF(F76=\"∞\",\"∞\",(668.72*F76)-463.37-(205.347*F76^2)))","v":"∞"},{"$f":"IF(G76=\"\",\"\",IF(G76=\"∞\",\"∞\",(668.72*G76)-463.37-(205.347*G76^2)))","v":"∞"},{"$f":"VLOOKUP(StylePrimaryPG,[1]Styles!$A$2:$S$268,11,0)","v":"∞"},{"$f":"VLOOKUP(StylePrimaryPG,[1]Styles!$A$2:$S$268,12,0)","v":"∞"},{"$f":"VLOOKUP(StylePrimaryPG,[1]Styles!$A$2:$S$268,13,0)","v":"∞"},null,{"$f":"VLOOKUP(StylePrimaryPG,[1]Styles!$A$2:$S$268,14,0)","v":"∞"},null,{"$f":"VLOOKUP(StylePrimaryPG,[1]Styles!$A$2:$S$268,15,0)","v":"∞"},{"$f":"VLOOKUP(StylePrimaryPG,[1]Styles!$A$2:$S$268,16,0)","v":"∞"},{"$f":"VLOOKUP(StylePrimaryPG,[1]Styles!$A$2:$S$268,17,0)","v":"∞"},{"$f":"VLOOKUP(StylePrimaryPG,[1]Styles!$A$2:$S$268,18,0)","v":"∞"},{"$f":"VLOOKUP(StylePrimaryPG,[1]Styles!$A$2:$S$268,19,0)","v":"∞"},null,null,{"$f":"VLOOKUP(StylePrimaryPG,[1]Styles!$A$2:$W$268,23,0)","v":"∞"},null,null,"Serving Temp ºF ",null,null,null,null,null,null," Diacetyl Rest",null,null,null,null,{"$f":"IF(VolumeStrikeWater1=\"\",0,VolumeStrikeWater1)+IF(VolumeStrikeWater2=\"\",0,IF(VolumeStrikeWater2=\"-\",0,IF(MashType=\"Infusion Mash\",VolumeStrikeWater2,0)))+IF(VolumeMashOut=\"\",0,IF(MashType=\"Infusion Mash\",VolumeMashOut,0))+IF(VolumeSpargeWater1=\"\",0,VolumeSpargeWater1)+IF(VolumeSpargeWater2=\"\",0,IF(VolumeSpargeWater2=\"-\",0,VolumeSpargeWater2))-IF(GrainAbsorption=\"\",0,GrainAbsorption)-IF(LauterTunDeadSpace=\"\",0,)","v":7.1156250000000005},"Total Runoff Volume"]
[null,"Estimated",null,{"$f":"IF(GravityUnitsAdjustedPG=\"\",\"\",IF(VolumePostBoilPG=\"\",\"\",IF(GravityUnitsAdjustedPG=0,\"\",((GravityUnitsAdjustedPG/VolumePostBoilPG)+1000)/1000)))","v":""},null,{"$f":"IF(GravityEstimatedOriginalPG=\"\",\"\",IF(YeastStrain2PG=\"\",IF(YeastStrain1PG=\"\",\"\",((GravityEstimatedOriginalPG*1000-1000)*(((100-(YeastAttenuation1LPG+YeastAttenuation1HPG)*50)/100))+1000)/1000),IF(YeastStrain1PG=\"\",((GravityEstimatedOriginalPG*1000-1000)*(((100-(YeastAttenuation2LPG+YeastAttenuation2HPG)*50)/100))+1000)/1000,IF(YeastAttenuation2LPG+YeastAttenuation2HPG>YeastAttenuation1LPG+YeastAttenuation1HPG,\n((GravityEstimatedOriginalPG*1000-1000)*(((100-(YeastAttenuation2LPG+YeastAttenuation2HPG)*50)/100))+1000)/1000,\n((GravityEstimatedOriginalPG*1000-1000)*(((100-(YeastAttenuation1LPG+YeastAttenuation1HPG)*50)/100))+1000)/1000)\n)))","v":""},null,{"$f":"IF(GravityEstimatedOriginalPG=\"\",\"\",(668.72*GravityEstimatedOriginalPG)-463.37-(205.347*GravityEstimatedOriginalPG^2))","v":""},null,null,{"$f":"IF(GravityEstimatedFinalPG=\"\",\"\",(668.72*GravityEstimatedFinalPG)-463.37-(205.347*GravityEstimatedFinalPG^2))","v":""},null,{"$f":"IF(GravityEstimatedFinalPG=\"\",\"\",IF(GravityEstimatedOriginalPG=\"\",\"\",(GravityEstimatedOriginalPG-GravityEstimatedFinalPG)/0.806))","v":""},null,{"$f":"IF(HopsMeasurementPG=\"Ounces\",AK92,AH92)","v":""},null,null,null,{"$f":"IF(FinalMCUPG=\"\",\"\",IF(FinalMCUPG=0,\"\",1.4922*(FinalMCUPG^0.6859)))","v":7.5350185989925},null,{"$f":"IF(CO2VolumesPG=\"\",\"\",CO2VolumesPG)","v":""},null,{"$f":"IF(TotalIBUPG=\"\",\"\",IF(GravityEstimatedOriginalPG=\"\",\"\",TotalIBUPG/((GravityEstimatedOriginalPG-1)*1000)))","v":""},null,null,{"$f":"IF(TotalIBUPG=\"\",\"\",IF(GravityEstimatedFinalPG=\"\",\"\",IF(GravityEstimatedOriginalPG=\"\",\"\",0.8*TotalIBUPG/((820*(GravityEstimatedFinalPG-1))+(180*(GravityEstimatedOriginalPG-1))))))","v":""},null,null,"Beer Temperature ºF ",null,null,{"$f":"MAX(AH75:AH79)","v":0},null,null,null," Cold Crash",null,null,null,null,{"$f":"SUM(MCUMash)","v":18.530718954248364},"Total Mash Color"]
[null,"Measured",null,null,null,null,null,{"$f":"IF(GravityMeasuredOriginalPG=\"\",\"\",(668.72*GravityMeasuredOriginalPG)-463.37-(205.347*GravityMeasuredOriginalPG^2))","v":""},null,null,{"$f":"IF(GravityMeasuredFinalPG=\"\",\"\",(668.72*GravityMeasuredFinalPG)-463.37-(205.347*GravityMeasuredFinalPG^2))","v":""},null,{"$f":"IF(GravityMeasuredOriginalPG=\"\",\"\",IF(GravityMeasuredFinalPG=\"\",\"\",(GravityMeasuredOriginalPG-GravityMeasuredFinalPG)/0.806))","v":""},null," Calories per 12oz:",null,null,null,null,null,{"$f":"IF(ABVPG=\"\",\"\",IF(GravityMeasuredFinalPG=\"\",\"\",IF(PlatoMeasuredOriginalPG=\"\",\"\",IF(PlatoMeasuredFinalPG=\"\",\"\",((100*6.9*((0.79*ABVPG)/GravityMeasuredFinalPG))+4*(((0.1808*PlatoMeasuredOriginalPG)+(0.8192*PlatoMeasuredFinalPG))-0.1))*GravityMeasuredFinalPG*3.55))))","v":""},null,{"$f":"IF(TotalIBU=\"\",\"\",IF(GravityMeasuredOriginal=\"\",\"\",TotalIBU/((GravityMeasuredOriginal-1)*1000)))","v":""},null,null,{"$f":"IF(TotalIBU=\"\",\"\",IF(GravityMeasuredFinal=\"\",\"\",IF(GravityMeasuredOriginal=\"\",\"\",0.8*TotalIBU/((820*(GravityMeasuredFinal-1))+(180*(GravityMeasuredOriginal-1))))))","v":""},null,null,"Priming Sugar ",null,null,{"$f":"IF(PrimingSugarPG=\"Priming Sugar \",\"grams\",IF(VolumeFinalPG=\"\",\"\",IF(CO2VolumesPG=\"\",\"\",IF(VLOOKUP(PrimingSugarPG,[1]Grains!U210:AD221,10,0)=\"glucose\",VolumeFinalPG*3.785*(CO2VolumesPG-VLOOKUP((BeerTemperaturePG-32)*5/9,RESIDUAL_CO2,2,TRUE))/0.27027,VolumeFinalPG*3.785*(CO2VolumesPG-VLOOKUP((BeerTemperaturePG-32)*5/9,RESIDUAL_CO2,2,TRUE))/0.286))))","v":"grams"},null,null,null," Secondary Conditioning",null,null,null,null,{"$f":"IF(TotalMashMCU<3,0,VLOOKUP(TotalMashMCU,[1]Tables!O75:S110,IF(PartigyleRatio=\"1:1\",4,2),TRUE))","v":25.4},"First Beer MCU"]
[null,"Secondary Style Dropdown",null,{"$f":"VLOOKUP(StyleSecondaryPG,[1]Styles!$A$2:$S$268,3,0)","v":"∞"},{"$f":"VLOOKUP(StyleSecondaryPG,[1]Styles!$A$2:$S$268,4,0)","v":"∞"},{"$f":"VLOOKUP(StyleSecondaryPG,[1]Styles!$A$2:$S$268,5,0)","v":"∞"},{"$f":"VLOOKUP(StyleSecondaryPG,[1]Styles!$A$2:$S$268,6,0)","v":"∞"},{"$f":"IF(D79=\"\",\"\",IF(D79=\"∞\",\"∞\",(668.72*D79)-463.37-(205.347*D79^2)))","v":"∞"},null,{"$f":"IF(E79=\"\",\"\",IF(E79=\"∞\",\"∞\",(668.72*E79)-463.37-(205.347*E79^2)))","v":"∞"},{"$f":"IF(F79=\"\",\"\",IF(F79=\"∞\",\"∞\",(668.72*F79)-463.37-(205.347*F79^2)))","v":"∞"},{"$f":"IF(G79=\"\",\"\",IF(G79=\"∞\",\"∞\",(668.72*G79)-463.37-(205.347*G79^2)))","v":"∞"},{"$f":"VLOOKUP(StyleSecondaryPG,[1]Styles!$A$2:$S$268,11,0)","v":"∞"},{"$f":"VLOOKUP(StyleSecondaryPG,[1]Styles!$A$2:$S$268,12,0)","v":"∞"},{"$f":"VLOOKUP(StyleSecondaryPG,[1]Styles!$A$2:$S$268,13,0)","v":"∞"},null,{"$f":"VLOOKUP(StyleSecondaryPG,[1]Styles!$A$2:$S$268,14,0)","v":"∞"},null,{"$f":"VLOOKUP(StyleSecondaryPG,[1]Styles!$A$2:$S$268,15,0)","v":"∞"},{"$f":"VLOOKUP(StyleSecondaryPG,[1]Styles!$A$2:$S$268,16,0)","v":"∞"},{"$f":"VLOOKUP(StyleSecondaryPG,[1]Styles!$A$2:$S$268,17,0)","v":"∞"},{"$f":"VLOOKUP(StyleSecondaryPG,[1]Styles!$A$2:$S$268,18,0)","v":"∞"},{"$f":"VLOOKUP(StyleSecondaryPG,[1]Styles!$A$2:$S$268,19,0)","v":"∞"},null,null,{"$f":"VLOOKUP(StyleSecondaryPG,[1]Styles!$A$2:$W$268,23,0)","v":"∞"},null,null,"Force Carb Pressure (PSI)  ",null,null,{"$f":"IF(TempServingPG=\"\",\"\",IF(CO2VolumesPG=\"\",\"\",-16.6999-0.0101059*TempServingPG+0.00116512*TempServingPG^2+0.173354*TempServingPG*CO2VolumesPG+4.24267*CO2VolumesPG-0.0684226*CO2VolumesPG^2))","v":""},null,null,null," Aging (including carbonation)",null,null,null,null,{"$f":"IF(TotalMashMCU<3,0,VLOOKUP(TotalMashMCU,[1]Tables!O75:S110,IF(PartigyleRatio=\"1:1\",5,3),TRUE))","v":10.6},"Second Beer MCU"]
[null,"Malt, Extract & Adjuncts",null,"Maltster",null,null,"Origin",null,null,"Pounds","%Weight",null,"ºL / MCU",null,"Potential",null,null,null,"GU (Adj.)",null,"Late?",null,null,null,"Hops",null,null,null,null,null,null,null,"% AA","Ounces"," Time",null,{"$f":"IF(HopsMeasurementPG=\"Ounces\",\"IBU\",\"Ounces\")","v":"IBU"},null,"Utilization",null,{"$f":"IF(fPartigyle=\"Yes\",SUM(AGUMash)/VolumeRunoffTotal/1000+1,\"\")","v":""},"Total Mash Gravity"]
[null,null,null,{"$f":"IF(B81=\"\",\" \",VLOOKUP(B81,GRAINS_ATTRIBUTES,2,0))","v":" "},null,null,{"$f":"IF(B81=\"\",\" \",VLOOKUP(B81,GRAINS_ATTRIBUTES,3,0))","v":" "},null,null,null,{"$f":"IF(B81=\"\",\"\",IF(J81=\"\",\"\",IF(TotalGrainWeightPG=0,\"\",IF(U81=\"Skip\",\"--\",J81/TotalGrainWeightPG))))","v":""},null,{"$f":"IF(B81=\"\",\"\",VLOOKUP(B81,GRAINS_ATTRIBUTES,4,0))","v":""},{"$f":"IF(J81=\"\",\"\",IF(B81=\"\",\"\",IF(VolumePostBoilPG=\"\",\"\",J81*M81/VolumePostBoilPG)))","v":""},{"$f":"IF(B81=\"\",\" \",VLOOKUP(B81,GRAINS_ATTRIBUTES,6,0))","v":" "},null,null,null,{"$f":"IF(B81=\"\",\"\",IF(J81=\"\",\"\",J81*((O81*1000)-1000)))","v":""},{"$f":"IF(EncoreEfficiency=\"\",\"\",IF(B81=\"\",\"\",IF(J81=\"\",\"\",IF(VLOOKUP(B81,GRAINS_ATTRIBUTES,9,0)=\"SUGARS\",S81,S81*EncoreEfficiency))))","v":""},"Mash",null,null,{"$f":"IF(T81=\"\",\"\",IF(U81=\"Yes\",T81*ExtractGUFactor,IF(U81=\"Skip\",0,T81)))","v":""},null,null,null,null,null,null,null,null,{"$f":"IF(Y81=\"\",\"\",IF(fHopsAging=\"Yes\",IF(HopsTemperature=\"\",\"\",IF(VLOOKUP(Y81,HOPS_ATTRIBUTES,11,0)=\"\",\"\",IF(VLOOKUP(Y81,HOPS_ATTRIBUTES,10,0)=\"\",\"\",VLOOKUP(Y81,HOPS_ATTRIBUTES,2,0)*1/(EXP(VLOOKUP(VLOOKUP(Y81,HOPS_ATTRIBUTES,10,0)*100,[1]Tables!$P$16:$Q$66,2,0)*VLOOKUP(ROUND((HopsTemperature-32)*5/9,0),[1]Tables!$L$16:$N$65,3,0)*VLOOKUP(HopsStorage,[1]Tables!$C$32:$J$34,8,0)*(BrewDate-VLOOKUP(Y81,HOPS_ATTRIBUTES,11,0))))))),VLOOKUP(Y81,HOPS_ATTRIBUTES,2,0)))","v":""},null,null,null,{"$f":"IF(AM81=\"\",\"\",IF(AH81=\"\",\"\",IF(AG81=\"\",\"\",IF(VolumePreBoilPG=\"\",\"\",IF(VolumePostBoilPG=\"\",\"\",IF(HopsMeasurementPG=\"Ounces\",IF(fIBUPG=\"Tinseth\",AH81*AG81*AM81*7490/((VolumePreBoilPG+VolumePostBoilPG)/2),AH81*AM81*AG81*7462/((VolumePreBoilPG+VolumePostBoilPG)/2)),IF(fIBUPG=\"Tinseth\",\n((VolumePreBoilPG+VolumePostBoilPG)/2)*AH81/(AG81*AM81*7490),\n((VolumePreBoilPG+VolumePostBoilPG)/2)*AH81/(AM81*AG81*7462))))))))","v":""},null,{"$f":"IF(Y81=\"\",\"\",IF(AI81=\"\",\"\",IF(GravityPreBoilPG=\"\",\"\",IF(GravityEstimatedOriginalPG=\"\",\"\",IF(TimeBoilPG=\"\",\"\",IF(FWHFactor=\"\",\"\",IF(PelletHopFactor=\"\",\"\",IF(LeafHopFactor=\"\",\"\",IF(AI81=\"dry hop\",0,IF(fIBUPG=\"Tinseth\",((1-EXP(-0.04*IF(AI81=\"FWH\",TimeBoilPG,AI81)))/4.15)*1.65*0.000125^(((GravityPreBoilPG+GravityEstimatedOriginalPG)/2)-1),18.11+13.86*TANH((AI81-31.32)/18.27)/100)*IF(AI81=\"FWH\",FWHFactor,1)*IF(VLOOKUP(Y81,HOPS_ATTRIBUTES,8,0)=\"Pellet\",PelletHopFactor,LeafHopFactor))))))))))","v":""},null,{"$f":"IF(GravityPreBoilPG=\"\",0,IF(GravityPreBoilPG<1.05,0,VolumePreBoil*(VLOOKUP(GravityPreBoilPG,[1]Tables!$C$75:$G$122,IF(PartigyleRatio=\"1:1\",4,2),TRUE)*1000-1000)))","v":0},"First Beer Mash GU"]
[null,null,null," ",null,null," ",null,null,null,"",null,"",""," ",null,null,null,{"$f":"IF(B82=\"\",\"\",IF(J82=\"\",\"\",J82*((O82*1000)-1000)))","v":""},"","Mash",null,null,"",null,null,null,null,null,null,null,null,{"$f":"IF(Y82=\"\",\"\",IF(fHopsAging=\"Yes\",IF(HopsTemperature=\"\",\"\",IF(VLOOKUP(Y82,HOPS_ATTRIBUTES,11,0)=\"\",\"\",IF(VLOOKUP(Y82,HOPS_ATTRIBUTES,10,0)=\"\",\"\",VLOOKUP(Y82,HOPS_ATTRIBUTES,2,0)*1/(EXP(VLOOKUP(VLOOKUP(Y82,HOPS_ATTRIBUTES,10,0)*100,[1]Tables!$P$16:$Q$66,2,0)*VLOOKUP(ROUND((HopsTemperature-32)*5/9,0),[1]Tables!$L$16:$N$65,3,0)*VLOOKUP(HopsStorage,[1]Tables!$C$32:$J$34,8,0)*(BrewDate-VLOOKUP(Y82,HOPS_ATTRIBUTES,11,0))))))),VLOOKUP(Y82,HOPS_ATTRIBUTES,2,0)))","v":""},null,null,null,{"$f":"IF(AM82=\"\",\"\",IF(AH82=\"\",\"\",IF(AG82=\"\",\"\",IF(VolumePreBoilPG=\"\",\"\",IF(VolumePostBoilPG=\"\",\"\",IF(HopsMeasurementPG=\"Ounces\",IF(fIBUPG=\"Tinseth\",AH82*AG82*AM82*7490/((VolumePreBoilPG+VolumePostBoilPG)/2),AH82*AM82*AG82*7462/((VolumePreBoilPG+VolumePostBoilPG)/2)),IF(fIBUPG=\"Tinseth\",\n((VolumePreBoilPG+VolumePostBoilPG)/2)*AH82/(AG82*AM82*7490),\n((VolumePreBoilPG+VolumePostBoilPG)/2)*AH82/(AM82*AG82*7462))))))))","v":""},null,"",null,{"$f":"IF(GravityPreBoilPG=\"\",0,IF(GravityPreBoilPG<1.05,0,(VLOOKUP(GravityPreBoilPG,[1]Tables!$C$75:$G$122,IF(PartigyleRatio=\"1:1\",5,3),TRUE)*1000-1000)*VolumePreBoilPG))","v":0},"Second Beer Mash GU"]
[null,null,null," ",null,null," ",null,null,null,"",null,"",""," ",null,null,null,"","","Mash",null,null,"",null,null,null,null,null,null,null,null,{"$f":"IF(Y83=\"\",\"\",IF(fHopsAging=\"Yes\",IF(HopsTemperature=\"\",\"\",IF(VLOOKUP(Y83,HOPS_ATTRIBUTES,11,0)=\"\",\"\",IF(VLOOKUP(Y83,HOPS_ATTRIBUTES,10,0)=\"\",\"\",VLOOKUP(Y83,HOPS_ATTRIBUTES,2,0)*1/(EXP(VLOOKUP(VLOOKUP(Y83,HOPS_ATTRIBUTES,10,0)*100,[1]Tables!$P$16:$Q$66,2,0)*VLOOKUP(ROUND((HopsTemperature-32)*5/9,0),[1]Tables!$L$16:$N$65,3,0)*VLOOKUP(HopsStorage,[1]Tables!$C$32:$J$34,8,0)*(BrewDate-VLOOKUP(Y83,HOPS_ATTRIBUTES,11,0))))))),VLOOKUP(Y83,HOPS_ATTRIBUTES,2,0)))","v":""},null,null,null,"",null,"",null,null,"Pre Boil Gravity PG"]
[null,null,null," ",null,null," ",null,null,null,"",null,"",""," ",null,null,null,"","","Mash",null,null,"",null,null,null,null,null,null,null,null,{"$f":"IF(Y84=\"\",\"\",IF(fHopsAging=\"Yes\",IF(HopsTemperature=\"\",\"\",IF(VLOOKUP(Y84,HOPS_ATTRIBUTES,11,0)=\"\",\"\",IF(VLOOKUP(Y84,HOPS_ATTRIBUTES,10,0)=\"\",\"\",VLOOKUP(Y84,HOPS_ATTRIBUTES,2,0)*1/(EXP(VLOOKUP(VLOOKUP(Y84,HOPS_ATTRIBUTES,10,0)*100,[1]Tables!$P$16:$Q$66,2,0)*VLOOKUP(ROUND((HopsTemperature-32)*5/9,0),[1]Tables!$L$16:$N$65,3,0)*VLOOKUP(HopsStorage,[1]Tables!$C$32:$J$34,8,0)*(BrewDate-VLOOKUP(Y84,HOPS_ATTRIBUTES,11,0))))))),VLOOKUP(Y84,HOPS_ATTRIBUTES,2,0)))","v":""},null,null,null,"",null,"",null,0.15,"Encore Efficiency"]
[null,null,null," ",null,null," ",null,null,null,"",null,"",""," ",null,null,null,"","","Mash",null,null,"",null,null,null,null,null,null,null,null,{"$f":"IF(Y85=\"\",\"\",IF(fHopsAging=\"Yes\",IF(HopsTemperature=\"\",\"\",IF(VLOOKUP(Y85,HOPS_ATTRIBUTES,11,0)=\"\",\"\",IF(VLOOKUP(Y85,HOPS_ATTRIBUTES,10,0)=\"\",\"\",VLOOKUP(Y85,HOPS_ATTRIBUTES,2,0)*1/(EXP(VLOOKUP(VLOOKUP(Y85,HOPS_ATTRIBUTES,10,0)*100,[1]Tables!$P$16:$Q$66,2,0)*VLOOKUP(ROUND((HopsTemperature-32)*5/9,0),[1]Tables!$L$16:$N$65,3,0)*VLOOKUP(HopsStorage,[1]Tables!$C$32:$J$34,8,0)*(BrewDate-VLOOKUP(Y85,HOPS_ATTRIBUTES,11,0))))))),VLOOKUP(Y85,HOPS_ATTRIBUTES,2,0)))","v":""},null,null,null,"",null,"",null,{"$f":"IF(WortContraction=\"\",\"\",IF(VolumePreBoilPG=\"\",\"\",VolumePreBoilPG*WortContraction))","v":""},"ContractionLossesPG"]
[null,null,null," ",null,null," ",null,null,null,"",null,"",""," ",null,null,null,"","","Mash",null,null,"",null,null,null,null,null,null,null,null,{"$f":"IF(Y86=\"\",\"\",IF(fHopsAging=\"Yes\",IF(HopsTemperature=\"\",\"\",IF(VLOOKUP(Y86,HOPS_ATTRIBUTES,11,0)=\"\",\"\",IF(VLOOKUP(Y86,HOPS_ATTRIBUTES,10,0)=\"\",\"\",VLOOKUP(Y86,HOPS_ATTRIBUTES,2,0)*1/(EXP(VLOOKUP(VLOOKUP(Y86,HOPS_ATTRIBUTES,10,0)*100,[1]Tables!$P$16:$Q$66,2,0)*VLOOKUP(ROUND((HopsTemperature-32)*5/9,0),[1]Tables!$L$16:$N$65,3,0)*VLOOKUP(HopsStorage,[1]Tables!$C$32:$J$34,8,0)*(BrewDate-VLOOKUP(Y86,HOPS_ATTRIBUTES,11,0))))))),VLOOKUP(Y86,HOPS_ATTRIBUTES,2,0)))","v":""},null,null,null,"",null,"",null,{"$f":"IF(AO31=\"\",0,IF(LeafHopsOuncesPG=\"\",0,LeafHopsOuncesPG*AO31/128))","v":0},"HopsAbsorptionPG"]
[null,null,null," ",null,null," ",null,null,null,"",null,"",""," ",null,null,null,"","","Mash",null,null,"",null,null,null,null,null,null,null,null,{"$f":"IF(Y87=\"\",\"\",IF(fHopsAging=\"Yes\",IF(HopsTemperature=\"\",\"\",IF(VLOOKUP(Y87,HOPS_ATTRIBUTES,11,0)=\"\",\"\",IF(VLOOKUP(Y87,HOPS_ATTRIBUTES,10,0)=\"\",\"\",VLOOKUP(Y87,HOPS_ATTRIBUTES,2,0)*1/(EXP(VLOOKUP(VLOOKUP(Y87,HOPS_ATTRIBUTES,10,0)*100,[1]Tables!$P$16:$Q$66,2,0)*VLOOKUP(ROUND((HopsTemperature-32)*5/9,0),[1]Tables!$L$16:$N$65,3,0)*VLOOKUP(HopsStorage,[1]Tables!$C$32:$J$34,8,0)*(BrewDate-VLOOKUP(Y87,HOPS_ATTRIBUTES,11,0))))))),VLOOKUP(Y87,HOPS_ATTRIBUTES,2,0)))","v":""},null,null,null,"",null,"",null,1.4999999999999999E-2,"Boil Off Rate PG"]
[null,null,null," ",null,null," ",null,null,null,"",null,"",""," ",null,null,null,"","","Mash",null,null,"",null,null,null,null,null,null,null,null,{"$f":"IF(Y88=\"\",\"\",IF(fHopsAging=\"Yes\",IF(HopsTemperature=\"\",\"\",IF(VLOOKUP(Y88,HOPS_ATTRIBUTES,11,0)=\"\",\"\",IF(VLOOKUP(Y88,HOPS_ATTRIBUTES,10,0)=\"\",\"\",VLOOKUP(Y88,HOPS_ATTRIBUTES,2,0)*1/(EXP(VLOOKUP(VLOOKUP(Y88,HOPS_ATTRIBUTES,10,0)*100,[1]Tables!$P$16:$Q$66,2,0)*VLOOKUP(ROUND((HopsTemperature-32)*5/9,0),[1]Tables!$L$16:$N$65,3,0)*VLOOKUP(HopsStorage,[1]Tables!$C$32:$J$34,8,0)*(BrewDate-VLOOKUP(Y88,HOPS_ATTRIBUTES,11,0))))))),VLOOKUP(Y88,HOPS_ATTRIBUTES,2,0)))","v":""},null,null,null,"",null,"",null,0.25,"Kettle Dead Space PG"]
[null,null,null," ",null,null," ",null,null,null,"",null,"",""," ",null,null,null,"","","Mash",null,null,"",null,null,null,null,null,null,null,null,{"$f":"IF(Y89=\"\",\"\",IF(fHopsAging=\"Yes\",IF(HopsTemperature=\"\",\"\",IF(VLOOKUP(Y89,HOPS_ATTRIBUTES,11,0)=\"\",\"\",IF(VLOOKUP(Y89,HOPS_ATTRIBUTES,10,0)=\"\",\"\",VLOOKUP(Y89,HOPS_ATTRIBUTES,2,0)*1/(EXP(VLOOKUP(VLOOKUP(Y89,HOPS_ATTRIBUTES,10,0)*100,[1]Tables!$P$16:$Q$66,2,0)*VLOOKUP(ROUND((HopsTemperature-32)*5/9,0),[1]Tables!$L$16:$N$65,3,0)*VLOOKUP(HopsStorage,[1]Tables!$C$32:$J$34,8,0)*(BrewDate-VLOOKUP(Y89,HOPS_ATTRIBUTES,11,0))))))),VLOOKUP(Y89,HOPS_ATTRIBUTES,2,0)))","v":""},null,null,null,"",null,"",null,0.25,"Kettle Transfer Losses"]
[null,null,null," ",null,null," ",null,null,null,"",null,"",""," ",null,null,null,"","","Mash",null,null,"",null,null,null,null,null,null,null,null,{"$f":"IF(Y90=\"\",\"\",IF(fHopsAging=\"Yes\",IF(HopsTemperature=\"\",\"\",IF(VLOOKUP(Y90,HOPS_ATTRIBUTES,11,0)=\"\",\"\",IF(VLOOKUP(Y90,HOPS_ATTRIBUTES,10,0)=\"\",\"\",VLOOKUP(Y90,HOPS_ATTRIBUTES,2,0)*1/(EXP(VLOOKUP(VLOOKUP(Y90,HOPS_ATTRIBUTES,10,0)*100,[1]Tables!$P$16:$Q$66,2,0)*VLOOKUP(ROUND((HopsTemperature-32)*5/9,0),[1]Tables!$L$16:$N$65,3,0)*VLOOKUP(HopsStorage,[1]Tables!$C$32:$J$34,8,0)*(BrewDate-VLOOKUP(Y90,HOPS_ATTRIBUTES,11,0))))))),VLOOKUP(Y90,HOPS_ATTRIBUTES,2,0)))","v":""},null,null,null,"",null,"",null,0.25,"Fermenter Losses"]
[null,null,null," ",null,null," ",null,null,null,"",null,"",""," ",null,null,null,"","","Mash",null,null,"",null,null,null,null,null,null,null,null,{"$f":"IF(Y91=\"\",\"\",IF(fHopsAging=\"Yes\",IF(HopsTemperature=\"\",\"\",IF(VLOOKUP(Y91,HOPS_ATTRIBUTES,11,0)=\"\",\"\",IF(VLOOKUP(Y91,HOPS_ATTRIBUTES,10,0)=\"\",\"\",VLOOKUP(Y91,HOPS_ATTRIBUTES,2,0)*1/(EXP(VLOOKUP(VLOOKUP(Y91,HOPS_ATTRIBUTES,10,0)*100,[1]Tables!$P$16:$Q$66,2,0)*VLOOKUP(ROUND((HopsTemperature-32)*5/9,0),[1]Tables!$L$16:$N$65,3,0)*VLOOKUP(HopsStorage,[1]Tables!$C$32:$J$34,8,0)*(BrewDate-VLOOKUP(Y91,HOPS_ATTRIBUTES,11,0))))))),VLOOKUP(Y91,HOPS_ATTRIBUTES,2,0)))","v":""},null,null,null,"",null,"",null,90,"Total Boil Time PG"]
[null,"Cost:  ",{"$f":"IF(B81=\"\",0,J81*VLOOKUP(B81,[1]Grains!$A$53:$L$188,8,0))+IF(B82=\"\",0,J82*VLOOKUP(B82,[1]Grains!$A$53:$L$188,8,0))+IF(B83=\"\",0,J83*VLOOKUP(B83,[1]Grains!$A$53:$L$188,8,0))+IF(B84=\"\",0,J84*VLOOKUP(B84,[1]Grains!$A$53:$L$188,8,0))+IF(B85=\"\",0,J85*VLOOKUP(B85,[1]Grains!$A$53:$L$188,8,0))+IF(B86=\"\",0,J86*VLOOKUP(B86,[1]Grains!$A$53:$L$188,8,0))+IF(B87=\"\",0,J87*VLOOKUP(B87,[1]Grains!$A$53:$L$188,8,0))+IF(B88=\"\",0,J88*VLOOKUP(B88,[1]Grains!$A$53:$L$188,8,0))+IF(B89=\"\",0,J89*VLOOKUP(B89,[1]Grains!$A$53:$L$188,8,0))+IF(B90=\"\",0,J90*VLOOKUP(B90,[1]Grains!$A$53:$L$188,8,0))+IF(B91=\"\",0,J91*VLOOKUP(B91,[1]Grains!$A$53:$L$188,8,0))","v":0},null,null,null,null,null,null,{"$f":"IF(B81=\"\",0,IF(U81=\"Skip\",0,J81))+IF(B82=\"\",0,IF(U82=\"Skip\",0,J82))+IF(B83=\"\",0,IF(U83=\"Skip\",0,J83))+IF(B84=\"\",0,IF(U84=\"Skip\",0,J84))+IF(B85=\"\",0,IF(U85=\"Skip\",0,J85))+IF(B86=\"\",0,IF(U86=\"Skip\",0,J86))+IF(B87=\"\",0,IF(U87=\"Skip\",0,J87))+IF(B88=\"\",0,IF(U88=\"Skip\",0,J88))+IF(B89=\"\",0,IF(U89=\"Skip\",0,J89))+IF(B90=\"\",0,IF(U90=\"Skip\",0,J90))+IF(B91=\"\",0,IF(U91=\"Skip\",0,J91))","v":0},null,null,{"$f":"SUM(MCUPG)+SecondBeerMCU","v":10.6},null,null,null,null,null,{"$f":"IF(SUM(GUPG)=0,\"\",SUM(GUPG))","v":""},{"$f":"SUM(AGUPG2)+SecondBeerMashGU","v":0},{"$f":"SUM(AWGUPG2)+SecondBeerMashGU","v":0},null,null,null,"Cost:  ",null,null,null,null,null,{"$f":"IF(HopsMeasurementPG=\"Ounces\",IF(Y81=\"\",0,AH81*VLOOKUP(Y81,[1]Hops!$A$2:$J$124,9,0))+IF(Y82=\"\",0,AH82*VLOOKUP(Y82,[1]Hops!$A$2:$J$124,9,0))+IF(Y83=\"\",0,AH83*VLOOKUP(Y83,[1]Hops!$A$2:$J$124,9,0))+IF(Y84=\"\",0,AH84*VLOOKUP(Y84,[1]Hops!$A$2:$J$124,9,0))+IF(Y85=\"\",0,AH85*VLOOKUP(Y85,[1]Hops!$A$2:$J$124,9,0))+IF(Y86=\"\",0,AH86*VLOOKUP(Y86,[1]Hops!$A$2:$J$124,9,0))+IF(Y87=\"\",0,AH87*VLOOKUP(Y87,[1]Hops!$A$2:$J$124,9,0))+IF(Y88=\"\",0,AH88*VLOOKUP(Y88,[1]Hops!$A$2:$J$124,9,0))+IF(Y89=\"\",0,AH89*VLOOKUP(Y89,[1]Hops!$A$2:$J$124,9,0))+IF(Y90=\"\",0,AH90*VLOOKUP(Y90,[1]Hops!$A$2:$J$124,9,0))+IF(Y91=\"\",0,AH91*VLOOKUP(Y91,[1]Hops!$A$2:$J$124,9,0)),IF(Y81=\"\",0,AK81*VLOOKUP(Y81,[1]Hops!$A$2:$J$124,9,0))+IF(Y82=\"\",0,AK82*VLOOKUP(Y82,[1]Hops!$A$2:$J$124,9,0))+IF(Y83=\"\",0,AK83*VLOOKUP(Y83,[1]Hops!$A$2:$J$124,9,0))+IF(Y84=\"\",0,AK84*VLOOKUP(Y84,[1]Hops!$A$2:$J$124,9,0))+IF(Y85=\"\",0,AK85*VLOOKUP(Y85,[1]Hops!$A$2:$J$124,9,0))+IF(Y86=\"\",0,AK86*VLOOKUP(Y86,[1]Hops!$A$2:$J$124,9,0))+IF(Y87=\"\",0,AK87*VLOOKUP(Y87,[1]Hops!$A$2:$J$124,9,0))+IF(Y88=\"\",0,AK88*VLOOKUP(Y88,[1]Hops!$A$2:$J$124,9,0))+IF(Y89=\"\",0,AK89*VLOOKUP(Y89,[1]Hops!$A$2:$J$124,9,0))+IF(Y90=\"\",0,AK90*VLOOKUP(Y90,[1]Hops!$A$2:$J$124,9,0))+IF(Y91=\"\",0,AK91*VLOOKUP(Y91,[1]Hops!$A$2:$J$124,9,0)))","v":0},null,null,{"$f":"IF(SUM(OuncesorIBUPG)=0,\"\",SUM(OuncesorIBUPG))","v":""},{"$f":"IF(HopsMeasurement=\"Ounces\",IF(Y81=\"\",0,IF(VLOOKUP(Y81,[1]Hops!$A$2:$J$124,8,0)=\"Pellet\",0,AH81))+IF(Y82=\"\",0,IF(VLOOKUP(Y82,[1]Hops!$A$2:$J$124,8,0)=\"Pellet\",0,AH82))+IF(Y83=\"\",0,IF(VLOOKUP(Y83,[1]Hops!$A$2:$J$124,8,0)=\"Pellet\",0,AH83))+IF(Y84=\"\",0,IF(VLOOKUP(Y84,[1]Hops!$A$2:$J$124,8,0)=\"Pellet\",0,AH84))+IF(Y85=\"\",0,IF(VLOOKUP(Y85,[1]Hops!$A$2:$J$124,8,0)=\"Pellet\",0,AH85))+IF(Y86=\"\",0,IF(VLOOKUP(Y86,[1]Hops!$A$2:$J$124,8,0)=\"Pellet\",0,AH86))+IF(Y87=\"\",0,IF(VLOOKUP(Y87,[1]Hops!$A$2:$J$124,8,0)=\"Pellet\",0,AH87))+IF(Y88=\"\",0,IF(VLOOKUP(Y88,[1]Hops!$A$2:$J$124,8,0)=\"Pellet\",0,AH88))+IF(Y89=\"\",0,IF(VLOOKUP(Y89,[1]Hops!$A$2:$J$124,8,0)=\"Pellet\",0,AH89))+IF(Y90=\"\",0,IF(VLOOKUP(Y90,[1]Hops!$A$2:$J$124,8,0)=\"Pellet\",0,AH90))+IF(Y91=\"\",0,IF(VLOOKUP(Y91,[1]Hops!$A$2:$J$124,8,0)=\"Pellet\",0,AH91)),IF(Y81=\"\",0,IF(VLOOKUP(Y81,[1]Hops!$A$2:$J$124,8,0)=\"Pellet\",0,AK81))+IF(Y82=\"\",0,IF(VLOOKUP(Y82,[1]Hops!$A$2:$J$124,8,0)=\"Pellet\",0,AK82))+IF(Y83=\"\",0,IF(VLOOKUP(Y83,[1]Hops!$A$2:$J$124,8,0)=\"Pellet\",0,AK83))+IF(Y84=\"\",0,IF(VLOOKUP(Y84,[1]Hops!$A$2:$J$124,8,0)=\"Pellet\",0,AK84))+IF(Y85=\"\",0,IF(VLOOKUP(Y85,[1]Hops!$A$2:$J$124,8,0)=\"Pellet\",0,AK85))+IF(Y86=\"\",0,IF(VLOOKUP(Y86,[1]Hops!$A$2:$J$124,8,0)=\"Pellet\",0,AK86))+IF(Y87=\"\",0,IF(VLOOKUP(Y87,[1]Hops!$A$2:$J$124,8,0)=\"Pellet\",0,AK87))+IF(Y88=\"\",0,IF(VLOOKUP(Y88,[1]Hops!$A$2:$J$124,8,0)=\"Pellet\",0,AK88))+IF(Y89=\"\",0,IF(VLOOKUP(Y89,[1]Hops!$A$2:$J$124,8,0)=\"Pellet\",0,AK89))+IF(Y90=\"\",0,IF(VLOOKUP(Y90,[1]Hops!$A$2:$J$124,8,0)=\"Pellet\",0,AK90))+IF(Y91=\"\",0,IF(VLOOKUP(Y91,[1]Hops!$A$2:$J$124,8,0)=\"Pellet\",0,AK91)))","v":0},null,{"$f":"IF(SUM(IBUorOuncesPG)=0,\"\",SUM(IBUorOuncesPG))","v":""},null,"Tinseth",null,null,"Chill Time PG"]
[null,"Yeast",null,"Temperature",null,"Attenuation",null,null,"Flocculation",null,null,"Styles & Notes",null,null,null,null,null,null,null,null,null,null,null,null,null,null,null,null,null,null,null,null,null,null,null,null,null,"Name",null,null,null,"Transfer Time PG"]
[null,null,null,{"$f":"IF(YeastStrain1PG=\"\",\"\",VLOOKUP(YeastStrain1PG,YEAST_ATTRIBUTES,3,0))","v":""},{"$f":"IF(YeastStrain1PG=\"\",\"\",VLOOKUP(YeastStrain1PG,YEAST_ATTRIBUTES,4,0))","v":""},{"$f":"IF(YeastStrain1PG=\"\",\"\",VLOOKUP(YeastStrain1PG,YEAST_ATTRIBUTES,5,0))","v":""},{"$f":"IF(YeastStrain1PG=\"\",\"\",VLOOKUP(YeastStrain1PG,YEAST_ATTRIBUTES,6,0))","v":""},null,{"$f":"IF(YeastStrain1PG=\"\",\"\",VLOOKUP(YeastStrain1PG,YEAST_ATTRIBUTES,7,0))","v":""},null,null,{"$f":"IF(YeastStrain1PG=\"\",\"\",VLOOKUP(YeastStrain1PG,YEAST_ATTRIBUTES,9,0))","v":""},null,null,null,null,null,null,null,null,null,null,null,null,null,null,null,null,null,null,null,null,null,null,null,null,null,{"$f":"IF(YeastStrain1PG=\"\",\"\",VLOOKUP(YeastStrain1PG,YEAST_ATTRIBUTES,2,0))","v":""},null,null,null,"Aeration Time PG"]
[null,null,null,{"$f":"IF(YeastStrain2PG=\"\",\"\",VLOOKUP(YeastStrain2PG,YEAST_ATTRIBUTES,3,0))","v":""},{"$f":"IF(YeastStrain2PG=\"\",\"\",VLOOKUP(YeastStrain2PG,YEAST_ATTRIBUTES,4,0))","v":""},{"$f":"IF(YeastStrain2PG=\"\",\"\",VLOOKUP(YeastStrain2PG,YEAST_ATTRIBUTES,5,0))","v":""},{"$f":"IF(YeastStrain2PG=\"\",\"\",VLOOKUP(YeastStrain2PG,YEAST_ATTRIBUTES,6,0))","v":""},null,{"$f":"IF(YeastStrain2PG=\"\",\"\",VLOOKUP(YeastStrain2PG,YEAST_ATTRIBUTES,7,0))","v":""},null,null,{"$f":"IF(YeastStrain2PG=\"\",\"\",VLOOKUP(YeastStrain2PG,YEAST_ATTRIBUTES,9,0))","v":""},null,null,null,null,null,null,null,null,null,null,null,null,null,null,null,null,null,null,null,null,null,null,null,null,null,{"$f":"IF(YeastStrain2PG=\"\",\"\",VLOOKUP(YeastStrain2PG,YEAST_ATTRIBUTES,2,0))","v":""}]
[null,"Ale ","Required Cell Count: ",{"$f":"IF(PlatoEstimatedOriginalPG=\"\",\"\",IF(VolumeFermentationPG=\"\",\"\",IF(AleOrLagerPG=\"Ale \",IF(PitchingRateAle=\"\",\"\",1000000*PitchingRateAle*VolumeFermentationPG*3785*PlatoEstimatedOriginalPG),IF(PitchingRateLager=\"\",\"\",1000000*PitchingRateLager*VolumeFermentationPG*3785*PlatoEstimatedOriginalPG))))","v":""},null,null,"Yeast Preparation: ",null,null,null,null,"Stirplate Starter",null,null,null,null,null,null,null,"# of Packages: ",null,null,null,null,null,null,null,null,"Starter Volume (mL/vials): ",null,null,{"$f":"IF(RequiredCellCountPG=\"\",\"\",RequiredCellCountPG/(VLOOKUP(YeastPreparationPG,[1]Tables!$C$15:$F$20,4,0)*1000000))","v":""},null,null,"Dry Yeast (grams): ",null,null,null,{"$f":"IF(RequiredCellCountPG=\"\",\"\",RequiredCellCountPG/(CellsPerDryGram*1000000000))","v":""}]
[null,"Cost:  ",{"$f":"IF(YeastStrain1PG=\"\",0,YeastPackagesPG/2*VLOOKUP(YeastStrain1PG,[1]Yeast!$A$2:$L$168,12,0))+IF(YeastStrain2PG=\"\",IF(YeastStrain1PG=\"\",0,YeastPackagesPG/2*VLOOKUP(YeastStrain1PG,[1]Yeast!$A$2:$L$168,12,0)),YeastPackagesPG/2*VLOOKUP(YeastStrain2PG,[1]Yeast!$A$2:$L$168,12,0))","v":0}]
[]
[null,"Notes"]
[]
[]
[]
[]
[]
[]
[]
[]
[]
[]
[]
[]
[]
[]
[]
[]
[]
[]
[]
[]
[]
[]
[]
[]
[]
[null,"Printable Report"]
[null,"Recipe:",{"$f":"IF(RecipeName=\"\",\"\",RecipeName)","v":"Example Ale"},null,null,"Brew Date:",null,null,{"$f":"BrewDate","v":"2009-03-25"},null,null,"Time:",null,{"$f":"WorkTime","v":8.25},null,"Cost:",null,null,null,{"$f":"TotalCost","v":0},null,"Primary Style:",null,null,null,null,null,null,null,{"$f":"StylePrimary","v":"Extra Special/Strong Bitter"},null,null,null,"Secondary Style:",null,null,{"$f":"StyleSecondary","v":"Extra Special Bitter"}]
[]
[null,null,null,"Original Gravity",null,null,"Final Gravity",null,null,null,"Original Extract",null,null,null,"Final Extract",null,null,null,null,"IBU",null,"SRM",null,null,"% ABV",null,null,null,null,"Calories per 12 oz",null,"BU:GU",null,"BV","CO2 Volumes"]
[null,"Estimated Beer Properties:",null,{"$f":"GravityEstimatedOriginal","v":1.0457070619607844},null,null,{"$f":"GravityEstimatedFinal","v":1.0153118657568627},null,null,null,{"$f":"PlatoEstimatedOriginal","v":11.367612659287516},null,null,null,{"$f":"PlatoEstimatedFinal","v":3.9057152057524434},null,null,null,null,{"$f":"TotalIBU","v":41.063945514836959},null,{"$f":"TargetSRM","v":11.052851706310605},null,null,{"$f":"ABVEstimated","v":3.7711161543327203E-2},null,null,null,null,{"$f":"IF(ABVEstimated=\"\",\"\",IF(GravityEstimatedFinal=\"\",\"\",IF(PlatoEstimatedOriginal=\"\",\"\",IF(PlatoEstimatedFinal=\"\",\"\",((100*6.9*((0.79*ABVEstimated)/GravityEstimatedFinal))+4*(((0.1808*PlatoEstimatedOriginal)+(0.8192*PlatoEstimatedFinal))-0.1))*GravityEstimatedFinal*3.55))))","v":147.29439633669787},null,{"$f":"BUGUEstimated","v":0.89841577544557194},null,{"$f":"BVEstimated","v":1.5806743355101376},{"$f":"IF(CO2Volumes=\"\",\"\",CO2Volumes)","v":1.7}]
[null,"Measured Beer Properties:"]
[]
[null,null,"Packaged Volume:",{"$f":"VolumeFinal","v":5},"Fermentation Volume:",null,null,null,null,{"$f":"VolumeFermentation","v":5.25},"Post Boil Volume:",null,null,null,{"$f":"VolumePostBoil","v":5.9765625},null,null,"Pre Boil Volume:",null,null,null,{"$f":"VolumePreBoil","v":7.1156250000000005},null,null,null,null,null,null,null,null,null,null,"Pre Boil Gravity:",null,{"$f":"IF(GravityPreBoil=\"\",\"\",GravityPreBoil)","v":1.0383903188405799}]
[null,null,"Measured:"]
[null,null,null,null,null,null,null,null,null,null,null,null,null,null,null,null,null,null,null,null,null,null,null,null,null,null,null,null,null,null,null,null,"Mash Step 1:",null,{"$f":"TempMashStep1","v":152},{"$f":"MashThickness","v":1.1000000000000001},null,{"$f":"TimeMashStep1","v":60},"minutes"]
[null,"Grains, Extract & Adjuncts",null,"Weight",null,"%","ºL","MCU",null,"Late?",null,null,"Hops",null,null,null,null,null,null,null,"AA%",null,"Ounces",null,null,null,null,null,"IBU",null,"Utilization",null,"Mash Step 2:",null,{"$f":"IF(AJ135=\"-\",\"-\",TempMashStep2)","v":"-"},{"$f":"MashThickness2","v":"-"},null,{"$f":"IF(TimeMashStep2=\"\",\"\",TimeMashStep2)","v":""},{"$f":"IF(AL135=\"\",\"\",\"minutes\")","v":""}]
[null,{"$f":"IF(B19=\"\",\"\",B19)","v":"Marris Otter (Crisp)"},null,{"$f":"IF(J19=\"\",\"\",J19)","v":8},null,{"$f":"IF(K19=\"\",\"\",K19)","v":0.82051282051282048},{"$f":"IF(M19=\"\",\"\",M19)","v":3.5},{"$f":"IF(N19=\"\",\"\",N19)","v":4.6849673202614381},null,{"$f":"IF(B19=\"\",\"\",U19)","v":"Mash"},null,{"$f":"IF(Y19=\"\",\"\",Y19)","v":"Kent Goldings (UK)"},null,null,null,null,null,null,null,null,{"$f":"IF(AG19=\"\",\"\",AG19)","v":6.3E-2},null,{"$f":"IF(Y19=\"\",\"\",IF(HopsMeasurement=\"Ounces\",IF(AH19=\"\",\"\",AH19),IF(AH19=\"\",\"\",AK19)))","v":1},null,null,null,null,null,{"$f":"IF(Y19=\"\",\"\",IF(HopsMeasurement=\"Ounces\",IF(AH19=\"\",\"\",AK19),IF(AH19=\"\",\"\",AH19)))","v":19.644793718375631},null,{"$f":"IF(Y19=\"\",\"\",AM19)","v":0.27252561379171802},null,"Mash Step 3:",null,{"$f":"IF(AJ136=\"-\",\"-\",TempMashStep3)","v":"-"},{"$f":"MashThickness3","v":"-"},null,{"$f":"IF(TimeMashStep3=\"\",\"\",TimeMashStep3)","v":""},{"$f":"IF(AL136=\"\",\"\",\"minutes\")","v":""}]
[null,{"$f":"IF(B20=\"\",\"\",B20)","v":"Biscuit"},null,{"$f":"IF(J20=\"\",\"\",J20)","v":1},null,{"$f":"IF(K20=\"\",\"\",K20)","v":0.10256410256410256},{"$f":"IF(M20=\"\",\"\",M20)","v":22.5},3.7647058823529411,null,{"$f":"IF(B20=\"\",\"\",U20)","v":"Mash"},null,{"$f":"IF(Y20=\"\",\"\",Y20)","v":"Kent Goldings (UK)"},null,null,null,null,null,null,null,null,{"$f":"IF(AG20=\"\",\"\",AG20)","v":6.3E-2},null,1,null,null,null,null,null,17.858903380341481,null,{"$f":"IF(Y20=\"\",\"\",AM20)","v":0.24775055799247092}]
[null,"Flaked Wheat",null,0.25,null,2.564102564102564E-2,1,4.1830065359477121E-2,null,"Mash",null,"Kent Goldings (UK)",null,null,null,null,null,null,null,null,6.3E-2,null,1,null,null,null,null,null,3.5602484161198502,null,4.9390128436242083E-2,null,"Strike Water Volume:",null,null,{"$f":"VolumeStrikeWater1","v":2.6812500000000004},null,{"$f":"TempStrikeWater1","v":171.90909090909091},"Temp ºF"]
[null,"Caramel 120 (Briess)",null,0.5,null,5.128205128205128E-2,120,10.03921568627451,null,"Mash",null,"Kent Goldings (UK)",null,null,null,null,null,null,null,null,6.3E-2,null,1,null,null,null,null,null,0,null,0,null,{"$f":"IF(MashType=\"Infusion Mash\",\"Strike Water Volume 2:\",IF(MashType=\"Decoction Mash\",\"Decoction Volume 1:\",\"\"))","v":"Strike Water Volume 2:"},null,null,{"$f":"IF(VolumeStrikeWater2=\"\",\"\",VolumeStrikeWater2)","v":"-"},null,{"$f":"IF(AJ139=\"\",\"\",IF(AJ139=\"-\",\"-\",TempStrikeWater2))","v":"-"},"Temp ºF"]
[null,"Campden Tablet",null,1,null,"--",0,0,null,"Skip",null,"",null,null,null,null,null,null,null,null,"",null,"",null,null,null,null,null,"",null,"",null,{"$f":"IF(MashType=\"Infusion Mash\",\"Strike Water Volume 3:\",IF(MashType=\"Decoction Mash\",\"Decoction Volume 2:\",\"\"))","v":"Strike Water Volume 3:"},null,null,{"$f":"IF(VolumeStrikeWater3=\"\",\"\",VolumeStrikeWater3)","v":"-"},null,{"$f":"IF(AJ140=\"\",\"\",IF(AJ140=\"-\",\"-\",TempStrikeWater2))","v":"-"},"Temp ºF"]
[null,"Whirlfloc Tablet",null,1,null,"--",0,0,null,"Yes",null,"",null,null,null,null,null,null,null,null,"",null,"",null,null,null,null,null,"",null,"",null,{"$f":"IF(MashType=\"Infusion Mash\",\"\",IF(MashType=\"Decoction Mash\",\"Decoction Volume 3:\",\"\"))","v":""},null,null,{"$f":"IF(VolumeDecoction3=\"-\",\"\",IF(VolumeDecoction3=\"\",\"\",VolumeDecoction3))","v":""},null,{"$f":"IF(AJ141=\"\",\"\",TempStrikeWater2)","v":""},"Temp ºF"]
[null,"",null,"",null,"","","",null,"",null,"",null,null,null,null,null,null,null,null,"",null,"",null,null,null,null,null,"",null,"",null,"Mash Out Volume:",null,null,{"$f":"VolumeMashOut","v":2.9515625000000001},null,{"$f":"MashOutTemp","v":170},"Temp ºF"]
[null,"",null,"",null,"","","",null,"",null,"",null,null,null,null,null,null,null,null,"",null,"",null,null,null,null,null,"",null,"",null,"Sparge Volume 1:",null,null,{"$f":"VolumeSpargeWater1","v":3.4328125000000003},null,{"$f":"MashOutTemp","v":170},"Temp ºF"]
[null,"",null,"",null,"","","",null,"",null,"",null,null,null,null,null,null,null,null,"",null,"",null,null,null,null,null,"",null,"",null,"Sparge Volume 2:",null,null,{"$f":"VolumeSpargeWater2","v":"-"},null,{"$f":"IF(AJ144=\"\",\"\",IF(AJ144=\"-\",\"-\",TempStrikeWater2))","v":"-"},"Temp ºF"]
[null,"",null,"",null,"","","",null,"",null,"",null,null,null,null,null,null,null,null,"",null,"",null,null,null,null,null,"",null,""]
[null,"Total Grain Weight: ",null,{"$f":"IF(J30=\"\",\"\",J30)","v":9.75},null,null,null,null,null,null,null,null,null,null,null,null,null,null,null,"Totals:",null,null,{"$f":"SUM(W136:AB145)","v":4},null,null,null,null,null,{"$f":"TotalIBU","v":41.063945514836959},null,null,null,"Mash Efficiency:",null,{"$f":"MashEfficiencyPredicted","v":0.75},"Measured:"]
[null,null,null,null,null,null,null,null,null,null,null,null,null,null,null,null,null,null,null,null,null,null,null,null,null,null,null,null,null,null,null,null,"Mash pH:",null,null,"Measured:"]
[null,null,null,"Calcium",null,"Magnesium",null,"Sodium",null,null,"Chloride",null,"Sulfates",null,"Effective Hardness",null,null,null,null,null,"Residual Alkalinity",null,null,null,null,null,null,null,null,"Cl/SO4 Balance"]
[null,"Source Water",null,{"$f":"IF(CalciumSource=\"\",\"\",CalciumSource)","v":6.7},null,{"$f":"IF(MagnesiumSource=\"\",\"\",MagnesiumSource)","v":2},null,{"$f":"IF(SodiumSource=\"\",\"\",SodiumSource)","v":16},null,null,{"$f":"IF(ChlorideSource=\"\",\"\",ChlorideSource)","v":14},null,{"$f":"IF(SulfateSource=\"\",\"\",SulfateSource)","v":5},null,{"$f":"IF(EffectiveHardnessSource=\"\",\"\",EffectiveHardnessSource)","v":5.9621848739495809},null,null,null,null,null,{"$f":"IF(RASource=\"\",\"\",RASource)","v":7.1878151260504195},null,null,null,null,null,null,null,null,{"$f":"IF(CSBalanceSource=\"\",\"\",CSBalanceSource)","v":"Very Malty"},null,null,{"$f":"YeastPreparation","v":"Shaken Starter"},null,null,{"$f":"IF(AF35=\"\",\"\",AF35)","v":2823.6084131983384},null,"mL Starter Needed"]
[null,"Added to Water",null,{"$f":"IF(CalciumAdded=\"\",\"\",CalciumAdded)","v":72.665734265734258},null,{"$f":"IF(MagnesiumAdded=\"\",\"\",MagnesiumAdded)","v":9.174825174825175},null,{"$f":"IF(SodiumAdded=\"\",\"\",SodiumAdded)","v":0},null,null,{"$f":"IF(ChlorideAdded=\"\",\"\",ChlorideAdded)","v":23.770629370629369},null,{"$f":"IF(SulfateAdded=\"\",\"\",SulfateAdded)","v":38.414918414918411},null,{"$f":"IF(EffectiveHardnessAdded=\"\",\"\",EffectiveHardnessAdded)","v":57.30105188928718},null,null,null,null,null,{"$f":"IF(RAAdded=\"\",\"\",RAAdded)","v":15.151086136621331},null,null,null,null,null,null,null,null,null,null,null,{"$f":"IF(YeastStrain1=\"\",\"\",YeastStrain1)","v":"White Labs WLP002"},null,null,{"$f":"IF(AL33=\"\",\"\",AL33)","v":"English Ale"}]
[null,"Resulting Water",null,{"$f":"IF(CalciumFinal=\"\",\"\",CalciumFinal)","v":79.365734265734261},null,{"$f":"IF(MagnesiumFinal=\"\",\"\",MagnesiumFinal)","v":11.174825174825175},null,{"$f":"IF(SodiumFinal=\"\",\"\",SodiumFinal)","v":16},null,null,{"$f":"IF(ChlorideFinal=\"\",\"\",ChlorideFinal)","v":37.770629370629365},null,{"$f":"IF(SulfateFinal=\"\",\"\",SulfateFinal)","v":43.414918414918411},null,{"$f":"IF(EffectiveHardnessFinal=\"\",\"\",EffectiveHardnessFinal)","v":63.263236763236762},null,null,null,null,null,{"$f":"IF(RAFinal=\"\",\"\",RAFinal)","v":22.338901262671754},null,null,null,null,null,null,null,null,{"$f":"IF(CSBalanceFinal=\"\",\"\",CSBalanceFinal)","v":"Balanced"},null,null,{"$f":"IF(YeastStrain1=\"\",\"\",D33)","v":65},{"$f":"IF(YeastStrain1=\"\",\"\",E33)","v":68},{"$f":"IF(YeastStrain1=\"\",\"\",F33)","v":0.63},{"$f":"IF(YeastStrain1=\"\",\"\",G33)","v":0.7},null,{"$f":"IF(YeastStrain1=\"\",\"\",I33)","v":"Very High"}]
[null,null,null,null,null,null,null,null,null,null,null,null,null,null,null,null,null,null,null,null,null,null,null,null,null,null,null,null,null,null,null,null,{"$f":"IF(YeastStrain2=\"\",\"\",YeastStrain2)","v":""},null,null,{"$f":"IF(AL34=\"\",\"\",AL34)","v":""}]
[null,null,null,"Chalk","Gypsum",null,"Calcium Chloride",null,null,null,"Epsom Salt",null,null,"Baking Soda",null,null,null,null,"Table Salt",null,"Hydrochloric Acid",null,null,null,null,null,null,null,null,"Lactic Acid",null,null,{"$f":"IF(YeastStrain2=\"\",\"\",D34)","v":""},{"$f":"IF(YeastStrain2=\"\",\"\",E34)","v":""},{"$f":"IF(YeastStrain2=\"\",\"\",F34)","v":""},{"$f":"IF(YeastStrain2=\"\",\"\",G34)","v":""},null,{"$f":"IF(YeastStrain2=\"\",\"\",I34)","v":""}]
[null,null,"Mash Additions:",{"$f":"IF(ChalkAddition=\"\",\"\",ChalkAddition)","v":1.5},{"$f":"IF(GypsumAddition=\"\",\"\",GypsumAddition)","v":""},null,{"$f":"IF(CalciumChlorideAddition=\"\",\"\",CalciumChlorideAddition)","v":0.5},null,null,null,{"$f":"IF(EpsomSaltAddition=\"\",\"\",EpsomSaltAddition)","v":1},null,null,{"$f":"IF(BakingSodaAddition=\"\",\"\",BakingSodaAddition)","v":""},null,null,null,null,{"$f":"IF(TableSaltAddition=\"\",\"\",TableSaltAddition)","v":""},null,{"$f":"IF(HydrochloricUsed=\"\",\"\",HydrochloricUsed)","v":""},null,null,null,null,null,null,null,null,{"$f":"IF(LacticUsed=\"\",\"\",LacticUsed)","v":""}]
[]
[null,"Recipe:",{"$f":"RecipeNamePG","v":0},null,null,"Brew Date:",null,null,{"$f":"BrewDate","v":"2009-03-25"},null,null,"Time:",null,{"$f":"WorkTime","v":8.25},null,"Cost:",null,null,null,{"$f":"TotalCost","v":0},null,"Primary Style:",null,null,null,null,null,null,null,{"$f":"StylePrimaryPG","v":"Primary Style Dropdown"},null,null,null,"Secondary Style:",null,null,{"$f":"StyleSecondaryPG","v":"Secondary Style Dropdown"}]
[]
[null,null,null,"Original Gravity",null,null,"Final Gravity",null,null,null,"Original Extract",null,null,null,"Final Extract",null,null,null,null,"IBU",null,"SRM",null,null,"% ABV",null,null,null,null,"Calories per 12 oz",null,"BU:GU",null,"BV","CO2 Volumes"]
[null,"Estimated Beer Properties:",null,{"$f":"GravityEstimatedOriginalPG","v":""},null,null,{"$f":"GravityEstimatedFinalPG","v":""},null,null,null,{"$f":"PlatoEstimatedOriginalPG","v":""},null,null,null,{"$f":"PlatoEstimatedFinalPG","v":""},null,null,null,null,{"$f":"TotalIBUPG","v":""},null,{"$f":"TargetSRMPG","v":7.5350185989925},null,null,{"$f":"ABVEstimatedPG","v":""},null,null,null,null,{"$f":"IF(ABVEstimatedPG=\"\",\"\",IF(GravityEstimatedFinalPG=\"\",\"\",IF(PlatoEstimatedOriginalPG=\"\",\"\",IF(PlatoEstimatedFinalPG=\"\",\"\",((100*6.9*((0.79*ABVEstimatedPG)/GravityEstimatedFinalPG))+4*(((0.1808*PlatoEstimatedOriginalPG)+(0.8192*PlatoEstimatedFinalPG))-0.1))*GravityEstimatedFinalPG*3.55))))","v":""},null,{"$f":"BUGUEstimatedPG","v":""},null,{"$f":"BVEstimatedPG","v":""},{"$f":"CO2VolumesPG","v":0}]
[null,"Measured Beer Properties:"]
[]
[null,null,"Packaged Volume:",{"$f":"VolumeFinalPG","v":""},"Fermentation Volume:",null,null,null,null,{"$f":"VolumeFermentationPG","v":""},"Post Boil Volume:",null,null,null,{"$f":"VolumePostBoilPG","v":""},null,null,"Pre Boil Volume:",null,null,null,{"$f":"VolumePreBoilPG","v":""},null,null,null,null,null,null,null,null,null,null,{"$f":"YeastPreparation","v":"Shaken Starter"},null,null,{"$f":"IF(AF47=\"\",\"\",AF47)","v":""},null,"mL Starter Needed"]
[null,null,"Measured:",null,null,null,null,null,null,null,null,null,null,null,null,null,null,null,null,null,null,null,null,null,null,null,null,null,null,null,null,null,{"$f":"IF(YeastStrain1PG=\"\",\"\",YeastStrain1PG)","v":""},null,null,{"$f":"IF(AL94=\"\",\"\",AL94)","v":""}]
[null,null,null,null,null,null,null,null,null,null,null,null,null,null,null,null,null,null,null,null,null,null,null,null,null,null,null,null,null,null,null,null,{"$f":"IF(YeastStrain1PG=\"\",\"\",D94)","v":""},{"$f":"IF(YeastStrain1PG=\"\",\"\",E94)","v":""},{"$f":"IF(YeastStrain1PG=\"\",\"\",YeastAttenuation1LPG)","v":""},{"$f":"IF(YeastStrain1PG=\"\",\"\",YeastAttenuation1HPG)","v":""},null,{"$f":"IF(YeastStrain1PG=\"\",\"\",I94)","v":""}]
[null,"Grains, Extract & Adjuncts",null,"Weight",null,"%","ºL","MCU",null,"Late?",null,null,"Hops",null,null,null,null,null,null,null,"AA%",null,"Ounces",null,null,null,null,null,"IBU",null,"Utilization",null,{"$f":"IF(YeastStrain2PG=\"\",\"\",YeastStrain2PG)","v":""},null,null,{"$f":"IF(AL95=\"\",\"\",AL95)","v":""}]
[null,{"$f":"IF(B81=\"\",\"\",B81)","v":""},null,{"$f":"IF(J81=\"\",\"\",J81)","v":""},null,{"$f":"IF(K81=\"\",\"\",K81)","v":""},{"$f":"IF(M81=\"\",\"\",M81)","v":""},{"$f":"IF(N81=\"\",\"\",N81)","v":""},null,{"$f":"IF(B81=\"\",\"\",U81)","v":""},null,{"$f":"IF(Y81=\"\",\"\",Y81)","v":""},null,null,null,null,null,null,null,null,{"$f":"IF(AG81=\"\",\"\",AG81)","v":""},null,{"$f":"IF(Y81=\"\",\"\",IF(HopsMeasurement=\"Ounces\",IF(AH81=\"\",\"\",AH81),IF(AH81=\"\",\"\",AK81)))","v":""},null,null,null,null,null,{"$f":"IF(Y81=\"\",\"\",IF(HopsMeasurement=\"Ounces\",IF(AH81=\"\",\"\",AK81),IF(AH81=\"\",\"\",AH81)))","v":""},null,{"$f":"IF(Y81=\"\",\"\",AM81)","v":""},null,{"$f":"IF(YeastStrain2PG=\"\",\"\",D95)","v":""},{"$f":"IF(YeastStrain2PG=\"\",\"\",E95)","v":""},{"$f":"IF(YeastStrain2PG=\"\",\"\",YeastAttenuation2LPG)","v":""},{"$f":"IF(YeastStrain2PG=\"\",\"\",YeastAttenuation2HPG)","v":""},null,{"$f":"IF(YeastStrain2PG=\"\",\"\",E95)","v":""}]
[null,{"$f":"IF(B82=\"\",\"\",B82)","v":""},null,{"$f":"IF(J82=\"\",\"\",J82)","v":""},null,{"$f":"IF(K82=\"\",\"\",K82)","v":""},{"$f":"IF(M82=\"\",\"\",M82)","v":""},"",null,{"$f":"IF(B82=\"\",\"\",U82)","v":""},null,{"$f":"IF(Y82=\"\",\"\",Y82)","v":""},null,null,null,null,null,null,null,null,{"$f":"IF(AG82=\"\",\"\",AG82)","v":""},null,"",null,null,null,null,null,"",null,{"$f":"IF(Y82=\"\",\"\",AM82)","v":""}]
[null,"",null,"",null,"","","",null,"",null,"",null,null,null,null,null,null,null,null,"",null,"",null,null,null,null,null,"",null,"",null,"Parti-gyle Fermenation",null,null,null,"Fermentation Schedule"]
[null,"",null,"",null,"","","",null,"",null,"",null,null,null,null,null,null,null,null,"",null,"",null,null,null,null,null,"",null,"",null,"Primary ",null,{"$f":"IF(DaysFermentationPG=\"\",\"\",DaysFermentationPG)","v":""},null,{"$f":"IF(DaysFermentation=\"\",\"\",DaysFermentation)","v":10},null,"Primary"]
[null,"",null,"",null,"","","",null,"",null,"",null,null,null,null,null,null,null,null,"",null,"",null,null,null,null,null,"",null,"",null,"Diacetyl Rest ",null,{"$f":"IF(DaysDiacetylRestPG=\"\",\"\",DaysDiacetylRestPG)","v":""},null,{"$f":"IF(DaysDiacetylRest=\"\",\"\",DaysDiacetylRest)","v":""},null,"Diacetyl Rest"]
[null,"",null,"",null,"","","",null,"",null,"",null,null,null,null,null,null,null,null,"",null,"",null,null,null,null,null,"",null,"",null,"Cold Crash ",null,{"$f":"IF(DaysColdCrashPG=\"\",\"\",DaysColdCrashPG)","v":""},null,{"$f":"IF(DaysColdCrash=\"\",\"\",DaysColdCrash)","v":2},null,"Cold Crash"]
[null,"",null,"",null,"","","",null,"",null,"",null,null,null,null,null,null,null,null,"",null,"",null,null,null,null,null,"",null,"",null,"Conditioning ",null,{"$f":"IF(DaysConditioningPG=\"\",\"\",DaysConditioningPG)","v":""},null,{"$f":"IF(DaysConditioning=\"\",\"\",DaysConditioning)","v":""},null,"Conditioning"]
[null,"",null,"",null,"","","",null,"",null,"",null,null,null,null,null,null,null,null,"",null,"",null,null,null,null,null,"",null,"",null,"Aging ",null,{"$f":"IF(DaysAgingPG=\"\",\"\",DaysAgingPG)","v":""},null,{"$f":"IF(DaysAging=\"\",\"\",DaysAging)","v":13},null,"Aging"]
[null,"",null,"",null,"","","",null,"",null,"",null,null,null,null,null,null,null,null,"",null,"",null,null,null,null,null,"",null,"",null,"Rest Date ",null,null,null,null,null,"Rest Date"]
[null,"",null,"",null,"","","",null,"",null,"",null,null,null,null,null,null,null,null,"",null,"",null,null,null,null,null,"",null,"",null,"Crash Date ",null,null,null,null,null,"Crash Date"]
[null,"Total Grain Weight: ",null,{"$f":"IF(TotalGrainWeightPG=\"\",\"\",TotalGrainWeightPG)","v":0},null,null,null,null,null,null,null,null,null,null,null,null,null,null,null,"Totals:",null,null,{"$f":"SUM(W166:AB175)","v":0},null,null,null,null,null,{"$f":"TotalIBUPG","v":""},null,null,null,"Transfer Date ",null,null,null,null,null,"Transfer Date"]
[null,null,null,null,null,null,null,null,null,null,null,null,null,null,null,null,null,null,null,null,null,null,null,null,null,null,null,null,null,null,null,null,"Transfer Date ",null,null,null,null,null,"Transfer Date"]
[null,null,null,null,null,null,null,null,null,null,null,null,null,null,null,null,null,null,null,null,null,null,null,null,null,null,null,null,null,null,null,null,"Packaging Date ",null,null,null,null,null,"Packaging"]

{"sheet":"Example Parti-gyle","index":2,"n_rows":178,"n_cols":47,"rows_kept":178,"cut":false,"hidden":false,"merged":[[176,32,176,33],[176,34,176,35],[176,36,176,37],[177,32,177,33],[177,34,177,35],[177,36,177,37],[174,34,174,35],[174,36,174,37],[175,1,175,2],[175,19,175,21],[175,22,175,27],[175,28,175,29],[175,32,175,33],[175,34,175,35],[175,36,175,37],[173,34,173,35],[173,36,173,37],[174,1,174,2],[174,3,174,4],[174,7,174,8],[174,11,174,19],[174,20,174,21],[174,22,174,27],[174,28,174,29],[174,32,174,33],[172,34,172,35],[172,36,172,37],[173,1,173,2],[173,3,173,4],[173,7,173,8],[173,11,173,19],[173,20,173,21],[173,22,173,27],[173,28,173,29],[173,32,173,33],[171,34,171,35],[171,36,171,37],[172,1,172,2],[172,3,172,4],[172,7,172,8],[172,11,172,19],[172,20,172,21],[172,22,172,27],[172,28,172,29],[172,32,172,33],[170,34,170,35],[170,36,170,37],[171,1,171,2],[171,3,171,4],[171,7,171,8],[171,11,171,19],[171,20,171,21],[171,22,171,27],[171,28,171,29],[171,32,171,33],[169,34,169,35],[169,36,169,37],[170,1,170,2],[170,3,170,4],[170,7,170,8],[170,11,170,19],[170,20,170,21],[170,22,170,27],[170,28,170,29],[170,32,170,33],[168,34,168,35],[168,36,168,37],[169,1,169,2],[169,3,169,4],[169,7,169,8],[169,11,169,19],[169,20,169,21],[169,22,169,27],[169,28,169,29],[169,32,169,33],[167,32,167,35],[167,36,167,38],[168,1,168,2],[168,3,168,4],[168,7,168,8],[168,11,168,19],[168,20,168,21],[168,22,168,27],[168,28,168,29],[168,32,168,33],[166,28,166,29],[167,1,167,2],[167,3,167,4],[167,7,167,8],[167,11,167,19],[167,20,167,21],[167,22,167,27],[167,28,167,29],[166,1,166,2],[166,3,166,4],[166,7,166,8],[166,11,166,19],[166,20,166,21],[166,22,166,27],[164,35,164,38],[165,1,165,2],[165,3,165,4],[165,7,165,8],[165,11,165,19],[165,20,165,21],[165,22,165,27],[165,28,165,29],[165,35,165,36],[165,37,165,38],[163,35,163,36],[163,37,163,38],[164,1,164,2],[164,3,164,4],[164,7,164,8],[164,12,164,19],[164,20,164,21],[164,22,164,27],[164,28,164,29],[164,32,164,34],[161,32,161,34],[161,35,161,36],[161,37,161,38],[162,21,162,22],[162,32,162,34],[162,35,162,38],[159,21,159,23],[159,24,159,28],[159,29,159,30],[159,31,159,32],[159,34,159,37],[161,4,161,8],[161,10,161,13],[161,14,161,16],[161,17,161,20],[161,21,161,23],[159,1,159,2],[159,3,159,5],[159,6,159,9],[159,10,159,13],[159,14,159,18],[159,19,159,20],[158,19,158,20],[158,21,158,23],[158,24,158,28],[158,29,158,30],[158,31,158,32],[158,34,158,37],[157,21,157,23],[157,24,157,28],[157,29,157,30],[157,31,157,32],[157,34,157,37],[158,1,158,2],[158,3,158,5],[158,6,158,9],[158,10,158,13],[158,14,158,18],[155,19,155,20],[155,21,155,28],[155,29,155,32],[155,33,155,35],[155,36,155,38],[157,3,157,5],[157,6,157,9],[157,10,157,13],[157,14,157,18],[157,19,157,20],[155,2,155,4],[155,5,155,7],[155,8,155,10],[155,11,155,12],[155,13,155,14],[155,15,155,18],[152,29,152,30],[152,35,152,36],[152,37,152,38],[153,4,153,5],[153,6,153,9],[153,10,153,12],[153,13,153,17],[153,18,153,19],[153,20,153,28],[153,29,153,30],[152,4,152,5],[152,6,152,9],[152,10,152,12],[152,13,152,17],[152,18,152,19],[152,20,152,28],[150,14,150,19],[150,20,150,28],[150,29,150,30],[150,35,150,36],[150,37,150,38],[151,32,151,34],[151,35,151,38],[149,20,149,28],[149,29,149,30],[149,32,149,34],[149,35,149,38],[150,1,150,2],[150,3,150,4],[150,5,150,6],[150,7,150,9],[150,10,150,11],[150,12,150,13],[148,32,148,34],[148,35,148,36],[148,37,148,38],[149,1,149,2],[149,3,149,4],[149,5,149,6],[149,7,149,9],[149,10,149,11],[149,12,149,13],[149,14,149,19],[147,29,147,30],[148,1,148,2],[148,3,148,4],[148,5,148,6],[148,7,148,9],[148,10,148,11],[148,12,148,13],[148,14,148,19],[148,20,148,28],[148,29,148,30],[146,32,146,33],[146,35,146,37],[147,1,147,2],[147,3,147,4],[147,5,147,6],[147,7,147,9],[147,10,147,11],[147,12,147,13],[147,14,147,19],[147,20,147,28],[145,1,145,2],[145,19,145,21],[145,22,145,27],[145,28,145,29],[145,32,145,33],[145,35,145,37],[143,35,143,36],[144,1,144,2],[144,3,144,4],[144,7,144,8],[144,11,144,19],[144,20,144,21],[144,22,144,27],[144,28,144,29],[144,32,144,38],[142,32,142,34],[142,35,142,36],[143,1,143,2],[143,3,143,4],[143,7,143,8],[143,11,143,19],[143,20,143,21],[143,22,143,27],[143,28,143,29],[143,32,143,34],[141,28,141,29],[141,32,141,34],[141,35,141,36],[142,1,142,2],[142,3,142,4],[142,7,142,8],[142,11,142,19],[142,20,142,21],[142,22,142,27],[142,28,142,29],[141,1,141,2],[141,3,141,4],[141,7,141,8],[141,11,141,19],[141,20,141,21],[141,22,141,27],[139,35,139,36],[140,1,140,2],[140,3,140,4],[140,7,140,8],[140,11,140,19],[140,20,140,21],[140,22,140,27],[140,28,140,29],[140,32,140,34],[140,35,140,36],[138,32,138,34],[138,35,138,36],[139,1,139,2],[139,3,139,4],[139,7,139,8],[139,11,139,19],[139,20,139,21],[139,22,139,27],[139,28,139,29],[139,32,139,34],[137,28,137,29],[137,32,137,34],[137,35,137,36],[138,1,138,2],[138,3,138,4],[138,7,138,8],[138,11,138,19],[138,20,138,21],[138,22,138,27],[138,28,138,29],[137,1,137,2],[137,3,137,4],[137,7,137,8],[137,11,137,19],[137,20,137,21],[137,22,137,27],[135,32,135,33],[135,35,135,36],[136,1,136,2],[136,3,136,4],[136,7,136,8],[136,11,136,19],[136,20,136,21],[136,22,136,27],[136,28,136,29],[136,32,136,38],[134,28,134,29],[134,32,134,33],[134,35,134,36],[135,1,135,2],[135,3,135,4],[135,7,135,8],[135,11,135,19],[135,20,135,21],[135,22,135,27],[135,28,135,29],[134,1,134,2],[134,3,134,4],[134,7,134,8],[134,12,134,19],[134,20,134,21],[134,22,134,27],[131,32,131,33],[131,35,131,36],[131,37,131,38],[132,21,132,22],[132,32,132,38],[133,32,133,33],[133,35,133,36],[129,21,129,23],[129,24,129,28],[129,29,129,30],[129,31,129,32],[129,34,129,37],[131,4,131,8],[131,10,131,13],[131,14,131,16],[131,17,131,20],[131,21,131,23],[128,24,128,28],[128,29,128,30],[128,31,128,32],[128,34,128,37],[129,1,129,2],[129,3,129,5],[129,6,129,9],[129,10,129,13],[129,14,129,18],[129,19,129,20],[127,29,127,30],[127,31,127,32],[127,34,127,37],[128,1,128,2],[128,3,128,5],[128,6,128,9],[128,10,128,13],[128,14,128,18],[128,19,128,20],[128,21,128,23],[125,29,125,32],[125,33,125,35],[125,36,125,38],[127,3,127,5],[127,6,127,9],[127,10,127,13],[127,14,127,18],[127,19,127,20],[127,21,127,23],[127,24,127,28],[99,1,105,38],[124,1,124,38],[125,2,125,4],[125,5,125,7],[125,8,125,10],[125,11,125,12],[125,13,125,14],[125,15,125,18],[125,19,125,20],[125,21,125,28],[95,31,95,33],[95,34,95,37],[96,3,96,38],[97,29,97,32],[97,34,97,37],[98,1,98,38],[95,3,95,5],[95,6,95,10],[95,11,95,18],[95,19,95,23],[95,24,95,27],[95,28,95,30],[93,1,93,2],[93,6,93,7],[93,8,93,10],[93,11,93,36],[93,37,93,38],[94,1,94,2],[94,6,94,7],[94,8,94,10],[94,11,94,36],[94,37,94,38],[91,34,91,35],[91,36,91,37],[92,1,92,2],[92,3,92,4],[92,5,92,7],[92,8,92,10],[92,11,92,36],[92,37,92,38],[90,34,90,35],[90,36,90,37],[91,3,91,5],[91,6,91,8],[91,10,91,11],[91,12,91,13],[91,14,91,17],[91,20,91,21],[91,24,91,29],[91,30,91,31],[89,24,89,31],[89,34,89,35],[89,36,89,37],[90,1,90,2],[90,3,90,5],[90,6,90,8],[90,10,90,11],[90,14,90,17],[90,20,90,21],[90,24,90,31],[89,1,89,2],[89,3,89,5],[89,6,89,8],[89,10,89,11],[89,14,89,17],[89,20,89,21],[87,36,87,37],[88,1,88,2],[88,3,88,5],[88,6,88,8],[88,10,88,11],[88,14,88,17],[88,20,88,21],[88,24,88,31],[88,34,88,35],[88,36,88,37],[86,34,86,35],[86,36,86,37],[87,1,87,2],[87,3,87,5],[87,6,87,8],[87,10,87,11],[87,14,87,17],[87,20,87,21],[87,24,87,31],[87,34,87,35],[85,24,85,31],[85,34,85,35],[85,36,85,37],[86,1,86,2],[86,3,86,5],[86,6,86,8],[86,10,86,11],[86,14,86,17],[86,20,86,21],[86,24,86,31],[85,1,85,2],[85,3,85,5],[85,6,85,8],[85,10,85,11],[85,14,85,17],[85,20,85,21],[83,36,83,37],[84,1,84,2],[84,3,84,5],[84,6,84,8],[84,10,84,11],[84,14,84,17],[84,20,84,21],[84,24,84,31],[84,34,84,35],[84,36,84,37],[82,34,82,35],[82,36,82,37],[83,1,83,2],[83,3,83,5],[83,6,83,8],[83,10,83,11],[83,14,83,17],[83,20,83,21],[83,24,83,31],[83,34,83,35],[81,24,81,31],[81,34,81,35],[81,36,81,37],[82,1,82,2],[82,3,82,5],[82,6,82,8],[82,10,82,11],[82,14,82,17],[82,20,82,21],[82,24,82,31],[80,20,80,21],[80,24,80,31],[80,34,80,35],[80,36,80,37],[81,1,81,2],[81,3,81,5],[81,6,81,8],[81,10,81,11],[81,14,81,17],[81,20,81,21],[79,18,79,19],[79,20,79,21],[79,24,79,31],[79,34,79,35],[79,36,79,37],[80,1,80,2],[80,3,80,5],[80,6,80,8],[80,10,80,11],[80,14,80,17],[78,25,78,27],[78,28,78,30],[78,31,78,32],[78,35,78,38],[79,1,79,2],[79,3,79,5],[79,6,79,8],[79,10,79,11],[79,12,79,13],[79,14,79,17],[77,22,77,24],[77,25,77,27],[77,28,77,30],[77,31,77,32],[77,35,77,38],[78,1,78,2],[78,7,78,8],[78,14,78,15],[78,16,78,17],[78,22,78,24],[76,31,76,32],[76,35,76,38],[77,1,77,2],[77,3,77,4],[77,5,77,6],[77,7,77,9],[77,10,77,11],[77,12,77,13],[77,14,77,19],[77,20,77,21],[76,14,76,17],[76,18,76,19],[76,20,76,21],[76,22,76,24],[76,25,76,27],[76,28,76,30],[76,1,76,2],[76,3,76,4],[76,5,76,6],[76,7,76,9],[76,10,76,11],[76,12,76,13],[74,40,74,41],[75,1,75,2],[75,7,75,8],[75,14,75,15],[75,16,75,17],[75,22,75,24],[75,25,75,27],[75,28,75,30],[75,31,75,32],[75,35,75,38],[74,18,74,19],[74,20,74,21],[74,22,74,27],[74,28,74,30],[74,31,74,32],[74,35,74,38],[73,20,73,27],[73,28,73,32],[73,35,73,38],[74,1,74,2],[74,3,74,4],[74,5,74,6],[74,7,74,9],[74,10,74,11],[74,12,74,13],[74,14,74,17],[73,1,73,2],[73,3,73,4],[73,5,73,8],[73,9,73,10],[73,11,73,16],[73,17,73,18],[71,1,71,38],[72,1,72,2],[72,3,72,4],[72,5,72,8],[72,9,72,10],[72,11,72,16],[72,17,72,18],[72,20,72,27],[72,28,72,31],[72,34,72,38],[59,22,59,29],[59,31,59,33],[60,1,60,38],[62,1,62,38],[63,1,69,38],[65,41,66,41],[69,41,70,41],[59,2,59,5],[59,6,59,8],[59,9,59,10],[59,11,59,12],[59,13,59,17],[59,20,59,21],[58,6,58,8],[58,9,58,10],[58,11,58,12],[58,13,58,17],[58,20,58,21],[58,22,58,33],[56,22,56,33],[57,2,57,5],[57,6,57,8],[57,9,57,10],[57,11,57,12],[57,13,57,17],[57,18,59,19],[57,20,57,21],[57,22,57,33],[58,2,58,5],[55,20,55,21],[55,22,55,33],[55,35,59,38],[56,2,56,5],[56,6,56,8],[56,9,56,10],[56,11,56,12],[56,13,56,17],[56,18,56,19],[56,20,56,21],[55,2,55,5],[55,6,55,8],[55,9,55,10],[55,11,55,12],[55,13,55,17],[55,18,55,19],[53,18,53,19],[53,20,53,21],[53,22,53,30],[53,31,54,38],[54,2,54,5],[54,6,54,9],[54,11,54,19],[54,20,54,21],[54,22,54,30],[52,18,52,19],[52,20,52,21],[52,22,52,30],[52,31,52,32],[52,33,52,38],[53,2,53,5],[53,6,53,8],[53,9,53,10],[53,11,53,12],[53,13,53,17],[51,20,51,21],[51,22,51,30],[51,31,51,32],[51,33,51,38],[51,40,51,41],[52,2,52,5],[52,6,52,8],[52,9,52,10],[52,11,52,12],[52,13,52,17],[50,22,50,30],[50,31,50,32],[50,34,50,35],[50,36,50,37],[51,2,51,5],[51,6,51,8],[51,9,51,10],[51,11,51,12],[51,13,51,17],[51,18,51,19],[49,31,49,32],[49,34,49,35],[49,36,49,37],[50,2,50,5],[50,6,50,8],[50,9,50,10],[50,11,50,12],[50,13,50,17],[50,18,50,19],[50,20,50,21],[48,34,48,35],[48,36,48,37],[49,2,49,5],[49,6,49,8],[49,9,49,10],[49,11,49,12],[49,13,49,17],[49,18,49,19],[49,20,49,21],[49,22,49,30],[47,33,47,38],[48,2,48,5],[48,6,48,8],[48,9,48,10],[48,11,48,12],[48,13,48,17],[48,18,48,19],[48,20,48,21],[48,22,48,30],[48,31,48,32],[46,1,46,38],[47,2,47,5],[47,6,47,8],[47,9,47,10],[47,11,47,12],[47,13,47,17],[47,18,47,19],[47,20,47,21],[47,22,47,30],[47,31,47,32],[34,31,34,33],[34,34,34,37],[34,40,34,41],[35,3,35,38],[37,1,37,38],[38,1,44,38],[34,3,34,5],[34,6,34,10],[34,11,34,18],[34,19,34,23],[34,24,34,27],[34,28,34,30],[32,1,32,2],[32,6,32,7],[32,8,32,10],[32,11,32,36],[32,37,32,38],[33,1,33,2],[33,6,33,7],[33,8,33,10],[33,11,33,36],[33,37,33,38],[31,1,31,2],[31,3,31,4],[31,5,31,7],[31,8,31,10],[31,11,31,36],[31,37,31,38],[28,36,28,37],[29,3,29,8],[29,10,29,11],[29,12,29,13],[29,14,29,17],[29,20,29,21],[29,24,29,29],[29,30,29,31],[29,34,29,35],[29,36,29,37],[27,34,27,35],[27,36,27,37],[28,1,28,2],[28,3,28,5],[28,6,28,8],[28,10,28,11],[28,14,28,17],[28,20,28,21],[28,24,28,31],[28,34,28,35],[26,24,26,31],[26,34,26,35],[26,36,26,37],[27,1,27,2],[27,3,27,5],[27,6,27,8],[27,10,27,11],[27,14,27,17],[27,20,27,21],[27,24,27,31],[26,1,26,2],[26,3,26,5],[26,6,26,8],[26,10,26,11],[26,14,26,17],[26,20,26,21],[24,40,24,41],[25,1,25,2],[25,3,25,5],[25,6,25,8],[25,10,25,11],[25,14,25,17],[25,20,25,21],[25,24,25,31],[25,34,25,35],[25,36,25,37],[23,36,23,37],[24,1,24,2],[24,3,24,5],[24,6,24,8],[24,10,24,11],[24,14,24,17],[24,20,24,21],[24,24,24,31],[24,34,24,35],[24,36,24,37],[22,24,22,31],[22,34,22,35],[22,36,22,37],[23,3,23,5],[23,6,23,8],[23,10,23,11],[23,14,23,17],[23,20,23,21],[23,24,23,31],[23,34,23,35],[22,1,22,2],[22,3,22,5],[22,6,22,8],[22,10,22,11],[22,14,22,17],[22,20,22,21],[20,36,20,37],[21,1,21,2],[21,3,21,5],[21,6,21,8],[21,10,21,11],[21,14,21,17],[21,20,21,21],[21,24,21,31],[21,34,21,35],[21,36,21,37],[19,34,19,35],[19,36,19,37],[20,1,20,2],[20,3,20,5],[20,6,20,8],[20,10,20,11],[20,14,20,17],[20,20,20,21],[20,24,20,31],[20,34,20,35],[18,24,18,31],[18,34,18,35],[18,36,18,37],[19,1,19,2],[19,3,19,5],[19,6,19,8],[19,10,19,11],[19,14,19,17],[19,20,19,21],[19,24,19,31],[18,1,18,2],[18,3,18,5],[18,6,18,8],[18,10,18,11],[18,14,18,17],[18,20,18,21],[17,14,17,17],[17,18,17,19],[17,20,17,21],[17,24,17,31],[17,34,17,35],[17,36,17,37],[15,24,15,27],[15,28,15,29],[15,32,15,33],[15,35,15,36],[15,37,15,38],[17,1,17,2],[17,3,17,5],[17,6,17,8],[17,10,17,11],[17,12,17,13],[15,1,15,2],[15,3,15,4],[15,5,15,6],[15,8,15,11],[15,13,15,14],[15,17,15,23],[14,17,14,23],[14,24,14,27],[14,28,14,29],[14,32,14,33],[14,35,14,36],[14,37,14,38],[13,24,13,27],[13,28,13,29],[13,32,13,33],[13,35,13,36],[13,37,13,38],[14,1,14,2],[14,3,14,4],[14,5,14,6],[14,8,14,12],[14,13,14,14],[13,1,13,2],[13,3,13,4],[13,5,13,6],[13,8,13,12],[13,13,13,14],[13,17,13,23],[12,17,12,23],[12,24,12,27],[12,28,12,29],[12,32,12,33],[12,35,12,36],[12,37,12,38],[11,24,11,27],[11,28,11,29],[11,32,11,33],[11,35,11,36],[11,37,11,38],[12,1,12,2],[12,3,12,4],[12,5,12,6],[12,8,12,12],[12,13,12,14],[11,1,11,2],[11,3,11,4],[11,5,11,6],[11,8,11,12],[11,13,11,14],[11,17,11,23],[10,1,10,2],[10,3,10,4],[10,5,10,6],[10,8,10,14],[10,17,10,30],[10,32,10,38],[7,34,7,38],[8,1,8,2],[8,7,8,8],[8,14,8,15],[8,16,8,17],[8,22,8,24],[8,25,8,27],[8,29,8,31],[8,34,8,38],[7,12,7,13],[7,14,7,19],[7,20,7,21],[7,22,7,24],[7,25,7,27],[7,29,7,31],[6,20,6,21],[6,22,6,24],[6,25,6,27],[6,29,6,31],[6,34,6,38],[7,1,7,2],[7,3,7,4],[7,5,7,6],[7,7,7,9],[7,10,7,11],[5,29,5,31],[5,34,5,38],[6,1,6,2],[6,3,6,4],[6,5,6,6],[6,7,6,9],[6,10,6,11],[6,12,6,13],[6,14,6,17],[6,18,6,19],[4,20,4,21],[4,22,4,27],[4,29,4,31],[4,34,4,38],[5,1,5,2],[5,7,5,8],[5,14,5,15],[5,16,5,17],[5,22,5,24],[5,25,5,27],[3,29,3,31]],"merged_total":1024,"flags":["merged_cut"]}
[]
[null,"Recipe",null,"Brew Date",null,"Assistant",null,null,null,"Time","Cost",null,"Fermenter Clear",null,null,null,null,null,"Drink Date",null,null,null,null,null,null,null,null,null,null,"Batch Size, Volumes, Losses & Infusions/Decotions"]
[" ","Example Parti-gyle",null,"2007-10-25",null,"Schill",null,null,null,{"$f":"(SUM(TIME)+TimeMashStep1+TimeMashStep2+TimeMashStep3+TimeBoil)/60","v":7.75},{"$f":"CostGrains+CostHops+CostYeast+CostGrainsPG+CostHopsPG+CostYeastPG","v":0},null,{"$f":"IF(BrewDate=\"\",\"\",IF(SUM(FERMENTER_DAYS)=0,\"\",BrewDate+SUM(FERMENTER_DAYS)))","v":"2007-11-10"},null,null,null,null,null,{"$f":"IF(BrewDate=\"\",\"\",IF(SUM(FERMENTATION_DAYS)=0,\"\",BrewDate+SUM(FERMENTATION_DAYS)+1))","v":"2008-02-09"},null,null,null,null,null,null,null,null,null,null,"Packaged Beer Volume ",null,null,5,0.25," Fermenter Transfer & Trub Losses"]
[null,null,null,null,null,null,null,null,null,null,null,null,null,null,null,null,null,null,null,null,null,null,null,null,null,null,null,null,null,"Fermentation Volume ",null,null,{"$f":"IF(VolumeFinal=\"\",\"\",IF(TrubLoss=\"\",\"\",VolumeFinal+TrubLoss))","v":5.25},0.125," Transfer Losses from Kettle"]
[" ","Style & Beer Properties",null,"OG",null,"FG",null,"OG ºP",null,null,"FG ºP",null,"ABV%",null,"IBU",null,null,null,"ºSRM",null,"CO2",null,"BUGU/BV",null,null,null,null,null,null,"Post Boil Volume ",null,null,{"$f":"IF(VolumeFermentation=\"\",\"\",IF(KettleTransferLosses=\"\",\"\",VolumeFermentation+KettleTransferLosses+HopsAbsorption+KettleDeadSpace))","v":5.9765625},{"$f":"IF(VolumePostBoil=\"\",\"\",IF(BoilOffRate=\"\",\"\",IF(TimeBoil=\"\",\"\",IF(ContractionLoss=\"\",\"\",VolumePostBoil+(TimeBoil*BoilOffRate)+ContractionLoss))))","v":7.5656249999999998}," Pre Boil Volume"]
[null,"Belgian Golden Strong Ale",null,{"$f":"VLOOKUP(StylePrimary,STYLE_ATTRIBUTES,3,0)","v":1.07},{"$f":"VLOOKUP(StylePrimary,STYLE_ATTRIBUTES,4,0)","v":1.095},{"$f":"VLOOKUP(StylePrimary,STYLE_ATTRIBUTES,5,0)","v":1.0049999999999999},{"$f":"VLOOKUP(StylePrimary,STYLE_ATTRIBUTES,6,0)","v":1.016},{"$f":"VLOOKUP(StylePrimary,STYLE_ATTRIBUTES,7,0)","v":17.100000000000001},null,{"$f":"VLOOKUP(StylePrimary,STYLE_ATTRIBUTES,8,0)","v":22.7},{"$f":"VLOOKUP(StylePrimary,STYLE_ATTRIBUTES,9,0)","v":1.3},{"$f":"VLOOKUP(StylePrimary,STYLE_ATTRIBUTES,10,0)","v":4.0999999999999996},{"$f":"VLOOKUP(StylePrimary,STYLE_ATTRIBUTES,11,0)","v":7.5},{"$f":"VLOOKUP(StylePrimary,STYLE_ATTRIBUTES,12,0)","v":10.5},{"$f":"VLOOKUP(StylePrimary,STYLE_ATTRIBUTES,13,0)","v":22},null,{"$f":"VLOOKUP(StylePrimary,STYLE_ATTRIBUTES,14,0)","v":"35"},null,{"$f":"VLOOKUP(StylePrimary,STYLE_ATTRIBUTES,15,0)","v":"3"},{"$f":"VLOOKUP(StylePrimary,STYLE_ATTRIBUTES,16,0)","v":"6"},{"$f":"VLOOKUP(StylePrimary,STYLE_ATTRIBUTES,17,0)","v":"2.4"},{"$f":"VLOOKUP(StylePrimary,STYLE_ATTRIBUTES,18,0)","v":2.9},{"$f":"VLOOKUP(StylePrimary,STYLE_ATTRIBUTES,19,0)","v":0.3454545454545454},null,null,{"$f":"VLOOKUP(StylePrimary,STYLE_ATTRIBUTES,23,0)","v":0.97186700767263579},null,null,null,{"$f":"IF(MashType=\"Infusion Mash\",\"Unused Space \",IF(MashType=\"Decoction Mash\",\"Decoction Volume 3 \",\"No Infusion/Decoction\"))","v":"Unused Space "},null,null,{"$f":"IF(MashType=\"Decoction Mash\",TotalMashVolumePlusGrains*(MashOutTemp-IF(MashSteps<2,TempMashStep1,IF(MashSteps<3,TempMashStep2,TempMashStep3)))/(TempStrikeWater2-IF(MashSteps<2,TempMashStep1,IF(MashSteps<3,TempMashStep2,TempMashStep3))),\"-\")","v":"-"},{"$f":"IF(f3Runnings=\"No\",\"-\",IF(VolumePreBoil=\"\",\"\",IF((IF(fPartigyle=\"No\",VolumePreBoil,VolumePreBoil+VolumePreBoilPG)-VolumeMashTotal-IF(MashType=\"Infusion Mash\",VolumeMashOut,0)+GrainAbsorption)/2>0,(IF(fPartigyle=\"No\",VolumePreBoil,VolumePreBoil+VolumePreBoilPG)-VolumeMashTotal-IF(MashType=\"Infusion Mash\",VolumeMashOut,0)+GrainAbsorption)/2,0)))","v":"-"}," Sparge Water 2 Volume"]
[null,"Estimated",null,{"$f":"IF(GravityUnitsAdjusted=\"\",\"\",IF(VolumePostBoil=\"\",\"\",IF(GravityUnitsAdjusted=0,\"\",((GravityUnitsAdjusted/VolumePostBoil)+1000)/1000)))","v":1.1101284350326799},null,{"$f":"IF(GravityEstimatedOriginal=\"\",\"\",IF(YeastStrain2=\"\",IF(YeastStrain1=\"\",\"\",((GravityEstimatedOriginal*1000-1000)*(((100-(YeastAttenuation1L+YeastAttenuation1H)*50)/100))+1000)/1000),IF(YeastStrain1=\"\",((GravityEstimatedOriginal*1000-1000)*(((100-(YeastAttenuation2L+YeastAttenuation2H)*50)/100))+1000)/1000,IF(YeastAttenuation2L+YeastAttenuation2H>YeastAttenuation1L+YeastAttenuation1H,((GravityEstimatedOriginal*1000-1000)*(((100-(YeastAttenuation2L+YeastAttenuation2H)*50)/100))+1000)/1000,((GravityEstimatedOriginal*1000-1000)*(((100-(YeastAttenuation1L+YeastAttenuation1H)*50)/100))+1000)/1000))))","v":1.0269814665830066},null,{"$f":"IF(GravityEstimatedOriginal=\"\",\"\",(668.72*GravityEstimatedOriginal)-463.37-(205.347*GravityEstimatedOriginal^2))","v":25.928495265724706},null,null,{"$f":"IF(GravityEstimatedFinal=\"\",\"\",(668.72*GravityEstimatedFinal)-463.37-(205.347*GravityEstimatedFinal^2))","v":6.815427375217979},null,{"$f":"IF(GravityEstimatedFinal=\"\",\"\",IF(GravityEstimatedOriginal=\"\",\"\",(GravityEstimatedOriginal-GravityEstimatedFinal)/0.806))","v":0.10316001048346561},null,{"$f":"IF(HopsMeasurement=\"Ounces\",SumIBUorOunces,SumOuncesorIBU)","v":24.471813542094264},null,null,null,{"$f":"IF(FinalMCU=\"\",\"\",IF(FinalMCU=0,\"\",1.4922*(FinalMCU^0.6859)))","v":8.2042229215811329},null,{"$f":"IF(CO2Volumes=\"\",\"\",CO2Volumes)","v":3.5},null,{"$f":"IF(TotalIBU=\"\",\"\",IF(GravityEstimatedOriginal=\"\",\"\",TotalIBU/((GravityEstimatedOriginal-1)*1000)))","v":0.22221157991423754},null,null,{"$f":"IF(TotalIBU=\"\",\"\",IF(GravityEstimatedFinal=\"\",\"\",IF(GravityEstimatedOriginal=\"\",\"\",0.8*TotalIBU/((820*(GravityEstimatedFinal-1))+(180*(GravityEstimatedOriginal-1))))))","v":0.46670849023730632},null,null,null,{"$f":"IF(MashType=\"Infusion Mash\",\"Strike Water 3 Volume \",IF(MashType=\"Decoction Mash\",\"Decoction Volume 2 \",\"No Infusion/Decoction\"))","v":"Strike Water 3 Volume "},null,null,{"$f":"IF(MashType=\"Infusion Mash\",IF(MashSteps<3,\"-\",IF(TempMashStep3=\"\",\"\",IF(TempMashStep2=\"\",\"\",IF(MashThickness=\"\",\"\",IF(TotalGrainWeight=\"\",\"\",IF(TempStrikeWater2=\"\",\"\",0.25*(TempMashStep3-TempMashStep2)*(0.2*TotalGrainWeight+(MashThickness*TotalGrainWeight))/(TempStrikeWater2-TempMashStep3))))))),IF(MashType=\"Decoction Mash\",IF(MashSteps>2,TotalMashVolumePlusGrains*(TempMashStep3-TempMashStep2)/(TempStrikeWater2-TempMashStep2),0),\"-\"))","v":"-"},{"$f":"IF(VolumePreBoil=\"\",\"\",IF(IF(f3Runnings=\"No\",IF(fPartigyle=\"No\",VolumePreBoil,VolumePreBoil+VolumePreBoilPG)-VolumeMashTotal-IF(MashType=\"Infusion Mash\",VolumeMashOut,0)+GrainAbsorption,(IF(fPartigyle=\"No\",VolumePreBoil,VolumePreBoil+VolumePreBoilPG)-VolumeMashTotal-IF(MashType=\"Infusion Mash\",VolumeMashOut,0)+GrainAbsorption)/2)>0,IF(f3Runnings=\"No\",IF(fPartigyle=\"No\",VolumePreBoil,VolumePreBoil+VolumePreBoilPG)-VolumeMashTotal-IF(MashType=\"Infusion Mash\",VolumeMashOut,0)+GrainAbsorption,(IF(fPartigyle=\"No\",VolumePreBoil,VolumePreBoil+VolumePreBoilPG)-VolumeMashTotal-IF(MashType=\"Infusion Mash\",VolumeMashOut,0)+GrainAbsorption)/2),0))","v":11.223437499999999}," Sparge Water 1 Volume"]
[null,"Measured",null,null,null,null,null,{"$f":"IF(GravityMeasuredOriginal=\"\",\"\",(668.72*GravityMeasuredOriginal)-463.37-(205.347*GravityMeasuredOriginal^2))","v":""},null,null,{"$f":"IF(GravityMeasuredFinal=\"\",\"\",(668.72*GravityMeasuredFinal)-463.37-(205.347*GravityMeasuredFinal^2))","v":""},null,{"$f":"IF(GravityMeasuredOriginal=\"\",\"\",IF(GravityMeasuredFinal=\"\",\"\",(GravityMeasuredOriginal-GravityMeasuredFinal)/0.806))","v":""},null," Calories per 12oz:",null,null,null,null,null,{"$f":"IF(ABV=\"\",\"\",IF(GravityMeasuredFinal=\"\",\"\",IF(PlatoMeasuredOriginal=\"\",\"\",IF(PlatoMeasuredFinal=\"\",\"\",((100*6.9*((0.79*ABV)/GravityMeasuredFinal))+4*(((0.1808*PlatoMeasuredOriginal)+(0.8192*PlatoMeasuredFinal))-0.1))*GravityMeasuredFinal*3.55))))","v":""},null,{"$f":"IF(TotalIBU=\"\",\"\",IF(GravityMeasuredOriginal=\"\",\"\",TotalIBU/((GravityMeasuredOriginal-1)*1000)))","v":""},null,null,{"$f":"IF(TotalIBU=\"\",\"\",IF(GravityMeasuredFinal=\"\",\"\",IF(GravityMeasuredOriginal=\"\",\"\",0.8*TotalIBU/((820*(GravityMeasuredFinal-1))+(180*(GravityMeasuredOriginal-1))))))","v":""},null,null,null,{"$f":"IF(MashType=\"Infusion Mash\",\"Strike Water 2 Volume \",IF(MashType=\"Decoction Mash\",\"Decoction Volume 1 \",\"No Infusion/Decoction\"))","v":"Strike Water 2 Volume "},null,null,{"$f":"IF(MashType=\"Infusion Mash\",IF(MashSteps<2,\"-\",IF(TempMashStep2=\"\",\"\",IF(TempMashStep1=\"\",\"\",IF(MashThickness=\"\",\"\",IF(TotalGrainWeight=\"\",\"\",IF(TempStrikeWater2=\"\",\"\",0.25*(TempMashStep2-TempMashStep1)*(0.2*TotalGrainWeight+(MashThickness*TotalGrainWeight))/(TempStrikeWater2-TempMashStep2))))))),IF(MashType=\"Decoction Mash\",IF(MashSteps>1,TotalMashVolumePlusGrains*(TempMashStep2-TempMashStep1)/(TempStrikeWater2-TempMashStep1),0),\"-\"))","v":"-"},{"$f":"IF(VolumeMashTotal=\"\",\"\",IF(VolumePreBoil=\"\",\"\",IF(GrainAbsorption=\"\",\"\",IF(VolumeStrikeWater1=\"\",\"\",IF(LauterTunDeadSpace=\"\",\"\",IF(IF(f3Runnings=\"No\",IF(fPartigyle=\"No\",VolumePreBoil,VolumePreBoil+VolumePreBoilPG)/2-VolumeMashTotal+GrainAbsorption+LauterTunDeadSpace,IF(fPartigyle=\"No\",VolumePreBoil,VolumePreBoil+VolumePreBoilPG)/3-VolumeMashTotal+GrainAbsorption+LauterTunDeadSpace)>0,IF(f3Runnings=\"No\",IF(fPartigyle=\"No\",VolumePreBoil,VolumePreBoil+VolumePreBoilPG)/2-VolumeMashTotal+GrainAbsorption+LauterTunDeadSpace,IF(fPartigyle=\"No\",VolumePreBoil,VolumePreBoil+VolumePreBoilPG)/3-VolumeMashTotal+GrainAbsorption+LauterTunDeadSpace),0))))))","v":8.3984375}," Mash Out Volume"]
[null,"Secondary Style Dropdown",null,{"$f":"VLOOKUP(StyleSecondary,STYLE_ATTRIBUTES,3,0)","v":"∞"},{"$f":"VLOOKUP(StyleSecondary,STYLE_ATTRIBUTES,4,0)","v":"∞"},{"$f":"VLOOKUP(StyleSecondary,STYLE_ATTRIBUTES,5,0)","v":"∞"},{"$f":"VLOOKUP(StyleSecondary,STYLE_ATTRIBUTES,6,0)","v":"∞"},{"$f":"VLOOKUP(StyleSecondary,STYLE_ATTRIBUTES,7,0)","v":"∞"},null,{"$f":"VLOOKUP(StyleSecondary,STYLE_ATTRIBUTES,8,0)","v":"∞"},{"$f":"VLOOKUP(StyleSecondary,STYLE_ATTRIBUTES,9,0)","v":"∞"},{"$f":"VLOOKUP(StyleSecondary,STYLE_ATTRIBUTES,10,0)","v":"∞"},{"$f":"VLOOKUP(StyleSecondary,STYLE_ATTRIBUTES,11,0)","v":"∞"},{"$f":"VLOOKUP(StyleSecondary,STYLE_ATTRIBUTES,12,0)","v":"∞"},{"$f":"VLOOKUP(StyleSecondary,STYLE_ATTRIBUTES,13,0)","v":"∞"},null,{"$f":"VLOOKUP(StyleSecondary,STYLE_ATTRIBUTES,14,0)","v":"∞"},null,{"$f":"VLOOKUP(StyleSecondary,STYLE_ATTRIBUTES,15,0)","v":"∞"},{"$f":"VLOOKUP(StyleSecondary,STYLE_ATTRIBUTES,16,0)","v":"∞"},{"$f":"VLOOKUP(StyleSecondary,STYLE_ATTRIBUTES,17,0)","v":"∞"},{"$f":"VLOOKUP(StyleSecondary,STYLE_ATTRIBUTES,18,0)","v":"∞"},{"$f":"VLOOKUP(StyleSecondary,STYLE_ATTRIBUTES,19,0)","v":"∞"},null,null,{"$f":"VLOOKUP(StyleSecondary,STYLE_ATTRIBUTES,23,0)","v":"∞"},null,null,null,"Strike Water 1 Volume ",null,null,{"$f":"IF(TotalGrainWeight=\"\",\"\",IF(MashThickness=\"\",\"\",TotalGrainWeight*MashThickness/4))","v":11.275},{"$f":"IF(TempInfusionFactor=\"\",\"\",IF(MashThickness=\"\",\"\",IF(TempMashStep1=\"\",\"\",IF(TempGrain=\"\",\"\",(TempInfusionFactor/MashThickness)*(TempMashStep1-TempGrain)+TempMashStep1+MashTunTempLoss))))","v":171.90909090909091}," Strike Water Temperature ºF"]
[]
[null,"Fermentation Schedule",null,"Temp ºF",null,"Days",null,null,"Carbonation",null,null,null,null,null,null,null,null,"Measurements: Efficiency, Temp & Volume",null,null,null,null,null,null,null,null,null,null,null,null,null,null,"Mash Effeciency, pH, Temperatures & Timing"]
[null,"Primary Fermentation",null,65,null,14,null,null,"CO2 Volumes ",null,null,null,null,3.5,null,null,null,"Total Runoff Volume ",null,null,null,null,null,null,null,null,null,null,null,null,"Mash Temp 1 ºF",null,"Mash Step Time 1 ",null,null,152,null,"Step Temperature ºF"]
[null,"Diacetyl Rest",null,null,null,null,null,null,"Serving Temp ºF ",null,null,null,null,39,null,null,null,"Total Runoff Gravity ",null,null,null,null,null,null,null,null,null,null,null,null,"Mash Temp 2 ºF",null,"Mash Step Time 2 ",null,null,null,null,"Step Temperature ºF"]
[null,"Cold Crash",null,45,null,2,null,null,"Beer Temperature ºF ",null,null,null,null,{"$f":"MAX(D12:E16)","v":65},null,null,null,"Mash Efficiency ",null,null,null,null,null,null,{"$f":"IF(GravityUnits=0,\"\",IF(VolumeRunoffMeasured=\"\",\"\",IF(GravityRunoffMeasured=\"\",\"\",(GravityRunoffMeasured-1)*1000*VolumeRunoffMeasured/GravityUnits)))","v":""},null,null,null,null,null,"Mash Temp 3 ºF",null,"Mash Step Time 3 ",null,null,null,null,"Step Temperature ºF"]
[null,"Secondary Conditioning",null,null,null,null,null,null,"Priming Sugar ",null,null,null,null,{"$f":"IF(PrimingSugar=\"Priming Sugar \",\"grams\",IF(VolumeFinal=\"\",\"\",IF(CO2Volumes=\"\",\"\",IF(VLOOKUP(PrimingSugar,[1]Grains!A175:J187,10,0)=\"glucose\",VolumeFinal*3.785*(CO2Volumes-VLOOKUP((BeerTemperature-32)*5/9,RESIDUAL_CO2,2,TRUE))/0.27027,VolumeFinal*3.785*(CO2Volumes-VLOOKUP((BeerTemperature-32)*5/9,RESIDUAL_CO2,2,TRUE))/0.286))))","v":"grams"},null,null,null,"Fermenter Volume ",null,null,null,null,null,null,null,null,null,null,null,null,"Kettle Volume",null,"Mash Efficiency ",null,0.75,{"$f":"IF(TotalGrainWeight=\"\",\"\",IF(MashThickness=\"\",\"\",IF(MashType=\"Infusion Mash\",IF(MashSteps<2,TotalGrainWeight*(0.08+MashThickness/4),IF(MashSteps<3,IF(MashThickness2=\"\",\"\",TotalGrainWeight*(0.08+MashThickness2/4)),IF(MashThickness3=\"\",\"\",TotalGrainWeight*(0.08+MashThickness3/4)))),TotalGrainWeight*(0.08+MashThickness/4))))","v":14.555000000000001},null,"Tun Space Required"]
[null,"Aging (includes carbonating)",null,65,null,90,null,null,"%CO2 of Beer Gas ",null,null,null,1,{"$f":"IF(TempServing=\"\",\"PSI\",IF(CO2Volumes=\"\",\"PSI\",IF(BeerGasPercentage=\"\",-16.6999-0.0101059*TempServing+0.00116512*TempServing^2+0.173354*TempServing*CO2Volumes+4.24267*CO2Volumes-0.0684226*CO2Volumes^2,(-16.6999-0.0101059*TempServing+0.00116512*TempServing^2+0.173354*TempServing*CO2Volumes+4.24267*CO2Volumes-0.0684226*CO2Volumes^2)/BeerGasPercentage)))","v":22.35210657},null,null,null,"Brewhouse Efficiency ",null,null,null,null,null,null,{"$f":"IF(VolumeBeerFinalMeasured=\"\",\"\",IF(GravityUnits=0,\"\",IF(GravityMeasuredOriginal=\"\",\"\",(GravityMeasuredOriginal-1)*1000*VolumeBeerFinalMeasured/GravityUnits)))","v":""},null,null,null,null,null,"Final Beer Volume",null,"Boil Time ",null,90,null,null,"Measured Mash pH"]
[]
[null,"Malt, Extract & Adjuncts",null,"Maltster",null,null,"Origin",null,null,"Pounds","%Weight",null,"ºL / MCU",null,"Potential",null,null,null,"GU (Adj.)",null,"Late?",null,null,null,"Hops",null,null,null,null,null,null,null,"% AA","Ounces"," Time",null,{"$f":"IF(HopsMeasurement=\"Ounces\",\"IBU\",\"Ounces\")","v":"IBU"},null,"Utilization",null,null,null,null,"AGUPG","MCUMash","MCUPG1","AWGUPG"]
[null,"Pilsen",null,{"$f":"IF(B19=\"\",\" \",VLOOKUP(B19,GRAINS_ATTRIBUTES,2,0))","v":"Weissheimer"},null,null,{"$f":"IF(B19=\"\",\" \",VLOOKUP(B19,GRAINS_ATTRIBUTES,3,0))","v":"Germany"},null,null,41,{"$f":"IF(B19=\"\",\"\",IF(J19=\"\",\"\",IF(TotalGrainWeight=0,\"\",IF(U19=\"Mash\",J19/TotalGrainWeight,\"--\"))))","v":1},null,{"$f":"IF(B19=\"\",\"\",VLOOKUP(B19,GRAINS_ATTRIBUTES,4,0))","v":1.3},{"$f":"IF(J19=\"\",\"\",IF(B19=\"\",\"\",IF(VolumePostBoil=\"\",\"\",J19*M19/VolumePostBoil)))","v":8.9181699346405239},{"$f":"IF(B19=\"\",\" \",VLOOKUP(B19,GRAINS_ATTRIBUTES,6,0))","v":1.0375110999999999},null,null,null,{"$f":"IF(B19=\"\",\"\",IF(J19=\"\",\"\",J19*((O19*1000)-1000)))","v":1537.9550999999976},{"$f":"IF(MashEfficiencyPredicted=\"\",\"\",IF(B19=\"\",\"\",IF(J19=\"\",\"\",IF(VLOOKUP(B19,GRAINS_ATTRIBUTES,9,0)=\"SUGARS\",S19,IF(U19=\"Steep\",0,S19*MashEfficiencyPredicted)))))","v":1153.4663249999983},"Mash",null,{"$f":"IF(T19=\"\",\"\",IF(U19=\"Mash\",T19,0))","v":1153.4663249999983},{"$f":"IF(T19=\"\",\"\",IF(U19=\"Skip\",0,IF(U19=\"Yes\",T19*ExtractGUFactor,T19)))","v":1153.4663249999983},"Saaz (Czech)",null,null,null,null,null,null,null,{"$f":"IF(Y19=\"\",\"\",IF(fHopsAging=\"Yes\",IF(HopsTemperature=\"\",\"\",IF(VLOOKUP(Y19,HOPS_ATTRIBUTES,11,0)=\"\",\"\",IF(VLOOKUP(Y19,HOPS_ATTRIBUTES,10,0)=\"\",\"\",VLOOKUP(Y19,HOPS_ATTRIBUTES,2,0)*1/(EXP(VLOOKUP(VLOOKUP(Y19,HOPS_ATTRIBUTES,10,0)*100,[1]Tables!$P$16:$Q$66,2,0)*VLOOKUP(ROUND((HopsTemperature-32)*5/9,0),[1]Tables!$L$16:$N$65,3,0)*VLOOKUP(HopsStorage,[1]Tables!$C$32:$J$34,8,0)*(BrewDate-VLOOKUP(Y19,HOPS_ATTRIBUTES,11,0))))))),VLOOKUP(Y19,HOPS_ATTRIBUTES,2,0)))","v":3.7499999999999999E-2},4,60,null,{"$f":"IF(AM19=\"\",\"\",IF(AH19=\"\",\"\",IF(AG19=\"\",\"\",IF(VolumePostBoil=\"\",\"\",IF(HopsMeasurement=\"Ounces\",IF(fIBU=\"Tinseth\",AH19*AG19*AM19*7490/((VolumePreBoil+VolumePostBoil)/2),AH19*AM19*AG19*7462/((VolumePreBoil+VolumePostBoil)/2)),IF(fIBU=\"Tinseth\",\n((VolumePreBoil+VolumePostBoil)/2)*AH19/(AG19*AM19*7490),\n((VolumePreBoil+VolumePostBoil)/2)*AH19/(AM19*AG19*7462)))))))","v":24.471813542094264},null,{"$f":"IF(Y19=\"\",\"\",IF(AI19=\"\",\"\",IF(GravityPreBoil=\"\",\"\",IF(GravityEstimatedOriginal=\"\",\"\",IF(TimeBoil=\"\",\"\",IF(FWHFactor=\"\",\"\",IF(PelletHopFactor=\"\",\"\",IF(LeafHopFactor=\"\",\"\",IF(AI19=\"dry hop\",0,IF(fIBU=\"Tinseth\",((1-EXP(-0.04*IF(AI19=\"FWH\",TimeBoil,AI19)))/4.15)*1.65*0.000125^(((GravityPreBoil+GravityEstimatedOriginal)/2)-1),18.11+13.86*TANH((AI19-31.32)/18.27)/100)*IF(AI19=\"FWH\",FWHFactor,1)*IF(VLOOKUP(Y19,HOPS_ATTRIBUTES,8,0)=\"Pellet\",PelletHopFactor,LeafHopFactor))))))))))","v":0.14748637625815739},null,null,null,null,{"$f":"IF(T19=\"\",\"\",IF(U19=\"Yes\",T19,IF(U19=\"No\",T19,0)))","v":0},{"$f":"IF(J19=\"\",\"\",IF(B19=\"\",\"\",IF(VolumePostBoil=\"\",\"\",IF(U19=\"Mash\",J19*M19/VolumePostBoil,0))))","v":8.9181699346405239},{"$f":"IF(J19=\"\",\"\",IF(B19=\"\",\"\",IF(VolumePostBoil=\"\",\"\",IF(U19=\"Yes\",J19*M19/VolumePostBoil,IF(U19=\"No\",J19*M19/VolumePostBoil,0)))))","v":0},{"$f":"IF(T19=\"\",\"\",IF(U19=\"Skip\",0,IF(U19=\"Mash\",0,IF(U19=\"Yes\",T19*ExtractGUFactor,T19))))","v":0}]
[null,"Cane Sugar (sucrose)",null,"--",null,null,"USA",null,null,2,"--",null,0,0,1.0453838,null,null,null,{"$f":"IF(B20=\"\",\"\",IF(J20=\"\",\"\",J20*((O20*1000)-1000)))","v":90.76760000000013},90.76760000000013,"Yes",null,{"$f":"IF(T20=\"\",\"\",IF(U20=\"Mash\",T20,0))","v":0},18.153520000000025,null,null,null,null,null,null,null,null,{"$f":"IF(Y20=\"\",\"\",IF(fHopsAging=\"Yes\",IF(HopsTemperature=\"\",\"\",IF(VLOOKUP(Y20,HOPS_ATTRIBUTES,11,0)=\"\",\"\",IF(VLOOKUP(Y20,HOPS_ATTRIBUTES,10,0)=\"\",\"\",VLOOKUP(Y20,HOPS_ATTRIBUTES,2,0)*1/(EXP(VLOOKUP(VLOOKUP(Y20,HOPS_ATTRIBUTES,10,0)*100,[1]Tables!$P$16:$Q$66,2,0)*VLOOKUP(ROUND((HopsTemperature-32)*5/9,0),[1]Tables!$L$16:$N$65,3,0)*VLOOKUP(HopsStorage,[1]Tables!$C$32:$J$34,8,0)*(BrewDate-VLOOKUP(Y20,HOPS_ATTRIBUTES,11,0))))))),VLOOKUP(Y20,HOPS_ATTRIBUTES,2,0)))","v":""},null,null,null,"",null,"",null,null,null,null,{"$f":"IF(T20=\"\",\"\",IF(U20=\"Yes\",T20,IF(U20=\"No\",T20,0)))","v":90.76760000000013},0,0,18.153520000000025]
[null,null,null," ",null,null," ",null,null,null,"",null,"",""," ",null,null,null,"","","Mash",null,"","",null,null,null,null,null,null,null,null,{"$f":"IF(Y21=\"\",\"\",IF(fHopsAging=\"Yes\",IF(HopsTemperature=\"\",\"\",IF(VLOOKUP(Y21,HOPS_ATTRIBUTES,11,0)=\"\",\"\",IF(VLOOKUP(Y21,HOPS_ATTRIBUTES,10,0)=\"\",\"\",VLOOKUP(Y21,HOPS_ATTRIBUTES,2,0)*1/(EXP(VLOOKUP(VLOOKUP(Y21,HOPS_ATTRIBUTES,10,0)*100,[1]Tables!$P$16:$Q$66,2,0)*VLOOKUP(ROUND((HopsTemperature-32)*5/9,0),[1]Tables!$L$16:$N$65,3,0)*VLOOKUP(HopsStorage,[1]Tables!$C$32:$J$34,8,0)*(BrewDate-VLOOKUP(Y21,HOPS_ATTRIBUTES,11,0))))))),VLOOKUP(Y21,HOPS_ATTRIBUTES,2,0)))","v":""},null,null,null,"",null,"",null,null,null,null,"","","",""]
[null,null,null," ",null,null," ",null,null,null,"",null,"",""," ",null,null,null,"","","Mash",null,"","",null,null,null,null,null,null,null,null,{"$f":"IF(Y22=\"\",\"\",IF(fHopsAging=\"Yes\",IF(HopsTemperature=\"\",\"\",IF(VLOOKUP(Y22,HOPS_ATTRIBUTES,11,0)=\"\",\"\",IF(VLOOKUP(Y22,HOPS_ATTRIBUTES,10,0)=\"\",\"\",VLOOKUP(Y22,HOPS_ATTRIBUTES,2,0)*1/(EXP(VLOOKUP(VLOOKUP(Y22,HOPS_ATTRIBUTES,10,0)*100,[1]Tables!$P$16:$Q$66,2,0)*VLOOKUP(ROUND((HopsTemperature-32)*5/9,0),[1]Tables!$L$16:$N$65,3,0)*VLOOKUP(HopsStorage,[1]Tables!$C$32:$J$34,8,0)*(BrewDate-VLOOKUP(Y22,HOPS_ATTRIBUTES,11,0))))))),VLOOKUP(Y22,HOPS_ATTRIBUTES,2,0)))","v":""},null,null,null,"",null,"",null,null,null,null,"","","",""]
[null,null,null," ",null,null," ",null,null,null,"",null,"",""," ",null,null,null,"","","Mash",null,"","",null,null,null,null,null,null,null,null,{"$f":"IF(Y23=\"\",\"\",IF(fHopsAging=\"Yes\",IF(HopsTemperature=\"\",\"\",IF(VLOOKUP(Y23,HOPS_ATTRIBUTES,11,0)=\"\",\"\",IF(VLOOKUP(Y23,HOPS_ATTRIBUTES,10,0)=\"\",\"\",VLOOKUP(Y23,HOPS_ATTRIBUTES,2,0)*1/(EXP(VLOOKUP(VLOOKUP(Y23,HOPS_ATTRIBUTES,10,0)*100,[1]Tables!$P$16:$Q$66,2,0)*VLOOKUP(ROUND((HopsTemperature-32)*5/9,0),[1]Tables!$L$16:$N$65,3,0)*VLOOKUP(HopsStorage,[1]Tables!$C$32:$J$34,8,0)*(BrewDate-VLOOKUP(Y23,HOPS_ATTRIBUTES,11,0))))))),VLOOKUP(Y23,HOPS_ATTRIBUTES,2,0)))","v":""},null,null,null,"",null,"",null,null,null,null,"","","",""]
[null,null,null," ",null,null," ",null,null,null,"",null,"",""," ",null,null,null,"","","Mash",null,"","",null,null,null,null,null,null,null,null,{"$f":"IF(Y24=\"\",\"\",IF(fHopsAging=\"Yes\",IF(HopsTemperature=\"\",\"\",IF(VLOOKUP(Y24,HOPS_ATTRIBUTES,11,0)=\"\",\"\",IF(VLOOKUP(Y24,HOPS_ATTRIBUTES,10,0)=\"\",\"\",VLOOKUP(Y24,HOPS_ATTRIBUTES,2,0)*1/(EXP(VLOOKUP(VLOOKUP(Y24,HOPS_ATTRIBUTES,10,0)*100,[1]Tables!$P$16:$Q$66,2,0)*VLOOKUP(ROUND((HopsTemperature-32)*5/9,0),[1]Tables!$L$16:$N$65,3,0)*VLOOKUP(HopsStorage,[1]Tables!$C$32:$J$34,8,0)*(BrewDate-VLOOKUP(Y24,HOPS_ATTRIBUTES,11,0))))))),VLOOKUP(Y24,HOPS_ATTRIBUTES,2,0)))","v":""},null,null,null,"",null,"",null,null,null,null,"","","",""]
[null,null,null," ",null,null," ",null,null,null,"",null,"",""," ",null,null,null,"","","Mash",null,"","",null,null,null,null,null,null,null,null,{"$f":"IF(Y25=\"\",\"\",IF(fHopsAging=\"Yes\",IF(HopsTemperature=\"\",\"\",IF(VLOOKUP(Y25,HOPS_ATTRIBUTES,11,0)=\"\",\"\",IF(VLOOKUP(Y25,HOPS_ATTRIBUTES,10,0)=\"\",\"\",VLOOKUP(Y25,HOPS_ATTRIBUTES,2,0)*1/(EXP(VLOOKUP(VLOOKUP(Y25,HOPS_ATTRIBUTES,10,0)*100,[1]Tables!$P$16:$Q$66,2,0)*VLOOKUP(ROUND((HopsTemperature-32)*5/9,0),[1]Tables!$L$16:$N$65,3,0)*VLOOKUP(HopsStorage,[1]Tables!$C$32:$J$34,8,0)*(BrewDate-VLOOKUP(Y25,HOPS_ATTRIBUTES,11,0))))))),VLOOKUP(Y25,HOPS_ATTRIBUTES,2,0)))","v":""},null,null,null,"",null,"",null,"Equation Factors",null,null,"","","",""]
[null,null,null," ",null,null," ",null,null,null,"",null,"",""," ",null,null,null,"","","Mash",null,"","",null,null,null,null,null,null,null,null,{"$f":"IF(Y26=\"\",\"\",IF(fHopsAging=\"Yes\",IF(HopsTemperature=\"\",\"\",IF(VLOOKUP(Y26,HOPS_ATTRIBUTES,11,0)=\"\",\"\",IF(VLOOKUP(Y26,HOPS_ATTRIBUTES,10,0)=\"\",\"\",VLOOKUP(Y26,HOPS_ATTRIBUTES,2,0)*1/(EXP(VLOOKUP(VLOOKUP(Y26,HOPS_ATTRIBUTES,10,0)*100,[1]Tables!$P$16:$Q$66,2,0)*VLOOKUP(ROUND((HopsTemperature-32)*5/9,0),[1]Tables!$L$16:$N$65,3,0)*VLOOKUP(HopsStorage,[1]Tables!$C$32:$J$34,8,0)*(BrewDate-VLOOKUP(Y26,HOPS_ATTRIBUTES,11,0))))))),VLOOKUP(Y26,HOPS_ATTRIBUTES,2,0)))","v":""},null,null,null,"",null,"",null,0.04,"Wort Contraction",null,"","","",""]
[null,null,null," ",null,null," ",null,null,null,"",null,"",""," ",null,null,null,"","","Mash",null,"","",null,null,null,null,null,null,null,null,{"$f":"IF(Y27=\"\",\"\",IF(fHopsAging=\"Yes\",IF(HopsTemperature=\"\",\"\",IF(VLOOKUP(Y27,HOPS_ATTRIBUTES,11,0)=\"\",\"\",IF(VLOOKUP(Y27,HOPS_ATTRIBUTES,10,0)=\"\",\"\",VLOOKUP(Y27,HOPS_ATTRIBUTES,2,0)*1/(EXP(VLOOKUP(VLOOKUP(Y27,HOPS_ATTRIBUTES,10,0)*100,[1]Tables!$P$16:$Q$66,2,0)*VLOOKUP(ROUND((HopsTemperature-32)*5/9,0),[1]Tables!$L$16:$N$65,3,0)*VLOOKUP(HopsStorage,[1]Tables!$C$32:$J$34,8,0)*(BrewDate-VLOOKUP(Y27,HOPS_ATTRIBUTES,11,0))))))),VLOOKUP(Y27,HOPS_ATTRIBUTES,2,0)))","v":""},null,null,null,"",null,"",null,{"$f":"IF(WortContraction=\"\",\"\",IF(VolumePostBoil=\"\",\"\",VolumePostBoil*WortContraction))","v":0.23906250000000001},"Contraction Losses",null,"","","",""]
[null,null,null," ",null,null," ",null,null,null,"",null,"",""," ",null,null,null,"","","Mash",null,"","",null,null,null,null,null,null,null,null,{"$f":"IF(Y28=\"\",\"\",IF(fHopsAging=\"Yes\",IF(HopsTemperature=\"\",\"\",IF(VLOOKUP(Y28,HOPS_ATTRIBUTES,11,0)=\"\",\"\",IF(VLOOKUP(Y28,HOPS_ATTRIBUTES,10,0)=\"\",\"\",VLOOKUP(Y28,HOPS_ATTRIBUTES,2,0)*1/(EXP(VLOOKUP(VLOOKUP(Y28,HOPS_ATTRIBUTES,10,0)*100,[1]Tables!$P$16:$Q$66,2,0)*VLOOKUP(ROUND((HopsTemperature-32)*5/9,0),[1]Tables!$L$16:$N$65,3,0)*VLOOKUP(HopsStorage,[1]Tables!$C$32:$J$34,8,0)*(BrewDate-VLOOKUP(Y28,HOPS_ATTRIBUTES,11,0))))))),VLOOKUP(Y28,HOPS_ATTRIBUTES,2,0)))","v":""},null,null,null,"",null,"",null,1.4999999999999999E-2,"Boil Off Rate",null,"","","",""]
[null,null,null," ",null,null," ",null,null,null,"",null,"",""," ",null,null,null,"","","Mash",null,"","",null,null,null,null,null,null,null,null,{"$f":"IF(Y29=\"\",\"\",IF(fHopsAging=\"Yes\",IF(HopsTemperature=\"\",\"\",IF(VLOOKUP(Y29,HOPS_ATTRIBUTES,11,0)=\"\",\"\",IF(VLOOKUP(Y29,HOPS_ATTRIBUTES,10,0)=\"\",\"\",VLOOKUP(Y29,HOPS_ATTRIBUTES,2,0)*1/(EXP(VLOOKUP(VLOOKUP(Y29,HOPS_ATTRIBUTES,10,0)*100,[1]Tables!$P$16:$Q$66,2,0)*VLOOKUP(ROUND((HopsTemperature-32)*5/9,0),[1]Tables!$L$16:$N$65,3,0)*VLOOKUP(HopsStorage,[1]Tables!$C$32:$J$34,8,0)*(BrewDate-VLOOKUP(Y29,HOPS_ATTRIBUTES,11,0))))))),VLOOKUP(Y29,HOPS_ATTRIBUTES,2,0)))","v":""},null,null,null,"",null,"",null,0.2,"Grain Factor",null,"","","",""]
[null,"Cost:  ",{"$f":"IF(B19=\"\",0,J19*VLOOKUP(B19,[1]Grains!$A$2:$L$188,8,0))+IF(B20=\"\",0,J20*VLOOKUP(B20,[1]Grains!$A$2:$L$188,8,0))+IF(B21=\"\",0,J21*VLOOKUP(B21,[1]Grains!$A$2:$L$188,8,0))+IF(B22=\"\",0,J22*VLOOKUP(B22,[1]Grains!$A$2:$L$188,8,0))+IF(B23=\"\",0,J23*VLOOKUP(B23,[1]Grains!$A$2:$L$188,8,0))+IF(B24=\"\",0,J24*VLOOKUP(B24,[1]Grains!$A$2:$L$188,8,0))+IF(B25=\"\",0,J25*VLOOKUP(B25,[1]Grains!$A$2:$L$188,8,0))+IF(B26=\"\",0,J26*VLOOKUP(B26,[1]Grains!$A$2:$L$188,8,0))+IF(B27=\"\",0,J27*VLOOKUP(B27,[1]Grains!$A$2:$L$188,8,0))+IF(B28=\"\",0,J28*VLOOKUP(B28,[1]Grains!$A$2:$L$188,8,0))+IF(B29=\"\",0,J29*VLOOKUP(B29,[1]Grains!$A$2:$L$188,8,0))","v":0},{"$f":"IF(fPartigyle=\"Yes\",\"Parti-gyle Session Enabled\",\"\")","v":"Parti-gyle Session Enabled"},null,null,null,null,null,{"$f":"IF(B19=\"\",0,IF(U19=\"Mash\",J19,0))+IF(B20=\"\",0,IF(U20=\"Mash\",J20,0))+IF(B21=\"\",0,IF(U21=\"Mash\",J21,0))+IF(B22=\"\",0,IF(U22=\"Mash\",J22,0))+IF(B23=\"\",0,IF(U23=\"Mash\",J23,0))+IF(B24=\"\",0,IF(U24=\"Mash\",J24,0))+IF(B25=\"\",0,IF(U25=\"Mash\",J25,0))+IF(B26=\"\",0,IF(U26=\"Mash\",J26,0))+IF(B27=\"\",0,IF(U27=\"Mash\",J27,0))+IF(B28=\"\",0,IF(U28=\"Mash\",J28,0))+IF(B29=\"\",0,IF(U29=\"Mash\",J29,0))","v":41},null,null,{"$f":"IF(fPartigyle=\"No\",SUM(MCU),SUM(MCUPG1)+FirstBeerMCU)","v":12},null,null,null,null,null,{"$f":"IF(SUM(GU)=0,\"\",SUM(GU))","v":1628.7226999999978},{"$f":"IF(fPartigyle=\"No\",IF(SUM(AGU)=0,\"\",SUM(AGU)),FirstBeerMashGU+SUM(AGUPG))","v":658.18947500000013},{"$f":"IF(fPartigyle=\"No\",SUM(AWGU),GravityUnitsAdjusted+SUM(AWGUPG))","v":676.3429950000002},null,null,null,"Cost:  ",null,null,null,null,null,{"$f":"IF(HopsMeasurement=\"Ounces\",IF(Y19=\"\",0,AH19*VLOOKUP(Y19,[1]Hops!$A$2:$J$124,9,0))+IF(Y20=\"\",0,AH20*VLOOKUP(Y20,[1]Hops!$A$2:$J$124,9,0))+IF(Y21=\"\",0,AH21*VLOOKUP(Y21,[1]Hops!$A$2:$J$124,9,0))+IF(Y22=\"\",0,AH22*VLOOKUP(Y22,[1]Hops!$A$2:$J$124,9,0))+IF(Y23=\"\",0,AH23*VLOOKUP(Y23,[1]Hops!$A$2:$J$124,9,0))+IF(Y24=\"\",0,AH24*VLOOKUP(Y24,[1]Hops!$A$2:$J$124,9,0))+IF(Y25=\"\",0,AH25*VLOOKUP(Y25,[1]Hops!$A$2:$J$124,9,0))+IF(Y26=\"\",0,AH26*VLOOKUP(Y26,[1]Hops!$A$2:$J$124,9,0))+IF(Y27=\"\",0,AH27*VLOOKUP(Y27,[1]Hops!$A$2:$J$124,9,0))+IF(Y28=\"\",0,AH28*VLOOKUP(Y28,[1]Hops!$A$2:$J$124,9,0))+IF(Y29=\"\",0,AH29*VLOOKUP(Y29,[1]Hops!$A$2:$J$124,9,0)),IF(Y19=\"\",0,AK19*VLOOKUP(Y19,[1]Hops!$A$2:$J$124,9,0))+IF(Y20=\"\",0,AK20*VLOOKUP(Y20,[1]Hops!$A$2:$J$124,9,0))+IF(Y21=\"\",0,AK21*VLOOKUP(Y21,[1]Hops!$A$2:$J$124,9,0))+IF(Y22=\"\",0,AK22*VLOOKUP(Y22,[1]Hops!$A$2:$J$124,9,0))+IF(Y23=\"\",0,AK23*VLOOKUP(Y23,[1]Hops!$A$2:$J$124,9,0))+IF(Y24=\"\",0,AK24*VLOOKUP(Y24,[1]Hops!$A$2:$J$124,9,0))+IF(Y25=\"\",0,AK25*VLOOKUP(Y25,[1]Hops!$A$2:$J$124,9,0))+IF(Y26=\"\",0,AK26*VLOOKUP(Y26,[1]Hops!$A$2:$J$124,9,0))+IF(Y27=\"\",0,AK27*VLOOKUP(Y27,[1]Hops!$A$2:$J$124,9,0))+IF(Y28=\"\",0,AK28*VLOOKUP(Y28,[1]Hops!$A$2:$J$124,9,0))+IF(Y29=\"\",0,AK29*VLOOKUP(Y29,[1]Hops!$A$2:$J$124,9,0)))","v":0},null,null,{"$f":"IF(SUM(OuncesorIBU)=0,\"\",SUM(OuncesorIBU))","v":4},{"$f":"IF(HopsMeasurement=\"Ounces\",IF(Y19=\"\",0,IF(VLOOKUP(Y19,[1]Hops!$A$2:$J$124,8,0)=\"Pellet\",0,AH19))+IF(Y20=\"\",0,IF(VLOOKUP(Y20,[1]Hops!$A$2:$J$124,8,0)=\"Pellet\",0,AH20))+IF(Y21=\"\",0,IF(VLOOKUP(Y21,[1]Hops!$A$2:$J$124,8,0)=\"Pellet\",0,AH21))+IF(Y22=\"\",0,IF(VLOOKUP(Y22,[1]Hops!$A$2:$J$124,8,0)=\"Pellet\",0,AH22))+IF(Y23=\"\",0,IF(VLOOKUP(Y23,[1]Hops!$A$2:$J$124,8,0)=\"Pellet\",0,AH23))+IF(Y24=\"\",0,IF(VLOOKUP(Y24,[1]Hops!$A$2:$J$124,8,0)=\"Pellet\",0,AH24))+IF(Y25=\"\",0,IF(VLOOKUP(Y25,[1]Hops!$A$2:$J$124,8,0)=\"Pellet\",0,AH25))+IF(Y26=\"\",0,IF(VLOOKUP(Y26,[1]Hops!$A$2:$J$124,8,0)=\"Pellet\",0,AH26))+IF(Y27=\"\",0,IF(VLOOKUP(Y27,[1]Hops!$A$2:$J$124,8,0)=\"Pellet\",0,AH27))+IF(Y28=\"\",0,IF(VLOOKUP(Y28,[1]Hops!$A$2:$J$124,8,0)=\"Pellet\",0,AH28))+IF(Y29=\"\",0,IF(VLOOKUP(Y29,[1]Hops!$A$2:$J$124,8,0)=\"Pellet\",0,AH29)),IF(Y19=\"\",0,IF(VLOOKUP(Y19,[1]Hops!$A$2:$J$124,8,0)=\"Pellet\",0,AK19))+IF(Y20=\"\",0,IF(VLOOKUP(Y20,[1]Hops!$A$2:$J$124,8,0)=\"Pellet\",0,AK20))+IF(Y21=\"\",0,IF(VLOOKUP(Y21,[1]Hops!$A$2:$J$124,8,0)=\"Pellet\",0,AK21))+IF(Y22=\"\",0,IF(VLOOKUP(Y22,[1]Hops!$A$2:$J$124,8,0)=\"Pellet\",0,AK22))+IF(Y23=\"\",0,IF(VLOOKUP(Y23,[1]Hops!$A$2:$J$124,8,0)=\"Pellet\",0,AK23))+IF(Y24=\"\",0,IF(VLOOKUP(Y24,[1]Hops!$A$2:$J$124,8,0)=\"Pellet\",0,AK24))+IF(Y25=\"\",0,IF(VLOOKUP(Y25,[1]Hops!$A$2:$J$124,8,0)=\"Pellet\",0,AK25))+IF(Y26=\"\",0,IF(VLOOKUP(Y26,[1]Hops!$A$2:$J$124,8,0)=\"Pellet\",0,AK26))+IF(Y27=\"\",0,IF(VLOOKUP(Y27,[1]Hops!$A$2:$J$124,8,0)=\"Pellet\",0,AK27))+IF(Y28=\"\",0,IF(VLOOKUP(Y28,[1]Hops!$A$2:$J$124,8,0)=\"Pellet\",0,AK28))+IF(Y29=\"\",0,IF(VLOOKUP(Y29,[1]Hops!$A$2:$J$124,8,0)=\"Pellet\",0,AK29)))","v":4},null,{"$f":"IF(SUM(IBUorOunces)=0,\"\",SUM(IBUorOunces))","v":24.471813542094264},null,"Tinseth",null,{"$f":"IF(GrainFactor=\"\",\"\",IF(TotalGrainWeight=\"\",\"\",TotalGrainWeight*GrainFactor))","v":8.2000000000000011},"Grain Absorption"]
[null,null,null,null,null,null,null,null,null,null,null,null,null,null,null,null,null,null,null,null,null,null,null,null,null,null,null,null,null,null,null,null,null,null,null,null,null,null,null,null,11.25,"HopAbsorptionFact."]
[null,"Yeast",null,"Temperature",null,"Attenuation",null,null,"Flocculation",null,null,"Styles & Notes",null,null,null,null,null,null,null,null,null,null,null,null,null,null,null,null,null,null,null,null,null,null,null,null,null,"Name",null,null,{"$f":"IF(AO31=\"\",0,IF(LeafHopsOunces=\"\",0,LeafHopsOunces*AO31/128))","v":0.3515625},"Hops Absorbtion"]
[null,"White Labs WLP570",null,{"$f":"IF(YeastStrain1=\"\",\"\",VLOOKUP(YeastStrain1,YEAST_ATTRIBUTES,3,0))","v":68},{"$f":"IF(YeastStrain1=\"\",\"\",VLOOKUP(YeastStrain1,YEAST_ATTRIBUTES,4,0))","v":75},{"$f":"IF(YeastStrain1=\"\",\"\",VLOOKUP(YeastStrain1,YEAST_ATTRIBUTES,5,0))","v":0.73},{"$f":"IF(YeastStrain1=\"\",\"\",VLOOKUP(YeastStrain1,YEAST_ATTRIBUTES,6,0))","v":0.78},null,{"$f":"IF(YeastStrain1=\"\",\"\",VLOOKUP(YeastStrain1,YEAST_ATTRIBUTES,7,0))","v":"Low"},null,null,{"$f":"IF(YeastStrain1=\"\",\"\",VLOOKUP(YeastStrain1,YEAST_ATTRIBUTES,9,0))","v":"From East Flanders, versatile yeast that can produce light Belgian ales to high gravity Belgian beers (12% ABV). A combination of fruitiness and phenolic characteristics dominate the flavor profile. Some sulfur is produced during fermentation, which will dissipate following the end of fermentation. "},null,null,null,null,null,null,null,null,null,null,null,null,null,null,null,null,null,null,null,null,null,null,null,null,null,{"$f":"IF(YeastStrain1=\"\",\"\",VLOOKUP(YeastStrain1,YEAST_ATTRIBUTES,2,0))","v":"Belgian Golden Ale"},null,null,0.125,"LT Dead Space"]
[null,null,null,{"$f":"IF(YeastStrain2=\"\",\"\",VLOOKUP(YeastStrain2,YEAST_ATTRIBUTES,3,0))","v":""},{"$f":"IF(YeastStrain2=\"\",\"\",VLOOKUP(YeastStrain2,YEAST_ATTRIBUTES,4,0))","v":""},{"$f":"IF(YeastStrain2=\"\",\"\",VLOOKUP(YeastStrain2,YEAST_ATTRIBUTES,5,0))","v":""},{"$f":"IF(YeastStrain2=\"\",\"\",VLOOKUP(YeastStrain2,YEAST_ATTRIBUTES,5,0))","v":""},null,{"$f":"IF(YeastStrain2=\"\",\"\",VLOOKUP(YeastStrain2,YEAST_ATTRIBUTES,7,0))","v":""},null,null,{"$f":"IF(YeastStrain2=\"\",\"\",VLOOKUP(YeastStrain2,YEAST_ATTRIBUTES,9,0))","v":""},null,null,null,null,null,null,null,null,null,null,null,null,null,null,null,null,null,null,null,null,null,null,null,null,null,{"$f":"IF(YeastStrain2=\"\",\"\",VLOOKUP(YeastStrain2,YEAST_ATTRIBUTES,2,0))","v":""},null,null,0.25,"Kettle Dead Space"]
[null,"Ale ","Required Cell Count: ",{"$f":"IF(PlatoEstimatedOriginal=\"\",\"\",IF(AleOrLager=\"Ale \",IF(PitchingRateAle=\"\",\"\",1000000*PitchingRateAle*VolumeFermentation*3785*PlatoEstimatedOriginal),IF(PitchingRateLager=\"\",\"\",1000000*PitchingRateLager*VolumeFermentation*3785*PlatoEstimatedOriginal)))","v":386423708661.77405},null,null,"Yeast Preparation: ",null,null,null,null,"Stirplate Starter",null,null,null,null,null,null,null,"# of Packages: ",null,null,null,null,1,null,null,null,"Starter Volume (mL/vials): ",null,null,{"$f":"IF(RequiredCellCount=\"\",\"\",RequiredCellCount/(VLOOKUP(YeastPreparation,[1]Tables!$C$15:$F$20,4,0)*1000000))","v":1545.6948346470963},null,null,"Dry Yeast (grams):",null,null,null,{"$f":"IF(RequiredCellCount=\"\",\"\",RequiredCellCount/(CellsPerDryGram*1000000000))","v":19.321185433088701},null,"Infusion Mash"]
[null,"Cost:  ",{"$f":"IF(YeastStrain1=\"\",0,YeastPackages/2*VLOOKUP(YeastStrain1,[1]Yeast!$A$2:$L$168,12,0))+IF(YeastStrain2=\"\",IF(YeastStrain1=\"\",0,YeastPackages/2*VLOOKUP(YeastStrain1,[1]Yeast!$A$2:$L$168,12,0)),YeastPackages/2*VLOOKUP(YeastStrain2,[1]Yeast!$A$2:$L$168,12,0))","v":0},null,null,null,null,null,null,null,null,null,null,null,null,null,null,null,null,null,null,null,null,null,null,null,null,null,null,null,null,null,null,null,null,null,null,null,null,null,1,"# of Mash Steps"]
[null,null,null,null,null,null,null,null,null,null,null,null,null,null,null,null,null,null,null,null,null,null,null,null,null,null,null,null,null,null,null,null,null,null,null,null,null,null,null,null,"No","3 Runnings?"]
[null,"Notes",null,null,null,null,null,null,null,null,null,null,null,null,null,null,null,null,null,null,null,null,null,null,null,null,null,null,null,null,null,null,null,null,null,null,null,null,null,null,70,"Grain Temp"]
[null,"To demo how parti-gyle works.  One thing to note is that the total mash gravity needs to exceed 1.050 (since that's where the table of data starts) in order for gravities to be calculated properly for the two beers.\n\nYou can see how you can \"top up\" either beer with cane sugar or malt extract if appropriate.",null,null,null,null,null,null,null,null,null,null,null,null,null,null,null,null,null,null,null,null,null,null,null,null,null,null,null,null,null,null,null,null,null,null,null,null,null,null,5,"Temp Loss to Tun"]
[null,null,null,null,null,null,null,null,null,null,null,null,null,null,null,null,null,null,null,null,null,null,null,null,null,null,null,null,null,null,null,null,null,null,null,null,null,null,null,null,0.2,"InfusionTempFactor"]
[null,null,null,null,null,null,null,null,null,null,null,null,null,null,null,null,null,null,null,null,null,null,null,null,null,null,null,null,null,null,null,null,null,null,null,null,null,null,null,null,200,{"$f":"IF(MashType=\"Infusion Mash\",\"Infusion Temperature\",IF(MashType=\"Decoction Mash\",\"Decoction Temp\",\"Factor Not Used\"))","v":"Infusion Temperature"}]
[null,null,null,null,null,null,null,null,null,null,null,null,null,null,null,null,null,null,null,null,null,null,null,null,null,null,null,null,null,null,null,null,null,null,null,null,null,null,null,null,170,"Mash Out Temp"]
[null,null,null,null,null,null,null,null,null,null,null,null,null,null,null,null,null,null,null,null,null,null,null,null,null,null,null,null,null,null,null,null,null,null,null,null,null,null,null,null,1.1000000000000001,"Mash Thickness"]
[null,null,null,null,null,null,null,null,null,null,null,null,null,null,null,null,null,null,null,null,null,null,null,null,null,null,null,null,null,null,null,null,null,null,null,null,null,null,null,null,{"$f":"IF(MashType=\"Infusion Mash\",IF(MashSteps<2,\"-\",IF(TotalGrainWeight=\"\",\"\",IF(MashThickness=\"\",\"\",IF(VolumeStrikeWater2=\"\",\"\",((MashThickness*TotalGrainWeight)+4*VolumeStrikeWater2)/TotalGrainWeight)))),MashThickness)","v":"-"},"Mash 2 Thickness"]
[null,null,null,null,null,null,null,null,null,null,null,null,null,null,null,null,null,null,null,null,null,null,null,null,null,null,null,null,null,null,null,null,null,null,null,null,null,null,null,null,{"$f":"IF(MashType=\"Infusion Mash\",IF(MashSteps<3,\"-\",IF(TotalGrainWeight=\"\",\"\",IF(MashThickness2=\"\",\"\",IF(VolumeStrikeWater3=\"\",\"\",((MashThickness2*TotalGrainWeight)+4*VolumeStrikeWater3)/TotalGrainWeight)))),MashThickness)","v":"-"},"Mash 3 Thickness"]
[null,null,null,null,null,null,null,null,null,null,null,null,null,null,null,null,null,null,null,null,null,null,null,null,null,null,null,null,null,null,null,null,null,null,null,null,null,null,null,null,{"$f":"IF(VolumeStrikeWater1=\"\",\"\",IF(MashType=\"Infusion Mash\",IF(MashSteps<2,VolumeStrikeWater1,IF(VolumeStrikeWater2=\"\",\"\",IF(MashSteps<3,VolumeStrikeWater1+VolumeStrikeWater2,IF(VolumeStrikeWater3=\"\",\"\",VolumeStrikeWater1+VolumeStrikeWater2+VolumeStrikeWater3)))),VolumeStrikeWater1))","v":11.275},"Total Mash Volume"]
[null,"Mash Water Chemistry Adjustments - Replicating Salt Profiles and Controlling Mash pH through Residual Alkalinity",null,null,null,null,null,null,null,null,null,null,null,null,null,null,null,null,null,null,null,null,null,null,null,null,null,null,null,null,null,null,null,null,null,null,null,null,null,null,{"$f":"IF(GravityRunoffMeasured=\"\",IF(GravityUnitsWeightedAdjusted=\"\",\"\",IF(VolumePreBoil=\"\",\"\",((GravityUnitsWeightedAdjusted/VolumePreBoil)+1000)/1000)),GravityRunoffMeasured)","v":1.0893968436183394},"Pre-Boil Gravity"]
[null,"Source","Water Attributes",null,null,null,"Target",null,null,"Diluted",null,"Final",null,null,null,null,null,null,"Added",null,null,null," Chalk CaCO3 ",null,null,null,null,null,null,null,null,{"$f":"IF(RAFinal=\"\",\"\",IF(RATarget=\"\",\"\",IF(RAFinal>RATargetHigh,0,\"\")))","v":""},null,"Salt & Acid Additions",null,null,null,null,null,null,1.1000000000000001,"FWH Adjustment"]
[null,{"$f":"[1]Water!D4","v":6.7},"Calcium (ppm)  (50-150)",null,null,null,null,null,null,{"$f":"IF(CalciumSource=\"\",\"\",IF(DilutionPercentage=\"\",CalciumSource,(1-DilutionPercentage)*CalciumSource))","v":6.7},null,{"$f":"IF(CalciumDiluted=\"\",\"\",CalciumDiluted+CalciumAdded)","v":50.070288248337029},null,{"$f":"IF(N48=\"\",\"\",HLOOKUP($N$48,[1]Water!$E$1:$V$14,4,0))","v":""},null,null,null,null,{"$f":"IF(VolumeMashTotal=\"\",0,IF(VolumeMashTotal=0,0,(ChalkAddition*105.89+GypsumAddition*60+CalciumChlorideAddition*72)/VolumeMashTotal))","v":43.370288248337026},null,2.75,null," Gypsum  CaSO4*2H2O ",null,null,null,null,null,null,null,null,{"$f":"IF(VolumeMashTotal=\"\",\"\",IF(RAFinal=\"\",\"\",IF(RATargetHigh=\"\",\"\",IF(VolumeMashTotal*(RAFinal-RATargetHigh)*1.4/60>0,VolumeMashTotal*(RAFinal-RATargetHigh)*1.4/60,\"\"))))","v":""},null,"Conc. %","Used",null,"Estimated",null,"Acid Type",null,1,"Leaf Hop Factor"]
[null,{"$f":"[1]Water!D7","v":2},"Magnesium (ppm) (10-30)",null,null,null,null,null,null,{"$f":"IF(MagnesiumSource=\"\",\"\",IF(DilutionPercentage=\"\",MagnesiumSource,(1-DilutionPercentage)*MagnesiumSource))","v":2},null,{"$f":"IF(MagnesiumDiluted=\"\",\"\",MagnesiumDiluted+MagnesiumAdded)","v":10.727272727272727},null,{"$f":"IF(N48=\"\",\"\",HLOOKUP($N$48,[1]Water!$E$1:$V$14,7,0))","v":""},null,null,null,null,{"$f":"IF(VolumeMashTotal=\"\",0,IF(VolumeMashTotal=0,0,EpsomSaltAddition*24.6/VolumeMashTotal))","v":8.7272727272727266},null,4.5,null," Calcium Chloride CaCl2*2H2O",null,null,null,null,null,null,null,null,{"$f":"IF(VolumeMashTotal=\"\",\"\",IF(RAFinal=\"\",\"\",IF(RATargetHigh=\"\",\"\",IF(VolumeMashTotal*(RAFinal-RATargetHigh)*1.4/60>0,VolumeMashTotal*(RAFinal-RATargetHigh)*1.4/72,\"\"))))","v":""},null,0.37,null,null,{"$f":"IF(HydrochloricConcentration=\"\",\"\",IF(RAFinal>RATargetHigh,3.785*VolumeMashTotal*MissingAdditionalEffectiveHardnessHigh/50/((13.927*(HydrochloricConcentration)^2)+(27.319*HydrochloricConcentration)),0))","v":0},null,"Hydrochloric",null,0.92,"Pellet Hop Factor"]
[null,{"$f":"IF(C51=\"Bicarbonate (ppm)\",[1]Water!D14,[1]Water!D2)","v":13.15},"Alkalinity as CaCO3",null,null,null,null,null,null,{"$f":"IF(AlkalinitySource=\"\",\"\",IF(DilutionPercentage=\"\",AlkalinitySource,(1-DilutionPercentage)*AlkalinitySource))","v":13.15},null,{"$f":"IF(AlkalinityDiluted=\"\",\"\",IF(AlkalinityType=\"Bicarbonate (ppm)\", 50/61*AlkalinityDiluted+AlkalinityAdded,AlkalinityDiluted+AlkalinityAdded))","v":13.15},null,{"$f":"IF(N48=\"\",\"\",IF(C51=\"Bicarbonate (ppm)\",HLOOKUP($N$48,[1]Water!$E$1:$V$14,14,0),HLOOKUP($N$48,[1]Water!$E$1:$V$14,2,0)))","v":""},null,null,null,null,{"$f":"BicarbontesAdded*50/61","v":0},null,4,null," Epsom Salt MgSO4*7H2O ",null,null,null,null,null,null,null,null,{"$f":"IF(MagnesiumFinal>50,0,IF(VolumeMashTotal=\"\",\"\",IF(MagnesiumFinal=\"\",\"\",IF(VolumeMashTotal*(10-MagnesiumFinal)/24.6>0,VolumeMashTotal*(10-MagnesiumFinal)/24.6,\"\"))))","v":""},null,0.88,null,null,{"$f":"IF(LacticConcentration=\"\",\"\",IF(RAFinal>RATargetHigh,0.88/(LacticConcentration)*3.785*(LacticConcentration)*VolumeMashTotal/50/11.8,0))","v":0},null,"Lactic",null,"No","Use Hops Aging"]
[null,{"$f":"[1]Water!D14","v":16},"Sodium (ppm) (0-150)",null,null,null,null,null,null,{"$f":"IF(SodiumSource=\"\",\"\",IF(DilutionPercentage=\"\",SodiumSource,(1-DilutionPercentage)*SodiumSource))","v":16},null,{"$f":"IF(SodiumDiluted=\"\",\"\",SodiumDiluted+SodiumAdded)","v":16},null,{"$f":"IF(N48=\"\",\"\",HLOOKUP($N$48,[1]Water!$E$1:$V$14,8,0))","v":""},null,null,null,null,{"$f":"IF(VolumeMashTotal=\"\",0,IF(VolumeMashTotal=0,0,(BakingSodaAddition*72.3/VolumeMashTotal)+(TableSaltAddition*104/VolumeMashTotal)))","v":0},null,null,null," Baking Soda  NaHCO3 ",null,null,null,null,null,null,null,null,{"$f":"IF(RAFinal=\"\",\"\",IF(RATarget=\"\",\"\",IF(RAFinal>RATargetHigh,0,\"\")))","v":""},null,"acid additions are in mL",null,null,null,null,null,null,"Sealed in barrier, no O2"]
[null,{"$f":"[1]Water!D5","v":14},"Chloride (ppm) (0-250)",null,null,null,null,null,null,{"$f":"IF(ChlorideSource=\"\",\"\",IF(DilutionPercentage=\"\",ChlorideSource,(1-DilutionPercentage)*ChlorideSource))","v":14},null,{"$f":"IF(ChlorideDiluted=\"\",\"\",IF(VolumeMashTotal=\"\",\"\",IF(HydrochloricUsed=\"\",ChlorideDiluted+ChlorideAdded,ChlorideDiluted+ChlorideAdded+(HydrochloricUsed*12*HydrochloricConcentration/0.37*35.4/(VolumeMashTotal*3.785)))))","v":64.874944567627495},null,{"$f":"IF(N48=\"\",\"\",HLOOKUP($N$48,[1]Water!$E$1:$V$14,5,0))","v":""},null,null,null,null,{"$f":"IF(VolumeMashTotal=\"\",0,IF(VolumeMashTotal=0,0,(160*TableSaltAddition/VolumeMashTotal)+(CalciumChlorideAddition*127.47/VolumeMashTotal)))","v":50.874944567627495},null,null,null," Table Salt  NaCl ",null,null,null,null,null,null,null,null,{"$f":"IF(SodiumFinal>150,0,IF(ChlorideFinal>250,0,\"\"))","v":""},null,"salt additions are in grams",null,null,null,null,null,null,20,"Hops Temperature"]
[" ",{"$f":"[1]Water!D12","v":5},"Sulfate (ppm) (bitter 50-150, 150-350 very bitter)",null,null,null,null,null,null,{"$f":"IF(SulfateSource=\"\",\"\",IF(DilutionPercentage=\"\",SulfateSource,(1-DilutionPercentage)*SulfateSource))","v":5},null,{"$f":"IF(SulfateDiluted=\"\",\"\",SulfateDiluted+SulfateAdded)","v":77.492239467849217},null,{"$f":"IF(N48=\"\",\"\",HLOOKUP($N$48,[1]Water!$E$1:$V$14,12,0))","v":""},null,null,null,null,{"$f":"IF(VolumeMashTotal=\"\",0,IF(VolumeMashTotal=0,0,(GypsumAddition*147.4+EpsomSaltAddition*103)/VolumeMashTotal))","v":72.492239467849217},null,{"$f":"IF(VolumeMashTotal=\"\",0,IF(VolumeMashTotal=0,0,(ChalkAddition*158+BakingSodaAddition*191.88)/VolumeMashTotal))","v":0},null," Added Bicarbonates HCO3",null,null,null,null,null,null,null,null,{"$f":"CONCATENATE(IF(MagnesiumFinal<10,\"Add some epsom salt for magnesium.\",IF(MagnesiumFinal>50,\"High magnesium might cause sour-bitter taste, dilute.\",\"\")),\" \",IF(CalciumFinal<50,\"Add gypsum or calcium chloride to assist mash enzymes but watch Cl/SO4 balance, or use chalk if pH is low.\",IF(CalciumFinal>150,\"Excessive calcium, dilute.\",\"\")),\" \",IF(SulfateFinal>750,\"Sulfate far too high, reduce gypsum, epsom or dilute.\",IF(SulfateFinal>400,\"High sulfate may cause astringincy, reduce gypsum, epsom or dilute.\",\"\")),\" \",IF(SodiumFinal>200,\"Sodium too high, reduce baking soda, table salt or dilute.\",\"\"),\" \",IF(ChlorideFinal>300,\"Chloride too high, reduce table salt, calcium chloride or dilute.\",\"\"))","v":"    "},null,null,null,null,null,null,null,null,0.2,"Extract GU Factor"]
[null,{"$f":"[1]Water!D13","v":7.85},"Water pH",null,null,null,"Distilled Dilution: ",null,null,null,0,{"$f":"IF(AlkalinityFinal=\"\",\"\",IF(IF(AlkalinityType=\"Bicarbonate (ppm)\",AlkalinityFinal,61*AlkalinityFinal/50)>250,CONCATENATE(\"High bicarbonates should be diluted.\",\" \",ROUND((1-(250/AlkalinityFinal))*100,2),\"%\"),\"\"))","v":""},null,null,null,null,null,null,null,null,{"$f":"(CalciumAdded/1.4)+(MagnesiumAdded/1.7)","v":36.11246715981293},null," Contributed Hardness",null,null,null,null,null,null,null,null,null,null,null,null,null,null,null,null,null,60,"Preparation Time"]
[null,{"$f":"IF(CalciumSource=\"\",\"\",IF(MagnesiumSource=\"\",\"\",(CalciumSource/1.4)+(MagnesiumSource/1.7)))","v":5.9621848739495809},"Effective Hardness",null,null,null,{"$f":"IF(CalciumTarget=\"\",\"\",IF(MagnesiumTarget=\"\",\"\",(CalciumTarget/1.4)+(MagnesiumTarget/1.7)))","v":""},null,null,{"$f":"IF(CalciumDiluted=\"\",\"\",IF(MagnesiumDiluted=\"\",\"\",(CalciumDiluted/1.4)+(MagnesiumDiluted/1.7)))","v":5.9621848739495809},null,{"$f":"IF(CalciumFinal=\"\",\"\",IF(MagnesiumFinal=\"\",\"\",(CalciumFinal/1.4)+(MagnesiumFinal/1.7)))","v":42.074652033762511},null,{"$f":"IF(CalciumCity=\"\",\"\",IF(MagnesiumCity=\"\",\"\",(CalciumCity/1.4)+(MagnesiumCity/1.7)))","v":""},null,null,null,null,{"$f":"IF(CalciumAdded=\"\",\"\",IF(MagnesiumAdded=\"\",\"\",(CalciumAdded/1.4)+(MagnesiumAdded/1.7)))","v":36.11246715981293},null,{"$f":"IF(TotalAdditionalRANeededLow=0,0,IF(TotalAdditionalRANeededLow=\"\",\"\",TotalAdditionalRANeededLow-RAAdded))","v":0},null,"(low) Missing Additional Residual Alkalinity (high)",null,null,null,null,null,null,null,null,null,null,null,{"$f":"IF(TotalAdditionalRANeedeHigh=0,0,IF(TotalAdditionalRANeedeHigh=\"\",\"\",TotalAdditionalRANeedeHigh-RAAdded))","v":47.139316548136435},{"$f":"IF(RATargetHigh=\"\",\"\",IF(RAFinal=\"\",\"\",IF(RAFinal>RATargetHigh,CONCATENATE(\"Mash pH too high.  Lower with calcium chloride or gypsum.  Do not use chalk even if calcium levels are low.  Gypsum is better for bitter beers, calcium chloride for malty beers.\"),IF(RAFinal<RATargetLow,\"Mash pH too low.  Use baking soda and chalk additions to adjust, or reduce gypsum or calcium chloride.  Watch the calcium and effective hardness when adding chalk, and the sodium levels from baking soda.\",\"Mash pH within range for target SRM.\"))))","v":"Mash pH within range for target SRM."},null,null,null,null,25,"Milling Time"]
[null,{"$f":"IF(AlkalinitySource=\"\",\"\",IF(EffectiveHardnessSource=\"\",\"\",IF(AlkalinityType=\"Bicarbonate (ppm)\",(AlkalinitySource*50/61)-EffectiveHardnessSource,AlkalinitySource-EffectiveHardnessSource)))","v":7.1878151260504195},"Residual Alkalinity as CaCO3",null,null,null,{"$f":"IF(AlkalinityTarget=\"\",\"\",IF(EffectiveHardnessTarget=\"\",\"\",IF(AlkalinityType=\"Bicarbonate (ppm)\",(AlkalinityTarget*50/61)-EffectiveHardnessTarget,AlkalinityTarget-EffectiveHardnessTarget)))","v":""},null,null,{"$f":"IF(AlkalinityDiluted=\"\",\"\",IF(EffectiveHardnessDiluted=\"\",\"\",IF(AlkalinityType=\"Bicarbonate (ppm)\",(AlkalinityDiluted*50/61)-EffectiveHardnessDiluted,AlkalinityDiluted-EffectiveHardnessDiluted)))","v":7.1878151260504195},null,{"$f":"IF(AlkalinityFinal=\"\",\"\",IF(EffectiveHardnessFinal=\"\",\"\",IF(AlkalinityType=\"Bicarbonate (ppm)\",(AlkalinityFinal*50/61)-EffectiveHardnessFinal,AlkalinityFinal-EffectiveHardnessFinal)))","v":-28.924652033762513},null,{"$f":"IF(AlkalinityCity=\"\",\"\",IF(EffectiveHardnessCity=\"\",\"\",IF(AlkalinityType=\"Bicarbonate (ppm)\",(AlkalinityCity*50/61)-EffectiveHardnessCity,AlkalinityCity-EffectiveHardnessCity)))","v":""},null,null,null,null,{"$f":"IF(AlkalinityAdded=\"\",\"\",IF(EffectiveHardnessAdded=\"\",\"\",IF(AlkalinityType=\"Bicarbonate (ppm)\",(AlkalinityAdded*50/61)-EffectiveHardnessAdded,AlkalinityAdded-EffectiveHardnessAdded)))","v":-36.11246715981293},null,{"$f":"IF(RADiluted=\"\",\"\",IF(RATargetLow=\"\",\"\",IF(RADiluted<RATargetLow,RATargetLow-RADiluted,0)))","v":0},null,"(low) Total Additional Residual Alkalinity Needed (high)",null,null,null,null,null,null,null,null,null,null,null,{"$f":"IF(RADiluted=\"\",\"\",IF(RATargetHigh=\"\",\"\",IF(RADiluted<RATargetHigh,RATargetHigh-RADiluted,0)))","v":11.026849388323502},null,null,null,null,null,60,"Strike Heating Time"]
[null,{"$f":"IF(RASource=\"\",\"\",IF(RASource<-69,0,RASource*0.082+5.2))","v":5.7894008403361346},"Estimated Low SRM",null,null,null,{"$f":"IF(RATarget=\"\",\"\",IF(RATarget<-69,0,RATarget*0.082+5.2))","v":""},null,null,{"$f":"IF(RADiluted=\"\",\"\",IF(RADiluted<-69,0,RADiluted*0.082+5.2))","v":5.7894008403361346},null,{"$f":"IF(RAFinal=\"\",\"\",IF(RAFinal<-69,0,RAFinal*0.082+5.2))","v":2.8281785332314739},null,{"$f":"IF(RACity=\"\",\"\",IF(RACity<-69,0,RACity*0.082+5.2))","v":""},null,null,null,null,{"$f":"IF(CSBalanceFinal=\"Very Malty\",\"Add gypsum or epsom salt for a more bitter balance.\",IF(CSBalanceFinal=\"Malty\",\"Add gypsum or epsom salt for a more bitter balance.\",IF(CSBalanceFinal=\"Bitter\",\"Add calcium chloride for a more malty balance.\",IF(CSBalanceFinal=\"Very Bitter\",\"Add calcium chloride or table salt for a more malty balance.\",\"CaCl2 or NaCL for malty, for bitter MgSO4 or CaSO4\"))))","v":"CaCl2 or NaCL for malty, for bitter MgSO4 or CaSO4"},null,{"$f":"IF(TotalEffectiveHardnessNeededLow=0,0,IF(TotalEffectiveHardnessNeededLow=\"\",\"\",TotalEffectiveHardnessNeededLow-EffectiveHardnessAdded))","v":11.820683451863573},null,"(low) Missing Additional Effective Hardness (high)",null,null,null,null,null,null,null,null,null,null,null,{"$f":"IF(TotalEffectiveHardnessNeededHigh=0,0,IF(TotalEffectiveHardnessNeededHigh=\"\",\"\",TotalEffectiveHardnessNeededHigh-EffectiveHardnessAdded))","v":-47.139316548136435},null,null,null,null,null,15,"Dough In Time"]
[null,{"$f":"IF(RASource=\"\",\"\",IF(RASource<-128,0,(RASource+122.4)/12.2))","v":10.621952059512331},"Estimated High SRM",null,null,null,{"$f":"IF(RATarget=\"\",\"\",IF(RATarget<-128,0,(RATarget+122.4)/12.2))","v":""},null,null,{"$f":"IF(RADiluted=\"\",\"\",IF(RADiluted<-128,0,(RADiluted+122.4)/12.2))","v":10.621952059512331},null,{"$f":"IF(RAFinal=\"\",\"\",IF(RAFinal<-128,0,(RAFinal+122.4)/12.2))","v":7.6619137677243847},null,{"$f":"IF(RACity=\"\",\"\",IF(RACity<-128,0,(RACity+122.4)/12.2))","v":""},null,null,null,null,null,null,{"$f":"IF(RADiluted=\"\",\"\",IF(EffectiveHardnessDiluted=\"\",\"\",IF(AlkalinityType=\"\",\"\",IF(AlkalinitySource=\"\",\"\",IF(RATargetLow=\"\",\"\",IF(RADiluted>EffectiveHardnessDiluted,IF(AlkalinityType=\"Bicarbonate (ppm)\",50*AlkalinitySource/61,AlkalinityDiluted)-RATargetLow-EffectiveHardnessDiluted,0))))))","v":47.933150611676503},null,"(low) Total Additional Effective Hardness Needed (high)",null,null,null,null,null,null,null,null,null,null,null,{"$f":"IF(RADiluted=\"\",\"\",IF(EffectiveHardnessDiluted=\"\",\"\",IF(AlkalinityType=\"\",\"\",IF(AlkalinitySource=\"\",\"\",IF(RATargetHigh=\"\",\"\",IF(RADiluted>EffectiveHardnessDiluted,IF(AlkalinityType=\"Bicarbonate (ppm)\",50*AlkalinitySource/61,AlkalinityDiluted)-RATargetHigh-EffectiveHardnessDiluted,0))))))","v":-11.026849388323502},null,null,null,null,null,60,"Sparge Time"]
[null,{"$f":"IF(ChlorideSource=\"\",\"\",IF(SulfateSource=\"\",\"\",VLOOKUP(ChlorideSource/SulfateSource,[1]Tables!$C$25:$G$29,3,TRUE)))","v":"Very Malty"},"Chloride to Sulfate Balance",null,null,null,{"$f":"IF(ChlorideTarget=\"\",\"\",IF(SulfateTarget=\"\",\"\",VLOOKUP(ChlorideTarget/SulfateTarget,[1]Tables!$C$25:$G$29,3,TRUE)))","v":""},null,null,{"$f":"IF(ChlorideDiluted=\"\",\"\",IF(SulfateDiluted=\"\",\"\",VLOOKUP(ChlorideDiluted/SulfateDiluted,[1]Tables!$C$25:$G$29,3,TRUE)))","v":"Very Malty"},null,{"$f":"IF(ChlorideFinal=\"\",\"\",IF(SulfateFinal=\"\",\"\",VLOOKUP(ChlorideFinal/SulfateFinal,[1]Tables!$C$25:$G$29,3,TRUE)))","v":"Balanced"},null,{"$f":"IF(ChlorideCity=\"\",\"\",IF(SulateCity=\"\",\"\",VLOOKUP(ChlorideCity/SulateCity,[1]Tables!$C$25:$G$29,3,TRUE)))","v":""},null,null,null,null,null,null,{"$f":"IF(fPartigyle=\"No\",IF(TargetSRM=\"\",\"\",12.2*(1.4922*(SUM(MCUMash)^0.6859))-122.4),12.2*(1.4922*(TotalMashMCU^0.6859))-122.4)","v":-40.745335485626086},null," Target Low RA",null,null,null,null,null,null,null,null," Target High RA ",null,null,{"$f":"IF(fPartigyle=\"No\",IF(TargetSRM=\"\",\"\",((1.4922*(SUM(MCUMash)^0.6859))-5.2)*12.2),((1.4922*(TotalMashMCU^0.6859))-5.2)*12.2)","v":18.214664514373922},null,null,null,null,null,null,"Sparge 2 Time"]
[null,null,null,null,null,null,null,null,null,null,null,null,null,null,null,null,null,null,null,null,null,null,null,null,null,null,null,null,null,null,null,null,null,null,null,null,null,null,null,null,null,"Sparge 3 Time"]
[null,null,null,null,null,null,null,null,null,null,null,null,null,null,null,null,null,null,null,null,null,null,null,null,null,null,null,null,null,null,null,null,null,null,null,null,null,null,null,null,20,"Chill Time"]
[null,"Notes",null,null,null,null,null,null,null,null,null,null,null,null,null,null,null,null,null,null,null,null,null,null,null,null,null,null,null,null,null,null,null,null,null,null,null,null,null,null,15,"Transfer Time"]
[null,null,null,null,null,null,null,null,null,null,null,null,null,null,null,null,null,null,null,null,null,null,null,null,null,null,null,null,null,null,null,null,null,null,null,null,null,null,null,null,30,"Aeration Time"]
[null,null,null,null,null,null,null,null,null,null,null,null,null,null,null,null,null,null,null,null,null,null,null,null,null,null,null,null,null,null,null,null,null,null,null,null,null,null,null,null,90,"Cleaning Time"]
[" ",null,null,null,null,null,null,null,null,null,null,null,null,null,null,null,null,null,null,null,null,null,null,null,null,null,null,null,null,null,null,null,null,null,null,null,null,null,null,null,100,"Yeast Cells per Vial\n(billions of cells)"]
[]
[null,null,null,null,null,null,null,null,null,null,null,null,null,null,null,null,null,null,null,null,null,null,null,null,null,null,null,null,null,null,null,null,null,null,null,null,null,null,null,null,0.75,"Ale Pitch Rate"]
[null,null,null,null,null,null,null,null,null,null,null,null,null,null,null,null,null,null,null,null,null,null,null,null,null,null,null,null,null,null,null,null,null,null,null,null,null,null,null,null,1.5,"Lager Pitch Rate"]
[null,null,null,null,null,null,null,null,null,null,null,null,null,null,null,null,null,null,null,null,null,null,null,null,null,null,null,null,null,null,null,null,null,null,null,null,null,null,null,null,20,"Dry Yeast Cell Count (billions/gram)"]
[]
[null,"Parti-gyle Second Runnings Beer",null,null,null,null,null,null,null,null,null,null,null,null,null,null,null,null,null,null,null,null,null,null,null,null,null,null,null,null,null,null,null,null,null,null,null,null,null,null,"Oz","Hops Ounces/IBU"]
[null,"Recipe",null,"Cost",null,"Fermenter Clear",null,null,null,"Drink Date",null,"Packaged Volume ",null,null,null,null,null,{"$f":"IF(VolumeFermentationPG=\"\",\"\",VolumeFermentationPG-FermenterLossesPG)","v":11.986546875},null,{"$f":"IF(fPartigyle=\"No\",\"\",IF(PartigyleRatio=\"1:1\",VolumePreBoil,VolumePreBoil*2))","v":15.13125}," Pre Boil Volume",null,null,null,null,null,null,null,"Parti-gyle Volume Ratio ",null,null,null,"1:2","Yes"," Enable Parti-gyle Brewing?",null,null,null,null,null,"SG","Gravity Mode"]
[null,"Parti-gyle Second Beer",null,{"$f":"CostGrains+CostHops+CostYeast+CostGrainsPG+CostHopsPG+CostYeastPG","v":0},null,{"$f":"IF(BrewDate=\"\",\"\",IF(SUM(FERMENTATION_DAYS_PG)=0,\"\",BrewDate+SUM(FERMENTATION_DAYS_PG)))","v":"2008-05-05"},null,null,null,{"$f":"IF(BrewDate=\"\",\"\",IF(SUM(FERMENTATION_DAYS_PG)=0,\"\",BrewDate+SUM(FERMENTATION_DAYS_PG)+1))","v":"2008-05-06"},null,"Fermentation Volume ",null,null,null,null,null,{"$f":"IF(VolumePostBoilPG=\"\",\"\",VolumePostBoilPG-KettleDeadSpacePG-KettleTransferLossesPG-HopsAbsorptionPG)","v":12.236546875},null,{"$f":"IF(VolumePreBoilPG=\"\",\"\",IF(BoilOffRatePG=\"\",\"\",IF(TimeBoilPG=\"\",\"\",IF(ContractionLossPG=\"\",\"\",VolumePreBoilPG-(TimeBoilPG*BoilOffRatePG)-ContractionLossPG))))","v":13.176}," Post Boil Volume",null,null,null,null,null,null,null,"Carbonation",null,null,null,null,"Temp ºF","Days"," Fermentation"]
[null,"Style & Beer Properties",null,"OG",null,"FG",null,"OG ºP",null,null,"FG ºP",null,"ABV%",null,"IBU",null,null,null,"ºSRM",null,"CO2",null,"BUGU/BV",null,null,null,null,null,"CO2 Volumes ",null,null,2.5,null,65,10," Primary Fermentation",null,null,null,null,"Parti-gyle Factors"]
[null,"Kölsch",null,{"$f":"VLOOKUP(StylePrimaryPG,[1]Styles!$A$2:$S$268,3,0)","v":1.044},{"$f":"VLOOKUP(StylePrimaryPG,[1]Styles!$A$2:$S$268,4,0)","v":1.05},{"$f":"VLOOKUP(StylePrimaryPG,[1]Styles!$A$2:$S$268,5,0)","v":1.0069999999999999},{"$f":"VLOOKUP(StylePrimaryPG,[1]Styles!$A$2:$S$268,6,0)","v":1.0109999999999999},{"$f":"IF(D76=\"\",\"\",IF(D76=\"∞\",\"∞\",(668.72*D76)-463.37-(205.347*D76^2)))","v":10.958592207999999},null,{"$f":"IF(E76=\"\",\"\",IF(E76=\"∞\",\"∞\",(668.72*E76)-463.37-(205.347*E76^2)))","v":12.390932500000048},{"$f":"IF(F76=\"\",\"\",IF(F76=\"∞\",\"∞\",(668.72*F76)-463.37-(205.347*F76^2)))","v":1.7991199969999911},{"$f":"IF(G76=\"\",\"\",IF(G76=\"∞\",\"∞\",(668.72*G76)-463.37-(205.347*G76^2)))","v":2.8164390130000072},{"$f":"VLOOKUP(StylePrimaryPG,[1]Styles!$A$2:$S$268,11,0)","v":4.4000000000000004},{"$f":"VLOOKUP(StylePrimaryPG,[1]Styles!$A$2:$S$268,12,0)","v":5.2},{"$f":"VLOOKUP(StylePrimaryPG,[1]Styles!$A$2:$S$268,13,0)","v":20},null,{"$f":"VLOOKUP(StylePrimaryPG,[1]Styles!$A$2:$S$268,14,0)","v":"30"},null,{"$f":"VLOOKUP(StylePrimaryPG,[1]Styles!$A$2:$S$268,15,0)","v":"3.5"},{"$f":"VLOOKUP(StylePrimaryPG,[1]Styles!$A$2:$S$268,16,0)","v":"5"},{"$f":"VLOOKUP(StylePrimaryPG,[1]Styles!$A$2:$S$268,17,0)","v":"2.4"},{"$f":"VLOOKUP(StylePrimaryPG,[1]Styles!$A$2:$S$268,18,0)","v":2.8},{"$f":"VLOOKUP(StylePrimaryPG,[1]Styles!$A$2:$S$268,19,0)","v":0.53191489361701949},null,null,{"$f":"VLOOKUP(StylePrimaryPG,[1]Styles!$A$2:$W$268,23,0)","v":1.2626262626262672},null,null,"Serving Temp ºF ",null,null,39,null,null,null," Diacetyl Rest",null,null,null,null,{"$f":"IF(VolumeStrikeWater1=\"\",0,VolumeStrikeWater1)+IF(VolumeStrikeWater2=\"\",0,IF(VolumeStrikeWater2=\"-\",0,IF(MashType=\"Infusion Mash\",VolumeStrikeWater2,0)))+IF(VolumeMashOut=\"\",0,IF(MashType=\"Infusion Mash\",VolumeMashOut,0))+IF(VolumeSpargeWater1=\"\",0,VolumeSpargeWater1)+IF(VolumeSpargeWater2=\"\",0,IF(VolumeSpargeWater2=\"-\",0,VolumeSpargeWater2))-IF(GrainAbsorption=\"\",0,GrainAbsorption)-IF(LauterTunDeadSpace=\"\",0,)","v":22.696874999999999},"Total Runoff Volume"]
[null,"Estimated",null,{"$f":"IF(GravityUnitsAdjustedPG=\"\",\"\",IF(VolumePostBoilPG=\"\",\"\",IF(GravityUnitsAdjustedPG=0,\"\",((GravityUnitsAdjustedPG/VolumePostBoilPG)+1000)/1000)))","v":1.0499536638585307},null,{"$f":"IF(GravityEstimatedOriginalPG=\"\",\"\",IF(YeastStrain2PG=\"\",IF(YeastStrain1PG=\"\",\"\",((GravityEstimatedOriginalPG*1000-1000)*(((100-(YeastAttenuation1LPG+YeastAttenuation1HPG)*50)/100))+1000)/1000),IF(YeastStrain1PG=\"\",((GravityEstimatedOriginalPG*1000-1000)*(((100-(YeastAttenuation2LPG+YeastAttenuation2HPG)*50)/100))+1000)/1000,IF(YeastAttenuation2LPG+YeastAttenuation2HPG>YeastAttenuation1LPG+YeastAttenuation1HPG,\n((GravityEstimatedOriginalPG*1000-1000)*(((100-(YeastAttenuation2LPG+YeastAttenuation2HPG)*50)/100))+1000)/1000,\n((GravityEstimatedOriginalPG*1000-1000)*(((100-(YeastAttenuation1LPG+YeastAttenuation1HPG)*50)/100))+1000)/1000)\n)))","v":1.0124884159646326},null,{"$f":"IF(GravityEstimatedOriginalPG=\"\",\"\",(668.72*GravityEstimatedOriginalPG)-463.37-(205.347*GravityEstimatedOriginalPG^2))","v":12.37992762863766},null,null,{"$f":"IF(GravityEstimatedFinalPG=\"\",\"\",(668.72*GravityEstimatedFinalPG)-463.37-(205.347*GravityEstimatedFinalPG^2))","v":3.1933099900575996},null,{"$f":"IF(GravityEstimatedFinalPG=\"\",\"\",IF(GravityEstimatedOriginalPG=\"\",\"\",(GravityEstimatedOriginalPG-GravityEstimatedFinalPG)/0.806))","v":4.6482937833620543E-2},null,{"$f":"IF(HopsMeasurementPG=\"Ounces\",AK92,AH92)","v":27.369434105044064},null,null,null,{"$f":"IF(FinalMCUPG=\"\",\"\",IF(FinalMCUPG=0,\"\",1.4922*(FinalMCUPG^0.6859)))","v":5.3623122861947836},null,{"$f":"IF(CO2VolumesPG=\"\",\"\",CO2VolumesPG)","v":2.5},null,{"$f":"IF(TotalIBUPG=\"\",\"\",IF(GravityEstimatedOriginalPG=\"\",\"\",TotalIBUPG/((GravityEstimatedOriginalPG-1)*1000)))","v":0.54789643023091505},null,null,{"$f":"IF(TotalIBUPG=\"\",\"\",IF(GravityEstimatedFinalPG=\"\",\"\",IF(GravityEstimatedOriginalPG=\"\",\"\",0.8*TotalIBUPG/((820*(GravityEstimatedFinalPG-1))+(180*(GravityEstimatedOriginalPG-1))))))","v":1.1384860887915174},null,null,"Beer Temperature ºF ",null,null,{"$f":"MAX(AH75:AH79)","v":65},null,45,3," Cold Crash",null,null,null,null,{"$f":"SUM(MCUMash)","v":8.9181699346405239},"Total Mash Color"]
[null,"Measured",null,null,null,null,null,{"$f":"IF(GravityMeasuredOriginalPG=\"\",\"\",(668.72*GravityMeasuredOriginalPG)-463.37-(205.347*GravityMeasuredOriginalPG^2))","v":""},null,null,{"$f":"IF(GravityMeasuredFinalPG=\"\",\"\",(668.72*GravityMeasuredFinalPG)-463.37-(205.347*GravityMeasuredFinalPG^2))","v":""},null,{"$f":"IF(GravityMeasuredOriginalPG=\"\",\"\",IF(GravityMeasuredFinalPG=\"\",\"\",(GravityMeasuredOriginalPG-GravityMeasuredFinalPG)/0.806))","v":""},null," Calories per 12oz:",null,null,null,null,null,{"$f":"IF(ABVPG=\"\",\"\",IF(GravityMeasuredFinalPG=\"\",\"\",IF(PlatoMeasuredOriginalPG=\"\",\"\",IF(PlatoMeasuredFinalPG=\"\",\"\",((100*6.9*((0.79*ABVPG)/GravityMeasuredFinalPG))+4*(((0.1808*PlatoMeasuredOriginalPG)+(0.8192*PlatoMeasuredFinalPG))-0.1))*GravityMeasuredFinalPG*3.55))))","v":""},null,{"$f":"IF(TotalIBU=\"\",\"\",IF(GravityMeasuredOriginal=\"\",\"\",TotalIBU/((GravityMeasuredOriginal-1)*1000)))","v":""},null,null,{"$f":"IF(TotalIBU=\"\",\"\",IF(GravityMeasuredFinal=\"\",\"\",IF(GravityMeasuredOriginal=\"\",\"\",0.8*TotalIBU/((820*(GravityMeasuredFinal-1))+(180*(GravityMeasuredOriginal-1))))))","v":""},null,null,"Priming Sugar ",null,null,{"$f":"IF(PrimingSugarPG=\"Priming Sugar \",\"grams\",IF(VolumeFinalPG=\"\",\"\",IF(CO2VolumesPG=\"\",\"\",IF(VLOOKUP(PrimingSugarPG,[1]Grains!U210:AD221,10,0)=\"glucose\",VolumeFinalPG*3.785*(CO2VolumesPG-VLOOKUP((BeerTemperaturePG-32)*5/9,RESIDUAL_CO2,2,TRUE))/0.27027,VolumeFinalPG*3.785*(CO2VolumesPG-VLOOKUP((BeerTemperaturePG-32)*5/9,RESIDUAL_CO2,2,TRUE))/0.286))))","v":"grams"},null,null,null," Secondary Conditioning",null,null,null,null,{"$f":"IF(TotalMashMCU<3,0,VLOOKUP(TotalMashMCU,[1]Tables!O75:S110,IF(PartigyleRatio=\"1:1\",4,2),TRUE))","v":12},"First Beer MCU"]
[null,"Secondary Style Dropdown",null,{"$f":"VLOOKUP(StyleSecondaryPG,[1]Styles!$A$2:$S$268,3,0)","v":"∞"},{"$f":"VLOOKUP(StyleSecondaryPG,[1]Styles!$A$2:$S$268,4,0)","v":"∞"},{"$f":"VLOOKUP(StyleSecondaryPG,[1]Styles!$A$2:$S$268,5,0)","v":"∞"},{"$f":"VLOOKUP(StyleSecondaryPG,[1]Styles!$A$2:$S$268,6,0)","v":"∞"},{"$f":"IF(D79=\"\",\"\",IF(D79=\"∞\",\"∞\",(668.72*D79)-463.37-(205.347*D79^2)))","v":"∞"},null,{"$f":"IF(E79=\"\",\"\",IF(E79=\"∞\",\"∞\",(668.72*E79)-463.37-(205.347*E79^2)))","v":"∞"},{"$f":"IF(F79=\"\",\"\",IF(F79=\"∞\",\"∞\",(668.72*F79)-463.37-(205.347*F79^2)))","v":"∞"},{"$f":"IF(G79=\"\",\"\",IF(G79=\"∞\",\"∞\",(668.72*G79)-463.37-(205.347*G79^2)))","v":"∞"},{"$f":"VLOOKUP(StyleSecondaryPG,[1]Styles!$A$2:$S$268,11,0)","v":"∞"},{"$f":"VLOOKUP(StyleSecondaryPG,[1]Styles!$A$2:$S$268,12,0)","v":"∞"},{"$f":"VLOOKUP(StyleSecondaryPG,[1]Styles!$A$2:$S$268,13,0)","v":"∞"},null,{"$f":"VLOOKUP(StyleSecondaryPG,[1]Styles!$A$2:$S$268,14,0)","v":"∞"},null,{"$f":"VLOOKUP(StyleSecondaryPG,[1]Styles!$A$2:$S$268,15,0)","v":"∞"},{"$f":"VLOOKUP(StyleSecondaryPG,[1]Styles!$A$2:$S$268,16,0)","v":"∞"},{"$f":"VLOOKUP(StyleSecondaryPG,[1]Styles!$A$2:$S$268,17,0)","v":"∞"},{"$f":"VLOOKUP(StyleSecondaryPG,[1]Styles!$A$2:$S$268,18,0)","v":"∞"},{"$f":"VLOOKUP(StyleSecondaryPG,[1]Styles!$A$2:$S$268,19,0)","v":"∞"},null,null,{"$f":"VLOOKUP(StyleSecondaryPG,[1]Styles!$A$2:$W$268,23,0)","v":"∞"},null,null,"Force Carb Pressure (PSI)  ",null,null,{"$f":"IF(TempServingPG=\"\",\"\",IF(CO2VolumesPG=\"\",\"\",-16.6999-0.0101059*TempServingPG+0.00116512*TempServingPG^2+0.173354*TempServingPG*CO2VolumesPG+4.24267*CO2VolumesPG-0.0684226*CO2VolumesPG^2))","v":11.759166170000002},null,36,180," Aging (including carbonation)",null,null,null,null,{"$f":"IF(TotalMashMCU<3,0,VLOOKUP(TotalMashMCU,[1]Tables!O75:S110,IF(PartigyleRatio=\"1:1\",5,3),TRUE))","v":6},"Second Beer MCU"]
[null,"Malt, Extract & Adjuncts",null,"Maltster",null,null,"Origin",null,null,"Pounds","%Weight",null,"ºL / MCU",null,"Potential",null,null,null,"GU (Adj.)",null,"Late?",null,null,null,"Hops",null,null,null,null,null,null,null,"% AA","Ounces"," Time",null,{"$f":"IF(HopsMeasurementPG=\"Ounces\",\"IBU\",\"Ounces\")","v":"IBU"},null,"Utilization",null,{"$f":"IF(fPartigyle=\"Yes\",SUM(AGUMash)/VolumeRunoffTotal/1000+1,\"\")","v":1.0508204907063197},"Total Mash Gravity"]
[null,"Extra Light dry extract",null,{"$f":"IF(B81=\"\",\" \",VLOOKUP(B81,GRAINS_ATTRIBUTES,2,0))","v":"Briess"},null,null,{"$f":"IF(B81=\"\",\" \",VLOOKUP(B81,GRAINS_ATTRIBUTES,3,0))","v":"USA"},null,null,2,{"$f":"IF(B81=\"\",\"\",IF(J81=\"\",\"\",IF(TotalGrainWeightPG=0,\"\",IF(U81=\"Skip\",\"--\",J81/TotalGrainWeightPG))))","v":1},null,{"$f":"IF(B81=\"\",\"\",VLOOKUP(B81,GRAINS_ATTRIBUTES,4,0))","v":3},{"$f":"IF(J81=\"\",\"\",IF(B81=\"\",\"\",IF(VolumePostBoilPG=\"\",\"\",J81*M81/VolumePostBoilPG)))","v":0.45537340619307831},{"$f":"IF(B81=\"\",\" \",VLOOKUP(B81,GRAINS_ATTRIBUTES,6,0))","v":1.0453838},null,null,null,{"$f":"IF(B81=\"\",\"\",IF(J81=\"\",\"\",J81*((O81*1000)-1000)))","v":90.76760000000013},{"$f":"IF(EncoreEfficiency=\"\",\"\",IF(B81=\"\",\"\",IF(J81=\"\",\"\",IF(VLOOKUP(B81,GRAINS_ATTRIBUTES,9,0)=\"SUGARS\",S81,S81*EncoreEfficiency))))","v":90.76760000000013},"Yes",null,null,{"$f":"IF(T81=\"\",\"\",IF(U81=\"Yes\",T81*ExtractGUFactor,IF(U81=\"Skip\",0,T81)))","v":18.153520000000025},"Hallertauer (US)",null,null,null,null,null,null,null,{"$f":"IF(Y81=\"\",\"\",IF(fHopsAging=\"Yes\",IF(HopsTemperature=\"\",\"\",IF(VLOOKUP(Y81,HOPS_ATTRIBUTES,11,0)=\"\",\"\",IF(VLOOKUP(Y81,HOPS_ATTRIBUTES,10,0)=\"\",\"\",VLOOKUP(Y81,HOPS_ATTRIBUTES,2,0)*1/(EXP(VLOOKUP(VLOOKUP(Y81,HOPS_ATTRIBUTES,10,0)*100,[1]Tables!$P$16:$Q$66,2,0)*VLOOKUP(ROUND((HopsTemperature-32)*5/9,0),[1]Tables!$L$16:$N$65,3,0)*VLOOKUP(HopsStorage,[1]Tables!$C$32:$J$34,8,0)*(BrewDate-VLOOKUP(Y81,HOPS_ATTRIBUTES,11,0))))))),VLOOKUP(Y81,HOPS_ATTRIBUTES,2,0)))","v":4.4999999999999998E-2},5,60,null,{"$f":"IF(AM81=\"\",\"\",IF(AH81=\"\",\"\",IF(AG81=\"\",\"\",IF(VolumePreBoilPG=\"\",\"\",IF(VolumePostBoilPG=\"\",\"\",IF(HopsMeasurementPG=\"Ounces\",IF(fIBUPG=\"Tinseth\",AH81*AG81*AM81*7490/((VolumePreBoilPG+VolumePostBoilPG)/2),AH81*AM81*AG81*7462/((VolumePreBoilPG+VolumePostBoilPG)/2)),IF(fIBUPG=\"Tinseth\",\n((VolumePreBoilPG+VolumePostBoilPG)/2)*AH81/(AG81*AM81*7490),\n((VolumePreBoilPG+VolumePostBoilPG)/2)*AH81/(AM81*AG81*7462))))))))","v":27.369434105044064},null,{"$f":"IF(Y81=\"\",\"\",IF(AI81=\"\",\"\",IF(GravityPreBoilPG=\"\",\"\",IF(GravityEstimatedOriginalPG=\"\",\"\",IF(TimeBoilPG=\"\",\"\",IF(FWHFactor=\"\",\"\",IF(PelletHopFactor=\"\",\"\",IF(LeafHopFactor=\"\",\"\",IF(AI81=\"dry hop\",0,IF(fIBUPG=\"Tinseth\",((1-EXP(-0.04*IF(AI81=\"FWH\",TimeBoilPG,AI81)))/4.15)*1.65*0.000125^(((GravityPreBoilPG+GravityEstimatedOriginalPG)/2)-1),18.11+13.86*TANH((AI81-31.32)/18.27)/100)*IF(AI81=\"FWH\",FWHFactor,1)*IF(VLOOKUP(Y81,HOPS_ATTRIBUTES,8,0)=\"Pellet\",PelletHopFactor,LeafHopFactor))))))))))","v":0.22986305105177529},null,{"$f":"IF(GravityPreBoilPG=\"\",0,IF(GravityPreBoilPG<1.05,0,VolumePreBoil*(VLOOKUP(GravityPreBoilPG,[1]Tables!$C$75:$G$122,IF(PartigyleRatio=\"1:1\",4,2),TRUE)*1000-1000)))","v":567.421875},"First Beer Mash GU"]
[null,null,null," ",null,null," ",null,null,null,"",null,"",""," ",null,null,null,{"$f":"IF(B82=\"\",\"\",IF(J82=\"\",\"\",J82*((O82*1000)-1000)))","v":""},"","Mash",null,null,"",null,null,null,null,null,null,null,null,{"$f":"IF(Y82=\"\",\"\",IF(fHopsAging=\"Yes\",IF(HopsTemperature=\"\",\"\",IF(VLOOKUP(Y82,HOPS_ATTRIBUTES,11,0)=\"\",\"\",IF(VLOOKUP(Y82,HOPS_ATTRIBUTES,10,0)=\"\",\"\",VLOOKUP(Y82,HOPS_ATTRIBUTES,2,0)*1/(EXP(VLOOKUP(VLOOKUP(Y82,HOPS_ATTRIBUTES,10,0)*100,[1]Tables!$P$16:$Q$66,2,0)*VLOOKUP(ROUND((HopsTemperature-32)*5/9,0),[1]Tables!$L$16:$N$65,3,0)*VLOOKUP(HopsStorage,[1]Tables!$C$32:$J$34,8,0)*(BrewDate-VLOOKUP(Y82,HOPS_ATTRIBUTES,11,0))))))),VLOOKUP(Y82,HOPS_ATTRIBUTES,2,0)))","v":""},null,null,null,{"$f":"IF(AM82=\"\",\"\",IF(AH82=\"\",\"\",IF(AG82=\"\",\"\",IF(VolumePreBoilPG=\"\",\"\",IF(VolumePostBoilPG=\"\",\"\",IF(HopsMeasurementPG=\"Ounces\",IF(fIBUPG=\"Tinseth\",AH82*AG82*AM82*7490/((VolumePreBoilPG+VolumePostBoilPG)/2),AH82*AM82*AG82*7462/((VolumePreBoilPG+VolumePostBoilPG)/2)),IF(fIBUPG=\"Tinseth\",\n((VolumePreBoilPG+VolumePostBoilPG)/2)*AH82/(AG82*AM82*7490),\n((VolumePreBoilPG+VolumePostBoilPG)/2)*AH82/(AM82*AG82*7462))))))))","v":""},null,"",null,{"$f":"IF(GravityPreBoilPG=\"\",0,IF(GravityPreBoilPG<1.05,0,(VLOOKUP(GravityPreBoilPG,[1]Tables!$C$75:$G$122,IF(PartigyleRatio=\"1:1\",5,3),TRUE)*1000-1000)*VolumePreBoilPG))","v":567.421875},"Second Beer Mash GU"]
[null,null,null," ",null,null," ",null,null,null,"",null,"",""," ",null,null,null,"","","Mash",null,null,"",null,null,null,null,null,null,null,null,{"$f":"IF(Y83=\"\",\"\",IF(fHopsAging=\"Yes\",IF(HopsTemperature=\"\",\"\",IF(VLOOKUP(Y83,HOPS_ATTRIBUTES,11,0)=\"\",\"\",IF(VLOOKUP(Y83,HOPS_ATTRIBUTES,10,0)=\"\",\"\",VLOOKUP(Y83,HOPS_ATTRIBUTES,2,0)*1/(EXP(VLOOKUP(VLOOKUP(Y83,HOPS_ATTRIBUTES,10,0)*100,[1]Tables!$P$16:$Q$66,2,0)*VLOOKUP(ROUND((HopsTemperature-32)*5/9,0),[1]Tables!$L$16:$N$65,3,0)*VLOOKUP(HopsStorage,[1]Tables!$C$32:$J$34,8,0)*(BrewDate-VLOOKUP(Y83,HOPS_ATTRIBUTES,11,0))))))),VLOOKUP(Y83,HOPS_ATTRIBUTES,2,0)))","v":""},null,null,null,"",null,"",null,null,"Pre Boil Gravity PG"]
[null,null,null," ",null,null," ",null,null,null,"",null,"",""," ",null,null,null,"","","Mash",null,null,"",null,null,null,null,null,null,null,null,{"$f":"IF(Y84=\"\",\"\",IF(fHopsAging=\"Yes\",IF(HopsTemperature=\"\",\"\",IF(VLOOKUP(Y84,HOPS_ATTRIBUTES,11,0)=\"\",\"\",IF(VLOOKUP(Y84,HOPS_ATTRIBUTES,10,0)=\"\",\"\",VLOOKUP(Y84,HOPS_ATTRIBUTES,2,0)*1/(EXP(VLOOKUP(VLOOKUP(Y84,HOPS_ATTRIBUTES,10,0)*100,[1]Tables!$P$16:$Q$66,2,0)*VLOOKUP(ROUND((HopsTemperature-32)*5/9,0),[1]Tables!$L$16:$N$65,3,0)*VLOOKUP(HopsStorage,[1]Tables!$C$32:$J$34,8,0)*(BrewDate-VLOOKUP(Y84,HOPS_ATTRIBUTES,11,0))))))),VLOOKUP(Y84,HOPS_ATTRIBUTES,2,0)))","v":""},null,null,null,"",null,"",null,0.15,"Encore Efficiency"]
[null,null,null," ",null,null," ",null,null,null,"",null,"",""," ",null,null,null,"","","Mash",null,null,"",null,null,null,null,null,null,null,null,{"$f":"IF(Y85=\"\",\"\",IF(fHopsAging=\"Yes\",IF(HopsTemperature=\"\",\"\",IF(VLOOKUP(Y85,HOPS_ATTRIBUTES,11,0)=\"\",\"\",IF(VLOOKUP(Y85,HOPS_ATTRIBUTES,10,0)=\"\",\"\",VLOOKUP(Y85,HOPS_ATTRIBUTES,2,0)*1/(EXP(VLOOKUP(VLOOKUP(Y85,HOPS_ATTRIBUTES,10,0)*100,[1]Tables!$P$16:$Q$66,2,0)*VLOOKUP(ROUND((HopsTemperature-32)*5/9,0),[1]Tables!$L$16:$N$65,3,0)*VLOOKUP(HopsStorage,[1]Tables!$C$32:$J$34,8,0)*(BrewDate-VLOOKUP(Y85,HOPS_ATTRIBUTES,11,0))))))),VLOOKUP(Y85,HOPS_ATTRIBUTES,2,0)))","v":""},null,null,null,"",null,"",null,{"$f":"IF(WortContraction=\"\",\"\",IF(VolumePreBoilPG=\"\",\"\",VolumePreBoilPG*WortContraction))","v":0.60524999999999995},"ContractionLossesPG"]
[null,null,null," ",null,null," ",null,null,null,"",null,"",""," ",null,null,null,"","","Mash",null,null,"",null,null,null,null,null,null,null,null,{"$f":"IF(Y86=\"\",\"\",IF(fHopsAging=\"Yes\",IF(HopsTemperature=\"\",\"\",IF(VLOOKUP(Y86,HOPS_ATTRIBUTES,11,0)=\"\",\"\",IF(VLOOKUP(Y86,HOPS_ATTRIBUTES,10,0)=\"\",\"\",VLOOKUP(Y86,HOPS_ATTRIBUTES,2,0)*1/(EXP(VLOOKUP(VLOOKUP(Y86,HOPS_ATTRIBUTES,10,0)*100,[1]Tables!$P$16:$Q$66,2,0)*VLOOKUP(ROUND((HopsTemperature-32)*5/9,0),[1]Tables!$L$16:$N$65,3,0)*VLOOKUP(HopsStorage,[1]Tables!$C$32:$J$34,8,0)*(BrewDate-VLOOKUP(Y86,HOPS_ATTRIBUTES,11,0))))))),VLOOKUP(Y86,HOPS_ATTRIBUTES,2,0)))","v":""},null,null,null,"",null,"",null,{"$f":"IF(AO31=\"\",0,IF(LeafHopsOuncesPG=\"\",0,LeafHopsOuncesPG*AO31/128))","v":0.439453125},"HopsAbsorptionPG"]
[null,null,null," ",null,null," ",null,null,null,"",null,"",""," ",null,null,null,"","","Mash",null,null,"",null,null,null,null,null,null,null,null,{"$f":"IF(Y87=\"\",\"\",IF(fHopsAging=\"Yes\",IF(HopsTemperature=\"\",\"\",IF(VLOOKUP(Y87,HOPS_ATTRIBUTES,11,0)=\"\",\"\",IF(VLOOKUP(Y87,HOPS_ATTRIBUTES,10,0)=\"\",\"\",VLOOKUP(Y87,HOPS_ATTRIBUTES,2,0)*1/(EXP(VLOOKUP(VLOOKUP(Y87,HOPS_ATTRIBUTES,10,0)*100,[1]Tables!$P$16:$Q$66,2,0)*VLOOKUP(ROUND((HopsTemperature-32)*5/9,0),[1]Tables!$L$16:$N$65,3,0)*VLOOKUP(HopsStorage,[1]Tables!$C$32:$J$34,8,0)*(BrewDate-VLOOKUP(Y87,HOPS_ATTRIBUTES,11,0))))))),VLOOKUP(Y87,HOPS_ATTRIBUTES,2,0)))","v":""},null,null,null,"",null,"",null,1.4999999999999999E-2,"Boil Off Rate PG"]
[null,null,null," ",null,null," ",null,null,null,"",null,"",""," ",null,null,null,"","","Mash",null,null,"",null,null,null,null,null,null,null,null,{"$f":"IF(Y88=\"\",\"\",IF(fHopsAging=\"Yes\",IF(HopsTemperature=\"\",\"\",IF(VLOOKUP(Y88,HOPS_ATTRIBUTES,11,0)=\"\",\"\",IF(VLOOKUP(Y88,HOPS_ATTRIBUTES,10,0)=\"\",\"\",VLOOKUP(Y88,HOPS_ATTRIBUTES,2,0)*1/(EXP(VLOOKUP(VLOOKUP(Y88,HOPS_ATTRIBUTES,10,0)*100,[1]Tables!$P$16:$Q$66,2,0)*VLOOKUP(ROUND((HopsTemperature-32)*5/9,0),[1]Tables!$L$16:$N$65,3,0)*VLOOKUP(HopsStorage,[1]Tables!$C$32:$J$34,8,0)*(BrewDate-VLOOKUP(Y88,HOPS_ATTRIBUTES,11,0))))))),VLOOKUP(Y88,HOPS_ATTRIBUTES,2,0)))","v":""},null,null,null,"",null,"",null,0.25,"Kettle Dead Space PG"]
[null,null,null," ",null,null," ",null,null,null,"",null,"",""," ",null,null,null,"","","Mash",null,null,"",null,null,null,null,null,null,null,null,{"$f":"IF(Y89=\"\",\"\",IF(fHopsAging=\"Yes\",IF(HopsTemperature=\"\",\"\",IF(VLOOKUP(Y89,HOPS_ATTRIBUTES,11,0)=\"\",\"\",IF(VLOOKUP(Y89,HOPS_ATTRIBUTES,10,0)=\"\",\"\",VLOOKUP(Y89,HOPS_ATTRIBUTES,2,0)*1/(EXP(VLOOKUP(VLOOKUP(Y89,HOPS_ATTRIBUTES,10,0)*100,[1]Tables!$P$16:$Q$66,2,0)*VLOOKUP(ROUND((HopsTemperature-32)*5/9,0),[1]Tables!$L$16:$N$65,3,0)*VLOOKUP(HopsStorage,[1]Tables!$C$32:$J$34,8,0)*(BrewDate-VLOOKUP(Y89,HOPS_ATTRIBUTES,11,0))))))),VLOOKUP(Y89,HOPS_ATTRIBUTES,2,0)))","v":""},null,null,null,"",null,"",null,0.25,"Kettle Transfer Losses"]
[null,null,null," ",null,null," ",null,null,null,"",null,"",""," ",null,null,null,"","","Mash",null,null,"",null,null,null,null,null,null,null,null,{"$f":"IF(Y90=\"\",\"\",IF(fHopsAging=\"Yes\",IF(HopsTemperature=\"\",\"\",IF(VLOOKUP(Y90,HOPS_ATTRIBUTES,11,0)=\"\",\"\",IF(VLOOKUP(Y90,HOPS_ATTRIBUTES,10,0)=\"\",\"\",VLOOKUP(Y90,HOPS_ATTRIBUTES,2,0)*1/(EXP(VLOOKUP(VLOOKUP(Y90,HOPS_ATTRIBUTES,10,0)*100,[1]Tables!$P$16:$Q$66,2,0)*VLOOKUP(ROUND((HopsTemperature-32)*5/9,0),[1]Tables!$L$16:$N$65,3,0)*VLOOKUP(HopsStorage,[1]Tables!$C$32:$J$34,8,0)*(BrewDate-VLOOKUP(Y90,HOPS_ATTRIBUTES,11,0))))))),VLOOKUP(Y90,HOPS_ATTRIBUTES,2,0)))","v":""},null,null,null,"",null,"",null,0.25,"Fermenter Losses"]
[null,null,null," ",null,null," ",null,null,null,"",null,"",""," ",null,null,null,"","","Mash",null,null,"",null,null,null,null,null,null,null,null,{"$f":"IF(Y91=\"\",\"\",IF(fHopsAging=\"Yes\",IF(HopsTemperature=\"\",\"\",IF(VLOOKUP(Y91,HOPS_ATTRIBUTES,11,0)=\"\",\"\",IF(VLOOKUP(Y91,HOPS_ATTRIBUTES,10,0)=\"\",\"\",VLOOKUP(Y91,HOPS_ATTRIBUTES,2,0)*1/(EXP(VLOOKUP(VLOOKUP(Y91,HOPS_ATTRIBUTES,10,0)*100,[1]Tables!$P$16:$Q$66,2,0)*VLOOKUP(ROUND((HopsTemperature-32)*5/9,0),[1]Tables!$L$16:$N$65,3,0)*VLOOKUP(HopsStorage,[1]Tables!$C$32:$J$34,8,0)*(BrewDate-VLOOKUP(Y91,HOPS_ATTRIBUTES,11,0))))))),VLOOKUP(Y91,HOPS_ATTRIBUTES,2,0)))","v":""},null,null,null,"",null,"",null,90,"Total Boil Time PG"]
[null,"Cost:  ",{"$f":"IF(B81=\"\",0,J81*VLOOKUP(B81,[1]Grains!$A$53:$L$188,8,0))+IF(B82=\"\",0,J82*VLOOKUP(B82,[1]Grains!$A$53:$L$188,8,0))+IF(B83=\"\",0,J83*VLOOKUP(B83,[1]Grains!$A$53:$L$188,8,0))+IF(B84=\"\",0,J84*VLOOKUP(B84,[1]Grains!$A$53:$L$188,8,0))+IF(B85=\"\",0,J85*VLOOKUP(B85,[1]Grains!$A$53:$L$188,8,0))+IF(B86=\"\",0,J86*VLOOKUP(B86,[1]Grains!$A$53:$L$188,8,0))+IF(B87=\"\",0,J87*VLOOKUP(B87,[1]Grains!$A$53:$L$188,8,0))+IF(B88=\"\",0,J88*VLOOKUP(B88,[1]Grains!$A$53:$L$188,8,0))+IF(B89=\"\",0,J89*VLOOKUP(B89,[1]Grains!$A$53:$L$188,8,0))+IF(B90=\"\",0,J90*VLOOKUP(B90,[1]Grains!$A$53:$L$188,8,0))+IF(B91=\"\",0,J91*VLOOKUP(B91,[1]Grains!$A$53:$L$188,8,0))","v":0},null,null,null,null,null,null,{"$f":"IF(B81=\"\",0,IF(U81=\"Skip\",0,J81))+IF(B82=\"\",0,IF(U82=\"Skip\",0,J82))+IF(B83=\"\",0,IF(U83=\"Skip\",0,J83))+IF(B84=\"\",0,IF(U84=\"Skip\",0,J84))+IF(B85=\"\",0,IF(U85=\"Skip\",0,J85))+IF(B86=\"\",0,IF(U86=\"Skip\",0,J86))+IF(B87=\"\",0,IF(U87=\"Skip\",0,J87))+IF(B88=\"\",0,IF(U88=\"Skip\",0,J88))+IF(B89=\"\",0,IF(U89=\"Skip\",0,J89))+IF(B90=\"\",0,IF(U90=\"Skip\",0,J90))+IF(B91=\"\",0,IF(U91=\"Skip\",0,J91))","v":2},null,null,{"$f":"SUM(MCUPG)+SecondBeerMCU","v":6.4553734061930781},null,null,null,null,null,{"$f":"IF(SUM(GUPG)=0,\"\",SUM(GUPG))","v":90.76760000000013},{"$f":"SUM(AGUPG2)+SecondBeerMashGU","v":658.18947500000013},{"$f":"SUM(AWGUPG2)+SecondBeerMashGU","v":585.57539500000007},null,null,null,"Cost:  ",null,null,null,null,null,{"$f":"IF(HopsMeasurementPG=\"Ounces\",IF(Y81=\"\",0,AH81*VLOOKUP(Y81,[1]Hops!$A$2:$J$124,9,0))+IF(Y82=\"\",0,AH82*VLOOKUP(Y82,[1]Hops!$A$2:$J$124,9,0))+IF(Y83=\"\",0,AH83*VLOOKUP(Y83,[1]Hops!$A$2:$J$124,9,0))+IF(Y84=\"\",0,AH84*VLOOKUP(Y84,[1]Hops!$A$2:$J$124,9,0))+IF(Y85=\"\",0,AH85*VLOOKUP(Y85,[1]Hops!$A$2:$J$124,9,0))+IF(Y86=\"\",0,AH86*VLOOKUP(Y86,[1]Hops!$A$2:$J$124,9,0))+IF(Y87=\"\",0,AH87*VLOOKUP(Y87,[1]Hops!$A$2:$J$124,9,0))+IF(Y88=\"\",0,AH88*VLOOKUP(Y88,[1]Hops!$A$2:$J$124,9,0))+IF(Y89=\"\",0,AH89*VLOOKUP(Y89,[1]Hops!$A$2:$J$124,9,0))+IF(Y90=\"\",0,AH90*VLOOKUP(Y90,[1]Hops!$A$2:$J$124,9,0))+IF(Y91=\"\",0,AH91*VLOOKUP(Y91,[1]Hops!$A$2:$J$124,9,0)),IF(Y81=\"\",0,AK81*VLOOKUP(Y81,[1]Hops!$A$2:$J$124,9,0))+IF(Y82=\"\",0,AK82*VLOOKUP(Y82,[1]Hops!$A$2:$J$124,9,0))+IF(Y83=\"\",0,AK83*VLOOKUP(Y83,[1]Hops!$A$2:$J$124,9,0))+IF(Y84=\"\",0,AK84*VLOOKUP(Y84,[1]Hops!$A$2:$J$124,9,0))+IF(Y85=\"\",0,AK85*VLOOKUP(Y85,[1]Hops!$A$2:$J$124,9,0))+IF(Y86=\"\",0,AK86*VLOOKUP(Y86,[1]Hops!$A$2:$J$124,9,0))+IF(Y87=\"\",0,AK87*VLOOKUP(Y87,[1]Hops!$A$2:$J$124,9,0))+IF(Y88=\"\",0,AK88*VLOOKUP(Y88,[1]Hops!$A$2:$J$124,9,0))+IF(Y89=\"\",0,AK89*VLOOKUP(Y89,[1]Hops!$A$2:$J$124,9,0))+IF(Y90=\"\",0,AK90*VLOOKUP(Y90,[1]Hops!$A$2:$J$124,9,0))+IF(Y91=\"\",0,AK91*VLOOKUP(Y91,[1]Hops!$A$2:$J$124,9,0)))","v":0},null,null,{"$f":"IF(SUM(OuncesorIBUPG)=0,\"\",SUM(OuncesorIBUPG))","v":5},{"$f":"IF(HopsMeasurement=\"Ounces\",IF(Y81=\"\",0,IF(VLOOKUP(Y81,[1]Hops!$A$2:$J$124,8,0)=\"Pellet\",0,AH81))+IF(Y82=\"\",0,IF(VLOOKUP(Y82,[1]Hops!$A$2:$J$124,8,0)=\"Pellet\",0,AH82))+IF(Y83=\"\",0,IF(VLOOKUP(Y83,[1]Hops!$A$2:$J$124,8,0)=\"Pellet\",0,AH83))+IF(Y84=\"\",0,IF(VLOOKUP(Y84,[1]Hops!$A$2:$J$124,8,0)=\"Pellet\",0,AH84))+IF(Y85=\"\",0,IF(VLOOKUP(Y85,[1]Hops!$A$2:$J$124,8,0)=\"Pellet\",0,AH85))+IF(Y86=\"\",0,IF(VLOOKUP(Y86,[1]Hops!$A$2:$J$124,8,0)=\"Pellet\",0,AH86))+IF(Y87=\"\",0,IF(VLOOKUP(Y87,[1]Hops!$A$2:$J$124,8,0)=\"Pellet\",0,AH87))+IF(Y88=\"\",0,IF(VLOOKUP(Y88,[1]Hops!$A$2:$J$124,8,0)=\"Pellet\",0,AH88))+IF(Y89=\"\",0,IF(VLOOKUP(Y89,[1]Hops!$A$2:$J$124,8,0)=\"Pellet\",0,AH89))+IF(Y90=\"\",0,IF(VLOOKUP(Y90,[1]Hops!$A$2:$J$124,8,0)=\"Pellet\",0,AH90))+IF(Y91=\"\",0,IF(VLOOKUP(Y91,[1]Hops!$A$2:$J$124,8,0)=\"Pellet\",0,AH91)),IF(Y81=\"\",0,IF(VLOOKUP(Y81,[1]Hops!$A$2:$J$124,8,0)=\"Pellet\",0,AK81))+IF(Y82=\"\",0,IF(VLOOKUP(Y82,[1]Hops!$A$2:$J$124,8,0)=\"Pellet\",0,AK82))+IF(Y83=\"\",0,IF(VLOOKUP(Y83,[1]Hops!$A$2:$J$124,8,0)=\"Pellet\",0,AK83))+IF(Y84=\"\",0,IF(VLOOKUP(Y84,[1]Hops!$A$2:$J$124,8,0)=\"Pellet\",0,AK84))+IF(Y85=\"\",0,IF(VLOOKUP(Y85,[1]Hops!$A$2:$J$124,8,0)=\"Pellet\",0,AK85))+IF(Y86=\"\",0,IF(VLOOKUP(Y86,[1]Hops!$A$2:$J$124,8,0)=\"Pellet\",0,AK86))+IF(Y87=\"\",0,IF(VLOOKUP(Y87,[1]Hops!$A$2:$J$124,8,0)=\"Pellet\",0,AK87))+IF(Y88=\"\",0,IF(VLOOKUP(Y88,[1]Hops!$A$2:$J$124,8,0)=\"Pellet\",0,AK88))+IF(Y89=\"\",0,IF(VLOOKUP(Y89,[1]Hops!$A$2:$J$124,8,0)=\"Pellet\",0,AK89))+IF(Y90=\"\",0,IF(VLOOKUP(Y90,[1]Hops!$A$2:$J$124,8,0)=\"Pellet\",0,AK90))+IF(Y91=\"\",0,IF(VLOOKUP(Y91,[1]Hops!$A$2:$J$124,8,0)=\"Pellet\",0,AK91)))","v":5},null,{"$f":"IF(SUM(IBUorOuncesPG)=0,\"\",SUM(IBUorOuncesPG))","v":27.369434105044064},null,"Tinseth",null,null,"Chill Time PG"]
[null,"Yeast",null,"Temperature",null,"Attenuation",null,null,"Flocculation",null,null,"Styles & Notes",null,null,null,null,null,null,null,null,null,null,null,null,null,null,null,null,null,null,null,null,null,null,null,null,null,"Name",null,null,null,"Transfer Time PG"]
[null,"Wyeast 2565",null,{"$f":"IF(YeastStrain1PG=\"\",\"\",VLOOKUP(YeastStrain1PG,YEAST_ATTRIBUTES,3,0))","v":56},{"$f":"IF(YeastStrain1PG=\"\",\"\",VLOOKUP(YeastStrain1PG,YEAST_ATTRIBUTES,4,0))","v":70},{"$f":"IF(YeastStrain1PG=\"\",\"\",VLOOKUP(YeastStrain1PG,YEAST_ATTRIBUTES,5,0))","v":0.73},{"$f":"IF(YeastStrain1PG=\"\",\"\",VLOOKUP(YeastStrain1PG,YEAST_ATTRIBUTES,6,0))","v":0.77},null,{"$f":"IF(YeastStrain1PG=\"\",\"\",VLOOKUP(YeastStrain1PG,YEAST_ATTRIBUTES,7,0))","v":"Low"},null,null,{"$f":"IF(YeastStrain1PG=\"\",\"\",VLOOKUP(YeastStrain1PG,YEAST_ATTRIBUTES,9,0))","v":"True top cropping yeast similar to Alt strains. Produces slightly more fruity/winey characteristics. Fruitiness increases with temperature increase. Low or no detectable diacetyl production. Also ferments well at cold 55° - 60° F range (13-16° C). Used to produce quick-conditioning pseudo-lager beers. Requires filtration or additional settling time to produce bright beers."},null,null,null,null,null,null,null,null,null,null,null,null,null,null,null,null,null,null,null,null,null,null,null,null,null,{"$f":"IF(YeastStrain1PG=\"\",\"\",VLOOKUP(YeastStrain1PG,YEAST_ATTRIBUTES,2,0))","v":"Kölsch"},null,null,null,"Aeration Time PG"]
[null,null,null,{"$f":"IF(YeastStrain2PG=\"\",\"\",VLOOKUP(YeastStrain2PG,YEAST_ATTRIBUTES,3,0))","v":""},{"$f":"IF(YeastStrain2PG=\"\",\"\",VLOOKUP(YeastStrain2PG,YEAST_ATTRIBUTES,4,0))","v":""},{"$f":"IF(YeastStrain2PG=\"\",\"\",VLOOKUP(YeastStrain2PG,YEAST_ATTRIBUTES,5,0))","v":""},{"$f":"IF(YeastStrain2PG=\"\",\"\",VLOOKUP(YeastStrain2PG,YEAST_ATTRIBUTES,6,0))","v":""},null,{"$f":"IF(YeastStrain2PG=\"\",\"\",VLOOKUP(YeastStrain2PG,YEAST_ATTRIBUTES,7,0))","v":""},null,null,{"$f":"IF(YeastStrain2PG=\"\",\"\",VLOOKUP(YeastStrain2PG,YEAST_ATTRIBUTES,9,0))","v":""},null,null,null,null,null,null,null,null,null,null,null,null,null,null,null,null,null,null,null,null,null,null,null,null,null,{"$f":"IF(YeastStrain2PG=\"\",\"\",VLOOKUP(YeastStrain2PG,YEAST_ATTRIBUTES,2,0))","v":""}]
[null,"Lager ","Required Cell Count: ",{"$f":"IF(PlatoEstimatedOriginalPG=\"\",\"\",IF(VolumeFermentationPG=\"\",\"\",IF(AleOrLagerPG=\"Ale \",IF(PitchingRateAle=\"\",\"\",1000000*PitchingRateAle*VolumeFermentationPG*3785*PlatoEstimatedOriginalPG),IF(PitchingRateLager=\"\",\"\",1000000*PitchingRateLager*VolumeFermentationPG*3785*PlatoEstimatedOriginalPG))))","v":860070648793.93323},null,null,"Yeast Preparation: ",null,null,null,null,"Stirplate Starter",null,null,null,null,null,null,null,"# of Packages: ",null,null,null,null,1,null,null,null,"Starter Volume (mL/vials): ",null,null,{"$f":"IF(RequiredCellCountPG=\"\",\"\",RequiredCellCountPG/(VLOOKUP(YeastPreparationPG,[1]Tables!$C$15:$F$20,4,0)*1000000))","v":3440.2825951757327},null,null,"Dry Yeast (grams): ",null,null,null,{"$f":"IF(RequiredCellCountPG=\"\",\"\",RequiredCellCountPG/(CellsPerDryGram*1000000000))","v":43.003532439696663}]
[null,"Cost:  ",{"$f":"IF(YeastStrain1PG=\"\",0,YeastPackagesPG/2*VLOOKUP(YeastStrain1PG,[1]Yeast!$A$2:$L$168,12,0))+IF(YeastStrain2PG=\"\",IF(YeastStrain1PG=\"\",0,YeastPackagesPG/2*VLOOKUP(YeastStrain1PG,[1]Yeast!$A$2:$L$168,12,0)),YeastPackagesPG/2*VLOOKUP(YeastStrain2PG,[1]Yeast!$A$2:$L$168,12,0))","v":0}]
[]
[null,"Notes"]
[]
[]
[]
[]
[]
[]
[]
[]
[]
[]
[]
[]
[]
[]
[]
[]
[]
[]
[]
[]
[]
[]
[]
[]
[]
[null,"Printable Report"]
[null,"Recipe:",{"$f":"IF(RecipeName=\"\",\"\",RecipeName)","v":"Example Parti-gyle"},null,null,"Brew Date:",null,null,{"$f":"BrewDate","v":"2007-10-25"},null,null,"Time:",null,{"$f":"WorkTime","v":7.75},null,"Cost:",null,null,null,{"$f":"TotalCost","v":0},null,"Primary Style:",null,null,null,null,null,null,null,{"$f":"StylePrimary","v":"Belgian Golden Strong Ale"},null,null,null,"Secondary Style:",null,null,{"$f":"StyleSecondary","v":"Secondary Style Dropdown"}]
[]
[null,null,null,"Original Gravity",null,null,"Final Gravity",null,null,null,"Original Extract",null,null,null,"Final Extract",null,null,null,null,"IBU",null,"SRM",null,null,"% ABV",null,null,null,null,"Calories per 12 oz",null,"BU:GU",null,"BV","CO2 Volumes"]
[null,"Estimated Beer Properties:",null,{"$f":"GravityEstimatedOriginal","v":1.1101284350326799},null,null,{"$f":"GravityEstimatedFinal","v":1.0269814665830066},null,null,null,{"$f":"PlatoEstimatedOriginal","v":25.928495265724706},null,null,null,{"$f":"PlatoEstimatedFinal","v":6.815427375217979},null,null,null,null,{"$f":"TotalIBU","v":24.471813542094264},null,{"$f":"TargetSRM","v":8.2042229215811329},null,null,{"$f":"ABVEstimated","v":0.10316001048346561},null,null,null,null,{"$f":"IF(ABVEstimated=\"\",\"\",IF(GravityEstimatedFinal=\"\",\"\",IF(PlatoEstimatedOriginal=\"\",\"\",IF(PlatoEstimatedFinal=\"\",\"\",((100*6.9*((0.79*ABVEstimated)/GravityEstimatedFinal))+4*(((0.1808*PlatoEstimatedOriginal)+(0.8192*PlatoEstimatedFinal))-0.1))*GravityEstimatedFinal*3.55))))","v":347.95155828468347},null,{"$f":"BUGUEstimated","v":0.22221157991423754},null,{"$f":"BVEstimated","v":0.46670849023730632},{"$f":"IF(CO2Volumes=\"\",\"\",CO2Volumes)","v":3.5}]
[null,"Measured Beer Properties:"]
[]
[null,null,"Packaged Volume:",{"$f":"VolumeFinal","v":5},"Fermentation Volume:",null,null,null,null,{"$f":"VolumeFermentation","v":5.25},"Post Boil Volume:",null,null,null,{"$f":"VolumePostBoil","v":5.9765625},null,null,"Pre Boil Volume:",null,null,null,{"$f":"VolumePreBoil","v":7.5656249999999998},null,null,null,null,null,null,null,null,null,null,"Pre Boil Gravity:",null,{"$f":"IF(GravityPreBoil=\"\",\"\",GravityPreBoil)","v":1.0893968436183394}]
[null,null,"Measured:"]
[null,null,null,null,null,null,null,null,null,null,null,null,null,null,null,null,null,null,null,null,null,null,null,null,null,null,null,null,null,null,null,null,"Mash Step 1:",null,{"$f":"TempMashStep1","v":152},{"$f":"MashThickness","v":1.1000000000000001},null,{"$f":"TimeMashStep1","v":0},"minutes"]
[null,"Grains, Extract & Adjuncts",null,"Weight",null,"%","ºL","MCU",null,"Late?",null,null,"Hops",null,null,null,null,null,null,null,"AA%",null,"Ounces",null,null,null,null,null,"IBU",null,"Utilization",null,"Mash Step 2:",null,{"$f":"IF(AJ135=\"-\",\"-\",TempMashStep2)","v":"-"},{"$f":"MashThickness2","v":"-"},null,{"$f":"IF(TimeMashStep2=\"\",\"\",TimeMashStep2)","v":""},{"$f":"IF(AL135=\"\",\"\",\"minutes\")","v":""}]
[null,{"$f":"IF(B19=\"\",\"\",B19)","v":"Pilsen"},null,{"$f":"IF(J19=\"\",\"\",J19)","v":41},null,{"$f":"IF(K19=\"\",\"\",K19)","v":1},{"$f":"IF(M19=\"\",\"\",M19)","v":1.3},{"$f":"IF(N19=\"\",\"\",N19)","v":8.9181699346405239},null,{"$f":"IF(B19=\"\",\"\",U19)","v":"Mash"},null,{"$f":"IF(Y19=\"\",\"\",Y19)","v":"Saaz (Czech)"},null,null,null,null,null,null,null,null,{"$f":"IF(AG19=\"\",\"\",AG19)","v":3.7499999999999999E-2},null,{"$f":"IF(Y19=\"\",\"\",IF(HopsMeasurement=\"Ounces\",IF(AH19=\"\",\"\",AH19),IF(AH19=\"\",\"\",AK19)))","v":4},null,null,null,null,null,{"$f":"IF(Y19=\"\",\"\",IF(HopsMeasurement=\"Ounces\",IF(AH19=\"\",\"\",AK19),IF(AH19=\"\",\"\",AH19)))","v":24.471813542094264},null,{"$f":"IF(Y19=\"\",\"\",AM19)","v":0.14748637625815739},null,"Mash Step 3:",null,{"$f":"IF(AJ136=\"-\",\"-\",TempMashStep3)","v":"-"},{"$f":"MashThickness3","v":"-"},null,{"$f":"IF(TimeMashStep3=\"\",\"\",TimeMashStep3)","v":""},{"$f":"IF(AL136=\"\",\"\",\"minutes\")","v":""}]
[null,{"$f":"IF(B20=\"\",\"\",B20)","v":"Cane Sugar (sucrose)"},null,{"$f":"IF(J20=\"\",\"\",J20)","v":2},null,{"$f":"IF(K20=\"\",\"\",K20)","v":"--"},{"$f":"IF(M20=\"\",\"\",M20)","v":0},0,null,{"$f":"IF(B20=\"\",\"\",U20)","v":"Yes"},null,{"$f":"IF(Y20=\"\",\"\",Y20)","v":""},null,null,null,null,null,null,null,null,{"$f":"IF(AG20=\"\",\"\",AG20)","v":""},null,"",null,null,null,null,null,"",null,{"$f":"IF(Y20=\"\",\"\",AM20)","v":""}]
[null,"",null,"",null,"","","",null,"",null,"",null,null,null,null,null,null,null,null,"",null,"",null,null,null,null,null,"",null,"",null,"Strike Water Volume:",null,null,{"$f":"VolumeStrikeWater1","v":11.275},null,{"$f":"TempStrikeWater1","v":171.90909090909091},"Temp ºF"]
[null,"",null,"",null,"","","",null,"",null,"",null,null,null,null,null,null,null,null,"",null,"",null,null,null,null,null,"",null,"",null,{"$f":"IF(MashType=\"Infusion Mash\",\"Strike Water Volume 2:\",IF(MashType=\"Decoction Mash\",\"Decoction Volume 1:\",\"\"))","v":"Strike Water Volume 2:"},null,null,{"$f":"IF(VolumeStrikeWater2=\"\",\"\",VolumeStrikeWater2)","v":"-"},null,{"$f":"IF(AJ139=\"\",\"\",IF(AJ139=\"-\",\"-\",TempStrikeWater2))","v":"-"},"Temp ºF"]
[null,"",null,"",null,"","","",null,"",null,"",null,null,null,null,null,null,null,null,"",null,"",null,null,null,null,null,"",null,"",null,{"$f":"IF(MashType=\"Infusion Mash\",\"Strike Water Volume 3:\",IF(MashType=\"Decoction Mash\",\"Decoction Volume 2:\",\"\"))","v":"Strike Water Volume 3:"},null,null,{"$f":"IF(VolumeStrikeWater3=\"\",\"\",VolumeStrikeWater3)","v":"-"},null,{"$f":"IF(AJ140=\"\",\"\",IF(AJ140=\"-\",\"-\",TempStrikeWater2))","v":"-"},"Temp ºF"]
[null,"",null,"",null,"","","",null,"",null,"",null,null,null,null,null,null,null,null,"",null,"",null,null,null,null,null,"",null,"",null,{"$f":"IF(MashType=\"Infusion Mash\",\"\",IF(MashType=\"Decoction Mash\",\"Decoction Volume 3:\",\"\"))","v":""},null,null,{"$f":"IF(VolumeDecoction3=\"-\",\"\",IF(VolumeDecoction3=\"\",\"\",VolumeDecoction3))","v":""},null,{"$f":"IF(AJ141=\"\",\"\",TempStrikeWater2)","v":""},"Temp ºF"]
[null,"",null,"",null,"","","",null,"",null,"",null,null,null,null,null,null,null,null,"",null,"",null,null,null,null,null,"",null,"",null,"Mash Out Volume:",null,null,{"$f":"VolumeMashOut","v":8.3984375},null,{"$f":"MashOutTemp","v":170},"Temp ºF"]
[null,"",null,"",null,"","","",null,"",null,"",null,null,null,null,null,null,null,null,"",null,"",null,null,null,null,null,"",null,"",null,"Sparge Volume 1:",null,null,{"$f":"VolumeSpargeWater1","v":11.223437499999999},null,{"$f":"MashOutTemp","v":170},"Temp ºF"]
[null,"",null,"",null,"","","",null,"",null,"",null,null,null,null,null,null,null,null,"",null,"",null,null,null,null,null,"",null,"",null,"Sparge Volume 2:",null,null,{"$f":"VolumeSpargeWater2","v":"-"},null,{"$f":"IF(AJ144=\"\",\"\",IF(AJ144=\"-\",\"-\",TempStrikeWater2))","v":"-"},"Temp ºF"]
[null,"",null,"",null,"","","",null,"",null,"",null,null,null,null,null,null,null,null,"",null,"",null,null,null,null,null,"",null,""]
[null,"Total Grain Weight: ",null,{"$f":"IF(J30=\"\",\"\",J30)","v":41},null,null,null,null,null,null,null,null,null,null,null,null,null,null,null,"Totals:",null,null,{"$f":"SUM(W136:AB145)","v":4},null,null,null,null,null,{"$f":"TotalIBU","v":24.471813542094264},null,null,null,"Mash Efficiency:",null,{"$f":"MashEfficiencyPredicted","v":0.75},"Measured:"]
[null,null,null,null,null,null,null,null,null,null,null,null,null,null,null,null,null,null,null,null,null,null,null,null,null,null,null,null,null,null,null,null,"Mash pH:",null,null,"Measured:"]
[null,null,null,"Calcium",null,"Magnesium",null,"Sodium",null,null,"Chloride",null,"Sulfates",null,"Effective Hardness",null,null,null,null,null,"Residual Alkalinity",null,null,null,null,null,null,null,null,"Cl/SO4 Balance"]
[null,"Source Water",null,{"$f":"IF(CalciumSource=\"\",\"\",CalciumSource)","v":6.7},null,{"$f":"IF(MagnesiumSource=\"\",\"\",MagnesiumSource)","v":2},null,{"$f":"IF(SodiumSource=\"\",\"\",SodiumSource)","v":16},null,null,{"$f":"IF(ChlorideSource=\"\",\"\",ChlorideSource)","v":14},null,{"$f":"IF(SulfateSource=\"\",\"\",SulfateSource)","v":5},null,{"$f":"IF(EffectiveHardnessSource=\"\",\"\",EffectiveHardnessSource)","v":5.9621848739495809},null,null,null,null,null,{"$f":"IF(RASource=\"\",\"\",RASource)","v":7.1878151260504195},null,null,null,null,null,null,null,null,{"$f":"IF(CSBalanceSource=\"\",\"\",CSBalanceSource)","v":"Very Malty"},null,null,{"$f":"YeastPreparation","v":"Stirplate Starter"},null,null,{"$f":"IF(AF35=\"\",\"\",AF35)","v":1545.6948346470963},null,"mL Starter Needed"]
[null,"Added to Water",null,{"$f":"IF(CalciumAdded=\"\",\"\",CalciumAdded)","v":43.370288248337026},null,{"$f":"IF(MagnesiumAdded=\"\",\"\",MagnesiumAdded)","v":8.7272727272727266},null,{"$f":"IF(SodiumAdded=\"\",\"\",SodiumAdded)","v":0},null,null,{"$f":"IF(ChlorideAdded=\"\",\"\",ChlorideAdded)","v":50.874944567627495},null,{"$f":"IF(SulfateAdded=\"\",\"\",SulfateAdded)","v":72.492239467849217},null,{"$f":"IF(EffectiveHardnessAdded=\"\",\"\",EffectiveHardnessAdded)","v":36.11246715981293},null,null,null,null,null,{"$f":"IF(RAAdded=\"\",\"\",RAAdded)","v":-36.11246715981293},null,null,null,null,null,null,null,null,null,null,null,{"$f":"IF(YeastStrain1=\"\",\"\",YeastStrain1)","v":"White Labs WLP570"},null,null,{"$f":"IF(AL33=\"\",\"\",AL33)","v":"Belgian Golden Ale"}]
[null,"Resulting Water",null,{"$f":"IF(CalciumFinal=\"\",\"\",CalciumFinal)","v":50.070288248337029},null,{"$f":"IF(MagnesiumFinal=\"\",\"\",MagnesiumFinal)","v":10.727272727272727},null,{"$f":"IF(SodiumFinal=\"\",\"\",SodiumFinal)","v":16},null,null,{"$f":"IF(ChlorideFinal=\"\",\"\",ChlorideFinal)","v":64.874944567627495},null,{"$f":"IF(SulfateFinal=\"\",\"\",SulfateFinal)","v":77.492239467849217},null,{"$f":"IF(EffectiveHardnessFinal=\"\",\"\",EffectiveHardnessFinal)","v":42.074652033762511},null,null,null,null,null,{"$f":"IF(RAFinal=\"\",\"\",RAFinal)","v":-28.924652033762513},null,null,null,null,null,null,null,null,{"$f":"IF(CSBalanceFinal=\"\",\"\",CSBalanceFinal)","v":"Balanced"},null,null,{"$f":"IF(YeastStrain1=\"\",\"\",D33)","v":68},{"$f":"IF(YeastStrain1=\"\",\"\",E33)","v":75},{"$f":"IF(YeastStrain1=\"\",\"\",F33)","v":0.73},{"$f":"IF(YeastStrain1=\"\",\"\",G33)","v":0.78},null,{"$f":"IF(YeastStrain1=\"\",\"\",I33)","v":"Low"}]
[null,null,null,null,null,null,null,null,null,null,null,null,null,null,null,null,null,null,null,null,null,null,null,null,null,null,null,null,null,null,null,null,{"$f":"IF(YeastStrain2=\"\",\"\",YeastStrain2)","v":""},null,null,{"$f":"IF(AL34=\"\",\"\",AL34)","v":""}]
[null,null,null,"Chalk","Gypsum",null,"Calcium Chloride",null,null,null,"Epsom Salt",null,null,"Baking Soda",null,null,null,null,"Table Salt",null,"Hydrochloric Acid",null,null,null,null,null,null,null,null,"Lactic Acid",null,null,{"$f":"IF(YeastStrain2=\"\",\"\",D34)","v":""},{"$f":"IF(YeastStrain2=\"\",\"\",E34)","v":""},{"$f":"IF(YeastStrain2=\"\",\"\",F34)","v":""},{"$f":"IF(YeastStrain2=\"\",\"\",G34)","v":""},null,{"$f":"IF(YeastStrain2=\"\",\"\",I34)","v":""}]
[null,null,"Mash Additions:",{"$f":"IF(ChalkAddition=\"\",\"\",ChalkAddition)","v":""},{"$f":"IF(GypsumAddition=\"\",\"\",GypsumAddition)","v":2.75},null,{"$f":"IF(CalciumChlorideAddition=\"\",\"\",CalciumChlorideAddition)","v":4.5},null,null,null,{"$f":"IF(EpsomSaltAddition=\"\",\"\",EpsomSaltAddition)","v":4},null,null,{"$f":"IF(BakingSodaAddition=\"\",\"\",BakingSodaAddition)","v":""},null,null,null,null,{"$f":"IF(TableSaltAddition=\"\",\"\",TableSaltAddition)","v":""},null,{"$f":"IF(HydrochloricUsed=\"\",\"\",HydrochloricUsed)","v":""},null,null,null,null,null,null,null,null,{"$f":"IF(LacticUsed=\"\",\"\",LacticUsed)","v":""}]
[]
[null,"Recipe:",{"$f":"RecipeNamePG","v":"Parti-gyle Second Beer"},null,null,"Brew Date:",null,null,{"$f":"BrewDate","v":"2007-10-25"},null,null,"Time:",null,{"$f":"WorkTime","v":7.75},null,"Cost:",null,null,null,{"$f":"TotalCost","v":0},null,"Primary Style:",null,null,null,null,null,null,null,{"$f":"StylePrimaryPG","v":"Kölsch"},null,null,null,"Secondary Style:",null,null,{"$f":"StyleSecondaryPG","v":"Secondary Style Dropdown"}]
[]
[null,null,null,"Original Gravity",null,null,"Final Gravity",null,null,null,"Original Extract",null,null,null,"Final Extract",null,null,null,null,"IBU",null,"SRM",null,null,"% ABV",null,null,null,null,"Calories per 12 oz",null,"BU:GU",null,"BV","CO2 Volumes"]
[null,"Estimated Beer Properties:",null,{"$f":"GravityEstimatedOriginalPG","v":1.0499536638585307},null,null,{"$f":"GravityEstimatedFinalPG","v":1.0124884159646326},null,null,null,{"$f":"PlatoEstimatedOriginalPG","v":12.37992762863766},null,null,null,{"$f":"PlatoEstimatedFinalPG","v":3.1933099900575996},null,null,null,null,{"$f":"TotalIBUPG","v":27.369434105044064},null,{"$f":"TargetSRMPG","v":5.3623122861947836},null,null,{"$f":"ABVEstimatedPG","v":4.6482937833620543E-2},null,null,null,null,{"$f":"IF(ABVEstimatedPG=\"\",\"\",IF(GravityEstimatedFinalPG=\"\",\"\",IF(PlatoEstimatedOriginalPG=\"\",\"\",IF(PlatoEstimatedFinalPG=\"\",\"\",((100*6.9*((0.79*ABVEstimatedPG)/GravityEstimatedFinalPG))+4*(((0.1808*PlatoEstimatedOriginalPG)+(0.8192*PlatoEstimatedFinalPG))-0.1))*GravityEstimatedFinalPG*3.55))))","v":158.30281935006604},null,{"$f":"BUGUEstimatedPG","v":0.54789643023091505},null,{"$f":"BVEstimatedPG","v":1.1384860887915174},{"$f":"CO2VolumesPG","v":2.5}]
[null,"Measured Beer Properties:"]
[]
[null,null,"Packaged Volume:",{"$f":"VolumeFinalPG","v":11.986546875},"Fermentation Volume:",null,null,null,null,{"$f":"VolumeFermentationPG","v":12.236546875},"Post Boil Volume:",null,null,null,{"$f":"VolumePostBoilPG","v":13.176},null,null,"Pre Boil Volume:",null,null,null,{"$f":"VolumePreBoilPG","v":15.13125},null,null,null,null,null,null,null,null,null,null,{"$f":"YeastPreparation","v":"Stirplate Starter"},null,null,{"$f":"IF(AF47=\"\",\"\",AF47)","v":""},null,"mL Starter Needed"]
[null,null,"Measured:",null,null,null,null,null,null,null,null,null,null,null,null,null,null,null,null,null,null,null,null,null,null,null,null,null,null,null,null,null,{"$f":"IF(YeastStrain1PG=\"\",\"\",YeastStrain1PG)","v":"Wyeast 2565"},null,null,{"$f":"IF(AL94=\"\",\"\",AL94)","v":"Kölsch"}]
[null,null,null,null,null,null,null,null,null,null,null,null,null,null,null,null,null,null,null,null,null,null,null,null,null,null,null,null,null,null,null,null,{"$f":"IF(YeastStrain1PG=\"\",\"\",D94)","v":56},{"$f":"IF(YeastStrain1PG=\"\",\"\",E94)","v":70},{"$f":"IF(YeastStrain1PG=\"\",\"\",YeastAttenuation1LPG)","v":0.73},{"$f":"IF(YeastStrain1PG=\"\",\"\",YeastAttenuation1HPG)","v":0.77},null,{"$f":"IF(YeastStrain1PG=\"\",\"\",I94)","v":"Low"}]
[null,"Grains, Extract & Adjuncts",null,"Weight",null,"%","ºL","MCU",null,"Late?",null,null,"Hops",null,null,null,null,null,null,null,"AA%",null,"Ounces",null,null,null,null,null,"IBU",null,"Utilization",null,{"$f":"IF(YeastStrain2PG=\"\",\"\",YeastStrain2PG)","v":""},null,null,{"$f":"IF(AL95=\"\",\"\",AL95)","v":""}]
[null,{"$f":"IF(B81=\"\",\"\",B81)","v":"Extra Light dry extract"},null,{"$f":"IF(J81=\"\",\"\",J81)","v":2},null,{"$f":"IF(K81=\"\",\"\",K81)","v":1},{"$f":"IF(M81=\"\",\"\",M81)","v":3},{"$f":"IF(N81=\"\",\"\",N81)","v":0.45537340619307831},null,{"$f":"IF(B81=\"\",\"\",U81)","v":"Yes"},null,{"$f":"IF(Y81=\"\",\"\",Y81)","v":"Hallertauer (US)"},null,null,null,null,null,null,null,null,{"$f":"IF(AG81=\"\",\"\",AG81)","v":4.4999999999999998E-2},null,{"$f":"IF(Y81=\"\",\"\",IF(HopsMeasurement=\"Ounces\",IF(AH81=\"\",\"\",AH81),IF(AH81=\"\",\"\",AK81)))","v":5},null,null,null,null,null,{"$f":"IF(Y81=\"\",\"\",IF(HopsMeasurement=\"Ounces\",IF(AH81=\"\",\"\",AK81),IF(AH81=\"\",\"\",AH81)))","v":27.369434105044064},null,{"$f":"IF(Y81=\"\",\"\",AM81)","v":0.22986305105177529},null,{"$f":"IF(YeastStrain2PG=\"\",\"\",D95)","v":""},{"$f":"IF(YeastStrain2PG=\"\",\"\",E95)","v":""},{"$f":"IF(YeastStrain2PG=\"\",\"\",YeastAttenuation2LPG)","v":""},{"$f":"IF(YeastStrain2PG=\"\",\"\",YeastAttenuation2HPG)","v":""},null,{"$f":"IF(YeastStrain2PG=\"\",\"\",E95)","v":""}]
[null,{"$f":"IF(B82=\"\",\"\",B82)","v":""},null,{"$f":"IF(J82=\"\",\"\",J82)","v":""},null,{"$f":"IF(K82=\"\",\"\",K82)","v":""},{"$f":"IF(M82=\"\",\"\",M82)","v":""},"",null,{"$f":"IF(B82=\"\",\"\",U82)","v":""},null,{"$f":"IF(Y82=\"\",\"\",Y82)","v":""},null,null,null,null,null,null,null,null,{"$f":"IF(AG82=\"\",\"\",AG82)","v":""},null,"",null,null,null,null,null,"",null,{"$f":"IF(Y82=\"\",\"\",AM82)","v":""}]
[null,"",null,"",null,"","","",null,"",null,"",null,null,null,null,null,null,null,null,"",null,"",null,null,null,null,null,"",null,"",null,"Parti-gyle Fermenation",null,null,null,"Fermentation Schedule"]
[null,"",null,"",null,"","","",null,"",null,"",null,null,null,null,null,null,null,null,"",null,"",null,null,null,null,null,"",null,"",null,"Primary ",null,{"$f":"IF(DaysFermentationPG=\"\",\"\",DaysFermentationPG)","v":10},null,{"$f":"IF(DaysFermentation=\"\",\"\",DaysFermentation)","v":14},null,"Primary"]
[null,"",null,"",null,"","","",null,"",null,"",null,null,null,null,null,null,null,null,"",null,"",null,null,null,null,null,"",null,"",null,"Diacetyl Rest ",null,{"$f":"IF(DaysDiacetylRestPG=\"\",\"\",DaysDiacetylRestPG)","v":""},null,{"$f":"IF(DaysDiacetylRest=\"\",\"\",DaysDiacetylRest)","v":""},null,"Diacetyl Rest"]
[null,"",null,"",null,"","","",null,"",null,"",null,null,null,null,null,null,null,null,"",null,"",null,null,null,null,null,"",null,"",null,"Cold Crash ",null,{"$f":"IF(DaysColdCrashPG=\"\",\"\",DaysColdCrashPG)","v":3},null,{"$f":"IF(DaysColdCrash=\"\",\"\",DaysColdCrash)","v":2},null,"Cold Crash"]
[null,"",null,"",null,"","","",null,"",null,"",null,null,null,null,null,null,null,null,"",null,"",null,null,null,null,null,"",null,"",null,"Conditioning ",null,{"$f":"IF(DaysConditioningPG=\"\",\"\",DaysConditioningPG)","v":""},null,{"$f":"IF(DaysConditioning=\"\",\"\",DaysConditioning)","v":""},null,"Conditioning"]
[null,"",null,"",null,"","","",null,"",null,"",null,null,null,null,null,null,null,null,"",null,"",null,null,null,null,null,"",null,"",null,"Aging ",null,{"$f":"IF(DaysAgingPG=\"\",\"\",DaysAgingPG)","v":180},null,{"$f":"IF(DaysAging=\"\",\"\",DaysAging)","v":90},null,"Aging"]
[null,"",null,"",null,"","","",null,"",null,"",null,null,null,null,null,null,null,null,"",null,"",null,null,null,null,null,"",null,"",null,"Rest Date ",null,null,null,null,null,"Rest Date"]
[null,"",null,"",null,"","","",null,"",null,"",null,null,null,null,null,null,null,null,"",null,"",null,null,null,null,null,"",null,"",null,"Crash Date ",null,null,null,null,null,"Crash Date"]
[null,"Total Grain Weight: ",null,{"$f":"IF(TotalGrainWeightPG=\"\",\"\",TotalGrainWeightPG)","v":2},null,null,null,null,null,null,null,null,null,null,null,null,null,null,null,"Totals:",null,null,{"$f":"SUM(W166:AB175)","v":5},null,null,null,null,null,{"$f":"TotalIBUPG","v":27.369434105044064},null,null,null,"Transfer Date ",null,null,null,null,null,"Transfer Date"]
[null,null,null,null,null,null,null,null,null,null,null,null,null,null,null,null,null,null,null,null,null,null,null,null,null,null,null,null,null,null,null,null,"Transfer Date ",null,null,null,null,null,"Transfer Date"]
[null,null,null,null,null,null,null,null,null,null,null,null,null,null,null,null,null,null,null,null,null,null,null,null,null,null,null,null,null,null,null,null,"Packaging Date ",null,null,null,null,null,"Packaging"]